Workbook

Sheet Introduction
A1: Introduction
A36: Local GHG Inventory Tool: Community Module

Sheet Read Me
A1: Read Me
A69: Local GHG Inventory Tool: Community Module

Sheet TOC
A1: Table of Contents
A42: Local GHG Inventory Tool: Community Module

Sheet Definitions
A1: Definitions
B3: Please refer to this list for an explanation of any terms you may find within this tool.
B5: Term | C5: Definition
B6: Base Year | C6: A measurement, calculation, or time used as a basis for comparison. According to LGOP, it is good practice to aim for a base year that is likely to be representative of the general level of emissions over the surrounding period.
B7: BAU | C7: Business As Usual. Used to refer to a future scenario in which there are no changes to the status quo.
B8: Biogenic | C8: Biogenic emissions or fuels are produced by the biological processes of living organisms. Note that this term refers only to recently produced (i.e., non-fossil) material of biological origin
B9: BOD5 | C9: Biological Oxygen Demand. The amount of oxygen consumed in five days by decomposing waste, used to measure the amount of waste input or output into a system.
B10: CO2 | C10: Carbon dioxide
B11: CO2e | C11: Carbon dioxide equivalent emissions. This is determined by multiplying the emissions of methane and nitrous oxide by their Global Warming Potential.
B12: CH4 | C12: Methane. Methane is a greenhouse gas with a GWP that is 25 times that of CO2. It is produced through anaerobic decomposition of waste, enteric fermentation, production of natural gas and petroleum products, and other industrial processes.
B13: Contractual Instrument | C13: Any type of contract between two parties for the sale and purchase of energy bundled with attributes about the energy generation, or for unbundled attribute claims. They can include energy attribute certificates (RECs, GOs, etc.), direct contracts, and residual grid mix emission rates.
B14: Denitrification | C14: The process by which microorganisms remove nitrogen from its fixed form in the soil and release it into the atmosphere in the form of nitrous oxide (N2O)
B15: Direct Emissions | C15: The emissions generated on-site (as opposed to electricity delivered through a grid system), such as from the combustion of fossil fuels
B16: EF | C16: Emission Factor. The value for scaling emissions to activity data in terms of a standard rate of emissions per unit of activity (e.g., grams of carbon dioxide emitted per barrel of fossil fuel consumed).
B17: Effluent | C17: The treated or untreated wastewater that flows out of a source
B18: Energy Attribute Certificate | C18: A category of contractual instrument that represents certain information (or attributes) about the energy generated, but does not represent the energy itself. This category includes a variety of instruments with different names, including certificates, tags, credits, or generator declarations.
B19: EPA | C19: United States Environmental Protection Agency
B20: Fossil Fuel | C20: Any fuel derived from the pre-historic burial of organic matter. Examples include natural gas (methane or CH4) and petroleum products (gasoline, diesel, kerosene, propane, and others). Combustion of petroleum products releases greenhouse gases into the atmosphere.
B21: Fugitive Emissions | C21: Emissions of gases that escape from pressurized equipment, such as fuel transportation pipelines or wastewater treatment plants.
B22: G.G.E. | C22: Gallon of gasoline equivalent
B23: GHG | C23: greenhouse gas
B24: GPC | C24: Global Protocol for Community-Scale GHG Emissions
B25: GWP | C25: Global Warming Potential. Conversion factor used to compare all greenhouse gas emissions to carbon dioxide equivalent units. The GWP represents the combined effect of the differing times these gases remain in the atmosphere and their relative effectiveness in absorbing outgoing thermal infrared radiation.
B26: Indirect Emissions | C26: Refers to indirect emissions associated with the consumption of purchased or acquired electricity, steam, heating, or cooling. These emissions can be allocated in an inventory to an entity, but are generated offsite. An example is electricity that is not generated directly at a facility. A facility uses electricity on-site, but the fuels used to generate the electricity are combusted off-site, perhaps at a regional power plant. If the generation source is at a different site that is also operated by the community, it is not an indirect emission source.
B27: kg | C27: kilograms
B28: kWh | C28: kilowatt-hour
B29: LEED | C29: Leadership in Energy and Environmental Design
B30: LFG | C30: landfill gas
B31: LGOP | C31: Local Government Operations Protocol
B32: Location-based method | C32: Reflects the average emissions intensity of grids on which energy consumption occurs (using exclusively grid-average emission factor data).
B33: Market-based method | C33: Reflects emissions from electricity based on where communities have specifically chosen to procure power (e.g., Renewable Energy Credits (RECs)), using utility-specific emission factors to estimate emissions from grid electricity purchases, where applicable, and accounting for other contractual instruments.
B34: mcf | C34: thousand cubic feet of natural gas
B35: MG | C35: million gallons
B36: MMBtu | C36: million British Thermal Units, a measure of energy
B37: Mobile Combustion | C37: The combustion of fuels to power a moving vehicle, such as gasoline or diesel fuel in a car or truck
B38: MT CO2e | C38: Metric tons of carbon dioxide equivalent. This is the standard unit for measuring greenhouse gas emissions.
B39: N2O | C39: nitrous oxide
B40: Nitrification | C40: Biological process in which ammonia is converted to nitrate (NO3).
B41: Operational Control | C41: A Local government has operational control over an operation if it has the full authority to introduce and implement its operating procedures
B42: RPS | C42: Renewable Portfolio Standard
B43: Scope 1 Emissions | C43: All direct GHG emissions
B44: Scope 2 Emissions | C44: Indirect GHG emissions from the consumption of purchased electricity, heat, or steam.
B45: Scope 3 Emissions | C45: Other indirect emissions, such as the extraction and production of purchased materials and fuels, transport-related activities in vehicles not owned or controlled by the reporting entity, outsourced activities, etc. The Scope 3 emissions included in this inventory are imported water consumption, waste generation, urban forestry, and agriculture & land management.
B46: Short Tons | C46: American ton, equal to 2,000 lbs. One short ton = 0.907 metric tons
B47: Stationary Combustion | C47: The on-site combustion of fuels to produce electricity, heat, or motive power using equipment in a fixed location
A52: Local GHG Inventory Tool: Community Module

Sheet Control Sheet
A1: Inventory Control Sheet
A2: Complete the 4 steps below to set up the tool for your community.
A3: 1) Please enter the name of your city, the inventory year, and population below.
B5: City | D5: Commonwealth of the Northern Mariana Islands
B6: Year | D6: 2022
B7: Population | D7: 47329
A8: 2) The sectors included in the community inventory are defined below. These are the main sectors defined in the Global Protocol
A9: for Community-Scale GHG Emissions and the main sectors used to categorize GHG emissions. These sectors will be used to standardize
B10: The maximum number of sectors is 20. The minimum is 1.
D12: 4
A13: data entry for calculations throughout the tool.
A16: Dstart | C16: 1 | D16: Residential
C17: 2 | D17: Commercial/Institutional
C18: 3 | D18: Industrial
C19: 4 | D19: Energy Generation
C20: 5
C21: 6
C22: 7
C23: 8
C24: 9
C25: 10
C26: 11
C27: 12
C28: 13
C29: 14
C30: 15
C31: 16
C32: 17
C33: 18
C34: 19
C35: 20
A38: 3) Select the eGRID subregion where your community is located and enter utility-specific emissions factors, if available, for the utilities that provide electric service for your community.
B39: These utility selections and emission factors will be used to help calculate your emissions throughout the tool. The eGRID subregion emission factors will be used to estimate location-based emissions. Utility-specific emissions factors will be used to estimate market-based emissions.
B40: Please see the map below the table to identify the eGRID subregion that includes your community and continue to Step 4 below
B41: once this table is complete. For help determining your eGRID subregion, visit EPA's website by clicking the map below.
E42: Emission Factors (lb/MWh) | H42: Total EF
D43: eGRID Subregion | E43: CO2 | F43: CH4 | G43: N2O | H43: lb CO2e/MWh
B44: Select your subregion: | D44: AKGD eGRID subregion | E44: =IFERROR(VLOOKUP(D44, elec_factors_CO2, elec_colindex_MyYear+1, FALSE),"") -> 1067.68 | F44: =IFERROR(VLOOKUP(D44, elec_factors_CH4, elec_colindex_MyYear+1, FALSE),"") -> 0.091 | G44: =IFERROR(VLOOKUP(D44, elec_factors_N2O, elec_colindex_MyYear+1, FALSE),"") -> 0.012 | H44: =IFERROR(E44*CO2_CO2e+F44*CH4_CO2e+G44*N2O_CO2e,"") -> 1073.408
D45: Utility Name
B46: TRUE | H46: =E46*CO2_CO2e+F46*CH4_CO2e+G46*N2O_CO2e -> 0
B47: FALSE | H47: =E47*CO2_CO2e+F47*CH4_CO2e+G47*N2O_CO2e -> 0
B48: FALSE | H48: =E48*CO2_CO2e+F48*CH4_CO2e+G48*N2O_CO2e -> 0
B49: FALSE | H49: =E49*CO2_CO2e+F49*CH4_CO2e+G49*N2O_CO2e -> 0
B50: FALSE | H50: =E50*CO2_CO2e+F50*CH4_CO2e+G50*N2O_CO2e -> 0
A82: 4) Finally, please click on the "Set Up" button below.
B83: This will set up each sheet based on your entries above. You can always come back and change an emission factor.
B84: However, please do not edit or delete sector names.
B88: Following revised reporting requirements under the UNFCCC, this tool presents CO2 equivalent values for CO2, CH4, and N2O based on the IPCC Fifth Assessment
B89: Report (AR5) GWP values. If you would like to use different GWP values for this inventory (e.g., IPCC AR4), please use the button to the right to navigate to the
B90: Factors sheet where alternative values can be entered before clicking "Set Up" above.
A92: Local GHG Inventory Tool: Community Module

Sheet CompletionTracker (hidden)
A1: CompletionTracker
A4: Control Sheet | B4: FALSE
A5: Stationary-Entry | B5: FALSE
A6: Stationary-Data | B6: FALSE
A7: Electricity-Entry | B7: FALSE
A8: Electricity-Data | B8: FALSE
A9: Mobile-Entry | B9: FALSE
A10: Mobile-Data | B10: FALSE
A11: Solid Waste-Control | B11: FALSE
A12: Solid Waste-Entry | B12: FALSE
A13: Wastewater-Control | B13: FALSE
A14: Wastewater-Entry | B14: FALSE
A15: Employee Commutes | B15: FALSE
A16: Water | B16: FALSE
A17: Agriculture & Land Management | B17: FALSE
A18: Urban Forestry | B18: FALSE
A19: Waste Production | B19: FALSE
A20: Additional Emission Sources | B20: FALSE
A21: Summary-Emissions
A22: Summary-Reductions
A23: Background Controls
A24: Help

Sheet Stationary-Entry
A1: Stationary Units - Entry
A2: Data Entry & Calculations
A7: 1) | B7: Describe the fuel consuming unit you are entering
B8: ID# | C8: Unit Description | D8: Facility Type (if applicable) | E8: Sector
A9: 0 | B9: =stat_CurrentID -> 8
A12: 2) | B12: ="Enter the activity data for the year "&MyYear -> Enter the activity data for the year 2022
B14: Fuel Type | C14: =IF(ISNA("Fuel Use ("&VLOOKUP(stat_entry_fuel,stat_factors,6,FALSE)&"):"),"Fuel Use","Fuel Use ("&VLOOKUP(stat_entry_fuel,stat_factors,6,FALSE)&"):") -> Fuel Use
A25: Local GHG Inventory Tool: Community Module

Sheet StatTemplateReadMe (hidden)
A1: Stationary Data Template Instructions | B1: This sheet describes the file layout and data parameters needed for batch import.
B2: This will allow you to bypass the data entry form and upload multiple lines of data.
B3: Please enter your activity data on the following worksheet (DataSheet) according to the parameters below.
B4: Copy and paste the data from that sheet onto the "Stationary-Data" worksheet in the inventory tool.
A5: ID# | B5: This value is automatically supplied when adding data via the input form. You will need to update this manually when using the batch import feature. Please assign a unique value to each line of data you add.
B6: Values must be integers in ascending order. Gaps between numbers are permitted. For example, three lines with IDs in order of 11, 12, and 15 are ok; IDs of 11, 15, and 12 is not. The calculations will not be accurate if the ID numbers do not meet this condition.
B7: It is recommended that you begin with the highest previous number and increase each additional line by 1.
A8: Unit Description | B8: Use this field to describe or name the unit or group that you are entering. This field is for the user's reference only and does not impact the calculations.
A9: Sector | B9: Enter one of the sectors that were specified on the Control Sheet. You must use the exact spelling of the sector that was provided on the Control Sheet in order for each entry to be included in the calculations.
A10: Fuel Type | B10: Please enter the fuel type in this column. You must select the fuel type from the list below. Any other fuels will not be included in the calculations. The consumption amounts must also be in the units listed below.
B12: Fuel | C12: Unit
B13: Natural Gas | C13: mcf (thousand cubic feet)
B14: Digester Gas | C14: mcf (thousand cubic feet)
B15: Diesel | C15: gallons
B16: LPG | C16: gallons
B17: Gasoline | C17: gallons
B18: Residual Fuel Oil No. 5 | C18: gallons
B19: Residual Fuel Oil No. 6 | C19: gallons
B20: Propane | C20: gallons
B21: Butane | C21: gallons
B22: Jet Fuel | C22: gallons
B23: Bituminous Coal | C23: short tons
A24: Amount Consumed | B24: Please enter your fuel consumption for the inventory year here.
A25: Unit | B25: This value is for reference only and does not affect the calculations. However, please be sure to enter data using the units specified above.
A26: Facility Type | B26: If you have chosen to enter data at the facility level, please specify the type of facility from the lists provided below.
B28: Residential Facility Type List | C28: Commercial/Institutional Facility Type List | D28: Industrial Facility Type List
B29: Single Family Units | C29: Education | D29: Food
B30: Apartment Buildings | C30: Food Sales | D30: Beverage and Tobacco Products
B31: Mobile Homes | C31: Food Service | D31: Textile Mills
C32: Health Care | D32: Textile Product Mills
B33: Energy Generation | C33: Lodging | D33: Apparel
B34: Electricity Generators | C34: Mercantile | D34: Leather and Allied Products
C35: Office | D35: Wood Products
C36: Public Assembly | D36: Paper
C37: Public Order and Safety | D37: Printing and Related Support
C38: Religious Worship | D38: Petroleum and Coal Products
C39: Service | D39: Chemicals
C40: Warehouse and Storage | D40: Plastics and Rubber Products
C41: Other | D41: Nonmetallic Mineral Products
C42: Vacant | D42: Primary Metals
D43: Fabricated Metal Products
D44: Machinery
D45: Computer and Electronic Products
D46: Electrical Equip., Appliances, and Components
D47: Transportation Equipment
D48: Furniture and Related Products
D49: Miscellaneous

Sheet Stationary-Data
A1: Stationary Units - Data
A5: Linker Row
A6: ID# | B6: Unit Description | C6: Sector | D6: Fuel Type | E6: Amount of Fuel Used | F6: Unit | G6: Facility Type
A7: =MAX(A9:A65521)+1 -> 8 | B7: =stat_entry_description -> 0 | C7: =stat_entry_dept -> 0 | D7: =stat_entry_fuel -> 0 | E7: =stat_entry_consumption -> 0 | F7: =IF(ISNA(VLOOKUP(D7,stat_factors,6,FALSE)), " ", VLOOKUP(D7, stat_factors, 6, FALSE)) ->  | G7: =stat_entry_bldgtype -> 0
A8: Saved Data
A9: 1 | B9: Electricity Generation - Saipan | C9: Energy Generation | D9: Distillate Fuel Oil | E9: 18847445 | F9: gal | G9: Energy Generation: Electricity Generators
A10: 2 | B10: Electricity Generation - Tinian | C10: Energy Generation | D10: Distillate Fuel Oil | E10: 956268 | F10: gal | G10: Energy Generation: Electricity Generators
A11: 3 | B11: Electricity Generation - Rota | C11: Energy Generation | D11: Distillate Fuel Oil | E11: 791817 | F11: gal | G11: Energy Generation: Electricity Generators
A12: 4 | B12: Electricity Generation - Saipan Hotels (Pacific Islands Club) | C12: Commercial/Institutional | D12: Diesel | E12: 432000 | F12: gal | G12: Commercial/Institutional: Lodging
A13: 5 | B13: Electricity Generation - Saipan Hotels (Hyatt Regency) | C13: Commercial/Institutional | D13: Diesel | E13: 552000 | F13: gal | G13: Commercial/Institutional: Lodging
A14: 6 | B14: Electricity Generation - Saipan Hotels (Aqua Resort) | C14: Commercial/Institutional | D14: Diesel | E14: 192000 | F14: gal | G14: Commercial/Institutional: Lodging
A15: 7 | B15: Electricity Generation - Saipan Marpi Landfill | C15: Industrial | D15: Diesel | E15: 9000 | F15: gal | G15: Industrial: Miscellaneous

Sheet Stationary-Calcs
A1: Stationary Units - Calculation & Summary
A2: Jump to…
A3: Sector Summary
A4: Emissions by Sector
A5: Fuel and Energy Use by Sector
A6: Fuel Summary
A7: Emissions by Fuel Type
A8: Fuel and Energy Use by Type
A9: Background Calculations
A10: CO2 emissions by fuel type
A11: CH4 emissions by fuel type
A12: N2O emissions by fuel type
A13: Activity data by sector and fuel type
A14: CO2 emissions by sector and fuel type
A15: CH4 emissions by sector and fuel type
A16: N2O emissions by sector and fuel type
A17: Energy use by sector and fuel type
A19: Sector Summary
B21: Emissions by Sector (MT CO2e) | I21: Fuel and Energy (MMBtu) Use by Sector
B22: Sector | C22: CO2 | D22: CH4 | E22: N2O | F22: Total | I22: Sector | J22: mcf | K22: gal | L22: tons | M22: Energy Use
A23: Dstart | B23: ='Background Controls'!I5 -> Residential | C23: =IF(ISNA(VLOOKUP($B23, stat_calcs_CO2_deptFT, 18, FALSE)),0,VLOOKUP($B23, stat_calcs_CO2_deptFT, 18, FALSE)) -> 0 | D23: =IF(ISNA(VLOOKUP($B23, stat_calcs_CH4_deptFT, 18, FALSE)),0,VLOOKUP($B23, stat_calcs_CH4_deptFT, 18, FALSE)) -> 0 | E23: =IF(ISNA(VLOOKUP($B23, stat_calcs_N2O_deptFT, 18, FALSE)),0,VLOOKUP($B23, stat_calcs_N2O_deptFT, 18, FALSE)) -> 0 | F23: =SUM(C23:E23) -> 0 | I23: =B23 -> Residential | J23: =IF(ISNA(VLOOKUP($I23, stat_calcs_consump_deptFT, 18, FALSE)),0,VLOOKUP($I23, stat_calcs_consump_deptFT, 18, FALSE)) -> 0 | K23: =IF(ISNA(VLOOKUP($I23, stat_calcs_consump_deptFT, 19, FALSE)),0,VLOOKUP($I23, stat_calcs_consump_deptFT, 19, FALSE)) -> 0 | L23: =IF(ISNA(VLOOKUP($I23, stat_calcs_consump_deptFT, 20, FALSE)),0,VLOOKUP($I23, stat_calcs_consump_deptFT, 20, FALSE)) -> 0 | M23: =IF(ISNA(VLOOKUP($I23, stat_calcs_E_deptFT, 18, FALSE)),0,VLOOKUP($I23, stat_calcs_E_deptFT, 18, FALSE)) -> 0
B24: ='Background Controls'!I6 -> Commercial/Institutional | C24: 12006.96 | D24: 13.6416 | E24: 25.8216 | F24: =SUM(C24:E24) -> 12046.4232 | I24: =B24 -> Commercial/Institutional | J24: 0 | K24: 1176000 | L24: 0 | M24: 162400
B25: ='Background Controls'!I7 -> Industrial | C25: 91.89 | D25: 0.1044 | E25: 0.1976142857 | F25: 92.19201429 | I25: Industrial | J25: 0 | K25: 9000 | L25: 0 | M25: 1242.857143
B26: ='Background Controls'!I8 -> Energy Generation | C26: 211741.236 | D26: 239.9379245 | E26: 454.1682142 | F26: 212435.3422 | I26: Energy Generation | J26: 0 | K26: 20595530 | L26: 0 | M26: 2856403.863
B27: ='Background Controls'!I9 -> 0 | C27: 0 | D27: 0 | E27: 0 | F27: 0 | I27: 0 | J27: 0 | K27: 0 | L27: 0 | M27: 0
B28: ='Background Controls'!I10 -> 0 | C28: 0 | D28: 0 | E28: 0 | F28: 0 | I28: 0 | J28: 0 | K28: 0 | L28: 0 | M28: 0
B29: ='Background Controls'!I11 -> 0 | C29: 0 | D29: 0 | E29: 0 | F29: 0 | I29: 0 | J29: 0 | K29: 0 | L29: 0 | M29: 0
B30: ='Background Controls'!I12 -> 0 | C30: 0 | D30: 0 | E30: 0 | F30: 0 | I30: 0 | J30: 0 | K30: 0 | L30: 0 | M30: 0
B31: ='Background Controls'!I13 -> 0 | C31: 0 | D31: 0 | E31: 0 | F31: 0 | I31: 0 | J31: 0 | K31: 0 | L31: 0 | M31: 0
B32: ='Background Controls'!I14 -> 0 | C32: 0 | D32: 0 | E32: 0 | F32: 0 | I32: 0 | J32: 0 | K32: 0 | L32: 0 | M32: 0
B33: ='Background Controls'!I15 -> 0 | C33: 0 | D33: 0 | E33: 0 | F33: 0 | I33: 0 | J33: 0 | K33: 0 | L33: 0 | M33: 0
B34: ='Background Controls'!I16 -> 0 | C34: 0 | D34: 0 | E34: 0 | F34: 0 | I34: 0 | J34: 0 | K34: 0 | L34: 0 | M34: 0
B35: ='Background Controls'!I17 -> 0 | C35: 0 | D35: 0 | E35: 0 | F35: 0 | I35: 0 | J35: 0 | K35: 0 | L35: 0 | M35: 0
B36: ='Background Controls'!I18 -> 0 | C36: 0 | D36: 0 | E36: 0 | F36: 0 | I36: 0 | J36: 0 | K36: 0 | L36: 0 | M36: 0
B37: ='Background Controls'!I19 -> 0 | C37: 0 | D37: 0 | E37: 0 | F37: 0 | I37: 0 | J37: 0 | K37: 0 | L37: 0 | M37: 0
B38: ='Background Controls'!I20 -> 0 | C38: 0 | D38: 0 | E38: 0 | F38: 0 | I38: 0 | J38: 0 | K38: 0 | L38: 0 | M38: 0
B39: ='Background Controls'!I21 -> 0 | C39: 0 | D39: 0 | E39: 0 | F39: 0 | I39: 0 | J39: 0 | K39: 0 | L39: 0 | M39: 0
B40: ='Background Controls'!I22 -> 0 | C40: 0 | D40: 0 | E40: 0 | F40: 0 | I40: 0 | J40: 0 | K40: 0 | L40: 0 | M40: 0
B41: ='Background Controls'!I23 -> 0 | C41: 0 | D41: 0 | E41: 0 | F41: 0 | I41: 0 | J41: 0 | K41: 0 | L41: 0 | M41: 0
B42: ='Background Controls'!I24 -> 0 | C42: 0 | D42: 0 | E42: 0 | F42: 0 | I42: 0 | J42: 0 | K42: 0 | L42: 0 | M42: 0
B43: Total Stationary Combustion Emissions | C43: =SUM(C23:C42) -> 223840.086 | D43: =SUM(D23:D42) -> 253.6839245 | E43: =SUM(E23:E42) -> 480.1874285 | F43: =SUM(F23:F42) -> 224573.9574 | I43: Total Stationary Combustion Energy Use | J43: =SUM(J23:J42) -> 0 | K43: =SUM(K23:K42) -> 21780530 | L43: =SUM(L23:L42) -> 0 | M43: =SUM(M23:M42) -> 3020046.72
B46: Check to display: | W46: emissions | X46: TRUE
W47: energy | X47: TRUE
W48: both | X48: =AND(X46:X47) -> TRUE
X49: =IF(X48=TRUE, W48, IF(X46=TRUE, W46, IF(X47=TRUE, W47,"both"))) -> both
A71: Fuel Summary
B73: Emissions by Fuel Type | I73: Fuel and Energy Use by Type
B74: Fuel Type | C74: CO2 | D74: CH4 | E74: N2O | F74: TOTAL | I74: Fuel Type | J74: Fuel Consumed | L74: Energy Use (MMBtu)
B75: Natural Gas | C75: =VLOOKUP($B75, stat_calcs_CO2byFuel, 8, FALSE) -> 0 | D75: =VLOOKUP($B75, stat_calcs_CH4byFuel, 8, FALSE) -> 0 | E75: =VLOOKUP($B75, stat_calcs_N2ObyFuel, 8, FALSE) -> 0 | F75: =SUM(C75:E75) -> 0 | I75: Natural Gas | J75: =SUMIF(stat_data_FuelType, I75, stat_data_consump) -> 0 | K75: mcf | L75: =HLOOKUP(I75, stat_calcs_E_deptFT, 22, FALSE) -> 0
B76: Diesel | C76: =VLOOKUP($B76, stat_calcs_CO2byFuel, 8, FALSE) -> 12098.85 | D76: 13.746 | E76: 26.01921429 | F76: =SUM(C76:E76) -> 12138.61521 | I76: Diesel | J76: 1185000 | K76: gal | L76: 163642.8571
B77: Gasoline | C77: 0 | D77: 0 | E77: 0 | F77: 0 | I77: Gasoline | J77: 0 | K77: gal | L77: 0
B78: LPG | C78: 0 | D78: 0 | E78: 0 | F78: 0 | I78: LPG | J78: 0 | K78: gal | L78: 0
B79: Propane | C79: 0 | D79: 0 | E79: 0 | F79: 0 | I79: Propane | J79: 0 | K79: gal | L79: 0
B80: Butane | C80: 0 | D80: 0 | E80: 0 | F80: 0 | I80: Butane | J80: 0 | K80: gal | L80: 0
B81: Residual Fuel Oil No. 5 | C81: 0 | D81: 0 | E81: 0 | F81: 0 | I81: Residual Fuel Oil No. 5 | J81: 0 | K81: gal | L81: 0
B82: Residual Fuel Oil No. 6 | C82: 0 | D82: 0 | E82: 0 | F82: 0 | I82: Residual Fuel Oil No. 6 | J82: 0 | K82: gal | L82: 0
B83: Jet Fuel | C83: 0 | D83: 0 | E83: 0 | F83: 0 | I83: Jet Fuel | J83: 0 | K83: gal | L83: 0
B84: Residential Coal | C84: 0 | D84: =VLOOKUP($B84, stat_calcs_CH4byFuel, 8, FALSE) -> 0 | E84: 0 | F84: 0 | I84: Residential Coal | J84: 0 | K84: tons | L84: 0
B85: Commercial Coal | C85: 0 | D85: 0 | E85: 0 | F85: =SUM(C85:E85) -> 0 | I85: Commercial Coal | J85: =SUMIF(stat_data_FuelType, I85, stat_data_consump) -> 0 | K85: tons | L85: =HLOOKUP(I85, stat_calcs_E_deptFT, 22, FALSE) -> 0
B86: Industrial Coal | C86: 0 | D86: 0 | E86: 0 | F86: 0 | I86: Industrial Coal | J86: 0 | K86: tons | L86: 0
B87: Electric Power Coal | C87: 0 | D87: 0 | E87: 0 | F87: 0 | I87: Electric Power Coal | J87: 0 | K87: tons | L87: 0
B88: Digester Gas | C88: 0 | D88: 0 | E88: 0 | F88: 0 | I88: Digester Gas | J88: 0 | K88: tons | L88: 0
B89: Distillate Fuel Oil | C89: =VLOOKUP($B89, stat_calcs_CO2byFuel, 8, FALSE) -> 211741.236 | D89: 239.9379245 | E89: 454.1682142 | F89: =SUM(C89:E89) -> 212435.3422 | I89: Distillate Fuel Oil | J89: 20595530 | K89: gal | L89: 2856403.863
B90: Kerosene | C90: 0 | D90: 0 | E90: 0 | F90: 0 | I90: Kerosene | J90: 0 | K90: gal | L90: 0
B91: Total Emissions from Stationary Fuel Combustion | C91: =SUM(C75:C90) -> 223840.086 | D91: =SUM(D75:D90) -> 253.6839245 | E91: =SUM(E75:E90) -> 480.1874285 | F91: =SUM(F75:F90) -> 224573.9574 | I91: Total Stationary Fuel Consumed | L91: =SUM(L75:L90) -> 3020046.72 | AA91: =L91-S297 -> 0
B93: Check to display: | W93: emissions | X93: TRUE
W94: energy | X94: TRUE
W95: both | X95: =AND(X93:X94) -> TRUE
X96: =IF(X95=TRUE, W95, IF(X93=TRUE, W93, IF(X94=TRUE, W94, "both"))) -> both
A113: Background Calculations
A115: CO2 Emissions by Fuel Type
A116: CO2 Emissions = Fuel use × CO2 Emission Factor (kg CO2/unit of fuel) × MT/kg
C117: Fuel Use | D117: Unit | E117: kg CO2/unit | F117: MT/kg | G117: MT CO2 | H117: × GWP = | I117: MT CO2e
B118: Natural Gas | C118: =SUMIF(stat_data_FuelType, B118, stat_data_consump) -> 0 | D118: mcf | E118: =VLOOKUP(B118, stat_factors, 2, FALSE) -> 54.86261322 | F118: =kg_mt -> 0.001 | G118: =C118*E118*F118 -> 0 | H118: =CO2_CO2e -> 1 | I118: =G118*H118 -> 0
B119: Diesel | C119: 1185000 | D119: gal | E119: 10.21 | F119: 0.001 | G119: 12098.85 | H119: 1 | I119: =G119*H119 -> 12098.85
B120: Gasoline | C120: 0 | D120: gal | E120: 8.495445868 | F120: 0.001 | G120: 0 | H120: 1 | I120: 0
B121: LPG | C121: 0 | D121: gal | E121: 6.022460774 | F121: 0.001 | G121: 0 | H121: 1 | I121: 0
B122: Propane | C122: 0 | D122: gal | E122: 5.72117 | F122: 0.001 | G122: 0 | H122: 1 | I122: 0
B123: Butane | C123: 0 | D123: gal | E123: 6.67 | F123: 0.001 | G123: 0 | H123: 1 | I123: 0
B124: Residual Fuel Oil No. 5 | C124: 0 | D124: gal | E124: 10.21 | F124: 0.001 | G124: 0 | H124: 1 | I124: 0
B125: Residual Fuel Oil No. 6 | C125: 0 | D125: gal | E125: 11.27 | F125: 0.001 | G125: 0 | H125: 1 | I125: 0
B126: Jet Fuel | C126: 0 | D126: gal | E126: 9.75 | F126: 0.001 | G126: 0 | H126: 1 | I126: 0
B127: Residential Coal | C127: 0 | D127: tons | E127: 2390.901384 | F127: 0.001 | G127: 0 | H127: 1 | I127: 0
B128: Commercial Coal | C128: =SUMIF(stat_data_FuelType, B128, stat_data_consump) -> 0 | D128: tons | E128: =VLOOKUP(B128, stat_factors, 2, FALSE) -> 2051.399141 | F128: 0.001 | G128: =C128*E128*F128 -> 0 | H128: 1 | I128: =G128*H128 -> 0
B129: Industrial Coal | C129: 0 | D129: tons | E129: 2138.577606 | F129: 0.001 | G129: 0 | H129: 1 | I129: 0
B130: Electric Power Coal | C130: 0 | D130: tons | E130: 1890.523463 | F130: 0.001 | G130: 0 | H130: 1 | I130: 0
B131: Digester Gas | C131: 0 | D131: mcf | E131: 34.10585 | F131: 0.001 | G131: 0 | H131: 1 | I131: =G131*H131 -> 0
B132: =Q177 -> Distillate Fuel Oil | C132: 20595530 | D132: gal | E132: 10.28093164 | F132: 0.001 | G132: =C132*E132*F132 -> 211741.236 | H132: 1 | I132: =G132*H132 -> 211741.236
B133: =R177 -> Kerosene | C133: 0 | D133: gal | E133: =VLOOKUP(B133, stat_factors, 2, FALSE) -> 10.15 | F133: 0.001 | G133: 0 | H133: 1 | I133: =G133*H133 -> 0
A135: CH4 Emissions by Fuel Type
A136: CH4 Emissions = Fuel use × CH4 Emission Factor (kg CH4/unit of fuel) × MT/kg; CO2 equivalent emissions = MT CH4 × Global Warming Potential of CH4
C137: Fuel Use | D137: Unit | E137: kg CH4/unit | F137: MT/kg | G137: MT CH4 | H137: × GWP = | I137: MT CO2e
B138: Natural Gas | C138: =SUMIF(stat_data_FuelType, B138, stat_data_consump) -> 0 | D138: mcf | E138: =VLOOKUP(B138, stat_factors, 3, FALSE) -> 0.0048739 | F138: =kg_mt -> 0.001 | G138: =C138*E138*F138 -> 0 | H138: =CH4_CO2e -> 28 | I138: =G138*H138 -> 0
B139: Diesel | C139: 1185000 | D139: gal | E139: 0.0004142857143 | F139: 0.001 | G139: 0.4909285714 | H139: 28 | I139: =G139*H139 -> 13.746
B140: Gasoline | C140: 0 | D140: gal | E140: 0.0003607142857 | F140: 0.001 | G140: 0 | H140: 28 | I140: 0
B141: LPG | C141: 0 | D141: gal | E141: 0.000276 | F141: 0.001 | G141: 0 | H141: 28 | I141: 0
B142: Propane | C142: 0 | D142: gal | E142: 0.000273 | F142: 0.001 | G142: 0 | H142: 28 | I142: 0
B143: Butane | C143: 0 | D143: gal | E143: 0.000309 | F143: 0.001 | G143: 0 | H143: 28 | I143: 0
B144: Residual Fuel Oil No. 5 | C144: 0 | D144: gal | E144: 0.00042 | F144: 0.001 | G144: 0 | H144: 28 | I144: 0
B145: Residual Fuel Oil No. 6 | C145: 0 | D145: gal | E145: 0.00045 | F145: 0.001 | G145: 0 | H145: 28 | I145: 0
B146: Jet Fuel | C146: 0 | D146: gal | E146: 0.000405 | F146: 0.001 | G146: 0 | H146: 28 | I146: 0
B147: Residential Coal | C147: 0 | D147: tons | E147: =VLOOKUP(B147, stat_factors, 3, FALSE) -> 0.27423 | F147: 0.001 | G147: =C147*E147*F147 -> 0 | H147: 28 | I147: =G147*H147 -> 0
B148: Commercial Coal | C148: =SUMIF(stat_data_FuelType, B148, stat_data_consump) -> 0 | D148: tons | E148: =VLOOKUP(B148, stat_factors, 3, FALSE) -> 0.23529 | F148: 0.001 | G148: =C148*E148*F148 -> 0 | H148: 28 | I148: =G148*H148 -> 0
B149: Industrial Coal | C149: 0 | D149: tons | E149: =VLOOKUP(B149, stat_factors, 3, FALSE) -> 0.24585 | F149: 0.001 | G149: 0 | H149: 28 | I149: 0
B150: Electric Power Coal | C150: 0 | D150: tons | E150: =VLOOKUP(B150, stat_factors, 3, FALSE) -> 0.21703 | F150: 0.001 | G150: 0 | H150: 28 | I150: 0
B151: Digester Gas | C151: 0 | D151: mcf | E151: =VLOOKUP(B151, stat_factors, 3, FALSE) -> 0.002096 | F151: 0.001 | G151: =C151*E151*F151 -> 0 | H151: 28 | I151: =G151*H151 -> 0
B152: Distillate Fuel Oil | C152: 20595530 | D152: gal | E152: 0.0004160714286 | F152: 0.001 | G152: 8.569211589 | H152: 28 | I152: 239.9379245
B153: Kerosene | C153: 0 | D153: gal | E153: 0.000405 | F153: 0.001 | G153: 0 | H153: 28 | I153: =G153*H153 -> 0
A155: N2O Emissions by Fuel Type
A156: N2O Emissions = Fuel use × N2O Emission Factor (kg N2O/unit of fuel) × MT/kg; CO2 equivalent emissions = MT N2O × Global Warming Potential of N2O
C157: Fuel Use | D157: Unit | E157: kg N2O/unit | F157: MT/kg | G157: MT N2O | H157: × GWP = | I157: MT CO2e
B158: Natural Gas | C158: =SUMIF(stat_data_FuelType, B158, stat_data_consump) -> 0 | D158: mcf | E158: =VLOOKUP(B158, stat_factors, 4, FALSE) -> 0.0001037 | F158: =kg_mt -> 0.001 | G158: =C158*E158*F158 -> 0 | H158: =N2O_CO2e -> 265 | I158: =G158*H158 -> 0
B159: Diesel | C159: 1185000 | D159: gal | E159: 8.285714286e-05 | F159: 0.001 | G159: 0.09818571429 | H159: 265 | I159: =G159*H159 -> 26.01921429
B160: Gasoline | C160: 0 | D160: gal | E160: 7.214285714e-05 | F160: 0.001 | G160: 0 | H160: 265 | I160: 0
B161: LPG | C161: 0 | D161: gal | E161: 5.52e-05 | F161: 0.001 | G161: 0 | H161: 265 | I161: =G161*H161 -> 0
B162: Propane | C162: 0 | D162: gal | E162: 5.46e-05 | F162: 0.001 | G162: 0 | H162: 265 | I162: 0
B163: Butane | C163: 0 | D163: gal | E163: 6.18e-05 | F163: 0.001 | G163: 0 | H163: 265 | I163: 0
B164: Residual Fuel Oil No. 5 | C164: 0 | D164: gal | E164: 8.4e-05 | F164: 0.001 | G164: 0 | H164: 265 | I164: 0
B165: Residual Fuel Oil No. 6 | C165: 0 | D165: gal | E165: 9e-05 | F165: 0.001 | G165: 0 | H165: 265 | I165: 0
B166: Jet Fuel | C166: 0 | D166: gal | E166: 8.1e-05 | F166: 0.001 | G166: 0 | H166: 265 | I166: 0
B167: Residential Coal | C167: 0 | D167: tons | E167: 0.039888 | F167: 0.001 | G167: 0 | H167: 265 | I167: 0
B168: Commercial Coal | C168: =SUMIF(stat_data_FuelType, B168, stat_data_consump) -> 0 | D168: tons | E168: =VLOOKUP(B168, stat_factors, 4, FALSE) -> 0.034224 | F168: 0.001 | G168: =C168*E168*F168 -> 0 | H168: 265 | I168: 0
B169: Industrial Coal | C169: 0 | D169: tons | E169: 0.03576 | F169: 0.001 | G169: 0 | H169: 265 | I169: 0
B170: Electric Power Coal | C170: 0 | D170: tons | E170: 0.031568 | F170: 0.001 | G170: 0 | H170: 265 | I170: 0
B171: Digester Gas | C171: 0 | D171: mcf | E171: 0.00041265 | F171: 0.001 | G171: 0 | H171: 265 | I171: =G171*H171 -> 0
B172: Distillate Fuel Oil | C172: 20595530 | D172: gal | E172: =VLOOKUP(B172, stat_factors, 4, FALSE) -> 8.321428571e-05 | F172: 0.001 | G172: =C172*E172*F172 -> 1.713842318 | H172: 265 | I172: =G172*H172 -> 454.1682142
B173: Kerosene | C173: 0 | D173: gal | E173: =VLOOKUP(B173, stat_factors, 4, FALSE) -> 8.1e-05 | F173: 0.001 | G173: 0 | H173: 265 | I173: =G173*H173 -> 0
A175: Activity Data by Sector and Fuel Type
A176: Fuel use data by sector and fuel type. Units: Natural Gas and Digester Gas (mcf), Bituminous Coal (short tons), all other (gallons)
C177: =TRANSPOSE($B$158:$B$167) -> Natural Gas | D177: Diesel | E177: Gasoline | F177: LPG | G177: Propane | H177: Butane | I177: Residual Fuel Oil No. 5 | J177: Residual Fuel Oil No. 6 | K177: Jet Fuel | L177: Residential Coal | M177: =B168 -> Commercial Coal | N177: Industrial Coal | O177: Electric Power Coal | P177: Digester Gas | Q177: Distillate Fuel Oil | R177: Kerosene | S177: Gas Products (mcf) | T177: Petroleum Products (gal) | U177: Coal (tons)
A178: Dstart | B178: =B23 -> Residential | C178: =SUMIFS(stat_data_consump, stat_data_dept, $B178, stat_data_FuelType, C$177) -> 0 | D178: 0 | E178: 0 | F178: 0 | G178: 0 | H178: 0 | I178: 0 | J178: 0 | K178: 0 | L178: 0 | M178: 0 | N178: 0 | O178: 0 | P178: 0 | Q178: 0 | R178: 0 | S178: =SUM(C178,P178) -> 0 | T178: =SUM(D178:K178,Q178:R178) -> 0 | U178: =SUM(L178:O178) -> 0
B179: Commercial/Institutional | C179: 0 | D179: 1176000 | E179: 0 | F179: 0 | G179: 0 | H179: 0 | I179: 0 | J179: 0 | K179: 0 | L179: 0 | M179: 0 | N179: 0 | O179: 0 | P179: 0 | Q179: 0 | R179: 0 | S179: =SUM(C179,P179) -> 0 | T179: =SUM(D179:K179,Q179:R179) -> 1176000 | U179: =SUM(L179:O179) -> 0
B180: Industrial | C180: 0 | D180: 9000 | E180: 0 | F180: 0 | G180: 0 | H180: 0 | I180: 0 | J180: 0 | K180: 0 | L180: 0 | M180: 0 | N180: 0 | O180: 0 | P180: 0 | Q180: 0 | R180: 0 | S180: 0 | T180: 9000 | U180: 0
B181: Energy Generation | C181: 0 | D181: 0 | E181: 0 | F181: 0 | G181: 0 | H181: 0 | I181: 0 | J181: 0 | K181: 0 | L181: 0 | M181: 0 | N181: 0 | O181: 0 | P181: 0 | Q181: 20595530 | R181: 0 | S181: 0 | T181: 20595530 | U181: 0
B182: 0 | C182: 0 | D182: 0 | E182: 0 | F182: 0 | G182: 0 | H182: 0 | I182: 0 | J182: 0 | K182: 0 | L182: 0 | M182: 0 | N182: 0 | O182: 0 | P182: 0 | Q182: 0 | R182: 0 | S182: 0 | T182: =SUM(D182:K182,Q182:R182) -> 0 | U182: 0
B183: 0 | C183: 0 | D183: 0 | E183: 0 | F183: 0 | G183: 0 | H183: 0 | I183: 0 | J183: 0 | K183: 0 | L183: 0 | M183: 0 | N183: 0 | O183: 0 | P183: 0 | Q183: 0 | R183: 0 | S183: 0 | T183: 0 | U183: 0
B184: 0 | C184: 0 | D184: 0 | E184: 0 | F184: 0 | G184: 0 | H184: 0 | I184: 0 | J184: 0 | K184: 0 | L184: 0 | M184: 0 | N184: 0 | O184: 0 | P184: 0 | Q184: 0 | R184: 0 | S184: 0 | T184: 0 | U184: 0
B185: 0 | C185: 0 | D185: 0 | E185: 0 | F185: 0 | G185: 0 | H185: 0 | I185: 0 | J185: 0 | K185: 0 | L185: 0 | M185: 0 | N185: 0 | O185: 0 | P185: 0 | Q185: 0 | R185: 0 | S185: 0 | T185: 0 | U185: 0
B186: 0 | C186: 0 | D186: 0 | E186: 0 | F186: 0 | G186: 0 | H186: 0 | I186: 0 | J186: 0 | K186: 0 | L186: 0 | M186: 0 | N186: 0 | O186: 0 | P186: 0 | Q186: 0 | R186: 0 | S186: 0 | T186: 0 | U186: 0
B187: 0 | C187: 0 | D187: 0 | E187: 0 | F187: 0 | G187: 0 | H187: 0 | I187: 0 | J187: 0 | K187: 0 | L187: 0 | M187: 0 | N187: 0 | O187: 0 | P187: 0 | Q187: 0 | R187: 0 | S187: 0 | T187: 0 | U187: 0
B188: 0 | C188: 0 | D188: 0 | E188: 0 | F188: 0 | G188: 0 | H188: 0 | I188: 0 | J188: 0 | K188: 0 | L188: 0 | M188: 0 | N188: 0 | O188: 0 | P188: 0 | Q188: 0 | R188: 0 | S188: 0 | T188: 0 | U188: 0
B189: 0 | C189: 0 | D189: 0 | E189: 0 | F189: 0 | G189: 0 | H189: 0 | I189: 0 | J189: 0 | K189: 0 | L189: 0 | M189: 0 | N189: 0 | O189: 0 | P189: 0 | Q189: 0 | R189: 0 | S189: 0 | T189: 0 | U189: 0
B190: 0 | C190: =SUMIFS(stat_data_consump, stat_data_dept, $B190, stat_data_FuelType, C$177) -> 0 | D190: 0 | E190: 0 | F190: 0 | G190: 0 | H190: 0 | I190: 0 | J190: 0 | K190: 0 | L190: 0 | M190: 0 | N190: 0 | O190: 0 | P190: =SUMIFS(stat_data_consump, stat_data_dept, $B190, stat_data_FuelType, P$177) -> 0 | Q190: 0 | R190: 0 | S190: 0 | T190: 0 | U190: 0
B191: 0 | C191: 0 | D191: 0 | E191: 0 | F191: 0 | G191: 0 | H191: 0 | I191: 0 | J191: 0 | K191: 0 | L191: 0 | M191: 0 | N191: 0 | O191: 0 | P191: 0 | Q191: 0 | R191: 0 | S191: 0 | T191: 0 | U191: 0
B192: 0 | C192: 0 | D192: 0 | E192: 0 | F192: 0 | G192: 0 | H192: 0 | I192: 0 | J192: 0 | K192: 0 | L192: 0 | M192: 0 | N192: 0 | O192: 0 | P192: 0 | Q192: 0 | R192: 0 | S192: 0 | T192: 0 | U192: 0
B193: 0 | C193: 0 | D193: 0 | E193: 0 | F193: 0 | G193: 0 | H193: 0 | I193: 0 | J193: 0 | K193: 0 | L193: 0 | M193: 0 | N193: 0 | O193: 0 | P193: 0 | Q193: 0 | R193: 0 | S193: 0 | T193: 0 | U193: =SUM(L193:O193) -> 0
B194: 0 | C194: 0 | D194: 0 | E194: 0 | F194: 0 | G194: 0 | H194: 0 | I194: 0 | J194: 0 | K194: 0 | L194: 0 | M194: 0 | N194: 0 | O194: 0 | P194: 0 | Q194: 0 | R194: 0 | S194: 0 | T194: 0 | U194: 0
B195: 0 | C195: 0 | D195: 0 | E195: 0 | F195: 0 | G195: 0 | H195: 0 | I195: 0 | J195: 0 | K195: 0 | L195: 0 | M195: 0 | N195: 0 | O195: 0 | P195: 0 | Q195: 0 | R195: 0 | S195: 0 | T195: 0 | U195: 0
B196: 0 | C196: 0 | D196: 0 | E196: 0 | F196: 0 | G196: 0 | H196: 0 | I196: 0 | J196: 0 | K196: 0 | L196: 0 | M196: 0 | N196: 0 | O196: 0 | P196: 0 | Q196: 0 | R196: 0 | S196: 0 | T196: 0 | U196: 0
B197: 0 | C197: 0 | D197: 0 | E197: 0 | F197: 0 | G197: 0 | H197: 0 | I197: 0 | J197: 0 | K197: 0 | L197: 0 | M197: 0 | N197: 0 | O197: 0 | P197: 0 | Q197: 0 | R197: 0 | S197: 0 | T197: 0 | U197: 0
B198: Total | C198: =SUM(C178:C197) -> 0 | D198: =SUM(D178:D197) -> 1185000 | E198: =SUM(E178:E197) -> 0 | F198: 0 | G198: 0 | H198: 0 | I198: 0 | J198: 0 | K198: 0 | L198: =SUM(L178:L197) -> 0 | M198: =SUM(M178:M197) -> 0 | N198: 0 | O198: 0 | P198: =SUM(P178:P197) -> 0 | Q198: =SUM(Q178:Q197) -> 20595530 | R198: =SUM(R178:R197) -> 0 | S198: =SUM(C198,P198) -> 0 | T198: =SUM(D198:K198,Q198:R198) -> 21780530 | U198: =SUM(L198:O198) -> 0
A200: Emissions by Sector and Fuel Type
A202: CO2 Emissions = Units of Fuel Consumed × kg CO2 / unit × MT/kg
B203: CO2 | C203: =TRANSPOSE($B$158:$B$167) -> Natural Gas | D203: Diesel | E203: Gasoline | F203: LPG | G203: Propane | H203: Butane | I203: Residual Fuel Oil No. 5 | J203: Residual Fuel Oil No. 6 | K203: Jet Fuel | L203: Residential Coal | M203: =M177 -> Commercial Coal | N203: Industrial Coal | O203: Electric Power Coal | P203: Digester Gas | Q203: Distillate Fuel Oil | R203: Kerosene | S203: TOTAL
A204: Dstart | B204: =B178 -> Residential | C204: =C178*kg_mt*VLOOKUP(C$203, stat_factors, 2, FALSE) -> 0 | D204: 0 | E204: 0 | F204: 0 | G204: 0 | H204: 0 | I204: 0 | J204: 0 | K204: 0 | L204: 0 | M204: =M178*kg_mt*VLOOKUP(M$203, stat_factors, 2, FALSE) -> 0 | N204: 0 | O204: 0 | P204: 0 | Q204: 0 | R204: 0 | S204: =SUM(C204:R204) -> 0
B205: =B179 -> Commercial/Institutional | C205: =C179*kg_mt*VLOOKUP(C$203, stat_factors, 2, FALSE) -> 0 | D205: 12006.96 | E205: 0 | F205: 0 | G205: 0 | H205: 0 | I205: 0 | J205: 0 | K205: 0 | L205: 0 | M205: 0 | N205: 0 | O205: 0 | P205: 0 | Q205: 0 | R205: 0 | S205: =SUM(C205:R205) -> 12006.96
B206: Industrial | C206: =C180*kg_mt*VLOOKUP(C$203, stat_factors, 2, FALSE) -> 0 | D206: 91.89 | E206: 0 | F206: 0 | G206: 0 | H206: 0 | I206: 0 | J206: 0 | K206: 0 | L206: 0 | M206: 0 | N206: 0 | O206: 0 | P206: 0 | Q206: 0 | R206: 0 | S206: 91.89
B207: Energy Generation | C207: =C181*kg_mt*VLOOKUP(C$203, stat_factors, 2, FALSE) -> 0 | D207: 0 | E207: 0 | F207: 0 | G207: 0 | H207: 0 | I207: 0 | J207: 0 | K207: 0 | L207: 0 | M207: 0 | N207: 0 | O207: 0 | P207: 0 | Q207: 211741.236 | R207: 0 | S207: 211741.236
B208: 0 | C208: =C182*kg_mt*VLOOKUP(C$203, stat_factors, 2, FALSE) -> 0 | D208: 0 | E208: 0 | F208: 0 | G208: 0 | H208: 0 | I208: 0 | J208: 0 | K208: 0 | L208: 0 | M208: 0 | N208: 0 | O208: 0 | P208: 0 | Q208: 0 | R208: 0 | S208: 0
B209: 0 | C209: =C183*kg_mt*VLOOKUP(C$203, stat_factors, 2, FALSE) -> 0 | D209: 0 | E209: 0 | F209: 0 | G209: 0 | H209: 0 | I209: 0 | J209: 0 | K209: 0 | L209: 0 | M209: 0 | N209: 0 | O209: 0 | P209: 0 | Q209: 0 | R209: 0 | S209: 0
B210: 0 | C210: =C184*kg_mt*VLOOKUP(C$203, stat_factors, 2, FALSE) -> 0 | D210: 0 | E210: 0 | F210: 0 | G210: 0 | H210: 0 | I210: 0 | J210: 0 | K210: 0 | L210: 0 | M210: 0 | N210: 0 | O210: 0 | P210: 0 | Q210: 0 | R210: 0 | S210: 0
B211: 0 | C211: =C185*kg_mt*VLOOKUP(C$203, stat_factors, 2, FALSE) -> 0 | D211: 0 | E211: 0 | F211: 0 | G211: 0 | H211: 0 | I211: 0 | J211: 0 | K211: 0 | L211: 0 | M211: 0 | N211: 0 | O211: 0 | P211: 0 | Q211: 0 | R211: 0 | S211: 0
B212: 0 | C212: =C186*kg_mt*VLOOKUP(C$203, stat_factors, 2, FALSE) -> 0 | D212: 0 | E212: 0 | F212: 0 | G212: 0 | H212: 0 | I212: 0 | J212: 0 | K212: 0 | L212: 0 | M212: 0 | N212: 0 | O212: 0 | P212: 0 | Q212: 0 | R212: 0 | S212: 0
B213: 0 | C213: =C187*kg_mt*VLOOKUP(C$203, stat_factors, 2, FALSE) -> 0 | D213: 0 | E213: 0 | F213: 0 | G213: 0 | H213: 0 | I213: 0 | J213: 0 | K213: 0 | L213: 0 | M213: 0 | N213: 0 | O213: 0 | P213: 0 | Q213: 0 | R213: 0 | S213: 0
B214: 0 | C214: =C188*kg_mt*VLOOKUP(C$203, stat_factors, 2, FALSE) -> 0 | D214: 0 | E214: 0 | F214: 0 | G214: 0 | H214: 0 | I214: 0 | J214: 0 | K214: 0 | L214: 0 | M214: 0 | N214: 0 | O214: 0 | P214: 0 | Q214: 0 | R214: 0 | S214: 0
B215: 0 | C215: =C189*kg_mt*VLOOKUP(C$203, stat_factors, 2, FALSE) -> 0 | D215: 0 | E215: 0 | F215: 0 | G215: 0 | H215: 0 | I215: 0 | J215: 0 | K215: 0 | L215: 0 | M215: 0 | N215: 0 | O215: 0 | P215: 0 | Q215: 0 | R215: 0 | S215: 0
B216: 0 | C216: =C190*kg_mt*VLOOKUP(C$203, stat_factors, 2, FALSE) -> 0 | D216: 0 | E216: 0 | F216: 0 | G216: 0 | H216: 0 | I216: 0 | J216: 0 | K216: 0 | L216: 0 | M216: 0 | N216: 0 | O216: 0 | P216: 0 | Q216: 0 | R216: 0 | S216: 0
B217: 0 | C217: =C191*kg_mt*VLOOKUP(C$203, stat_factors, 2, FALSE) -> 0 | D217: 0 | E217: 0 | F217: 0 | G217: 0 | H217: 0 | I217: 0 | J217: 0 | K217: 0 | L217: 0 | M217: 0 | N217: 0 | O217: 0 | P217: 0 | Q217: 0 | R217: 0 | S217: 0
B218: 0 | C218: =C192*kg_mt*VLOOKUP(C$203, stat_factors, 2, FALSE) -> 0 | D218: 0 | E218: 0 | F218: 0 | G218: 0 | H218: 0 | I218: 0 | J218: 0 | K218: 0 | L218: 0 | M218: 0 | N218: 0 | O218: 0 | P218: 0 | Q218: 0 | R218: 0 | S218: 0
B219: 0 | C219: =C193*kg_mt*VLOOKUP(C$203, stat_factors, 2, FALSE) -> 0 | D219: 0 | E219: 0 | F219: 0 | G219: 0 | H219: 0 | I219: 0 | J219: 0 | K219: 0 | L219: 0 | M219: 0 | N219: 0 | O219: 0 | P219: 0 | Q219: 0 | R219: 0 | S219: 0
B220: 0 | C220: =C194*kg_mt*VLOOKUP(C$203, stat_factors, 2, FALSE) -> 0 | D220: 0 | E220: 0 | F220: 0 | G220: 0 | H220: 0 | I220: 0 | J220: 0 | K220: 0 | L220: 0 | M220: 0 | N220: 0 | O220: 0 | P220: 0 | Q220: 0 | R220: 0 | S220: 0
B221: 0 | C221: =C195*kg_mt*VLOOKUP(C$203, stat_factors, 2, FALSE) -> 0 | D221: 0 | E221: 0 | F221: 0 | G221: 0 | H221: 0 | I221: 0 | J221: 0 | K221: 0 | L221: 0 | M221: 0 | N221: 0 | O221: 0 | P221: 0 | Q221: 0 | R221: 0 | S221: 0
B222: 0 | C222: =C196*kg_mt*VLOOKUP(C$203, stat_factors, 2, FALSE) -> 0 | D222: 0 | E222: 0 | F222: 0 | G222: 0 | H222: 0 | I222: 0 | J222: 0 | K222: 0 | L222: 0 | M222: 0 | N222: 0 | O222: 0 | P222: 0 | Q222: 0 | R222: 0 | S222: 0
B223: 0 | C223: =C197*kg_mt*VLOOKUP(C$203, stat_factors, 2, FALSE) -> 0 | D223: 0 | E223: 0 | F223: 0 | G223: 0 | H223: 0 | I223: 0 | J223: 0 | K223: 0 | L223: 0 | M223: 0 | N223: 0 | O223: 0 | P223: 0 | Q223: 0 | R223: 0 | S223: 0
B224: Total | C224: =SUM(C204:C223) -> 0 | D224: =SUM(D204:D223) -> 12098.85 | E224: 0 | F224: 0 | G224: 0 | H224: 0 | I224: 0 | J224: 0 | K224: 0 | L224: 0 | M224: =SUM(M204:M223) -> 0 | N224: 0 | O224: 0 | P224: 0 | Q224: 211741.236 | R224: 0 | S224: =SUM(S204:S223) -> 223840.086
A226: CH4 Emissions = Units of Fuel Consumed × kg CH4 / unit × MT/kg × GWP CH4
B227: CH4 | C227: =TRANSPOSE($B$158:$B$167) -> Natural Gas | D227: Diesel | E227: Gasoline | F227: LPG | G227: Propane | H227: Butane | I227: Residual Fuel Oil No. 5 | J227: Residual Fuel Oil No. 6 | K227: Jet Fuel | L227: Residential Coal | M227: Commercial Coal | N227: Industrial Coal | O227: Electric Power Coal | P227: Digester Gas | Q227: Distillate Fuel Oil | R227: Kerosene | S227: TOTAL
A228: Dstart | B228: =B204 -> Residential | C228: =C178*kg_mt*VLOOKUP(C$227, stat_factors, 3, FALSE)*CH4_CO2e -> 0 | D228: 0 | E228: 0 | F228: 0 | G228: 0 | H228: 0 | I228: 0 | J228: 0 | K228: 0 | L228: 0 | M228: 0 | N228: 0 | O228: 0 | P228: 0 | Q228: 0 | R228: 0 | S228: =SUM(C228:R228) -> 0
B229: =B205 -> Commercial/Institutional | C229: =C179*kg_mt*VLOOKUP(C$227, stat_factors, 3, FALSE)*CH4_CO2e -> 0 | D229: 13.6416 | E229: 0 | F229: 0 | G229: 0 | H229: 0 | I229: 0 | J229: 0 | K229: 0 | L229: 0 | M229: 0 | N229: 0 | O229: 0 | P229: 0 | Q229: 0 | R229: 0 | S229: =SUM(C229:R229) -> 13.6416
B230: Industrial | C230: =C180*kg_mt*VLOOKUP(C$227, stat_factors, 3, FALSE)*CH4_CO2e -> 0 | D230: 0.1044 | E230: 0 | F230: 0 | G230: 0 | H230: 0 | I230: 0 | J230: 0 | K230: 0 | L230: 0 | M230: 0 | N230: 0 | O230: 0 | P230: 0 | Q230: 0 | R230: 0 | S230: 0.1044
B231: Energy Generation | C231: =C181*kg_mt*VLOOKUP(C$227, stat_factors, 3, FALSE)*CH4_CO2e -> 0 | D231: 0 | E231: 0 | F231: 0 | G231: 0 | H231: 0 | I231: 0 | J231: 0 | K231: 0 | L231: 0 | M231: 0 | N231: 0 | O231: 0 | P231: 0 | Q231: 239.9379245 | R231: 0 | S231: 239.9379245
B232: 0 | C232: =C182*kg_mt*VLOOKUP(C$227, stat_factors, 3, FALSE)*CH4_CO2e -> 0 | D232: 0 | E232: 0 | F232: 0 | G232: 0 | H232: 0 | I232: 0 | J232: 0 | K232: 0 | L232: 0 | M232: 0 | N232: 0 | O232: 0 | P232: 0 | Q232: 0 | R232: 0 | S232: 0
B233: 0 | C233: =C183*kg_mt*VLOOKUP(C$227, stat_factors, 3, FALSE)*CH4_CO2e -> 0 | D233: 0 | E233: 0 | F233: 0 | G233: 0 | H233: 0 | I233: 0 | J233: 0 | K233: 0 | L233: 0 | M233: 0 | N233: 0 | O233: 0 | P233: 0 | Q233: 0 | R233: 0 | S233: 0
B234: 0 | C234: =C184*kg_mt*VLOOKUP(C$227, stat_factors, 3, FALSE)*CH4_CO2e -> 0 | D234: 0 | E234: 0 | F234: 0 | G234: 0 | H234: 0 | I234: 0 | J234: 0 | K234: 0 | L234: 0 | M234: 0 | N234: 0 | O234: 0 | P234: 0 | Q234: 0 | R234: 0 | S234: 0
B235: 0 | C235: =C185*kg_mt*VLOOKUP(C$227, stat_factors, 3, FALSE)*CH4_CO2e -> 0 | D235: 0 | E235: 0 | F235: 0 | G235: 0 | H235: 0 | I235: 0 | J235: 0 | K235: 0 | L235: 0 | M235: 0 | N235: 0 | O235: 0 | P235: 0 | Q235: 0 | R235: 0 | S235: =SUM(C235:R235) -> 0
B236: 0 | C236: =C186*kg_mt*VLOOKUP(C$227, stat_factors, 3, FALSE)*CH4_CO2e -> 0 | D236: 0 | E236: 0 | F236: 0 | G236: 0 | H236: 0 | I236: 0 | J236: 0 | K236: 0 | L236: 0 | M236: 0 | N236: 0 | O236: 0 | P236: 0 | Q236: 0 | R236: 0 | S236: 0
B237: 0 | C237: =C187*kg_mt*VLOOKUP(C$227, stat_factors, 3, FALSE)*CH4_CO2e -> 0 | D237: 0 | E237: 0 | F237: 0 | G237: 0 | H237: 0 | I237: 0 | J237: 0 | K237: 0 | L237: 0 | M237: 0 | N237: 0 | O237: 0 | P237: 0 | Q237: 0 | R237: 0 | S237: 0
B238: 0 | C238: =C188*kg_mt*VLOOKUP(C$227, stat_factors, 3, FALSE)*CH4_CO2e -> 0 | D238: 0 | E238: 0 | F238: 0 | G238: 0 | H238: 0 | I238: 0 | J238: 0 | K238: 0 | L238: 0 | M238: 0 | N238: 0 | O238: 0 | P238: 0 | Q238: 0 | R238: 0 | S238: 0
B239: 0 | C239: =C189*kg_mt*VLOOKUP(C$227, stat_factors, 3, FALSE)*CH4_CO2e -> 0 | D239: 0 | E239: 0 | F239: 0 | G239: 0 | H239: 0 | I239: 0 | J239: 0 | K239: 0 | L239: 0 | M239: 0 | N239: 0 | O239: 0 | P239: 0 | Q239: 0 | R239: 0 | S239: 0
B240: 0 | C240: =C190*kg_mt*VLOOKUP(C$227, stat_factors, 3, FALSE)*CH4_CO2e -> 0 | D240: 0 | E240: 0 | F240: 0 | G240: 0 | H240: 0 | I240: 0 | J240: 0 | K240: 0 | L240: 0 | M240: 0 | N240: 0 | O240: 0 | P240: 0 | Q240: 0 | R240: 0 | S240: 0
B241: 0 | C241: =C191*kg_mt*VLOOKUP(C$227, stat_factors, 3, FALSE)*CH4_CO2e -> 0 | D241: 0 | E241: 0 | F241: 0 | G241: 0 | H241: 0 | I241: 0 | J241: 0 | K241: 0 | L241: 0 | M241: 0 | N241: 0 | O241: 0 | P241: 0 | Q241: 0 | R241: 0 | S241: 0
B242: 0 | C242: =C192*kg_mt*VLOOKUP(C$227, stat_factors, 3, FALSE)*CH4_CO2e -> 0 | D242: 0 | E242: 0 | F242: 0 | G242: 0 | H242: 0 | I242: 0 | J242: 0 | K242: 0 | L242: 0 | M242: 0 | N242: 0 | O242: 0 | P242: 0 | Q242: 0 | R242: 0 | S242: 0
B243: 0 | C243: =C193*kg_mt*VLOOKUP(C$227, stat_factors, 3, FALSE)*CH4_CO2e -> 0 | D243: 0 | E243: 0 | F243: 0 | G243: 0 | H243: 0 | I243: 0 | J243: 0 | K243: 0 | L243: 0 | M243: 0 | N243: 0 | O243: 0 | P243: 0 | Q243: 0 | R243: 0 | S243: 0
B244: 0 | C244: =C194*kg_mt*VLOOKUP(C$227, stat_factors, 3, FALSE)*CH4_CO2e -> 0 | D244: 0 | E244: 0 | F244: 0 | G244: 0 | H244: 0 | I244: 0 | J244: 0 | K244: 0 | L244: 0 | M244: 0 | N244: 0 | O244: 0 | P244: 0 | Q244: 0 | R244: 0 | S244: 0
B245: 0 | C245: =C195*kg_mt*VLOOKUP(C$227, stat_factors, 3, FALSE)*CH4_CO2e -> 0 | D245: 0 | E245: 0 | F245: 0 | G245: 0 | H245: 0 | I245: 0 | J245: 0 | K245: 0 | L245: 0 | M245: 0 | N245: 0 | O245: 0 | P245: 0 | Q245: 0 | R245: 0 | S245: 0
B246: 0 | C246: =C196*kg_mt*VLOOKUP(C$227, stat_factors, 3, FALSE)*CH4_CO2e -> 0 | D246: 0 | E246: 0 | F246: 0 | G246: 0 | H246: 0 | I246: 0 | J246: 0 | K246: 0 | L246: 0 | M246: 0 | N246: 0 | O246: 0 | P246: 0 | Q246: 0 | R246: 0 | S246: 0
B247: 0 | C247: =C197*kg_mt*VLOOKUP(C$227, stat_factors, 3, FALSE)*CH4_CO2e -> 0 | D247: 0 | E247: 0 | F247: 0 | G247: 0 | H247: 0 | I247: 0 | J247: 0 | K247: 0 | L247: 0 | M247: 0 | N247: 0 | O247: 0 | P247: 0 | Q247: 0 | R247: 0 | S247: 0
B248: Total | C248: =SUM(C228:C247) -> 0 | D248: =SUM(D228:D247) -> 13.746 | E248: 0 | F248: 0 | G248: 0 | H248: 0 | I248: 0 | J248: 0 | K248: 0 | L248: 0 | M248: =SUM(M228:M247) -> 0 | N248: 0 | O248: 0 | P248: 0 | Q248: 239.9379245 | R248: 0 | S248: =SUM(S228:S247) -> 253.6839245
A250: N2O Emissions = Units of Fuel Consumed × kg N2O / unit × MT/kg × GWP N2O
B251: N2O | C251: =TRANSPOSE($B$158:$B$167) -> Natural Gas | D251: Diesel | E251: Gasoline | F251: LPG | G251: Propane | H251: Butane | I251: Residual Fuel Oil No. 5 | J251: Residual Fuel Oil No. 6 | K251: Jet Fuel | L251: Residential Coal | M251: Commercial Coal | N251: Industrial Coal | O251: Electric Power Coal | P251: Digester Gas | Q251: Distillate Fuel Oil | R251: Kerosene | S251: TOTAL
... 46 more rows

Sheet ElecTemplateReadMe (hidden)
A1: Electricity Data Template Instructions | B1: This sheet describes the file layout and data parameters needed for batch import.
B2: This will allow you to bypass the data entry form and upload multiple lines of data.
B3: Please enter your activity data on the following worksheet (DataSheet) according to the parameters below.
B4: Copy and paste the data from that sheet onto the "Electricity-Data" worksheet in the inventory tool.
A5: ID# | B5: This value is automatically supplied when adding data via the input form. You will need to update this manually when using the batch import feature. Please assign a unique value to each line of data you add.
B6: Values must be integers in ascending order. Gaps between numbers are permitted. For example, three lines with IDs in order of 11, 12, and 15 are ok; IDs of 11, 15, and 12 is not. The calculations will not be accurate if the ID numbers do not meet this condition.
B7: It is recommended that you begin with the highest previous number and increase each additional line by 1.
A8: Unit Description | B8: Use this field to describe or name the unit or group that you are entering. This field is for the user's reference only and does not impact the calculations.
A9: Facility Type | B9: If you have chosen to enter data at the facility level, please specify the type of facility from the list below. You must use the exact spelling of the facility type provided below.
B10: Residential Facility Type List | C10: Commercial/Institutional Facility Type List | D10: Industrial Facility Type List
B11: Single Family Units | C11: Education | D11: Food
B12: Apartment Buildings | C12: Food Sales | D12: Beverage and Tobacco Products
B13: Mobile Homes | C13: Food Service | D13: Textile Mills
C14: Health Care | D14: Textile Product Mills
B15: Energy Generation | C15: Lodging | D15: Apparel
B16: Electricity Generators | C16: Mercantile | D16: Leather and Allied Products
C17: Office | D17: Wood Products
C18: Public Assembly | D18: Paper
C19: Public Order and Safety | D19: Printing and Related Support
C20: Religious Worship | D20: Petroleum and Coal Products
C21: Service | D21: Chemicals
C22: Warehouse and Storage | D22: Plastics and Rubber Products
C23: Other | D23: Nonmetallic Mineral Products
C24: Vacant | D24: Primary Metals
D25: Fabricated Metal Products
D26: Machinery
D27: Computer and Electronic Products
D28: Electrical Equip., Appliances, and Components
D29: Transportation Equipment
D30: Furniture and Related Products
D31: Miscellaneous
A32: Sector | B32: Enter one of the sectors that were specified on the Control Sheet. You must use the exact spelling of the sector that was provided on the Control Sheet in order for each entry to be included in the calculations.
A33: Electricity Consumed | B33: Please enter the electricity consumption (in kWh) for the given unit in the inventory year.
A34: Electric Utility | B34: Please enter the eGRID region that supplies electricity. Select from the regions provided on the Control Sheet, shown again below. Be sure to use the exact spelling of each region for accurate calculations.
B36: eGRID Subregion
B37: AKGD eGRID subregion | C37: NYLI eGRID subregion
B38: AKMS eGRID subregion | C38: NYUP eGRID subregion
B39: AZNM eGRID subregion | C39: RFCE eGRID subregion
B40: CAMX eGRID subregion | C40: RFCM eGRID subregion
B41: ERCT eGRID subregion | C41: RFCW eGRID subregion
B42: FRCC eGRID subregion | C42: RMPA eGRID subregion
B43: HIMS eGRID subregion | C43: SPNO eGRID subregion
B44: HIOA eGRID subregion | C44: SPSO eGRID subregion
B45: MROE eGRID subregion | C45: SRMV eGRID subregion
B46: MROW eGRID subregion | C46: SRMW eGRID subregion
B47: NEWE eGRID subregion | C47: SRSO eGRID subregion
B48: NWPP eGRID subregion | C48: SRTV eGRID subregion
B49: NYCW eGRID subregion | C49: SRVC eGRID subregion

Sheet Mobile-Entry
A1: Mobile Units - Entry
A2: Data Entry & Calculations
A16: 1a) | B16: Describe the vehicle(s) you are entering
B17: ID# | C17: Vehicle or vehicle group description | D17: Sector
A18: 0 | B18: =MobCurrentID -> 23 | C18: Marine Vessels (Diesel) - Rota | D18: Commercial/Institutional
B21: Vehicle Year | C21: Vehicle Type | D21: Vehicle Model (optional) | E21: Fuel type
C22: Ship or Boat | E22: Diesel
A24: 1b) | B24: ="Enter the activity data for the year "&MyYear -> Enter the activity data for the year 2022
C26: Entries
B27: ="Fuel consumed ("&IF(ISERROR(HLOOKUP(mob_entry_fuel,'Background Controls'!26:27,2,FALSE)),"",HLOOKUP(mob_entry_fuel,'Background Controls'!26:27,2,FALSE))&"):" -> Fuel consumed (Gallons): | C27: 26192
B28: Vehicle miles traveled (VMT)*: | D28: * Helpful Hint: If you do not know the VMT for this entry, you can multiply the fuel consumed by the MPG of the vehicle/vehicle group. Use your own efficiency data or see the table below for average MPG by vehicle type and fuel. → Vehicle Miles = Gallons × Miles/Gallon
D30: Vehicle Type | E30: Average MPG
E31: Gasoline & Other Fuels | F31: Diesel & Biodiesel
D32: Passenger Car | E32: 24.1 | F32: 32.4
D33: Light Truck | E33: 18.5 | F33: 22.1 | H33: TRUE
A34: 2) | B34: Once you have completed data entry, hit the button below to update the calculations. | D34: Heavy-Duty Vehicle | E34: 10.13 | F34: 12.96
D35: Motorcycle | E35: 50 | F35: N/A
A42: Local GHG Inventory Tool: Community Module

Sheet MobTemplateReadMe (hidden)
A1: Mobile Data Template Instructions | B1: This sheet describes the file layout and data parameters needed for batch import.
B2: This will allow you to bypass the data entry form and upload multiple lines of data.
B3: Please enter your activity data on the following worksheet (DataSheet) according to the parameters below.
B4: Copy and paste the data from that sheet onto the "Mobile-Data" worksheet in the inventory tool.
A5: ID# | B5: This value is automatically supplied when adding data via the input form. You will need to update this manually when using the batch import feature. Please assign a unique value to each line of data you add.
B6: Values must be integers in ascending order. Gaps between numbers are permitted. For example, three lines with IDs in order of 11, 12, and 15 are ok; IDs of 11, 15, and 12 is not. The calculations will not be accurate if the ID numbers do not meet this condition.
B7: It is recommended that you begin with the highest previous number and increase each additional line by 1.
A8: Vehicle or Vehicle Group Descriptions | B8: Use this field to describe or name the vehicle or group of vehicles that you are entering. This field is for the user's reference only and does not impact the calculations.
A9: Sector | B9: Enter one of the sectors that were specified on the Control Sheet. You must use the exact spelling of the sector that was provided on the Control Sheet in order for each entry to be included in the calculations.
A10: Vehicle Year | B10: Enter the model year of the vehicle you are entering.
A11: Vehicle Type | B11: Please enter the vehicle type from the list below in this column. Be sure to type the name exactly as it appears below.
B13: Vehicle Type
B14: Passenger Car
B15: Light Truck (Vans, Pickup Trucks, SUVs)
B16: Heavy-Duty Vehicle
B17: Motorcycle
B18: Agricultural Equipment
B19: Construction Equipment
B20: Utility and Recreational Equipment
B21: Aircraft
B22: Ship or Boat
B23: Locomotive
A25: Vehicle Model | B25: Use this column to enter the vehicle model. This field is optional and for user reference only.
A26: Fuel Type | B26: Please enter the fuel type in this column. You must select the fuel type from the list of fuels below, and only select fuels appropriate for the vehicle type. Any other fuels will not be included in the calculations.
B27: The consumption amounts must also be in the units listed below.
A29: Vehicle | B29: Fuel Type | C29: Unit
A30: Passenger Car: | B30: Gasoline | C30: gallons
B31: Diesel | C31: gallons
B32: Biodiesel (B5) | C32: gallons
B33: Biodiesel (B20) | C33: gallons
B34: Ethanol (E5) | C34: gallons
B35: CNG | C35: G.G.E.
B36: LPG | C36: gallons
A37: Light Truck (Vans, Pickup Trucks, SUVs): | B37: Gasoline | C37: gallons
B38: Diesel | C38: gallons
B39: Biodiesel (B5) | C39: gallons
B40: Biodiesel (B20) | C40: gallons
B41: Ethanol (E5) | C41: gallons
B42: CNG | C42: G.G.E.
B43: LPG | C43: gallons
A44: Heavy-Duty Vehicle: | B44: Gasoline | C44: gallons
B45: Diesel | C45: gallons
B46: Biodiesel (B5) | C46: gallons
B47: Biodiesel (B20) | C47: gallons
B48: Ethanol (E5) | C48: gallons
B49: CNG | C49: G.G.E.
B50: LNG | C50: gallons
B51: LPG | C51: gallons
A52: Motorcycle: | B52: Gasoline | C52: gallons
A53: Agricultural Equipment: | B53: Gasoline | C53: gallons
B54: Diesel | C54: gallons
A55: Construction Equipment: | B55: Gasoline | C55: gallons
B56: Diesel | C56: gallons
A57: Utility and Recreational Equipment: | B57: Gasoline | C57: gallons
B58: Diesel | C58: gallons
A59: Aircraft: | B59: Jet Fuel | C59: gallons
B60: Aviation Gasoline | C60: gallons
A61: Ship or Boat: | B61: Gasoline | C61: gallons
B62: Diesel | C62: gallons
B63: Residual Fuel | C63: gallons
A64: Locomotive: | B64: Diesel | C64: gallons
A65: Fuel Consumed | B65: Please enter your fuel consumption for the inventory year here.
A66: Vehicle Miles Traveled (VMT) | B66: Please enter the miles traveled by the vehicle during the inventory year here.

Sheet Mobile-Data
A1: Mobile Units - Data
A5: Linker Row- DO NOT MODIFY
A6: ID# | B6: Vehicle or vehicle group description | C6: Sector | D6: Vehicle Year | E6: Vehicle Type | F6: Vehicle Model (optional) | G6: Fuel type | H6: Fuel consumption | I6: VMT
A7: =MAX(A9:A65531)+1 -> 23 | B7: =mob_entry_description -> Marine Vessels (Diesel) - Rota | C7: =mob_entry_dept -> Commercial/Institutional | D7: =mob_entry_vehyear -> 0 | E7: =mob_entry_vehtype -> Ship or Boat | F7: =mob_entry_vehmodel -> 0 | G7: =mob_entry_fuel -> Diesel | H7: =mob_entry_fuelconsumption -> 26192 | I7: =mob_entry_vmt -> 0
A8: Saved Data
A9: 1 | B9: Passenger Car (Gasoline) - Saipan | C9: Commercial/Institutional | D9: 0 | E9: Passenger Car | F9: 0 | G9: Gasoline | H9: 3759980 | I9: 90615518
A10: 2 | B10: Light Truck (Gasoline) - Saipan | C10: Commercial/Institutional | D10: 0 | E10: Light Truck (Vans, Pickup Trucks, SUVs) | F10: 0 | G10: Gasoline | H10: 5964119 | I10: 110336201.5
A11: 3 | B11: Heavy-Duty Vehicle (Gasoline) - Saipan | C11: Commercial/Institutional | D11: 0 | E11: Heavy-Duty Vehicle | F11: 0 | G11: Gasoline | H11: 46502 | I11: 471065.26
A12: 4 | B12: Motorcycle (Gasoline) - Saipan | C12: Commercial/Institutional | D12: 0 | E12: Motorcycle | F12: 0 | G12: Gasoline | H12: 43429 | I12: 2171450
A13: 5 | B13: Construction Equipment (Gasoline) - Saipan | C13: Commercial/Institutional | D13: 0 | E13: Construction Equipment | F13: 0 | G13: Gasoline | H13: 13277 | I13: 134496.01
A14: 6 | B14: Utility and Recreational Equipment (Gasoline) - Saipan | C14: Commercial/Institutional | D14: 0 | E14: Utility and Recreational Equipment | F14: 0 | G14: Gasoline | H14: 7384 | I14: 74799.92
A15: 7 | B15: Light Truck (Diesel) - Saipan | C15: Commercial/Institutional | D15: 0 | E15: Light Truck (Vans, Pickup Trucks, SUVs) | F15: 0 | G15: Diesel | H15: 468060 | I15: 10344126
A16: 8 | B16: Heavy-Duty Vehicle (Diesel) - Saipan | C16: Commercial/Institutional | D16: 0 | E16: Heavy-Duty Vehicle | F16: 0 | G16: Diesel | H16: 2623048 | I16: 33994702.08
A17: 9 | B17: Construction Equipment (Diesel) - Saipan | C17: Commercial/Institutional | D17: 0 | E17: Construction Equipment | F17: 0 | G17: Diesel | H17: 2776979 | I17: 35989647.84
A18: 10 | B18: Utility and Recreational Equipment (Diesel) - Saipan | C18: Commercial/Institutional | D18: 0 | E18: Utility and Recreational Equipment | F18: 0 | G18: Diesel | H18: 377552 | I18: 4893073.92
A19: 11 | B19: Marine Vessels (Gasoline) - Saipan | C19: Commercial/Institutional | D19: 0 | E19: Ship or Boat | F19: 0 | G19: Gasoline | H19: 170883 | I19: 0
A20: 12 | B20: Marine Vessels (Diesel) - Saipan | C20: Commercial/Institutional | D20: 0 | E20: Ship or Boat | F20: 0 | G20: Diesel | H20: 98737 | I20: 0
A21: 13 | B21: Assumed Gasoline for Transport - Tinian | C21: Commercial/Institutional | D21: 0 | E21: Light Truck (Vans, Pickup Trucks, SUVs) | F21: 0 | G21: Gasoline | H21: 471393 | I21: 8720770.5
A22: 14 | B22: Assumed Diesel for Transport - Tinian | C22: Commercial/Institutional | D22: 0 | E22: Light Truck (Vans, Pickup Trucks, SUVs) | F22: 0 | G22: Diesel | H22: 354308 | I22: 7830206.8
A23: 15 | B23: Passenger Car (Gasoline) - Rota | C23: Commercial/Institutional | D23: 0 | E23: Passenger Car | F23: 0 | G23: Gasoline | H23: 150850 | I23: 3635485
A24: 16 | B24: Light Truck (Gasoline) - Rota | C24: Commercial/Institutional | D24: 0 | E24: Light Truck (Vans, Pickup Trucks, SUVs) | F24: 0 | G24: Gasoline | H24: 906238 | I24: 16765403
A25: 17 | B25: Heavy-Duty Vehicle (Gasoline) - Rota | C25: Commercial/Institutional | D25: 0 | E25: Heavy-Duty Vehicle | F25: 0 | G25: Gasoline | H25: 3581 | I25: 36275.53
A26: 18 | B26: Motorcycle (Gasoline) - Rota | C26: Commercial/Institutional | D26: 0 | E26: Motorcycle | F26: 0 | G26: Gasoline | H26: 3284 | I26: 164200
A27: 19 | B27: Marine Vessels (Gasoline) - Rota | C27: Commercial/Institutional | D27: 0 | E27: Ship or Boat | F27: 0 | G27: Gasoline | H27: 40999 | I27: 0
A28: 20 | B28: Light Truck (Diesel) - Rota | C28: Commercial/Institutional | D28: 0 | E28: Light Truck (Vans, Pickup Trucks, SUVs) | F28: 0 | G28: Diesel | H28: 78634 | I28: 1737811.4
A29: 21 | B29: Heavy-Duty Vehicle (Diesel) - Rota | C29: Commercial/Institutional | D29: 0 | E29: Heavy-Duty Vehicle | F29: 0 | G29: Diesel | H29: 223307 | I29: 2894058.72
A30: 22 | B30: Marine Vessels (Diesel) - Rota | C30: Commercial/Institutional | D30: 0 | E30: Ship or Boat | F30: 0 | G30: Diesel | H30: 26192 | I30: 0

Sheet Mobile-Detail Calcs
A1: Mobile Combustion - Calculation
A2: Jump to…
A3: Activity Data
A4: Fuel use by sector and fuel type
A5: Energy use by sector and fuel type
A6: CO2 Calculations
A7: Gross CO2
A8: Biogenic CO2
A9: Net CO2
A10: Non-CO2 Calculations
A11: Highway Vehicles
A12: Alternate Fuel Vehicles (AFVs)
A13: Non-Highway Vehicles
A14: Total non-CO2 emissions, current sector
A15: Non-CO2 emissions summary, all sectors
A17: Activity Data
A19: Fuel Use by Sector and Fuel Type
A20: This table summarizes fuel consumption by sector. These are the activity data used to calculate CO2 emissions.
C21: Gasoline | D21: Diesel | E21: Biodiesel (B5) | F21: Biodiesel (B20) | G21: Ethanol (E85) | H21: CNG | I21: LNG | J21: LPG | K21: Residual Fuel | L21: Jet Fuel | M21: Aviation Gasoline
B22: Units | C22: Gallons | D22: Gallons | E22: Gallons | F22: Gallons | G22: Gallons | H22: G.G.E. | I22: Gallons | J22: Gallons | K22: Gallons | L22: Gallons | M22: Gallons
A23: Dstart | B23: ='Background Controls'!I5 -> Residential | C23: =SUMIFS('Mobile-Data'!$H$9:$H$1048576,'Mobile-Data'!$C$9:$C$1048576,'Mobile-Detail Calcs'!$B23,'Mobile-Data'!$G$9:$G$1048576,'Mobile-Detail Calcs'!C$21) -> 0 | D23: =SUMIFS('Mobile-Data'!$H$9:$H$1048576,'Mobile-Data'!$C$9:$C$1048576,'Mobile-Detail Calcs'!$B23,'Mobile-Data'!$G$9:$G$1048576,'Mobile-Detail Calcs'!D$21) -> 0 | E23: =SUMIFS('Mobile-Data'!$H$9:$H$1048576,'Mobile-Data'!$C$9:$C$1048576,'Mobile-Detail Calcs'!$B23,'Mobile-Data'!$G$9:$G$1048576,'Mobile-Detail Calcs'!E$21) -> 0 | F23: =SUMIFS('Mobile-Data'!$H$9:$H$1048576,'Mobile-Data'!$C$9:$C$1048576,'Mobile-Detail Calcs'!$B23,'Mobile-Data'!$G$9:$G$1048576,'Mobile-Detail Calcs'!F$21) -> 0 | G23: =SUMIFS('Mobile-Data'!$H$9:$H$1048576,'Mobile-Data'!$C$9:$C$1048576,'Mobile-Detail Calcs'!$B23,'Mobile-Data'!$G$9:$G$1048576,'Mobile-Detail Calcs'!G$21) -> 0 | H23: =SUMIFS('Mobile-Data'!$H$9:$H$1048576,'Mobile-Data'!$C$9:$C$1048576,'Mobile-Detail Calcs'!$B23,'Mobile-Data'!$G$9:$G$1048576,'Mobile-Detail Calcs'!H$21) -> 0 | I23: =SUMIFS('Mobile-Data'!$H$9:$H$1048576,'Mobile-Data'!$C$9:$C$1048576,'Mobile-Detail Calcs'!$B23,'Mobile-Data'!$G$9:$G$1048576,'Mobile-Detail Calcs'!I$21) -> 0 | J23: =SUMIFS('Mobile-Data'!$H$9:$H$1048576,'Mobile-Data'!$C$9:$C$1048576,'Mobile-Detail Calcs'!$B23,'Mobile-Data'!$G$9:$G$1048576,'Mobile-Detail Calcs'!J$21) -> 0 | K23: =SUMIFS('Mobile-Data'!$H$9:$H$1048576,'Mobile-Data'!$C$9:$C$1048576,'Mobile-Detail Calcs'!$B23,'Mobile-Data'!$G$9:$G$1048576,'Mobile-Detail Calcs'!K$21) -> 0 | L23: =SUMIFS('Mobile-Data'!$H$9:$H$1048576,'Mobile-Data'!$C$9:$C$1048576,'Mobile-Detail Calcs'!$B23,'Mobile-Data'!$G$9:$G$1048576,'Mobile-Detail Calcs'!L$21) -> 0 | M23: =SUMIFS('Mobile-Data'!$H$9:$H$1048576,'Mobile-Data'!$C$9:$C$1048576,'Mobile-Detail Calcs'!$B23,'Mobile-Data'!$G$9:$G$1048576,'Mobile-Detail Calcs'!M$21) -> 0
B24: ='Background Controls'!I6 -> Commercial/Institutional | C24: =SUMIFS('Mobile-Data'!$H$9:$H$1048576,'Mobile-Data'!$C$9:$C$1048576,'Mobile-Detail Calcs'!$B24,'Mobile-Data'!$G$9:$G$1048576,'Mobile-Detail Calcs'!C$21) -> 11581919 | D24: =SUMIFS('Mobile-Data'!$H$9:$H$1048576,'Mobile-Data'!$C$9:$C$1048576,'Mobile-Detail Calcs'!$B24,'Mobile-Data'!$G$9:$G$1048576,'Mobile-Detail Calcs'!D$21) -> 7026817 | E24: =SUMIFS('Mobile-Data'!$H$9:$H$1048576,'Mobile-Data'!$C$9:$C$1048576,'Mobile-Detail Calcs'!$B24,'Mobile-Data'!$G$9:$G$1048576,'Mobile-Detail Calcs'!E$21) -> 0 | F24: =SUMIFS('Mobile-Data'!$H$9:$H$1048576,'Mobile-Data'!$C$9:$C$1048576,'Mobile-Detail Calcs'!$B24,'Mobile-Data'!$G$9:$G$1048576,'Mobile-Detail Calcs'!F$21) -> 0 | G24: =SUMIFS('Mobile-Data'!$H$9:$H$1048576,'Mobile-Data'!$C$9:$C$1048576,'Mobile-Detail Calcs'!$B24,'Mobile-Data'!$G$9:$G$1048576,'Mobile-Detail Calcs'!G$21) -> 0 | H24: =SUMIFS('Mobile-Data'!$H$9:$H$1048576,'Mobile-Data'!$C$9:$C$1048576,'Mobile-Detail Calcs'!$B24,'Mobile-Data'!$G$9:$G$1048576,'Mobile-Detail Calcs'!H$21) -> 0 | I24: =SUMIFS('Mobile-Data'!$H$9:$H$1048576,'Mobile-Data'!$C$9:$C$1048576,'Mobile-Detail Calcs'!$B24,'Mobile-Data'!$G$9:$G$1048576,'Mobile-Detail Calcs'!I$21) -> 0 | J24: =SUMIFS('Mobile-Data'!$H$9:$H$1048576,'Mobile-Data'!$C$9:$C$1048576,'Mobile-Detail Calcs'!$B24,'Mobile-Data'!$G$9:$G$1048576,'Mobile-Detail Calcs'!J$21) -> 0 | K24: =SUMIFS('Mobile-Data'!$H$9:$H$1048576,'Mobile-Data'!$C$9:$C$1048576,'Mobile-Detail Calcs'!$B24,'Mobile-Data'!$G$9:$G$1048576,'Mobile-Detail Calcs'!K$21) -> 0 | L24: =SUMIFS('Mobile-Data'!$H$9:$H$1048576,'Mobile-Data'!$C$9:$C$1048576,'Mobile-Detail Calcs'!$B24,'Mobile-Data'!$G$9:$G$1048576,'Mobile-Detail Calcs'!L$21) -> 0 | M24: =SUMIFS('Mobile-Data'!$H$9:$H$1048576,'Mobile-Data'!$C$9:$C$1048576,'Mobile-Detail Calcs'!$B24,'Mobile-Data'!$G$9:$G$1048576,'Mobile-Detail Calcs'!M$21) -> 0
B25: ='Background Controls'!I7 -> Industrial | C25: =SUMIFS('Mobile-Data'!$H$9:$H$1048576,'Mobile-Data'!$C$9:$C$1048576,'Mobile-Detail Calcs'!$B25,'Mobile-Data'!$G$9:$G$1048576,'Mobile-Detail Calcs'!C$21) -> 0 | D25: =SUMIFS('Mobile-Data'!$H$9:$H$1048576,'Mobile-Data'!$C$9:$C$1048576,'Mobile-Detail Calcs'!$B25,'Mobile-Data'!$G$9:$G$1048576,'Mobile-Detail Calcs'!D$21) -> 0 | E25: =SUMIFS('Mobile-Data'!$H$9:$H$1048576,'Mobile-Data'!$C$9:$C$1048576,'Mobile-Detail Calcs'!$B25,'Mobile-Data'!$G$9:$G$1048576,'Mobile-Detail Calcs'!E$21) -> 0 | F25: =SUMIFS('Mobile-Data'!$H$9:$H$1048576,'Mobile-Data'!$C$9:$C$1048576,'Mobile-Detail Calcs'!$B25,'Mobile-Data'!$G$9:$G$1048576,'Mobile-Detail Calcs'!F$21) -> 0 | G25: =SUMIFS('Mobile-Data'!$H$9:$H$1048576,'Mobile-Data'!$C$9:$C$1048576,'Mobile-Detail Calcs'!$B25,'Mobile-Data'!$G$9:$G$1048576,'Mobile-Detail Calcs'!G$21) -> 0 | H25: =SUMIFS('Mobile-Data'!$H$9:$H$1048576,'Mobile-Data'!$C$9:$C$1048576,'Mobile-Detail Calcs'!$B25,'Mobile-Data'!$G$9:$G$1048576,'Mobile-Detail Calcs'!H$21) -> 0 | I25: =SUMIFS('Mobile-Data'!$H$9:$H$1048576,'Mobile-Data'!$C$9:$C$1048576,'Mobile-Detail Calcs'!$B25,'Mobile-Data'!$G$9:$G$1048576,'Mobile-Detail Calcs'!I$21) -> 0 | J25: =SUMIFS('Mobile-Data'!$H$9:$H$1048576,'Mobile-Data'!$C$9:$C$1048576,'Mobile-Detail Calcs'!$B25,'Mobile-Data'!$G$9:$G$1048576,'Mobile-Detail Calcs'!J$21) -> 0 | K25: =SUMIFS('Mobile-Data'!$H$9:$H$1048576,'Mobile-Data'!$C$9:$C$1048576,'Mobile-Detail Calcs'!$B25,'Mobile-Data'!$G$9:$G$1048576,'Mobile-Detail Calcs'!K$21) -> 0 | L25: =SUMIFS('Mobile-Data'!$H$9:$H$1048576,'Mobile-Data'!$C$9:$C$1048576,'Mobile-Detail Calcs'!$B25,'Mobile-Data'!$G$9:$G$1048576,'Mobile-Detail Calcs'!L$21) -> 0 | M25: =SUMIFS('Mobile-Data'!$H$9:$H$1048576,'Mobile-Data'!$C$9:$C$1048576,'Mobile-Detail Calcs'!$B25,'Mobile-Data'!$G$9:$G$1048576,'Mobile-Detail Calcs'!M$21) -> 0
B26: ='Background Controls'!I8 -> Energy Generation | C26: =SUMIFS('Mobile-Data'!$H$9:$H$1048576,'Mobile-Data'!$C$9:$C$1048576,'Mobile-Detail Calcs'!$B26,'Mobile-Data'!$G$9:$G$1048576,'Mobile-Detail Calcs'!C$21) -> 0 | D26: =SUMIFS('Mobile-Data'!$H$9:$H$1048576,'Mobile-Data'!$C$9:$C$1048576,'Mobile-Detail Calcs'!$B26,'Mobile-Data'!$G$9:$G$1048576,'Mobile-Detail Calcs'!D$21) -> 0 | E26: =SUMIFS('Mobile-Data'!$H$9:$H$1048576,'Mobile-Data'!$C$9:$C$1048576,'Mobile-Detail Calcs'!$B26,'Mobile-Data'!$G$9:$G$1048576,'Mobile-Detail Calcs'!E$21) -> 0 | F26: =SUMIFS('Mobile-Data'!$H$9:$H$1048576,'Mobile-Data'!$C$9:$C$1048576,'Mobile-Detail Calcs'!$B26,'Mobile-Data'!$G$9:$G$1048576,'Mobile-Detail Calcs'!F$21) -> 0 | G26: =SUMIFS('Mobile-Data'!$H$9:$H$1048576,'Mobile-Data'!$C$9:$C$1048576,'Mobile-Detail Calcs'!$B26,'Mobile-Data'!$G$9:$G$1048576,'Mobile-Detail Calcs'!G$21) -> 0 | H26: =SUMIFS('Mobile-Data'!$H$9:$H$1048576,'Mobile-Data'!$C$9:$C$1048576,'Mobile-Detail Calcs'!$B26,'Mobile-Data'!$G$9:$G$1048576,'Mobile-Detail Calcs'!H$21) -> 0 | I26: =SUMIFS('Mobile-Data'!$H$9:$H$1048576,'Mobile-Data'!$C$9:$C$1048576,'Mobile-Detail Calcs'!$B26,'Mobile-Data'!$G$9:$G$1048576,'Mobile-Detail Calcs'!I$21) -> 0 | J26: =SUMIFS('Mobile-Data'!$H$9:$H$1048576,'Mobile-Data'!$C$9:$C$1048576,'Mobile-Detail Calcs'!$B26,'Mobile-Data'!$G$9:$G$1048576,'Mobile-Detail Calcs'!J$21) -> 0 | K26: =SUMIFS('Mobile-Data'!$H$9:$H$1048576,'Mobile-Data'!$C$9:$C$1048576,'Mobile-Detail Calcs'!$B26,'Mobile-Data'!$G$9:$G$1048576,'Mobile-Detail Calcs'!K$21) -> 0 | L26: =SUMIFS('Mobile-Data'!$H$9:$H$1048576,'Mobile-Data'!$C$9:$C$1048576,'Mobile-Detail Calcs'!$B26,'Mobile-Data'!$G$9:$G$1048576,'Mobile-Detail Calcs'!L$21) -> 0 | M26: =SUMIFS('Mobile-Data'!$H$9:$H$1048576,'Mobile-Data'!$C$9:$C$1048576,'Mobile-Detail Calcs'!$B26,'Mobile-Data'!$G$9:$G$1048576,'Mobile-Detail Calcs'!M$21) -> 0
B27: ='Background Controls'!I9 -> 0 | C27: =SUMIFS('Mobile-Data'!$H$9:$H$1048576,'Mobile-Data'!$C$9:$C$1048576,'Mobile-Detail Calcs'!$B27,'Mobile-Data'!$G$9:$G$1048576,'Mobile-Detail Calcs'!C$21) -> 0 | D27: =SUMIFS('Mobile-Data'!$H$9:$H$1048576,'Mobile-Data'!$C$9:$C$1048576,'Mobile-Detail Calcs'!$B27,'Mobile-Data'!$G$9:$G$1048576,'Mobile-Detail Calcs'!D$21) -> 0 | E27: =SUMIFS('Mobile-Data'!$H$9:$H$1048576,'Mobile-Data'!$C$9:$C$1048576,'Mobile-Detail Calcs'!$B27,'Mobile-Data'!$G$9:$G$1048576,'Mobile-Detail Calcs'!E$21) -> 0 | F27: =SUMIFS('Mobile-Data'!$H$9:$H$1048576,'Mobile-Data'!$C$9:$C$1048576,'Mobile-Detail Calcs'!$B27,'Mobile-Data'!$G$9:$G$1048576,'Mobile-Detail Calcs'!F$21) -> 0 | G27: =SUMIFS('Mobile-Data'!$H$9:$H$1048576,'Mobile-Data'!$C$9:$C$1048576,'Mobile-Detail Calcs'!$B27,'Mobile-Data'!$G$9:$G$1048576,'Mobile-Detail Calcs'!G$21) -> 0 | H27: =SUMIFS('Mobile-Data'!$H$9:$H$1048576,'Mobile-Data'!$C$9:$C$1048576,'Mobile-Detail Calcs'!$B27,'Mobile-Data'!$G$9:$G$1048576,'Mobile-Detail Calcs'!H$21) -> 0 | I27: =SUMIFS('Mobile-Data'!$H$9:$H$1048576,'Mobile-Data'!$C$9:$C$1048576,'Mobile-Detail Calcs'!$B27,'Mobile-Data'!$G$9:$G$1048576,'Mobile-Detail Calcs'!I$21) -> 0 | J27: =SUMIFS('Mobile-Data'!$H$9:$H$1048576,'Mobile-Data'!$C$9:$C$1048576,'Mobile-Detail Calcs'!$B27,'Mobile-Data'!$G$9:$G$1048576,'Mobile-Detail Calcs'!J$21) -> 0 | K27: =SUMIFS('Mobile-Data'!$H$9:$H$1048576,'Mobile-Data'!$C$9:$C$1048576,'Mobile-Detail Calcs'!$B27,'Mobile-Data'!$G$9:$G$1048576,'Mobile-Detail Calcs'!K$21) -> 0 | L27: =SUMIFS('Mobile-Data'!$H$9:$H$1048576,'Mobile-Data'!$C$9:$C$1048576,'Mobile-Detail Calcs'!$B27,'Mobile-Data'!$G$9:$G$1048576,'Mobile-Detail Calcs'!L$21) -> 0 | M27: =SUMIFS('Mobile-Data'!$H$9:$H$1048576,'Mobile-Data'!$C$9:$C$1048576,'Mobile-Detail Calcs'!$B27,'Mobile-Data'!$G$9:$G$1048576,'Mobile-Detail Calcs'!M$21) -> 0
B28: ='Background Controls'!I10 -> 0 | C28: =SUMIFS('Mobile-Data'!$H$9:$H$1048576,'Mobile-Data'!$C$9:$C$1048576,'Mobile-Detail Calcs'!$B28,'Mobile-Data'!$G$9:$G$1048576,'Mobile-Detail Calcs'!C$21) -> 0 | D28: =SUMIFS('Mobile-Data'!$H$9:$H$1048576,'Mobile-Data'!$C$9:$C$1048576,'Mobile-Detail Calcs'!$B28,'Mobile-Data'!$G$9:$G$1048576,'Mobile-Detail Calcs'!D$21) -> 0 | E28: =SUMIFS('Mobile-Data'!$H$9:$H$1048576,'Mobile-Data'!$C$9:$C$1048576,'Mobile-Detail Calcs'!$B28,'Mobile-Data'!$G$9:$G$1048576,'Mobile-Detail Calcs'!E$21) -> 0 | F28: =SUMIFS('Mobile-Data'!$H$9:$H$1048576,'Mobile-Data'!$C$9:$C$1048576,'Mobile-Detail Calcs'!$B28,'Mobile-Data'!$G$9:$G$1048576,'Mobile-Detail Calcs'!F$21) -> 0 | G28: =SUMIFS('Mobile-Data'!$H$9:$H$1048576,'Mobile-Data'!$C$9:$C$1048576,'Mobile-Detail Calcs'!$B28,'Mobile-Data'!$G$9:$G$1048576,'Mobile-Detail Calcs'!G$21) -> 0 | H28: =SUMIFS('Mobile-Data'!$H$9:$H$1048576,'Mobile-Data'!$C$9:$C$1048576,'Mobile-Detail Calcs'!$B28,'Mobile-Data'!$G$9:$G$1048576,'Mobile-Detail Calcs'!H$21) -> 0 | I28: =SUMIFS('Mobile-Data'!$H$9:$H$1048576,'Mobile-Data'!$C$9:$C$1048576,'Mobile-Detail Calcs'!$B28,'Mobile-Data'!$G$9:$G$1048576,'Mobile-Detail Calcs'!I$21) -> 0 | J28: =SUMIFS('Mobile-Data'!$H$9:$H$1048576,'Mobile-Data'!$C$9:$C$1048576,'Mobile-Detail Calcs'!$B28,'Mobile-Data'!$G$9:$G$1048576,'Mobile-Detail Calcs'!J$21) -> 0 | K28: =SUMIFS('Mobile-Data'!$H$9:$H$1048576,'Mobile-Data'!$C$9:$C$1048576,'Mobile-Detail Calcs'!$B28,'Mobile-Data'!$G$9:$G$1048576,'Mobile-Detail Calcs'!K$21) -> 0 | L28: =SUMIFS('Mobile-Data'!$H$9:$H$1048576,'Mobile-Data'!$C$9:$C$1048576,'Mobile-Detail Calcs'!$B28,'Mobile-Data'!$G$9:$G$1048576,'Mobile-Detail Calcs'!L$21) -> 0 | M28: =SUMIFS('Mobile-Data'!$H$9:$H$1048576,'Mobile-Data'!$C$9:$C$1048576,'Mobile-Detail Calcs'!$B28,'Mobile-Data'!$G$9:$G$1048576,'Mobile-Detail Calcs'!M$21) -> 0
B29: ='Background Controls'!I11 -> 0 | C29: =SUMIFS('Mobile-Data'!$H$9:$H$1048576,'Mobile-Data'!$C$9:$C$1048576,'Mobile-Detail Calcs'!$B29,'Mobile-Data'!$G$9:$G$1048576,'Mobile-Detail Calcs'!C$21) -> 0 | D29: =SUMIFS('Mobile-Data'!$H$9:$H$1048576,'Mobile-Data'!$C$9:$C$1048576,'Mobile-Detail Calcs'!$B29,'Mobile-Data'!$G$9:$G$1048576,'Mobile-Detail Calcs'!D$21) -> 0 | E29: =SUMIFS('Mobile-Data'!$H$9:$H$1048576,'Mobile-Data'!$C$9:$C$1048576,'Mobile-Detail Calcs'!$B29,'Mobile-Data'!$G$9:$G$1048576,'Mobile-Detail Calcs'!E$21) -> 0 | F29: =SUMIFS('Mobile-Data'!$H$9:$H$1048576,'Mobile-Data'!$C$9:$C$1048576,'Mobile-Detail Calcs'!$B29,'Mobile-Data'!$G$9:$G$1048576,'Mobile-Detail Calcs'!F$21) -> 0 | G29: =SUMIFS('Mobile-Data'!$H$9:$H$1048576,'Mobile-Data'!$C$9:$C$1048576,'Mobile-Detail Calcs'!$B29,'Mobile-Data'!$G$9:$G$1048576,'Mobile-Detail Calcs'!G$21) -> 0 | H29: =SUMIFS('Mobile-Data'!$H$9:$H$1048576,'Mobile-Data'!$C$9:$C$1048576,'Mobile-Detail Calcs'!$B29,'Mobile-Data'!$G$9:$G$1048576,'Mobile-Detail Calcs'!H$21) -> 0 | I29: =SUMIFS('Mobile-Data'!$H$9:$H$1048576,'Mobile-Data'!$C$9:$C$1048576,'Mobile-Detail Calcs'!$B29,'Mobile-Data'!$G$9:$G$1048576,'Mobile-Detail Calcs'!I$21) -> 0 | J29: =SUMIFS('Mobile-Data'!$H$9:$H$1048576,'Mobile-Data'!$C$9:$C$1048576,'Mobile-Detail Calcs'!$B29,'Mobile-Data'!$G$9:$G$1048576,'Mobile-Detail Calcs'!J$21) -> 0 | K29: =SUMIFS('Mobile-Data'!$H$9:$H$1048576,'Mobile-Data'!$C$9:$C$1048576,'Mobile-Detail Calcs'!$B29,'Mobile-Data'!$G$9:$G$1048576,'Mobile-Detail Calcs'!K$21) -> 0 | L29: =SUMIFS('Mobile-Data'!$H$9:$H$1048576,'Mobile-Data'!$C$9:$C$1048576,'Mobile-Detail Calcs'!$B29,'Mobile-Data'!$G$9:$G$1048576,'Mobile-Detail Calcs'!L$21) -> 0 | M29: =SUMIFS('Mobile-Data'!$H$9:$H$1048576,'Mobile-Data'!$C$9:$C$1048576,'Mobile-Detail Calcs'!$B29,'Mobile-Data'!$G$9:$G$1048576,'Mobile-Detail Calcs'!M$21) -> 0
B30: ='Background Controls'!I12 -> 0 | C30: =SUMIFS('Mobile-Data'!$H$9:$H$1048576,'Mobile-Data'!$C$9:$C$1048576,'Mobile-Detail Calcs'!$B30,'Mobile-Data'!$G$9:$G$1048576,'Mobile-Detail Calcs'!C$21) -> 0 | D30: =SUMIFS('Mobile-Data'!$H$9:$H$1048576,'Mobile-Data'!$C$9:$C$1048576,'Mobile-Detail Calcs'!$B30,'Mobile-Data'!$G$9:$G$1048576,'Mobile-Detail Calcs'!D$21) -> 0 | E30: =SUMIFS('Mobile-Data'!$H$9:$H$1048576,'Mobile-Data'!$C$9:$C$1048576,'Mobile-Detail Calcs'!$B30,'Mobile-Data'!$G$9:$G$1048576,'Mobile-Detail Calcs'!E$21) -> 0 | F30: =SUMIFS('Mobile-Data'!$H$9:$H$1048576,'Mobile-Data'!$C$9:$C$1048576,'Mobile-Detail Calcs'!$B30,'Mobile-Data'!$G$9:$G$1048576,'Mobile-Detail Calcs'!F$21) -> 0 | G30: =SUMIFS('Mobile-Data'!$H$9:$H$1048576,'Mobile-Data'!$C$9:$C$1048576,'Mobile-Detail Calcs'!$B30,'Mobile-Data'!$G$9:$G$1048576,'Mobile-Detail Calcs'!G$21) -> 0 | H30: =SUMIFS('Mobile-Data'!$H$9:$H$1048576,'Mobile-Data'!$C$9:$C$1048576,'Mobile-Detail Calcs'!$B30,'Mobile-Data'!$G$9:$G$1048576,'Mobile-Detail Calcs'!H$21) -> 0 | I30: =SUMIFS('Mobile-Data'!$H$9:$H$1048576,'Mobile-Data'!$C$9:$C$1048576,'Mobile-Detail Calcs'!$B30,'Mobile-Data'!$G$9:$G$1048576,'Mobile-Detail Calcs'!I$21) -> 0 | J30: =SUMIFS('Mobile-Data'!$H$9:$H$1048576,'Mobile-Data'!$C$9:$C$1048576,'Mobile-Detail Calcs'!$B30,'Mobile-Data'!$G$9:$G$1048576,'Mobile-Detail Calcs'!J$21) -> 0 | K30: =SUMIFS('Mobile-Data'!$H$9:$H$1048576,'Mobile-Data'!$C$9:$C$1048576,'Mobile-Detail Calcs'!$B30,'Mobile-Data'!$G$9:$G$1048576,'Mobile-Detail Calcs'!K$21) -> 0 | L30: =SUMIFS('Mobile-Data'!$H$9:$H$1048576,'Mobile-Data'!$C$9:$C$1048576,'Mobile-Detail Calcs'!$B30,'Mobile-Data'!$G$9:$G$1048576,'Mobile-Detail Calcs'!L$21) -> 0 | M30: =SUMIFS('Mobile-Data'!$H$9:$H$1048576,'Mobile-Data'!$C$9:$C$1048576,'Mobile-Detail Calcs'!$B30,'Mobile-Data'!$G$9:$G$1048576,'Mobile-Detail Calcs'!M$21) -> 0
B31: ='Background Controls'!I13 -> 0 | C31: =SUMIFS('Mobile-Data'!$H$9:$H$1048576,'Mobile-Data'!$C$9:$C$1048576,'Mobile-Detail Calcs'!$B31,'Mobile-Data'!$G$9:$G$1048576,'Mobile-Detail Calcs'!C$21) -> 0 | D31: =SUMIFS('Mobile-Data'!$H$9:$H$1048576,'Mobile-Data'!$C$9:$C$1048576,'Mobile-Detail Calcs'!$B31,'Mobile-Data'!$G$9:$G$1048576,'Mobile-Detail Calcs'!D$21) -> 0 | E31: =SUMIFS('Mobile-Data'!$H$9:$H$1048576,'Mobile-Data'!$C$9:$C$1048576,'Mobile-Detail Calcs'!$B31,'Mobile-Data'!$G$9:$G$1048576,'Mobile-Detail Calcs'!E$21) -> 0 | F31: =SUMIFS('Mobile-Data'!$H$9:$H$1048576,'Mobile-Data'!$C$9:$C$1048576,'Mobile-Detail Calcs'!$B31,'Mobile-Data'!$G$9:$G$1048576,'Mobile-Detail Calcs'!F$21) -> 0 | G31: =SUMIFS('Mobile-Data'!$H$9:$H$1048576,'Mobile-Data'!$C$9:$C$1048576,'Mobile-Detail Calcs'!$B31,'Mobile-Data'!$G$9:$G$1048576,'Mobile-Detail Calcs'!G$21) -> 0 | H31: =SUMIFS('Mobile-Data'!$H$9:$H$1048576,'Mobile-Data'!$C$9:$C$1048576,'Mobile-Detail Calcs'!$B31,'Mobile-Data'!$G$9:$G$1048576,'Mobile-Detail Calcs'!H$21) -> 0 | I31: =SUMIFS('Mobile-Data'!$H$9:$H$1048576,'Mobile-Data'!$C$9:$C$1048576,'Mobile-Detail Calcs'!$B31,'Mobile-Data'!$G$9:$G$1048576,'Mobile-Detail Calcs'!I$21) -> 0 | J31: =SUMIFS('Mobile-Data'!$H$9:$H$1048576,'Mobile-Data'!$C$9:$C$1048576,'Mobile-Detail Calcs'!$B31,'Mobile-Data'!$G$9:$G$1048576,'Mobile-Detail Calcs'!J$21) -> 0 | K31: =SUMIFS('Mobile-Data'!$H$9:$H$1048576,'Mobile-Data'!$C$9:$C$1048576,'Mobile-Detail Calcs'!$B31,'Mobile-Data'!$G$9:$G$1048576,'Mobile-Detail Calcs'!K$21) -> 0 | L31: =SUMIFS('Mobile-Data'!$H$9:$H$1048576,'Mobile-Data'!$C$9:$C$1048576,'Mobile-Detail Calcs'!$B31,'Mobile-Data'!$G$9:$G$1048576,'Mobile-Detail Calcs'!L$21) -> 0 | M31: =SUMIFS('Mobile-Data'!$H$9:$H$1048576,'Mobile-Data'!$C$9:$C$1048576,'Mobile-Detail Calcs'!$B31,'Mobile-Data'!$G$9:$G$1048576,'Mobile-Detail Calcs'!M$21) -> 0
B32: ='Background Controls'!I14 -> 0 | C32: =SUMIFS('Mobile-Data'!$H$9:$H$1048576,'Mobile-Data'!$C$9:$C$1048576,'Mobile-Detail Calcs'!$B32,'Mobile-Data'!$G$9:$G$1048576,'Mobile-Detail Calcs'!C$21) -> 0 | D32: =SUMIFS('Mobile-Data'!$H$9:$H$1048576,'Mobile-Data'!$C$9:$C$1048576,'Mobile-Detail Calcs'!$B32,'Mobile-Data'!$G$9:$G$1048576,'Mobile-Detail Calcs'!D$21) -> 0 | E32: =SUMIFS('Mobile-Data'!$H$9:$H$1048576,'Mobile-Data'!$C$9:$C$1048576,'Mobile-Detail Calcs'!$B32,'Mobile-Data'!$G$9:$G$1048576,'Mobile-Detail Calcs'!E$21) -> 0 | F32: =SUMIFS('Mobile-Data'!$H$9:$H$1048576,'Mobile-Data'!$C$9:$C$1048576,'Mobile-Detail Calcs'!$B32,'Mobile-Data'!$G$9:$G$1048576,'Mobile-Detail Calcs'!F$21) -> 0 | G32: =SUMIFS('Mobile-Data'!$H$9:$H$1048576,'Mobile-Data'!$C$9:$C$1048576,'Mobile-Detail Calcs'!$B32,'Mobile-Data'!$G$9:$G$1048576,'Mobile-Detail Calcs'!G$21) -> 0 | H32: =SUMIFS('Mobile-Data'!$H$9:$H$1048576,'Mobile-Data'!$C$9:$C$1048576,'Mobile-Detail Calcs'!$B32,'Mobile-Data'!$G$9:$G$1048576,'Mobile-Detail Calcs'!H$21) -> 0 | I32: =SUMIFS('Mobile-Data'!$H$9:$H$1048576,'Mobile-Data'!$C$9:$C$1048576,'Mobile-Detail Calcs'!$B32,'Mobile-Data'!$G$9:$G$1048576,'Mobile-Detail Calcs'!I$21) -> 0 | J32: =SUMIFS('Mobile-Data'!$H$9:$H$1048576,'Mobile-Data'!$C$9:$C$1048576,'Mobile-Detail Calcs'!$B32,'Mobile-Data'!$G$9:$G$1048576,'Mobile-Detail Calcs'!J$21) -> 0 | K32: =SUMIFS('Mobile-Data'!$H$9:$H$1048576,'Mobile-Data'!$C$9:$C$1048576,'Mobile-Detail Calcs'!$B32,'Mobile-Data'!$G$9:$G$1048576,'Mobile-Detail Calcs'!K$21) -> 0 | L32: =SUMIFS('Mobile-Data'!$H$9:$H$1048576,'Mobile-Data'!$C$9:$C$1048576,'Mobile-Detail Calcs'!$B32,'Mobile-Data'!$G$9:$G$1048576,'Mobile-Detail Calcs'!L$21) -> 0 | M32: =SUMIFS('Mobile-Data'!$H$9:$H$1048576,'Mobile-Data'!$C$9:$C$1048576,'Mobile-Detail Calcs'!$B32,'Mobile-Data'!$G$9:$G$1048576,'Mobile-Detail Calcs'!M$21) -> 0
B33: ='Background Controls'!I15 -> 0 | C33: =SUMIFS('Mobile-Data'!$H$9:$H$1048576,'Mobile-Data'!$C$9:$C$1048576,'Mobile-Detail Calcs'!$B33,'Mobile-Data'!$G$9:$G$1048576,'Mobile-Detail Calcs'!C$21) -> 0 | D33: =SUMIFS('Mobile-Data'!$H$9:$H$1048576,'Mobile-Data'!$C$9:$C$1048576,'Mobile-Detail Calcs'!$B33,'Mobile-Data'!$G$9:$G$1048576,'Mobile-Detail Calcs'!D$21) -> 0 | E33: =SUMIFS('Mobile-Data'!$H$9:$H$1048576,'Mobile-Data'!$C$9:$C$1048576,'Mobile-Detail Calcs'!$B33,'Mobile-Data'!$G$9:$G$1048576,'Mobile-Detail Calcs'!E$21) -> 0 | F33: =SUMIFS('Mobile-Data'!$H$9:$H$1048576,'Mobile-Data'!$C$9:$C$1048576,'Mobile-Detail Calcs'!$B33,'Mobile-Data'!$G$9:$G$1048576,'Mobile-Detail Calcs'!F$21) -> 0 | G33: =SUMIFS('Mobile-Data'!$H$9:$H$1048576,'Mobile-Data'!$C$9:$C$1048576,'Mobile-Detail Calcs'!$B33,'Mobile-Data'!$G$9:$G$1048576,'Mobile-Detail Calcs'!G$21) -> 0 | H33: =SUMIFS('Mobile-Data'!$H$9:$H$1048576,'Mobile-Data'!$C$9:$C$1048576,'Mobile-Detail Calcs'!$B33,'Mobile-Data'!$G$9:$G$1048576,'Mobile-Detail Calcs'!H$21) -> 0 | I33: =SUMIFS('Mobile-Data'!$H$9:$H$1048576,'Mobile-Data'!$C$9:$C$1048576,'Mobile-Detail Calcs'!$B33,'Mobile-Data'!$G$9:$G$1048576,'Mobile-Detail Calcs'!I$21) -> 0 | J33: =SUMIFS('Mobile-Data'!$H$9:$H$1048576,'Mobile-Data'!$C$9:$C$1048576,'Mobile-Detail Calcs'!$B33,'Mobile-Data'!$G$9:$G$1048576,'Mobile-Detail Calcs'!J$21) -> 0 | K33: =SUMIFS('Mobile-Data'!$H$9:$H$1048576,'Mobile-Data'!$C$9:$C$1048576,'Mobile-Detail Calcs'!$B33,'Mobile-Data'!$G$9:$G$1048576,'Mobile-Detail Calcs'!K$21) -> 0 | L33: =SUMIFS('Mobile-Data'!$H$9:$H$1048576,'Mobile-Data'!$C$9:$C$1048576,'Mobile-Detail Calcs'!$B33,'Mobile-Data'!$G$9:$G$1048576,'Mobile-Detail Calcs'!L$21) -> 0 | M33: =SUMIFS('Mobile-Data'!$H$9:$H$1048576,'Mobile-Data'!$C$9:$C$1048576,'Mobile-Detail Calcs'!$B33,'Mobile-Data'!$G$9:$G$1048576,'Mobile-Detail Calcs'!M$21) -> 0
B34: ='Background Controls'!I16 -> 0 | C34: =SUMIFS('Mobile-Data'!$H$9:$H$1048576,'Mobile-Data'!$C$9:$C$1048576,'Mobile-Detail Calcs'!$B34,'Mobile-Data'!$G$9:$G$1048576,'Mobile-Detail Calcs'!C$21) -> 0 | D34: =SUMIFS('Mobile-Data'!$H$9:$H$1048576,'Mobile-Data'!$C$9:$C$1048576,'Mobile-Detail Calcs'!$B34,'Mobile-Data'!$G$9:$G$1048576,'Mobile-Detail Calcs'!D$21) -> 0 | E34: =SUMIFS('Mobile-Data'!$H$9:$H$1048576,'Mobile-Data'!$C$9:$C$1048576,'Mobile-Detail Calcs'!$B34,'Mobile-Data'!$G$9:$G$1048576,'Mobile-Detail Calcs'!E$21) -> 0 | F34: =SUMIFS('Mobile-Data'!$H$9:$H$1048576,'Mobile-Data'!$C$9:$C$1048576,'Mobile-Detail Calcs'!$B34,'Mobile-Data'!$G$9:$G$1048576,'Mobile-Detail Calcs'!F$21) -> 0 | G34: =SUMIFS('Mobile-Data'!$H$9:$H$1048576,'Mobile-Data'!$C$9:$C$1048576,'Mobile-Detail Calcs'!$B34,'Mobile-Data'!$G$9:$G$1048576,'Mobile-Detail Calcs'!G$21) -> 0 | H34: =SUMIFS('Mobile-Data'!$H$9:$H$1048576,'Mobile-Data'!$C$9:$C$1048576,'Mobile-Detail Calcs'!$B34,'Mobile-Data'!$G$9:$G$1048576,'Mobile-Detail Calcs'!H$21) -> 0 | I34: =SUMIFS('Mobile-Data'!$H$9:$H$1048576,'Mobile-Data'!$C$9:$C$1048576,'Mobile-Detail Calcs'!$B34,'Mobile-Data'!$G$9:$G$1048576,'Mobile-Detail Calcs'!I$21) -> 0 | J34: =SUMIFS('Mobile-Data'!$H$9:$H$1048576,'Mobile-Data'!$C$9:$C$1048576,'Mobile-Detail Calcs'!$B34,'Mobile-Data'!$G$9:$G$1048576,'Mobile-Detail Calcs'!J$21) -> 0 | K34: =SUMIFS('Mobile-Data'!$H$9:$H$1048576,'Mobile-Data'!$C$9:$C$1048576,'Mobile-Detail Calcs'!$B34,'Mobile-Data'!$G$9:$G$1048576,'Mobile-Detail Calcs'!K$21) -> 0 | L34: =SUMIFS('Mobile-Data'!$H$9:$H$1048576,'Mobile-Data'!$C$9:$C$1048576,'Mobile-Detail Calcs'!$B34,'Mobile-Data'!$G$9:$G$1048576,'Mobile-Detail Calcs'!L$21) -> 0 | M34: =SUMIFS('Mobile-Data'!$H$9:$H$1048576,'Mobile-Data'!$C$9:$C$1048576,'Mobile-Detail Calcs'!$B34,'Mobile-Data'!$G$9:$G$1048576,'Mobile-Detail Calcs'!M$21) -> 0
B35: ='Background Controls'!I17 -> 0 | C35: =SUMIFS('Mobile-Data'!$H$9:$H$1048576,'Mobile-Data'!$C$9:$C$1048576,'Mobile-Detail Calcs'!$B35,'Mobile-Data'!$G$9:$G$1048576,'Mobile-Detail Calcs'!C$21) -> 0 | D35: =SUMIFS('Mobile-Data'!$H$9:$H$1048576,'Mobile-Data'!$C$9:$C$1048576,'Mobile-Detail Calcs'!$B35,'Mobile-Data'!$G$9:$G$1048576,'Mobile-Detail Calcs'!D$21) -> 0 | E35: =SUMIFS('Mobile-Data'!$H$9:$H$1048576,'Mobile-Data'!$C$9:$C$1048576,'Mobile-Detail Calcs'!$B35,'Mobile-Data'!$G$9:$G$1048576,'Mobile-Detail Calcs'!E$21) -> 0 | F35: =SUMIFS('Mobile-Data'!$H$9:$H$1048576,'Mobile-Data'!$C$9:$C$1048576,'Mobile-Detail Calcs'!$B35,'Mobile-Data'!$G$9:$G$1048576,'Mobile-Detail Calcs'!F$21) -> 0 | G35: =SUMIFS('Mobile-Data'!$H$9:$H$1048576,'Mobile-Data'!$C$9:$C$1048576,'Mobile-Detail Calcs'!$B35,'Mobile-Data'!$G$9:$G$1048576,'Mobile-Detail Calcs'!G$21) -> 0 | H35: =SUMIFS('Mobile-Data'!$H$9:$H$1048576,'Mobile-Data'!$C$9:$C$1048576,'Mobile-Detail Calcs'!$B35,'Mobile-Data'!$G$9:$G$1048576,'Mobile-Detail Calcs'!H$21) -> 0 | I35: =SUMIFS('Mobile-Data'!$H$9:$H$1048576,'Mobile-Data'!$C$9:$C$1048576,'Mobile-Detail Calcs'!$B35,'Mobile-Data'!$G$9:$G$1048576,'Mobile-Detail Calcs'!I$21) -> 0 | J35: =SUMIFS('Mobile-Data'!$H$9:$H$1048576,'Mobile-Data'!$C$9:$C$1048576,'Mobile-Detail Calcs'!$B35,'Mobile-Data'!$G$9:$G$1048576,'Mobile-Detail Calcs'!J$21) -> 0 | K35: =SUMIFS('Mobile-Data'!$H$9:$H$1048576,'Mobile-Data'!$C$9:$C$1048576,'Mobile-Detail Calcs'!$B35,'Mobile-Data'!$G$9:$G$1048576,'Mobile-Detail Calcs'!K$21) -> 0 | L35: =SUMIFS('Mobile-Data'!$H$9:$H$1048576,'Mobile-Data'!$C$9:$C$1048576,'Mobile-Detail Calcs'!$B35,'Mobile-Data'!$G$9:$G$1048576,'Mobile-Detail Calcs'!L$21) -> 0 | M35: =SUMIFS('Mobile-Data'!$H$9:$H$1048576,'Mobile-Data'!$C$9:$C$1048576,'Mobile-Detail Calcs'!$B35,'Mobile-Data'!$G$9:$G$1048576,'Mobile-Detail Calcs'!M$21) -> 0
B36: ='Background Controls'!I18 -> 0 | C36: =SUMIFS('Mobile-Data'!$H$9:$H$1048576,'Mobile-Data'!$C$9:$C$1048576,'Mobile-Detail Calcs'!$B36,'Mobile-Data'!$G$9:$G$1048576,'Mobile-Detail Calcs'!C$21) -> 0 | D36: =SUMIFS('Mobile-Data'!$H$9:$H$1048576,'Mobile-Data'!$C$9:$C$1048576,'Mobile-Detail Calcs'!$B36,'Mobile-Data'!$G$9:$G$1048576,'Mobile-Detail Calcs'!D$21) -> 0 | E36: =SUMIFS('Mobile-Data'!$H$9:$H$1048576,'Mobile-Data'!$C$9:$C$1048576,'Mobile-Detail Calcs'!$B36,'Mobile-Data'!$G$9:$G$1048576,'Mobile-Detail Calcs'!E$21) -> 0 | F36: =SUMIFS('Mobile-Data'!$H$9:$H$1048576,'Mobile-Data'!$C$9:$C$1048576,'Mobile-Detail Calcs'!$B36,'Mobile-Data'!$G$9:$G$1048576,'Mobile-Detail Calcs'!F$21) -> 0 | G36: =SUMIFS('Mobile-Data'!$H$9:$H$1048576,'Mobile-Data'!$C$9:$C$1048576,'Mobile-Detail Calcs'!$B36,'Mobile-Data'!$G$9:$G$1048576,'Mobile-Detail Calcs'!G$21) -> 0 | H36: =SUMIFS('Mobile-Data'!$H$9:$H$1048576,'Mobile-Data'!$C$9:$C$1048576,'Mobile-Detail Calcs'!$B36,'Mobile-Data'!$G$9:$G$1048576,'Mobile-Detail Calcs'!H$21) -> 0 | I36: =SUMIFS('Mobile-Data'!$H$9:$H$1048576,'Mobile-Data'!$C$9:$C$1048576,'Mobile-Detail Calcs'!$B36,'Mobile-Data'!$G$9:$G$1048576,'Mobile-Detail Calcs'!I$21) -> 0 | J36: =SUMIFS('Mobile-Data'!$H$9:$H$1048576,'Mobile-Data'!$C$9:$C$1048576,'Mobile-Detail Calcs'!$B36,'Mobile-Data'!$G$9:$G$1048576,'Mobile-Detail Calcs'!J$21) -> 0 | K36: =SUMIFS('Mobile-Data'!$H$9:$H$1048576,'Mobile-Data'!$C$9:$C$1048576,'Mobile-Detail Calcs'!$B36,'Mobile-Data'!$G$9:$G$1048576,'Mobile-Detail Calcs'!K$21) -> 0 | L36: =SUMIFS('Mobile-Data'!$H$9:$H$1048576,'Mobile-Data'!$C$9:$C$1048576,'Mobile-Detail Calcs'!$B36,'Mobile-Data'!$G$9:$G$1048576,'Mobile-Detail Calcs'!L$21) -> 0 | M36: =SUMIFS('Mobile-Data'!$H$9:$H$1048576,'Mobile-Data'!$C$9:$C$1048576,'Mobile-Detail Calcs'!$B36,'Mobile-Data'!$G$9:$G$1048576,'Mobile-Detail Calcs'!M$21) -> 0
B37: ='Background Controls'!I19 -> 0 | C37: =SUMIFS('Mobile-Data'!$H$9:$H$1048576,'Mobile-Data'!$C$9:$C$1048576,'Mobile-Detail Calcs'!$B37,'Mobile-Data'!$G$9:$G$1048576,'Mobile-Detail Calcs'!C$21) -> 0 | D37: =SUMIFS('Mobile-Data'!$H$9:$H$1048576,'Mobile-Data'!$C$9:$C$1048576,'Mobile-Detail Calcs'!$B37,'Mobile-Data'!$G$9:$G$1048576,'Mobile-Detail Calcs'!D$21) -> 0 | E37: =SUMIFS('Mobile-Data'!$H$9:$H$1048576,'Mobile-Data'!$C$9:$C$1048576,'Mobile-Detail Calcs'!$B37,'Mobile-Data'!$G$9:$G$1048576,'Mobile-Detail Calcs'!E$21) -> 0 | F37: =SUMIFS('Mobile-Data'!$H$9:$H$1048576,'Mobile-Data'!$C$9:$C$1048576,'Mobile-Detail Calcs'!$B37,'Mobile-Data'!$G$9:$G$1048576,'Mobile-Detail Calcs'!F$21) -> 0 | G37: =SUMIFS('Mobile-Data'!$H$9:$H$1048576,'Mobile-Data'!$C$9:$C$1048576,'Mobile-Detail Calcs'!$B37,'Mobile-Data'!$G$9:$G$1048576,'Mobile-Detail Calcs'!G$21) -> 0 | H37: =SUMIFS('Mobile-Data'!$H$9:$H$1048576,'Mobile-Data'!$C$9:$C$1048576,'Mobile-Detail Calcs'!$B37,'Mobile-Data'!$G$9:$G$1048576,'Mobile-Detail Calcs'!H$21) -> 0 | I37: =SUMIFS('Mobile-Data'!$H$9:$H$1048576,'Mobile-Data'!$C$9:$C$1048576,'Mobile-Detail Calcs'!$B37,'Mobile-Data'!$G$9:$G$1048576,'Mobile-Detail Calcs'!I$21) -> 0 | J37: =SUMIFS('Mobile-Data'!$H$9:$H$1048576,'Mobile-Data'!$C$9:$C$1048576,'Mobile-Detail Calcs'!$B37,'Mobile-Data'!$G$9:$G$1048576,'Mobile-Detail Calcs'!J$21) -> 0 | K37: =SUMIFS('Mobile-Data'!$H$9:$H$1048576,'Mobile-Data'!$C$9:$C$1048576,'Mobile-Detail Calcs'!$B37,'Mobile-Data'!$G$9:$G$1048576,'Mobile-Detail Calcs'!K$21) -> 0 | L37: =SUMIFS('Mobile-Data'!$H$9:$H$1048576,'Mobile-Data'!$C$9:$C$1048576,'Mobile-Detail Calcs'!$B37,'Mobile-Data'!$G$9:$G$1048576,'Mobile-Detail Calcs'!L$21) -> 0 | M37: =SUMIFS('Mobile-Data'!$H$9:$H$1048576,'Mobile-Data'!$C$9:$C$1048576,'Mobile-Detail Calcs'!$B37,'Mobile-Data'!$G$9:$G$1048576,'Mobile-Detail Calcs'!M$21) -> 0
B38: ='Background Controls'!I20 -> 0 | C38: =SUMIFS('Mobile-Data'!$H$9:$H$1048576,'Mobile-Data'!$C$9:$C$1048576,'Mobile-Detail Calcs'!$B38,'Mobile-Data'!$G$9:$G$1048576,'Mobile-Detail Calcs'!C$21) -> 0 | D38: =SUMIFS('Mobile-Data'!$H$9:$H$1048576,'Mobile-Data'!$C$9:$C$1048576,'Mobile-Detail Calcs'!$B38,'Mobile-Data'!$G$9:$G$1048576,'Mobile-Detail Calcs'!D$21) -> 0 | E38: =SUMIFS('Mobile-Data'!$H$9:$H$1048576,'Mobile-Data'!$C$9:$C$1048576,'Mobile-Detail Calcs'!$B38,'Mobile-Data'!$G$9:$G$1048576,'Mobile-Detail Calcs'!E$21) -> 0 | F38: =SUMIFS('Mobile-Data'!$H$9:$H$1048576,'Mobile-Data'!$C$9:$C$1048576,'Mobile-Detail Calcs'!$B38,'Mobile-Data'!$G$9:$G$1048576,'Mobile-Detail Calcs'!F$21) -> 0 | G38: =SUMIFS('Mobile-Data'!$H$9:$H$1048576,'Mobile-Data'!$C$9:$C$1048576,'Mobile-Detail Calcs'!$B38,'Mobile-Data'!$G$9:$G$1048576,'Mobile-Detail Calcs'!G$21) -> 0 | H38: =SUMIFS('Mobile-Data'!$H$9:$H$1048576,'Mobile-Data'!$C$9:$C$1048576,'Mobile-Detail Calcs'!$B38,'Mobile-Data'!$G$9:$G$1048576,'Mobile-Detail Calcs'!H$21) -> 0 | I38: =SUMIFS('Mobile-Data'!$H$9:$H$1048576,'Mobile-Data'!$C$9:$C$1048576,'Mobile-Detail Calcs'!$B38,'Mobile-Data'!$G$9:$G$1048576,'Mobile-Detail Calcs'!I$21) -> 0 | J38: =SUMIFS('Mobile-Data'!$H$9:$H$1048576,'Mobile-Data'!$C$9:$C$1048576,'Mobile-Detail Calcs'!$B38,'Mobile-Data'!$G$9:$G$1048576,'Mobile-Detail Calcs'!J$21) -> 0 | K38: =SUMIFS('Mobile-Data'!$H$9:$H$1048576,'Mobile-Data'!$C$9:$C$1048576,'Mobile-Detail Calcs'!$B38,'Mobile-Data'!$G$9:$G$1048576,'Mobile-Detail Calcs'!K$21) -> 0 | L38: =SUMIFS('Mobile-Data'!$H$9:$H$1048576,'Mobile-Data'!$C$9:$C$1048576,'Mobile-Detail Calcs'!$B38,'Mobile-Data'!$G$9:$G$1048576,'Mobile-Detail Calcs'!L$21) -> 0 | M38: =SUMIFS('Mobile-Data'!$H$9:$H$1048576,'Mobile-Data'!$C$9:$C$1048576,'Mobile-Detail Calcs'!$B38,'Mobile-Data'!$G$9:$G$1048576,'Mobile-Detail Calcs'!M$21) -> 0
B39: ='Background Controls'!I21 -> 0 | C39: =SUMIFS('Mobile-Data'!$H$9:$H$1048576,'Mobile-Data'!$C$9:$C$1048576,'Mobile-Detail Calcs'!$B39,'Mobile-Data'!$G$9:$G$1048576,'Mobile-Detail Calcs'!C$21) -> 0 | D39: =SUMIFS('Mobile-Data'!$H$9:$H$1048576,'Mobile-Data'!$C$9:$C$1048576,'Mobile-Detail Calcs'!$B39,'Mobile-Data'!$G$9:$G$1048576,'Mobile-Detail Calcs'!D$21) -> 0 | E39: =SUMIFS('Mobile-Data'!$H$9:$H$1048576,'Mobile-Data'!$C$9:$C$1048576,'Mobile-Detail Calcs'!$B39,'Mobile-Data'!$G$9:$G$1048576,'Mobile-Detail Calcs'!E$21) -> 0 | F39: =SUMIFS('Mobile-Data'!$H$9:$H$1048576,'Mobile-Data'!$C$9:$C$1048576,'Mobile-Detail Calcs'!$B39,'Mobile-Data'!$G$9:$G$1048576,'Mobile-Detail Calcs'!F$21) -> 0 | G39: =SUMIFS('Mobile-Data'!$H$9:$H$1048576,'Mobile-Data'!$C$9:$C$1048576,'Mobile-Detail Calcs'!$B39,'Mobile-Data'!$G$9:$G$1048576,'Mobile-Detail Calcs'!G$21) -> 0 | H39: =SUMIFS('Mobile-Data'!$H$9:$H$1048576,'Mobile-Data'!$C$9:$C$1048576,'Mobile-Detail Calcs'!$B39,'Mobile-Data'!$G$9:$G$1048576,'Mobile-Detail Calcs'!H$21) -> 0 | I39: =SUMIFS('Mobile-Data'!$H$9:$H$1048576,'Mobile-Data'!$C$9:$C$1048576,'Mobile-Detail Calcs'!$B39,'Mobile-Data'!$G$9:$G$1048576,'Mobile-Detail Calcs'!I$21) -> 0 | J39: =SUMIFS('Mobile-Data'!$H$9:$H$1048576,'Mobile-Data'!$C$9:$C$1048576,'Mobile-Detail Calcs'!$B39,'Mobile-Data'!$G$9:$G$1048576,'Mobile-Detail Calcs'!J$21) -> 0 | K39: =SUMIFS('Mobile-Data'!$H$9:$H$1048576,'Mobile-Data'!$C$9:$C$1048576,'Mobile-Detail Calcs'!$B39,'Mobile-Data'!$G$9:$G$1048576,'Mobile-Detail Calcs'!K$21) -> 0 | L39: =SUMIFS('Mobile-Data'!$H$9:$H$1048576,'Mobile-Data'!$C$9:$C$1048576,'Mobile-Detail Calcs'!$B39,'Mobile-Data'!$G$9:$G$1048576,'Mobile-Detail Calcs'!L$21) -> 0 | M39: =SUMIFS('Mobile-Data'!$H$9:$H$1048576,'Mobile-Data'!$C$9:$C$1048576,'Mobile-Detail Calcs'!$B39,'Mobile-Data'!$G$9:$G$1048576,'Mobile-Detail Calcs'!M$21) -> 0
B40: ='Background Controls'!I22 -> 0 | C40: =SUMIFS('Mobile-Data'!$H$9:$H$1048576,'Mobile-Data'!$C$9:$C$1048576,'Mobile-Detail Calcs'!$B40,'Mobile-Data'!$G$9:$G$1048576,'Mobile-Detail Calcs'!C$21) -> 0 | D40: =SUMIFS('Mobile-Data'!$H$9:$H$1048576,'Mobile-Data'!$C$9:$C$1048576,'Mobile-Detail Calcs'!$B40,'Mobile-Data'!$G$9:$G$1048576,'Mobile-Detail Calcs'!D$21) -> 0 | E40: =SUMIFS('Mobile-Data'!$H$9:$H$1048576,'Mobile-Data'!$C$9:$C$1048576,'Mobile-Detail Calcs'!$B40,'Mobile-Data'!$G$9:$G$1048576,'Mobile-Detail Calcs'!E$21) -> 0 | F40: =SUMIFS('Mobile-Data'!$H$9:$H$1048576,'Mobile-Data'!$C$9:$C$1048576,'Mobile-Detail Calcs'!$B40,'Mobile-Data'!$G$9:$G$1048576,'Mobile-Detail Calcs'!F$21) -> 0 | G40: =SUMIFS('Mobile-Data'!$H$9:$H$1048576,'Mobile-Data'!$C$9:$C$1048576,'Mobile-Detail Calcs'!$B40,'Mobile-Data'!$G$9:$G$1048576,'Mobile-Detail Calcs'!G$21) -> 0 | H40: =SUMIFS('Mobile-Data'!$H$9:$H$1048576,'Mobile-Data'!$C$9:$C$1048576,'Mobile-Detail Calcs'!$B40,'Mobile-Data'!$G$9:$G$1048576,'Mobile-Detail Calcs'!H$21) -> 0 | I40: =SUMIFS('Mobile-Data'!$H$9:$H$1048576,'Mobile-Data'!$C$9:$C$1048576,'Mobile-Detail Calcs'!$B40,'Mobile-Data'!$G$9:$G$1048576,'Mobile-Detail Calcs'!I$21) -> 0 | J40: =SUMIFS('Mobile-Data'!$H$9:$H$1048576,'Mobile-Data'!$C$9:$C$1048576,'Mobile-Detail Calcs'!$B40,'Mobile-Data'!$G$9:$G$1048576,'Mobile-Detail Calcs'!J$21) -> 0 | K40: =SUMIFS('Mobile-Data'!$H$9:$H$1048576,'Mobile-Data'!$C$9:$C$1048576,'Mobile-Detail Calcs'!$B40,'Mobile-Data'!$G$9:$G$1048576,'Mobile-Detail Calcs'!K$21) -> 0 | L40: =SUMIFS('Mobile-Data'!$H$9:$H$1048576,'Mobile-Data'!$C$9:$C$1048576,'Mobile-Detail Calcs'!$B40,'Mobile-Data'!$G$9:$G$1048576,'Mobile-Detail Calcs'!L$21) -> 0 | M40: =SUMIFS('Mobile-Data'!$H$9:$H$1048576,'Mobile-Data'!$C$9:$C$1048576,'Mobile-Detail Calcs'!$B40,'Mobile-Data'!$G$9:$G$1048576,'Mobile-Detail Calcs'!M$21) -> 0
B41: ='Background Controls'!I23 -> 0 | C41: =SUMIFS('Mobile-Data'!$H$9:$H$1048576,'Mobile-Data'!$C$9:$C$1048576,'Mobile-Detail Calcs'!$B41,'Mobile-Data'!$G$9:$G$1048576,'Mobile-Detail Calcs'!C$21) -> 0 | D41: =SUMIFS('Mobile-Data'!$H$9:$H$1048576,'Mobile-Data'!$C$9:$C$1048576,'Mobile-Detail Calcs'!$B41,'Mobile-Data'!$G$9:$G$1048576,'Mobile-Detail Calcs'!D$21) -> 0 | E41: =SUMIFS('Mobile-Data'!$H$9:$H$1048576,'Mobile-Data'!$C$9:$C$1048576,'Mobile-Detail Calcs'!$B41,'Mobile-Data'!$G$9:$G$1048576,'Mobile-Detail Calcs'!E$21) -> 0 | F41: =SUMIFS('Mobile-Data'!$H$9:$H$1048576,'Mobile-Data'!$C$9:$C$1048576,'Mobile-Detail Calcs'!$B41,'Mobile-Data'!$G$9:$G$1048576,'Mobile-Detail Calcs'!F$21) -> 0 | G41: =SUMIFS('Mobile-Data'!$H$9:$H$1048576,'Mobile-Data'!$C$9:$C$1048576,'Mobile-Detail Calcs'!$B41,'Mobile-Data'!$G$9:$G$1048576,'Mobile-Detail Calcs'!G$21) -> 0 | H41: =SUMIFS('Mobile-Data'!$H$9:$H$1048576,'Mobile-Data'!$C$9:$C$1048576,'Mobile-Detail Calcs'!$B41,'Mobile-Data'!$G$9:$G$1048576,'Mobile-Detail Calcs'!H$21) -> 0 | I41: =SUMIFS('Mobile-Data'!$H$9:$H$1048576,'Mobile-Data'!$C$9:$C$1048576,'Mobile-Detail Calcs'!$B41,'Mobile-Data'!$G$9:$G$1048576,'Mobile-Detail Calcs'!I$21) -> 0 | J41: =SUMIFS('Mobile-Data'!$H$9:$H$1048576,'Mobile-Data'!$C$9:$C$1048576,'Mobile-Detail Calcs'!$B41,'Mobile-Data'!$G$9:$G$1048576,'Mobile-Detail Calcs'!J$21) -> 0 | K41: =SUMIFS('Mobile-Data'!$H$9:$H$1048576,'Mobile-Data'!$C$9:$C$1048576,'Mobile-Detail Calcs'!$B41,'Mobile-Data'!$G$9:$G$1048576,'Mobile-Detail Calcs'!K$21) -> 0 | L41: =SUMIFS('Mobile-Data'!$H$9:$H$1048576,'Mobile-Data'!$C$9:$C$1048576,'Mobile-Detail Calcs'!$B41,'Mobile-Data'!$G$9:$G$1048576,'Mobile-Detail Calcs'!L$21) -> 0 | M41: =SUMIFS('Mobile-Data'!$H$9:$H$1048576,'Mobile-Data'!$C$9:$C$1048576,'Mobile-Detail Calcs'!$B41,'Mobile-Data'!$G$9:$G$1048576,'Mobile-Detail Calcs'!M$21) -> 0
B42: ='Background Controls'!I24 -> 0 | C42: =SUMIFS('Mobile-Data'!$H$9:$H$1048576,'Mobile-Data'!$C$9:$C$1048576,'Mobile-Detail Calcs'!$B42,'Mobile-Data'!$G$9:$G$1048576,'Mobile-Detail Calcs'!C$21) -> 0 | D42: =SUMIFS('Mobile-Data'!$H$9:$H$1048576,'Mobile-Data'!$C$9:$C$1048576,'Mobile-Detail Calcs'!$B42,'Mobile-Data'!$G$9:$G$1048576,'Mobile-Detail Calcs'!D$21) -> 0 | E42: =SUMIFS('Mobile-Data'!$H$9:$H$1048576,'Mobile-Data'!$C$9:$C$1048576,'Mobile-Detail Calcs'!$B42,'Mobile-Data'!$G$9:$G$1048576,'Mobile-Detail Calcs'!E$21) -> 0 | F42: =SUMIFS('Mobile-Data'!$H$9:$H$1048576,'Mobile-Data'!$C$9:$C$1048576,'Mobile-Detail Calcs'!$B42,'Mobile-Data'!$G$9:$G$1048576,'Mobile-Detail Calcs'!F$21) -> 0 | G42: =SUMIFS('Mobile-Data'!$H$9:$H$1048576,'Mobile-Data'!$C$9:$C$1048576,'Mobile-Detail Calcs'!$B42,'Mobile-Data'!$G$9:$G$1048576,'Mobile-Detail Calcs'!G$21) -> 0 | H42: =SUMIFS('Mobile-Data'!$H$9:$H$1048576,'Mobile-Data'!$C$9:$C$1048576,'Mobile-Detail Calcs'!$B42,'Mobile-Data'!$G$9:$G$1048576,'Mobile-Detail Calcs'!H$21) -> 0 | I42: =SUMIFS('Mobile-Data'!$H$9:$H$1048576,'Mobile-Data'!$C$9:$C$1048576,'Mobile-Detail Calcs'!$B42,'Mobile-Data'!$G$9:$G$1048576,'Mobile-Detail Calcs'!I$21) -> 0 | J42: =SUMIFS('Mobile-Data'!$H$9:$H$1048576,'Mobile-Data'!$C$9:$C$1048576,'Mobile-Detail Calcs'!$B42,'Mobile-Data'!$G$9:$G$1048576,'Mobile-Detail Calcs'!J$21) -> 0 | K42: =SUMIFS('Mobile-Data'!$H$9:$H$1048576,'Mobile-Data'!$C$9:$C$1048576,'Mobile-Detail Calcs'!$B42,'Mobile-Data'!$G$9:$G$1048576,'Mobile-Detail Calcs'!K$21) -> 0 | L42: =SUMIFS('Mobile-Data'!$H$9:$H$1048576,'Mobile-Data'!$C$9:$C$1048576,'Mobile-Detail Calcs'!$B42,'Mobile-Data'!$G$9:$G$1048576,'Mobile-Detail Calcs'!L$21) -> 0 | M42: =SUMIFS('Mobile-Data'!$H$9:$H$1048576,'Mobile-Data'!$C$9:$C$1048576,'Mobile-Detail Calcs'!$B42,'Mobile-Data'!$G$9:$G$1048576,'Mobile-Detail Calcs'!M$21) -> 0
B43: Total | C43: =SUM(C23:C42) -> 11581919 | D43: 7026817 | E43: 0 | F43: 0 | G43: 0 | H43: 0 | I43: 0 | J43: 0 | K43: 0 | L43: 0 | M43: 0
A45: Energy Use by Sector and Fuel Type
A46: This table summarizes energy use by sector (MMBtu).
C47: Gasoline | D47: Diesel | E47: Biodiesel (B5) | F47: Biodiesel (B20) | G47: Ethanol (E85) | H47: CNG | I47: LNG | J47: LPG | K47: Residual Fuel | L47: Jet Fuel | M47: Aviation Gasoline | N47: TOTAL
A48: Dstart | B48: ='Background Controls'!I5 -> Residential | C48: =C23*VLOOKUP(C$47, mob_fuel_CO2_efs, 5, FALSE) -> 0 | D48: 0 | E48: 0 | F48: 0 | G48: 0 | H48: 0 | I48: 0 | J48: 0 | K48: 0 | L48: 0 | M48: 0 | N48: =SUM(C48:M48) -> 0
B49: ='Background Controls'!I6 -> Commercial/Institutional | C49: =C24*VLOOKUP(C$47, mob_fuel_CO2_efs, 5, FALSE) -> 1447739.875 | D49: 970369.9667 | E49: 0 | F49: 0 | G49: 0 | H49: 0 | I49: 0 | J49: 0 | K49: 0 | L49: 0 | M49: 0 | N49: =SUM(C49:M49) -> 2418109.842
B50: ='Background Controls'!I7 -> Industrial | C50: =C25*VLOOKUP(C$47, mob_fuel_CO2_efs, 5, FALSE) -> 0 | D50: 0 | E50: 0 | F50: 0 | G50: 0 | H50: 0 | I50: 0 | J50: 0 | K50: 0 | L50: 0 | M50: 0 | N50: 0
B51: ='Background Controls'!I8 -> Energy Generation | C51: =C26*VLOOKUP(C$47, mob_fuel_CO2_efs, 5, FALSE) -> 0 | D51: 0 | E51: 0 | F51: 0 | G51: 0 | H51: 0 | I51: 0 | J51: 0 | K51: 0 | L51: 0 | M51: 0 | N51: 0
B52: ='Background Controls'!I9 -> 0 | C52: =C27*VLOOKUP(C$47, mob_fuel_CO2_efs, 5, FALSE) -> 0 | D52: 0 | E52: 0 | F52: 0 | G52: 0 | H52: 0 | I52: 0 | J52: 0 | K52: 0 | L52: 0 | M52: 0 | N52: 0
B53: ='Background Controls'!I10 -> 0 | C53: =C28*VLOOKUP(C$47, mob_fuel_CO2_efs, 5, FALSE) -> 0 | D53: 0 | E53: 0 | F53: 0 | G53: 0 | H53: 0 | I53: 0 | J53: 0 | K53: 0 | L53: 0 | M53: 0 | N53: 0
B54: ='Background Controls'!I11 -> 0 | C54: =C29*VLOOKUP(C$47, mob_fuel_CO2_efs, 5, FALSE) -> 0 | D54: 0 | E54: 0 | F54: 0 | G54: 0 | H54: 0 | I54: 0 | J54: 0 | K54: 0 | L54: 0 | M54: 0 | N54: 0
B55: ='Background Controls'!I12 -> 0 | C55: =C30*VLOOKUP(C$47, mob_fuel_CO2_efs, 5, FALSE) -> 0 | D55: 0 | E55: 0 | F55: 0 | G55: 0 | H55: 0 | I55: 0 | J55: 0 | K55: 0 | L55: 0 | M55: 0 | N55: 0
B56: ='Background Controls'!I13 -> 0 | C56: =C31*VLOOKUP(C$47, mob_fuel_CO2_efs, 5, FALSE) -> 0 | D56: 0 | E56: 0 | F56: 0 | G56: 0 | H56: 0 | I56: 0 | J56: 0 | K56: 0 | L56: 0 | M56: 0 | N56: 0
B57: ='Background Controls'!I14 -> 0 | C57: =C32*VLOOKUP(C$47, mob_fuel_CO2_efs, 5, FALSE) -> 0 | D57: 0 | E57: 0 | F57: 0 | G57: 0 | H57: 0 | I57: 0 | J57: 0 | K57: 0 | L57: 0 | M57: 0 | N57: 0
B58: ='Background Controls'!I15 -> 0 | C58: =C33*VLOOKUP(C$47, mob_fuel_CO2_efs, 5, FALSE) -> 0 | D58: 0 | E58: 0 | F58: 0 | G58: 0 | H58: 0 | I58: 0 | J58: 0 | K58: 0 | L58: 0 | M58: 0 | N58: 0
B59: ='Background Controls'!I16 -> 0 | C59: =C34*VLOOKUP(C$47, mob_fuel_CO2_efs, 5, FALSE) -> 0 | D59: 0 | E59: 0 | F59: 0 | G59: 0 | H59: 0 | I59: 0 | J59: 0 | K59: 0 | L59: 0 | M59: 0 | N59: 0
B60: ='Background Controls'!I17 -> 0 | C60: =C35*VLOOKUP(C$47, mob_fuel_CO2_efs, 5, FALSE) -> 0 | D60: 0 | E60: 0 | F60: 0 | G60: 0 | H60: 0 | I60: 0 | J60: 0 | K60: 0 | L60: 0 | M60: 0 | N60: 0
B61: ='Background Controls'!I18 -> 0 | C61: =C36*VLOOKUP(C$47, mob_fuel_CO2_efs, 5, FALSE) -> 0 | D61: 0 | E61: 0 | F61: 0 | G61: 0 | H61: 0 | I61: 0 | J61: 0 | K61: 0 | L61: 0 | M61: 0 | N61: 0
B62: ='Background Controls'!I19 -> 0 | C62: =C37*VLOOKUP(C$47, mob_fuel_CO2_efs, 5, FALSE) -> 0 | D62: 0 | E62: 0 | F62: 0 | G62: 0 | H62: 0 | I62: 0 | J62: 0 | K62: 0 | L62: 0 | M62: 0 | N62: 0
B63: ='Background Controls'!I20 -> 0 | C63: =C38*VLOOKUP(C$47, mob_fuel_CO2_efs, 5, FALSE) -> 0 | D63: 0 | E63: 0 | F63: 0 | G63: 0 | H63: 0 | I63: 0 | J63: 0 | K63: 0 | L63: 0 | M63: 0 | N63: 0
B64: ='Background Controls'!I21 -> 0 | C64: =C39*VLOOKUP(C$47, mob_fuel_CO2_efs, 5, FALSE) -> 0 | D64: 0 | E64: 0 | F64: 0 | G64: 0 | H64: 0 | I64: 0 | J64: 0 | K64: 0 | L64: 0 | M64: 0 | N64: 0
B65: ='Background Controls'!I22 -> 0 | C65: =C40*VLOOKUP(C$47, mob_fuel_CO2_efs, 5, FALSE) -> 0 | D65: 0 | E65: 0 | F65: 0 | G65: 0 | H65: 0 | I65: 0 | J65: 0 | K65: 0 | L65: 0 | M65: 0 | N65: 0
B66: ='Background Controls'!I23 -> 0 | C66: =C41*VLOOKUP(C$47, mob_fuel_CO2_efs, 5, FALSE) -> 0 | D66: 0 | E66: 0 | F66: 0 | G66: 0 | H66: 0 | I66: 0 | J66: 0 | K66: 0 | L66: 0 | M66: 0 | N66: 0
B67: ='Background Controls'!I24 -> 0 | C67: =C42*VLOOKUP(C$47, mob_fuel_CO2_efs, 5, FALSE) -> 0 | D67: 0 | E67: 0 | F67: 0 | G67: 0 | H67: 0 | I67: 0 | J67: 0 | K67: 0 | L67: 0 | M67: 0 | N67: 0
B68: Total | C68: =SUM(C48:C67) -> 1447739.875 | D68: 970369.9667 | E68: 0 | F68: 0 | G68: 0 | H68: 0 | I68: 0 | J68: 0 | K68: 0 | L68: 0 | M68: 0 | N68: 2418109.842
A71: CO2 Calculations
A73: Gross CO2 Emissions
A74: CO2 Emissions (MT) = Fuel use × kg CO2/unit of fuel × MT/kg
C75: Gasoline | D75: Diesel | E75: Biodiesel (B5) | F75: Biodiesel (B20) | G75: Ethanol (E85) | H75: CNG | I75: LNG | J75: LPG | K75: Residual Fuel | L75: Jet Fuel | M75: Aviation Gasoline | N75: TOTAL
B76: EF: kg CO2/gal (or g.g.e.) | C76: =VLOOKUP(C21,mob_fuel_CO2_efs,2,FALSE) -> 8.78 | D76: 10.21 | E76: =VLOOKUP(E21,mob_fuel_CO2_efs,2,FALSE) -> 10.172 | F76: 10.058 | G76: 6.2045 | H76: 6.84018 | I76: 4.46 | J76: 5.79 | K76: 11.8 | L76: 9.57 | M76: 8.31
A77: Dstart | B77: =B23 -> Residential | C77: =C23*C$76*kg_mt -> 0 | D77: 0 | E77: 0 | F77: 0 | G77: 0 | H77: 0 | I77: 0 | J77: 0 | K77: 0 | L77: 0 | M77: 0 | N77: =SUM(C77:M77) -> 0
B78: =B24 -> Commercial/Institutional | C78: =C24*C$76*kg_mt -> 101689.2488 | D78: 71743.80157 | E78: 0 | F78: 0 | G78: 0 | H78: 0 | I78: 0 | J78: 0 | K78: 0 | L78: 0 | M78: 0 | N78: =SUM(C78:M78) -> 173433.0504
B79: Industrial | C79: =C25*C$76*kg_mt -> 0 | D79: 0 | E79: 0 | F79: 0 | G79: 0 | H79: 0 | I79: 0 | J79: 0 | K79: 0 | L79: 0 | M79: 0 | N79: 0
B80: Energy Generation | C80: =C26*C$76*kg_mt -> 0 | D80: 0 | E80: 0 | F80: 0 | G80: 0 | H80: 0 | I80: 0 | J80: 0 | K80: 0 | L80: 0 | M80: 0 | N80: 0
B81: 0 | C81: =C27*C$76*kg_mt -> 0 | D81: 0 | E81: 0 | F81: 0 | G81: 0 | H81: 0 | I81: 0 | J81: 0 | K81: 0 | L81: 0 | M81: 0 | N81: 0
B82: 0 | C82: =C28*C$76*kg_mt -> 0 | D82: 0 | E82: 0 | F82: 0 | G82: 0 | H82: 0 | I82: 0 | J82: 0 | K82: 0 | L82: 0 | M82: 0 | N82: 0
B83: 0 | C83: =C29*C$76*kg_mt -> 0 | D83: 0 | E83: 0 | F83: 0 | G83: 0 | H83: 0 | I83: 0 | J83: 0 | K83: 0 | L83: 0 | M83: 0 | N83: 0
B84: 0 | C84: =C30*C$76*kg_mt -> 0 | D84: 0 | E84: 0 | F84: 0 | G84: 0 | H84: 0 | I84: 0 | J84: 0 | K84: 0 | L84: 0 | M84: 0 | N84: 0
B85: 0 | C85: =C31*C$76*kg_mt -> 0 | D85: 0 | E85: 0 | F85: 0 | G85: 0 | H85: 0 | I85: 0 | J85: 0 | K85: 0 | L85: 0 | M85: 0 | N85: 0
B86: 0 | C86: =C32*C$76*kg_mt -> 0 | D86: 0 | E86: 0 | F86: 0 | G86: 0 | H86: 0 | I86: 0 | J86: 0 | K86: 0 | L86: 0 | M86: 0 | N86: 0
B87: 0 | C87: =C33*C$76*kg_mt -> 0 | D87: 0 | E87: 0 | F87: 0 | G87: 0 | H87: 0 | I87: 0 | J87: 0 | K87: 0 | L87: 0 | M87: 0 | N87: 0
B88: 0 | C88: =C34*C$76*kg_mt -> 0 | D88: 0 | E88: 0 | F88: 0 | G88: 0 | H88: 0 | I88: 0 | J88: 0 | K88: 0 | L88: 0 | M88: 0 | N88: 0
B89: 0 | C89: =C35*C$76*kg_mt -> 0 | D89: 0 | E89: 0 | F89: 0 | G89: 0 | H89: 0 | I89: 0 | J89: 0 | K89: 0 | L89: 0 | M89: 0 | N89: 0
B90: 0 | C90: =C36*C$76*kg_mt -> 0 | D90: 0 | E90: 0 | F90: 0 | G90: 0 | H90: 0 | I90: 0 | J90: 0 | K90: 0 | L90: 0 | M90: 0 | N90: 0
B91: 0 | C91: =C37*C$76*kg_mt -> 0 | D91: 0 | E91: 0 | F91: 0 | G91: 0 | H91: 0 | I91: 0 | J91: 0 | K91: 0 | L91: 0 | M91: 0 | N91: 0
B92: 0 | C92: =C38*C$76*kg_mt -> 0 | D92: 0 | E92: 0 | F92: 0 | G92: 0 | H92: 0 | I92: 0 | J92: 0 | K92: 0 | L92: 0 | M92: 0 | N92: 0
B93: 0 | C93: =C39*C$76*kg_mt -> 0 | D93: 0 | E93: 0 | F93: 0 | G93: 0 | H93: 0 | I93: 0 | J93: 0 | K93: 0 | L93: 0 | M93: 0 | N93: 0
B94: 0 | C94: =C40*C$76*kg_mt -> 0 | D94: 0 | E94: 0 | F94: 0 | G94: 0 | H94: 0 | I94: 0 | J94: 0 | K94: 0 | L94: 0 | M94: 0 | N94: 0
B95: 0 | C95: =C41*C$76*kg_mt -> 0 | D95: 0 | E95: 0 | F95: 0 | G95: 0 | H95: 0 | I95: 0 | J95: 0 | K95: 0 | L95: 0 | M95: 0 | N95: 0
B96: 0 | C96: =C42*C$76*kg_mt -> 0 | D96: 0 | E96: 0 | F96: 0 | G96: 0 | H96: 0 | I96: 0 | J96: 0 | K96: 0 | L96: 0 | M96: 0 | N96: 0
B97: Total | C97: =SUM(C77:C96) -> 101689.2488 | D97: 71743.80157 | E97: 0 | F97: 0 | G97: 0 | H97: 0 | I97: 0 | J97: 0 | K97: 0 | L97: 0 | M97: 0 | N97: 173433.0504
A99: Biogenic CO2 Emissions
A100: Biogenic CO2 (MT) = Fuel use × Biogenic kg CO2/unit of fuel × MT/kg
C101: Gasoline | D101: Diesel | E101: Biodiesel (B5) | F101: Biodiesel (B20) | G101: Ethanol (E85) | H101: CNG | I101: LNG | J101: LPG | K101: Residual Fuel | L101: Jet Fuel | M101: Aviation Gasoline | N101: TOTAL
B102: EF: kg CO2/gal (or g.g.e.) | C102: =VLOOKUP(C101,mob_fuel_CO2_efs,3,FALSE) -> 0 | D102: 0 | E102: 0.4725 | F102: 1.89 | G102: 4.8875 | H102: 0 | I102: 0 | J102: 0 | K102: 0 | L102: 0 | M102: 0
A103: Dstart | B103: =B77 -> Residential | C103: =C23*C$102*kg_mt -> 0 | D103: 0 | E103: 0 | F103: 0 | G103: 0 | H103: 0 | I103: 0 | J103: 0 | K103: 0 | L103: 0 | M103: 0 | N103: =SUM(C103:M103) -> 0
B104: =B78 -> Commercial/Institutional | C104: =C24*C$102*kg_mt -> 0 | D104: 0 | E104: 0 | F104: 0 | G104: 0 | H104: 0 | I104: 0 | J104: 0 | K104: 0 | L104: 0 | M104: 0 | N104: =SUM(C104:M104) -> 0
B105: Industrial | C105: =C25*C$102*kg_mt -> 0 | D105: 0 | E105: 0 | F105: 0 | G105: 0 | H105: 0 | I105: 0 | J105: 0 | K105: 0 | L105: 0 | M105: 0 | N105: 0
B106: Energy Generation | C106: =C26*C$102*kg_mt -> 0 | D106: 0 | E106: 0 | F106: 0 | G106: 0 | H106: 0 | I106: 0 | J106: 0 | K106: 0 | L106: 0 | M106: 0 | N106: 0
B107: 0 | C107: =C27*C$102*kg_mt -> 0 | D107: 0 | E107: 0 | F107: 0 | G107: 0 | H107: 0 | I107: 0 | J107: 0 | K107: 0 | L107: 0 | M107: 0 | N107: 0
B108: 0 | C108: =C28*C$102*kg_mt -> 0 | D108: 0 | E108: 0 | F108: 0 | G108: 0 | H108: 0 | I108: 0 | J108: 0 | K108: 0 | L108: 0 | M108: 0 | N108: 0
B109: 0 | C109: =C29*C$102*kg_mt -> 0 | D109: 0 | E109: 0 | F109: 0 | G109: 0 | H109: 0 | I109: 0 | J109: 0 | K109: 0 | L109: 0 | M109: 0 | N109: 0
B110: 0 | C110: =C30*C$102*kg_mt -> 0 | D110: 0 | E110: 0 | F110: 0 | G110: 0 | H110: 0 | I110: 0 | J110: 0 | K110: 0 | L110: 0 | M110: 0 | N110: 0
B111: 0 | C111: =C31*C$102*kg_mt -> 0 | D111: 0 | E111: 0 | F111: 0 | G111: 0 | H111: 0 | I111: 0 | J111: 0 | K111: 0 | L111: 0 | M111: 0 | N111: 0
B112: 0 | C112: =C32*C$102*kg_mt -> 0 | D112: 0 | E112: 0 | F112: 0 | G112: 0 | H112: 0 | I112: 0 | J112: 0 | K112: 0 | L112: 0 | M112: 0 | N112: 0
B113: 0 | C113: =C33*C$102*kg_mt -> 0 | D113: 0 | E113: 0 | F113: 0 | G113: 0 | H113: 0 | I113: 0 | J113: 0 | K113: 0 | L113: 0 | M113: 0 | N113: 0
B114: 0 | C114: =C34*C$102*kg_mt -> 0 | D114: 0 | E114: 0 | F114: 0 | G114: 0 | H114: 0 | I114: 0 | J114: 0 | K114: 0 | L114: 0 | M114: 0 | N114: 0
B115: 0 | C115: =C35*C$102*kg_mt -> 0 | D115: 0 | E115: 0 | F115: 0 | G115: 0 | H115: 0 | I115: 0 | J115: 0 | K115: 0 | L115: 0 | M115: 0 | N115: 0
B116: 0 | C116: =C36*C$102*kg_mt -> 0 | D116: 0 | E116: 0 | F116: 0 | G116: 0 | H116: 0 | I116: 0 | J116: 0 | K116: 0 | L116: 0 | M116: 0 | N116: 0
B117: 0 | C117: =C37*C$102*kg_mt -> 0 | D117: 0 | E117: 0 | F117: 0 | G117: 0 | H117: 0 | I117: 0 | J117: 0 | K117: 0 | L117: 0 | M117: 0 | N117: 0
B118: 0 | C118: =C38*C$102*kg_mt -> 0 | D118: 0 | E118: 0 | F118: 0 | G118: 0 | H118: 0 | I118: 0 | J118: 0 | K118: 0 | L118: 0 | M118: 0 | N118: 0
B119: 0 | C119: =C39*C$102*kg_mt -> 0 | D119: 0 | E119: 0 | F119: 0 | G119: 0 | H119: 0 | I119: 0 | J119: 0 | K119: 0 | L119: 0 | M119: 0 | N119: 0
B120: 0 | C120: =C40*C$102*kg_mt -> 0 | D120: 0 | E120: 0 | F120: 0 | G120: 0 | H120: 0 | I120: 0 | J120: 0 | K120: 0 | L120: 0 | M120: 0 | N120: 0
B121: 0 | C121: =C41*C$102*kg_mt -> 0 | D121: 0 | E121: 0 | F121: 0 | G121: 0 | H121: 0 | I121: 0 | J121: 0 | K121: 0 | L121: 0 | M121: 0 | N121: 0
B122: 0 | C122: =C42*C$102*kg_mt -> 0 | D122: 0 | E122: 0 | F122: 0 | G122: 0 | H122: 0 | I122: 0 | J122: 0 | K122: 0 | L122: 0 | M122: 0 | N122: 0
B123: Total | C123: =SUM(C103:C122) -> 0 | D123: 0 | E123: 0 | F123: 0 | G123: 0 | H123: 0 | I123: 0 | J123: 0 | K123: 0 | L123: 0 | M123: 0 | N123: 0
A126: Net CO2 Emissions
A127: Net CO2 Emissions (MT) = Gross CO2 Emissions - Biogenic CO2 Emissions
C128: Gasoline | D128: Diesel | E128: Biodiesel (B5) | F128: Biodiesel (B20) | G128: Ethanol (E85) | H128: CNG | I128: LNG | J128: LPG | K128: Residual Fuel | L128: Jet Fuel | M128: Aviation Gasoline | N128: TOTAL
A129: Dstart | B129: =B103 -> Residential | C129: =C77-C103 -> 0 | D129: 0 | E129: 0 | F129: 0 | G129: 0 | H129: 0 | I129: 0 | J129: 0 | K129: 0 | L129: 0 | M129: 0 | N129: =SUM(C129:M129) -> 0
B130: =B104 -> Commercial/Institutional | C130: =C78-C104 -> 101689.2488 | D130: 71743.80157 | E130: 0 | F130: 0 | G130: 0 | H130: 0 | I130: 0 | J130: 0 | K130: 0 | L130: 0 | M130: 0 | N130: =SUM(C130:M130) -> 173433.0504
B131: Industrial | C131: =C79-C105 -> 0 | D131: 0 | E131: 0 | F131: 0 | G131: 0 | H131: 0 | I131: 0 | J131: 0 | K131: 0 | L131: 0 | M131: 0 | N131: 0
B132: Energy Generation | C132: =C80-C106 -> 0 | D132: 0 | E132: 0 | F132: 0 | G132: 0 | H132: 0 | I132: 0 | J132: 0 | K132: 0 | L132: 0 | M132: 0 | N132: 0
B133: 0 | C133: =C81-C107 -> 0 | D133: 0 | E133: 0 | F133: 0 | G133: 0 | H133: 0 | I133: 0 | J133: 0 | K133: 0 | L133: 0 | M133: 0 | N133: 0
B134: 0 | C134: =C82-C108 -> 0 | D134: 0 | E134: 0 | F134: 0 | G134: 0 | H134: 0 | I134: 0 | J134: 0 | K134: 0 | L134: 0 | M134: 0 | N134: 0
B135: 0 | C135: =C83-C109 -> 0 | D135: 0 | E135: 0 | F135: 0 | G135: 0 | H135: 0 | I135: 0 | J135: 0 | K135: 0 | L135: 0 | M135: 0 | N135: 0
B136: 0 | C136: =C84-C110 -> 0 | D136: 0 | E136: 0 | F136: 0 | G136: 0 | H136: 0 | I136: 0 | J136: 0 | K136: 0 | L136: 0 | M136: 0 | N136: 0
B137: 0 | C137: =C85-C111 -> 0 | D137: 0 | E137: 0 | F137: 0 | G137: 0 | H137: 0 | I137: 0 | J137: 0 | K137: 0 | L137: 0 | M137: 0 | N137: 0
B138: 0 | C138: =C86-C112 -> 0 | D138: 0 | E138: 0 | F138: 0 | G138: 0 | H138: 0 | I138: 0 | J138: 0 | K138: 0 | L138: 0 | M138: 0 | N138: 0
B139: 0 | C139: =C87-C113 -> 0 | D139: 0 | E139: 0 | F139: 0 | G139: 0 | H139: 0 | I139: 0 | J139: 0 | K139: 0 | L139: 0 | M139: 0 | N139: 0
B140: 0 | C140: =C88-C114 -> 0 | D140: 0 | E140: 0 | F140: 0 | G140: 0 | H140: 0 | I140: 0 | J140: 0 | K140: 0 | L140: 0 | M140: 0 | N140: 0
B141: 0 | C141: =C89-C115 -> 0 | D141: 0 | E141: 0 | F141: 0 | G141: 0 | H141: 0 | I141: 0 | J141: 0 | K141: 0 | L141: 0 | M141: 0 | N141: 0
B142: 0 | C142: =C90-C116 -> 0 | D142: 0 | E142: 0 | F142: 0 | G142: 0 | H142: 0 | I142: 0 | J142: 0 | K142: 0 | L142: 0 | M142: 0 | N142: 0
B143: 0 | C143: =C91-C117 -> 0 | D143: 0 | E143: 0 | F143: 0 | G143: 0 | H143: 0 | I143: 0 | J143: 0 | K143: 0 | L143: 0 | M143: 0 | N143: 0
B144: 0 | C144: =C92-C118 -> 0 | D144: 0 | E144: 0 | F144: 0 | G144: 0 | H144: 0 | I144: 0 | J144: 0 | K144: 0 | L144: 0 | M144: 0 | N144: 0
B145: 0 | C145: =C93-C119 -> 0 | D145: 0 | E145: 0 | F145: 0 | G145: 0 | H145: 0 | I145: 0 | J145: 0 | K145: 0 | L145: 0 | M145: 0 | N145: 0
B146: 0 | C146: =C94-C120 -> 0 | D146: 0 | E146: 0 | F146: 0 | G146: 0 | H146: 0 | I146: 0 | J146: 0 | K146: 0 | L146: 0 | M146: 0 | N146: 0
B147: 0 | C147: =C95-C121 -> 0 | D147: 0 | E147: 0 | F147: 0 | G147: 0 | H147: 0 | I147: 0 | J147: 0 | K147: 0 | L147: 0 | M147: 0 | N147: 0
B148: 0 | C148: =C96-C122 -> 0 | D148: 0 | E148: 0 | F148: 0 | G148: 0 | H148: 0 | I148: 0 | J148: 0 | K148: 0 | L148: 0 | M148: 0 | N148: 0
B149: Total | C149: =SUM(C129:C148) -> 101689.2488 | D149: 71743.80157 | E149: 0 | F149: 0 | G149: 0 | H149: 0 | I149: 0 | J149: 0 | K149: 0 | L149: 0 | M149: 0 | N149: =SUM(C149:M149) -> 173433.0504
A153: Non-CO2 Calculations
B162: Current sector: | C162: Energy Generation | F162: The "Update Calculations" function on the Mobile-Entry sheet automatically runs these calculations for each sector.
F163: To view the calculations below for an individual sector, select the sector from the drop-down list in the shaded cell.
A164: 1) Highway Vehicles
B165: VMT by Model Year and Vehicle Type | K165: CH4 Emissions by Model Year and Vehicle Type | T165: N2O Emissions by Model Year and Vehicle Type
B166: Vehicle activity data by Model Year and vehicle type for the selected sector (miles). | K166: CH4 Emissions = VMT × Highway Emissions Factor (g/mi) × MT/g × GWP CH4 | T166: N2O emissions = VMT × Highway Emissions Factor (g/mi) × MT/g × GWP N2O
C167: Passenger Car | D167: Light Truck (Vans, Pickup Trucks, SUVs) | E167: Heavy-Duty Vehicle | F167: Passenger Car | G167: Light Truck (Vans, Pickup Trucks, SUVs) | H167: Heavy-Duty Vehicle | I167: TOTAL | L167: Passenger Car | M167: Light Truck (Vans, Pickup Trucks, SUVs) | N167: Heavy-Duty Vehicle | O167: Passenger Car | P167: Light Truck (Vans, Pickup Trucks, SUVs) | Q167: Heavy-Duty Vehicle | R167: TOTAL | U167: Passenger Car | V167: Light Truck (Vans, Pickup Trucks, SUVs) | W167: Heavy-Duty Vehicle | X167: Passenger Car | Y167: Light Truck (Vans, Pickup Trucks, SUVs) | Z167: Heavy-Duty Vehicle | AA167: TOTAL
B168: Model Year | C168: Gasoline | D168: Gasoline | E168: Gasoline | F168: Diesel | G168: Diesel | H168: Diesel | K168: MY | L168: Gasoline | M168: Gasoline | N168: Gasoline | O168: Diesel | P168: Diesel | Q168: Diesel | T168: MY | U168: Gasoline | V168: Gasoline | W168: Gasoline | X168: Diesel | Y168: Diesel | Z168: Diesel
B169: 1980 & earlier | C169: =SUMIFS('Mobile-Data'!$I$9:$I$1048576,'Mobile-Data'!$D$9:$D$1048576,"<=1980",'Mobile-Data'!$E$9:$E$1048576,'Mobile-Detail Calcs'!C$167,'Mobile-Data'!$G$9:$G$1048576,'Mobile-Detail Calcs'!C$168,'Mobile-Data'!$C$9:$C$1048576,'Mobile-Detail Calcs'!$C$162) -> 0 | D169: =SUMIFS('Mobile-Data'!$I$9:$I$1048576,'Mobile-Data'!$D$9:$D$1048576,"<=1980",'Mobile-Data'!$E$9:$E$1048576,'Mobile-Detail Calcs'!D$167,'Mobile-Data'!$G$9:$G$1048576,'Mobile-Detail Calcs'!D$168,'Mobile-Data'!$C$9:$C$1048576,'Mobile-Detail Calcs'!$C$162) -> 0 | E169: =SUMIFS('Mobile-Data'!$I$9:$I$1048576,'Mobile-Data'!$D$9:$D$1048576,"<=1980",'Mobile-Data'!$E$9:$E$1048576,'Mobile-Detail Calcs'!E$167,'Mobile-Data'!$G$9:$G$1048576,'Mobile-Detail Calcs'!E$168,'Mobile-Data'!$C$9:$C$1048576,'Mobile-Detail Calcs'!$C$162) -> 0 | F169: =SUMIFS('Mobile-Data'!$I$9:$I$1048576,'Mobile-Data'!$D$9:$D$1048576,"<=1980",'Mobile-Data'!$E$9:$E$1048576,'Mobile-Detail Calcs'!F$167,'Mobile-Data'!$G$9:$G$1048576,'Mobile-Detail Calcs'!F$168,'Mobile-Data'!$C$9:$C$1048576,'Mobile-Detail Calcs'!$C$162) -> 0 | G169: =SUMIFS('Mobile-Data'!$I$9:$I$1048576,'Mobile-Data'!$D$9:$D$1048576,"<=1980",'Mobile-Data'!$E$9:$E$1048576,'Mobile-Detail Calcs'!G$167,'Mobile-Data'!$G$9:$G$1048576,'Mobile-Detail Calcs'!G$168,'Mobile-Data'!$C$9:$C$1048576,'Mobile-Detail Calcs'!$C$162) -> 0 | H169: =SUMIFS('Mobile-Data'!$I$9:$I$1048576,'Mobile-Data'!$D$9:$D$1048576,"<=1980",'Mobile-Data'!$E$9:$E$1048576,'Mobile-Detail Calcs'!H$167,'Mobile-Data'!$G$9:$G$1048576,'Mobile-Detail Calcs'!H$168,'Mobile-Data'!$C$9:$C$1048576,'Mobile-Detail Calcs'!$C$162) -> 0 | I169: =SUM(C169:H169) -> 0 | K169: 1980 & earlier | L169: =C169*Factors!C209*g_kg*kg_mt*GWP_CH4 -> 0 | M169: =D169*Factors!D209*g_kg*kg_mt*GWP_CH4 -> 0 | N169: =E169*Factors!E209*g_kg*kg_mt*GWP_CH4 -> 0 | O169: =F169*Factors!F209*g_kg*kg_mt*GWP_CH4 -> 0 | P169: =G169*Factors!G209*g_kg*kg_mt*GWP_CH4 -> 0 | Q169: =H169*Factors!H209*g_kg*kg_mt*GWP_CH4 -> 0 | R169: =SUM(L169:Q169) -> 0 | T169: 1980 & earlier | U169: =C169*Factors!K209*g_kg*kg_mt*GWP_N2O -> 0 | V169: =D169*Factors!L209*g_kg*kg_mt*GWP_N2O -> 0 | W169: =E169*Factors!M209*g_kg*kg_mt*GWP_N2O -> 0 | X169: =F169*Factors!N209*g_kg*kg_mt*GWP_N2O -> 0 | Y169: =G169*Factors!O209*g_kg*kg_mt*GWP_N2O -> 0 | Z169: =H169*Factors!P209*g_kg*kg_mt*GWP_N2O -> 0 | AA169: =SUM(U169:Z169) -> 0
B170: 1981 | C170: =SUMIFS('Mobile-Data'!$I$9:$I$1048576,'Mobile-Data'!$D$9:$D$1048576,$B170,'Mobile-Data'!$E$9:$E$1048576,'Mobile-Detail Calcs'!C$167,'Mobile-Data'!$G$9:$G$1048576,'Mobile-Detail Calcs'!C$168,'Mobile-Data'!$C$9:$C$1048576,'Mobile-Detail Calcs'!$C$162) -> 0 | D170: =SUMIFS('Mobile-Data'!$I$9:$I$1048576,'Mobile-Data'!$D$9:$D$1048576,$B170,'Mobile-Data'!$E$9:$E$1048576,'Mobile-Detail Calcs'!D$167,'Mobile-Data'!$G$9:$G$1048576,'Mobile-Detail Calcs'!D$168,'Mobile-Data'!$C$9:$C$1048576,'Mobile-Detail Calcs'!$C$162) -> 0 | E170: =SUMIFS('Mobile-Data'!$I$9:$I$1048576,'Mobile-Data'!$D$9:$D$1048576,$B170,'Mobile-Data'!$E$9:$E$1048576,'Mobile-Detail Calcs'!E$167,'Mobile-Data'!$G$9:$G$1048576,'Mobile-Detail Calcs'!E$168,'Mobile-Data'!$C$9:$C$1048576,'Mobile-Detail Calcs'!$C$162) -> 0 | F170: =SUMIFS('Mobile-Data'!$I$9:$I$1048576,'Mobile-Data'!$D$9:$D$1048576,$B170,'Mobile-Data'!$E$9:$E$1048576,'Mobile-Detail Calcs'!F$167,'Mobile-Data'!$G$9:$G$1048576,'Mobile-Detail Calcs'!F$168,'Mobile-Data'!$C$9:$C$1048576,'Mobile-Detail Calcs'!$C$162) -> 0 | G170: =SUMIFS('Mobile-Data'!$I$9:$I$1048576,'Mobile-Data'!$D$9:$D$1048576,$B170,'Mobile-Data'!$E$9:$E$1048576,'Mobile-Detail Calcs'!G$167,'Mobile-Data'!$G$9:$G$1048576,'Mobile-Detail Calcs'!G$168,'Mobile-Data'!$C$9:$C$1048576,'Mobile-Detail Calcs'!$C$162) -> 0 | H170: =SUMIFS('Mobile-Data'!$I$9:$I$1048576,'Mobile-Data'!$D$9:$D$1048576,$B170,'Mobile-Data'!$E$9:$E$1048576,'Mobile-Detail Calcs'!H$167,'Mobile-Data'!$G$9:$G$1048576,'Mobile-Detail Calcs'!H$168,'Mobile-Data'!$C$9:$C$1048576,'Mobile-Detail Calcs'!$C$162) -> 0 | I170: =SUM(C170:H170) -> 0 | K170: 1981 | L170: =C170*Factors!C210*g_kg*kg_mt*GWP_CH4 -> 0 | M170: =D170*Factors!D210*g_kg*kg_mt*GWP_CH4 -> 0 | N170: =E170*Factors!E210*g_kg*kg_mt*GWP_CH4 -> 0 | O170: =F170*Factors!F210*g_kg*kg_mt*GWP_CH4 -> 0 | P170: =G170*Factors!G210*g_kg*kg_mt*GWP_CH4 -> 0 | Q170: =H170*Factors!H210*g_kg*kg_mt*GWP_CH4 -> 0 | R170: =SUM(L170:Q170) -> 0 | T170: 1981 | U170: =C170*Factors!K210*g_kg*kg_mt*GWP_N2O -> 0 | V170: =D170*Factors!L210*g_kg*kg_mt*GWP_N2O -> 0 | W170: =E170*Factors!M210*g_kg*kg_mt*GWP_N2O -> 0 | X170: =F170*Factors!N210*g_kg*kg_mt*GWP_N2O -> 0 | Y170: =G170*Factors!O210*g_kg*kg_mt*GWP_N2O -> 0 | Z170: =H170*Factors!P210*g_kg*kg_mt*GWP_N2O -> 0 | AA170: =SUM(U170:Z170) -> 0
B171: 1982 | C171: =SUMIFS('Mobile-Data'!$I$9:$I$1048576,'Mobile-Data'!$D$9:$D$1048576,$B171,'Mobile-Data'!$E$9:$E$1048576,'Mobile-Detail Calcs'!C$167,'Mobile-Data'!$G$9:$G$1048576,'Mobile-Detail Calcs'!C$168,'Mobile-Data'!$C$9:$C$1048576,'Mobile-Detail Calcs'!$C$162) -> 0 | D171: =SUMIFS('Mobile-Data'!$I$9:$I$1048576,'Mobile-Data'!$D$9:$D$1048576,$B171,'Mobile-Data'!$E$9:$E$1048576,'Mobile-Detail Calcs'!D$167,'Mobile-Data'!$G$9:$G$1048576,'Mobile-Detail Calcs'!D$168,'Mobile-Data'!$C$9:$C$1048576,'Mobile-Detail Calcs'!$C$162) -> 0 | E171: =SUMIFS('Mobile-Data'!$I$9:$I$1048576,'Mobile-Data'!$D$9:$D$1048576,$B171,'Mobile-Data'!$E$9:$E$1048576,'Mobile-Detail Calcs'!E$167,'Mobile-Data'!$G$9:$G$1048576,'Mobile-Detail Calcs'!E$168,'Mobile-Data'!$C$9:$C$1048576,'Mobile-Detail Calcs'!$C$162) -> 0 | F171: =SUMIFS('Mobile-Data'!$I$9:$I$1048576,'Mobile-Data'!$D$9:$D$1048576,$B171,'Mobile-Data'!$E$9:$E$1048576,'Mobile-Detail Calcs'!F$167,'Mobile-Data'!$G$9:$G$1048576,'Mobile-Detail Calcs'!F$168,'Mobile-Data'!$C$9:$C$1048576,'Mobile-Detail Calcs'!$C$162) -> 0 | G171: =SUMIFS('Mobile-Data'!$I$9:$I$1048576,'Mobile-Data'!$D$9:$D$1048576,$B171,'Mobile-Data'!$E$9:$E$1048576,'Mobile-Detail Calcs'!G$167,'Mobile-Data'!$G$9:$G$1048576,'Mobile-Detail Calcs'!G$168,'Mobile-Data'!$C$9:$C$1048576,'Mobile-Detail Calcs'!$C$162) -> 0 | H171: =SUMIFS('Mobile-Data'!$I$9:$I$1048576,'Mobile-Data'!$D$9:$D$1048576,$B171,'Mobile-Data'!$E$9:$E$1048576,'Mobile-Detail Calcs'!H$167,'Mobile-Data'!$G$9:$G$1048576,'Mobile-Detail Calcs'!H$168,'Mobile-Data'!$C$9:$C$1048576,'Mobile-Detail Calcs'!$C$162) -> 0 | I171: 0 | K171: 1982 | L171: =C171*Factors!C211*g_kg*kg_mt*GWP_CH4 -> 0 | M171: =D171*Factors!D211*g_kg*kg_mt*GWP_CH4 -> 0 | N171: =E171*Factors!E211*g_kg*kg_mt*GWP_CH4 -> 0 | O171: =F171*Factors!F211*g_kg*kg_mt*GWP_CH4 -> 0 | P171: =G171*Factors!G211*g_kg*kg_mt*GWP_CH4 -> 0 | Q171: =H171*Factors!H211*g_kg*kg_mt*GWP_CH4 -> 0 | R171: 0 | T171: 1982 | U171: =C171*Factors!K211*g_kg*kg_mt*GWP_N2O -> 0 | V171: =D171*Factors!L211*g_kg*kg_mt*GWP_N2O -> 0 | W171: =E171*Factors!M211*g_kg*kg_mt*GWP_N2O -> 0 | X171: =F171*Factors!N211*g_kg*kg_mt*GWP_N2O -> 0 | Y171: =G171*Factors!O211*g_kg*kg_mt*GWP_N2O -> 0 | Z171: =H171*Factors!P211*g_kg*kg_mt*GWP_N2O -> 0 | AA171: 0
B172: 1983 | C172: =SUMIFS('Mobile-Data'!$I$9:$I$1048576,'Mobile-Data'!$D$9:$D$1048576,$B172,'Mobile-Data'!$E$9:$E$1048576,'Mobile-Detail Calcs'!C$167,'Mobile-Data'!$G$9:$G$1048576,'Mobile-Detail Calcs'!C$168,'Mobile-Data'!$C$9:$C$1048576,'Mobile-Detail Calcs'!$C$162) -> 0 | D172: =SUMIFS('Mobile-Data'!$I$9:$I$1048576,'Mobile-Data'!$D$9:$D$1048576,$B172,'Mobile-Data'!$E$9:$E$1048576,'Mobile-Detail Calcs'!D$167,'Mobile-Data'!$G$9:$G$1048576,'Mobile-Detail Calcs'!D$168,'Mobile-Data'!$C$9:$C$1048576,'Mobile-Detail Calcs'!$C$162) -> 0 | E172: =SUMIFS('Mobile-Data'!$I$9:$I$1048576,'Mobile-Data'!$D$9:$D$1048576,$B172,'Mobile-Data'!$E$9:$E$1048576,'Mobile-Detail Calcs'!E$167,'Mobile-Data'!$G$9:$G$1048576,'Mobile-Detail Calcs'!E$168,'Mobile-Data'!$C$9:$C$1048576,'Mobile-Detail Calcs'!$C$162) -> 0 | F172: =SUMIFS('Mobile-Data'!$I$9:$I$1048576,'Mobile-Data'!$D$9:$D$1048576,$B172,'Mobile-Data'!$E$9:$E$1048576,'Mobile-Detail Calcs'!F$167,'Mobile-Data'!$G$9:$G$1048576,'Mobile-Detail Calcs'!F$168,'Mobile-Data'!$C$9:$C$1048576,'Mobile-Detail Calcs'!$C$162) -> 0 | G172: =SUMIFS('Mobile-Data'!$I$9:$I$1048576,'Mobile-Data'!$D$9:$D$1048576,$B172,'Mobile-Data'!$E$9:$E$1048576,'Mobile-Detail Calcs'!G$167,'Mobile-Data'!$G$9:$G$1048576,'Mobile-Detail Calcs'!G$168,'Mobile-Data'!$C$9:$C$1048576,'Mobile-Detail Calcs'!$C$162) -> 0 | H172: =SUMIFS('Mobile-Data'!$I$9:$I$1048576,'Mobile-Data'!$D$9:$D$1048576,$B172,'Mobile-Data'!$E$9:$E$1048576,'Mobile-Detail Calcs'!H$167,'Mobile-Data'!$G$9:$G$1048576,'Mobile-Detail Calcs'!H$168,'Mobile-Data'!$C$9:$C$1048576,'Mobile-Detail Calcs'!$C$162) -> 0 | I172: 0 | K172: 1983 | L172: =C172*Factors!C212*g_kg*kg_mt*GWP_CH4 -> 0 | M172: =D172*Factors!D212*g_kg*kg_mt*GWP_CH4 -> 0 | N172: =E172*Factors!E212*g_kg*kg_mt*GWP_CH4 -> 0 | O172: =F172*Factors!F212*g_kg*kg_mt*GWP_CH4 -> 0 | P172: =G172*Factors!G212*g_kg*kg_mt*GWP_CH4 -> 0 | Q172: =H172*Factors!H212*g_kg*kg_mt*GWP_CH4 -> 0 | R172: 0 | T172: 1983 | U172: =C172*Factors!K212*g_kg*kg_mt*GWP_N2O -> 0 | V172: =D172*Factors!L212*g_kg*kg_mt*GWP_N2O -> 0 | W172: =E172*Factors!M212*g_kg*kg_mt*GWP_N2O -> 0 | X172: =F172*Factors!N212*g_kg*kg_mt*GWP_N2O -> 0 | Y172: =G172*Factors!O212*g_kg*kg_mt*GWP_N2O -> 0 | Z172: =H172*Factors!P212*g_kg*kg_mt*GWP_N2O -> 0 | AA172: 0
B173: 1984 | C173: =SUMIFS('Mobile-Data'!$I$9:$I$1048576,'Mobile-Data'!$D$9:$D$1048576,$B173,'Mobile-Data'!$E$9:$E$1048576,'Mobile-Detail Calcs'!C$167,'Mobile-Data'!$G$9:$G$1048576,'Mobile-Detail Calcs'!C$168,'Mobile-Data'!$C$9:$C$1048576,'Mobile-Detail Calcs'!$C$162) -> 0 | D173: =SUMIFS('Mobile-Data'!$I$9:$I$1048576,'Mobile-Data'!$D$9:$D$1048576,$B173,'Mobile-Data'!$E$9:$E$1048576,'Mobile-Detail Calcs'!D$167,'Mobile-Data'!$G$9:$G$1048576,'Mobile-Detail Calcs'!D$168,'Mobile-Data'!$C$9:$C$1048576,'Mobile-Detail Calcs'!$C$162) -> 0 | E173: =SUMIFS('Mobile-Data'!$I$9:$I$1048576,'Mobile-Data'!$D$9:$D$1048576,$B173,'Mobile-Data'!$E$9:$E$1048576,'Mobile-Detail Calcs'!E$167,'Mobile-Data'!$G$9:$G$1048576,'Mobile-Detail Calcs'!E$168,'Mobile-Data'!$C$9:$C$1048576,'Mobile-Detail Calcs'!$C$162) -> 0 | F173: =SUMIFS('Mobile-Data'!$I$9:$I$1048576,'Mobile-Data'!$D$9:$D$1048576,$B173,'Mobile-Data'!$E$9:$E$1048576,'Mobile-Detail Calcs'!F$167,'Mobile-Data'!$G$9:$G$1048576,'Mobile-Detail Calcs'!F$168,'Mobile-Data'!$C$9:$C$1048576,'Mobile-Detail Calcs'!$C$162) -> 0 | G173: =SUMIFS('Mobile-Data'!$I$9:$I$1048576,'Mobile-Data'!$D$9:$D$1048576,$B173,'Mobile-Data'!$E$9:$E$1048576,'Mobile-Detail Calcs'!G$167,'Mobile-Data'!$G$9:$G$1048576,'Mobile-Detail Calcs'!G$168,'Mobile-Data'!$C$9:$C$1048576,'Mobile-Detail Calcs'!$C$162) -> 0 | H173: =SUMIFS('Mobile-Data'!$I$9:$I$1048576,'Mobile-Data'!$D$9:$D$1048576,$B173,'Mobile-Data'!$E$9:$E$1048576,'Mobile-Detail Calcs'!H$167,'Mobile-Data'!$G$9:$G$1048576,'Mobile-Detail Calcs'!H$168,'Mobile-Data'!$C$9:$C$1048576,'Mobile-Detail Calcs'!$C$162) -> 0 | I173: 0 | K173: 1984 | L173: =C173*Factors!C213*g_kg*kg_mt*GWP_CH4 -> 0 | M173: =D173*Factors!D213*g_kg*kg_mt*GWP_CH4 -> 0 | N173: =E173*Factors!E213*g_kg*kg_mt*GWP_CH4 -> 0 | O173: =F173*Factors!F213*g_kg*kg_mt*GWP_CH4 -> 0 | P173: =G173*Factors!G213*g_kg*kg_mt*GWP_CH4 -> 0 | Q173: =H173*Factors!H213*g_kg*kg_mt*GWP_CH4 -> 0 | R173: 0 | T173: 1984 | U173: =C173*Factors!K213*g_kg*kg_mt*GWP_N2O -> 0 | V173: =D173*Factors!L213*g_kg*kg_mt*GWP_N2O -> 0 | W173: =E173*Factors!M213*g_kg*kg_mt*GWP_N2O -> 0 | X173: =F173*Factors!N213*g_kg*kg_mt*GWP_N2O -> 0 | Y173: =G173*Factors!O213*g_kg*kg_mt*GWP_N2O -> 0 | Z173: =H173*Factors!P213*g_kg*kg_mt*GWP_N2O -> 0 | AA173: 0
B174: 1985 | C174: =SUMIFS('Mobile-Data'!$I$9:$I$1048576,'Mobile-Data'!$D$9:$D$1048576,$B174,'Mobile-Data'!$E$9:$E$1048576,'Mobile-Detail Calcs'!C$167,'Mobile-Data'!$G$9:$G$1048576,'Mobile-Detail Calcs'!C$168,'Mobile-Data'!$C$9:$C$1048576,'Mobile-Detail Calcs'!$C$162) -> 0 | D174: =SUMIFS('Mobile-Data'!$I$9:$I$1048576,'Mobile-Data'!$D$9:$D$1048576,$B174,'Mobile-Data'!$E$9:$E$1048576,'Mobile-Detail Calcs'!D$167,'Mobile-Data'!$G$9:$G$1048576,'Mobile-Detail Calcs'!D$168,'Mobile-Data'!$C$9:$C$1048576,'Mobile-Detail Calcs'!$C$162) -> 0 | E174: =SUMIFS('Mobile-Data'!$I$9:$I$1048576,'Mobile-Data'!$D$9:$D$1048576,$B174,'Mobile-Data'!$E$9:$E$1048576,'Mobile-Detail Calcs'!E$167,'Mobile-Data'!$G$9:$G$1048576,'Mobile-Detail Calcs'!E$168,'Mobile-Data'!$C$9:$C$1048576,'Mobile-Detail Calcs'!$C$162) -> 0 | F174: =SUMIFS('Mobile-Data'!$I$9:$I$1048576,'Mobile-Data'!$D$9:$D$1048576,$B174,'Mobile-Data'!$E$9:$E$1048576,'Mobile-Detail Calcs'!F$167,'Mobile-Data'!$G$9:$G$1048576,'Mobile-Detail Calcs'!F$168,'Mobile-Data'!$C$9:$C$1048576,'Mobile-Detail Calcs'!$C$162) -> 0 | G174: =SUMIFS('Mobile-Data'!$I$9:$I$1048576,'Mobile-Data'!$D$9:$D$1048576,$B174,'Mobile-Data'!$E$9:$E$1048576,'Mobile-Detail Calcs'!G$167,'Mobile-Data'!$G$9:$G$1048576,'Mobile-Detail Calcs'!G$168,'Mobile-Data'!$C$9:$C$1048576,'Mobile-Detail Calcs'!$C$162) -> 0 | H174: =SUMIFS('Mobile-Data'!$I$9:$I$1048576,'Mobile-Data'!$D$9:$D$1048576,$B174,'Mobile-Data'!$E$9:$E$1048576,'Mobile-Detail Calcs'!H$167,'Mobile-Data'!$G$9:$G$1048576,'Mobile-Detail Calcs'!H$168,'Mobile-Data'!$C$9:$C$1048576,'Mobile-Detail Calcs'!$C$162) -> 0 | I174: 0 | K174: 1985 | L174: =C174*Factors!C214*g_kg*kg_mt*GWP_CH4 -> 0 | M174: =D174*Factors!D214*g_kg*kg_mt*GWP_CH4 -> 0 | N174: =E174*Factors!E214*g_kg*kg_mt*GWP_CH4 -> 0 | O174: =F174*Factors!F214*g_kg*kg_mt*GWP_CH4 -> 0 | P174: =G174*Factors!G214*g_kg*kg_mt*GWP_CH4 -> 0 | Q174: =H174*Factors!H214*g_kg*kg_mt*GWP_CH4 -> 0 | R174: 0 | T174: 1985 | U174: =C174*Factors!K214*g_kg*kg_mt*GWP_N2O -> 0 | V174: =D174*Factors!L214*g_kg*kg_mt*GWP_N2O -> 0 | W174: =E174*Factors!M214*g_kg*kg_mt*GWP_N2O -> 0 | X174: =F174*Factors!N214*g_kg*kg_mt*GWP_N2O -> 0 | Y174: =G174*Factors!O214*g_kg*kg_mt*GWP_N2O -> 0 | Z174: =H174*Factors!P214*g_kg*kg_mt*GWP_N2O -> 0 | AA174: 0
B175: 1986 | C175: =SUMIFS('Mobile-Data'!$I$9:$I$1048576,'Mobile-Data'!$D$9:$D$1048576,$B175,'Mobile-Data'!$E$9:$E$1048576,'Mobile-Detail Calcs'!C$167,'Mobile-Data'!$G$9:$G$1048576,'Mobile-Detail Calcs'!C$168,'Mobile-Data'!$C$9:$C$1048576,'Mobile-Detail Calcs'!$C$162) -> 0 | D175: =SUMIFS('Mobile-Data'!$I$9:$I$1048576,'Mobile-Data'!$D$9:$D$1048576,$B175,'Mobile-Data'!$E$9:$E$1048576,'Mobile-Detail Calcs'!D$167,'Mobile-Data'!$G$9:$G$1048576,'Mobile-Detail Calcs'!D$168,'Mobile-Data'!$C$9:$C$1048576,'Mobile-Detail Calcs'!$C$162) -> 0 | E175: =SUMIFS('Mobile-Data'!$I$9:$I$1048576,'Mobile-Data'!$D$9:$D$1048576,$B175,'Mobile-Data'!$E$9:$E$1048576,'Mobile-Detail Calcs'!E$167,'Mobile-Data'!$G$9:$G$1048576,'Mobile-Detail Calcs'!E$168,'Mobile-Data'!$C$9:$C$1048576,'Mobile-Detail Calcs'!$C$162) -> 0 | F175: =SUMIFS('Mobile-Data'!$I$9:$I$1048576,'Mobile-Data'!$D$9:$D$1048576,$B175,'Mobile-Data'!$E$9:$E$1048576,'Mobile-Detail Calcs'!F$167,'Mobile-Data'!$G$9:$G$1048576,'Mobile-Detail Calcs'!F$168,'Mobile-Data'!$C$9:$C$1048576,'Mobile-Detail Calcs'!$C$162) -> 0 | G175: =SUMIFS('Mobile-Data'!$I$9:$I$1048576,'Mobile-Data'!$D$9:$D$1048576,$B175,'Mobile-Data'!$E$9:$E$1048576,'Mobile-Detail Calcs'!G$167,'Mobile-Data'!$G$9:$G$1048576,'Mobile-Detail Calcs'!G$168,'Mobile-Data'!$C$9:$C$1048576,'Mobile-Detail Calcs'!$C$162) -> 0 | H175: =SUMIFS('Mobile-Data'!$I$9:$I$1048576,'Mobile-Data'!$D$9:$D$1048576,$B175,'Mobile-Data'!$E$9:$E$1048576,'Mobile-Detail Calcs'!H$167,'Mobile-Data'!$G$9:$G$1048576,'Mobile-Detail Calcs'!H$168,'Mobile-Data'!$C$9:$C$1048576,'Mobile-Detail Calcs'!$C$162) -> 0 | I175: 0 | K175: 1986 | L175: =C175*Factors!C215*g_kg*kg_mt*GWP_CH4 -> 0 | M175: =D175*Factors!D215*g_kg*kg_mt*GWP_CH4 -> 0 | N175: =E175*Factors!E215*g_kg*kg_mt*GWP_CH4 -> 0 | O175: =F175*Factors!F215*g_kg*kg_mt*GWP_CH4 -> 0 | P175: =G175*Factors!G215*g_kg*kg_mt*GWP_CH4 -> 0 | Q175: =H175*Factors!H215*g_kg*kg_mt*GWP_CH4 -> 0 | R175: 0 | T175: 1986 | U175: =C175*Factors!K215*g_kg*kg_mt*GWP_N2O -> 0 | V175: =D175*Factors!L215*g_kg*kg_mt*GWP_N2O -> 0 | W175: =E175*Factors!M215*g_kg*kg_mt*GWP_N2O -> 0 | X175: =F175*Factors!N215*g_kg*kg_mt*GWP_N2O -> 0 | Y175: =G175*Factors!O215*g_kg*kg_mt*GWP_N2O -> 0 | Z175: =H175*Factors!P215*g_kg*kg_mt*GWP_N2O -> 0 | AA175: 0
B176: 1987 | C176: =SUMIFS('Mobile-Data'!$I$9:$I$1048576,'Mobile-Data'!$D$9:$D$1048576,$B176,'Mobile-Data'!$E$9:$E$1048576,'Mobile-Detail Calcs'!C$167,'Mobile-Data'!$G$9:$G$1048576,'Mobile-Detail Calcs'!C$168,'Mobile-Data'!$C$9:$C$1048576,'Mobile-Detail Calcs'!$C$162) -> 0 | D176: =SUMIFS('Mobile-Data'!$I$9:$I$1048576,'Mobile-Data'!$D$9:$D$1048576,$B176,'Mobile-Data'!$E$9:$E$1048576,'Mobile-Detail Calcs'!D$167,'Mobile-Data'!$G$9:$G$1048576,'Mobile-Detail Calcs'!D$168,'Mobile-Data'!$C$9:$C$1048576,'Mobile-Detail Calcs'!$C$162) -> 0 | E176: =SUMIFS('Mobile-Data'!$I$9:$I$1048576,'Mobile-Data'!$D$9:$D$1048576,$B176,'Mobile-Data'!$E$9:$E$1048576,'Mobile-Detail Calcs'!E$167,'Mobile-Data'!$G$9:$G$1048576,'Mobile-Detail Calcs'!E$168,'Mobile-Data'!$C$9:$C$1048576,'Mobile-Detail Calcs'!$C$162) -> 0 | F176: =SUMIFS('Mobile-Data'!$I$9:$I$1048576,'Mobile-Data'!$D$9:$D$1048576,$B176,'Mobile-Data'!$E$9:$E$1048576,'Mobile-Detail Calcs'!F$167,'Mobile-Data'!$G$9:$G$1048576,'Mobile-Detail Calcs'!F$168,'Mobile-Data'!$C$9:$C$1048576,'Mobile-Detail Calcs'!$C$162) -> 0 | G176: =SUMIFS('Mobile-Data'!$I$9:$I$1048576,'Mobile-Data'!$D$9:$D$1048576,$B176,'Mobile-Data'!$E$9:$E$1048576,'Mobile-Detail Calcs'!G$167,'Mobile-Data'!$G$9:$G$1048576,'Mobile-Detail Calcs'!G$168,'Mobile-Data'!$C$9:$C$1048576,'Mobile-Detail Calcs'!$C$162) -> 0 | H176: =SUMIFS('Mobile-Data'!$I$9:$I$1048576,'Mobile-Data'!$D$9:$D$1048576,$B176,'Mobile-Data'!$E$9:$E$1048576,'Mobile-Detail Calcs'!H$167,'Mobile-Data'!$G$9:$G$1048576,'Mobile-Detail Calcs'!H$168,'Mobile-Data'!$C$9:$C$1048576,'Mobile-Detail Calcs'!$C$162) -> 0 | I176: 0 | K176: 1987 | L176: =C176*Factors!C216*g_kg*kg_mt*GWP_CH4 -> 0 | M176: =D176*Factors!D216*g_kg*kg_mt*GWP_CH4 -> 0 | N176: =E176*Factors!E216*g_kg*kg_mt*GWP_CH4 -> 0 | O176: =F176*Factors!F216*g_kg*kg_mt*GWP_CH4 -> 0 | P176: =G176*Factors!G216*g_kg*kg_mt*GWP_CH4 -> 0 | Q176: =H176*Factors!H216*g_kg*kg_mt*GWP_CH4 -> 0 | R176: 0 | T176: 1987 | U176: =C176*Factors!K216*g_kg*kg_mt*GWP_N2O -> 0 | V176: =D176*Factors!L216*g_kg*kg_mt*GWP_N2O -> 0 | W176: =E176*Factors!M216*g_kg*kg_mt*GWP_N2O -> 0 | X176: =F176*Factors!N216*g_kg*kg_mt*GWP_N2O -> 0 | Y176: =G176*Factors!O216*g_kg*kg_mt*GWP_N2O -> 0 | Z176: =H176*Factors!P216*g_kg*kg_mt*GWP_N2O -> 0 | AA176: 0
B177: 1988 | C177: =SUMIFS('Mobile-Data'!$I$9:$I$1048576,'Mobile-Data'!$D$9:$D$1048576,$B177,'Mobile-Data'!$E$9:$E$1048576,'Mobile-Detail Calcs'!C$167,'Mobile-Data'!$G$9:$G$1048576,'Mobile-Detail Calcs'!C$168,'Mobile-Data'!$C$9:$C$1048576,'Mobile-Detail Calcs'!$C$162) -> 0 | D177: =SUMIFS('Mobile-Data'!$I$9:$I$1048576,'Mobile-Data'!$D$9:$D$1048576,$B177,'Mobile-Data'!$E$9:$E$1048576,'Mobile-Detail Calcs'!D$167,'Mobile-Data'!$G$9:$G$1048576,'Mobile-Detail Calcs'!D$168,'Mobile-Data'!$C$9:$C$1048576,'Mobile-Detail Calcs'!$C$162) -> 0 | E177: =SUMIFS('Mobile-Data'!$I$9:$I$1048576,'Mobile-Data'!$D$9:$D$1048576,$B177,'Mobile-Data'!$E$9:$E$1048576,'Mobile-Detail Calcs'!E$167,'Mobile-Data'!$G$9:$G$1048576,'Mobile-Detail Calcs'!E$168,'Mobile-Data'!$C$9:$C$1048576,'Mobile-Detail Calcs'!$C$162) -> 0 | F177: =SUMIFS('Mobile-Data'!$I$9:$I$1048576,'Mobile-Data'!$D$9:$D$1048576,$B177,'Mobile-Data'!$E$9:$E$1048576,'Mobile-Detail Calcs'!F$167,'Mobile-Data'!$G$9:$G$1048576,'Mobile-Detail Calcs'!F$168,'Mobile-Data'!$C$9:$C$1048576,'Mobile-Detail Calcs'!$C$162) -> 0 | G177: =SUMIFS('Mobile-Data'!$I$9:$I$1048576,'Mobile-Data'!$D$9:$D$1048576,$B177,'Mobile-Data'!$E$9:$E$1048576,'Mobile-Detail Calcs'!G$167,'Mobile-Data'!$G$9:$G$1048576,'Mobile-Detail Calcs'!G$168,'Mobile-Data'!$C$9:$C$1048576,'Mobile-Detail Calcs'!$C$162) -> 0 | H177: =SUMIFS('Mobile-Data'!$I$9:$I$1048576,'Mobile-Data'!$D$9:$D$1048576,$B177,'Mobile-Data'!$E$9:$E$1048576,'Mobile-Detail Calcs'!H$167,'Mobile-Data'!$G$9:$G$1048576,'Mobile-Detail Calcs'!H$168,'Mobile-Data'!$C$9:$C$1048576,'Mobile-Detail Calcs'!$C$162) -> 0 | I177: 0 | K177: 1988 | L177: =C177*Factors!C217*g_kg*kg_mt*GWP_CH4 -> 0 | M177: =D177*Factors!D217*g_kg*kg_mt*GWP_CH4 -> 0 | N177: =E177*Factors!E217*g_kg*kg_mt*GWP_CH4 -> 0 | O177: =F177*Factors!F217*g_kg*kg_mt*GWP_CH4 -> 0 | P177: =G177*Factors!G217*g_kg*kg_mt*GWP_CH4 -> 0 | Q177: =H177*Factors!H217*g_kg*kg_mt*GWP_CH4 -> 0 | R177: 0 | T177: 1988 | U177: =C177*Factors!K217*g_kg*kg_mt*GWP_N2O -> 0 | V177: =D177*Factors!L217*g_kg*kg_mt*GWP_N2O -> 0 | W177: =E177*Factors!M217*g_kg*kg_mt*GWP_N2O -> 0 | X177: =F177*Factors!N217*g_kg*kg_mt*GWP_N2O -> 0 | Y177: =G177*Factors!O217*g_kg*kg_mt*GWP_N2O -> 0 | Z177: =H177*Factors!P217*g_kg*kg_mt*GWP_N2O -> 0 | AA177: 0
B178: 1989 | C178: =SUMIFS('Mobile-Data'!$I$9:$I$1048576,'Mobile-Data'!$D$9:$D$1048576,$B178,'Mobile-Data'!$E$9:$E$1048576,'Mobile-Detail Calcs'!C$167,'Mobile-Data'!$G$9:$G$1048576,'Mobile-Detail Calcs'!C$168,'Mobile-Data'!$C$9:$C$1048576,'Mobile-Detail Calcs'!$C$162) -> 0 | D178: =SUMIFS('Mobile-Data'!$I$9:$I$1048576,'Mobile-Data'!$D$9:$D$1048576,$B178,'Mobile-Data'!$E$9:$E$1048576,'Mobile-Detail Calcs'!D$167,'Mobile-Data'!$G$9:$G$1048576,'Mobile-Detail Calcs'!D$168,'Mobile-Data'!$C$9:$C$1048576,'Mobile-Detail Calcs'!$C$162) -> 0 | E178: =SUMIFS('Mobile-Data'!$I$9:$I$1048576,'Mobile-Data'!$D$9:$D$1048576,$B178,'Mobile-Data'!$E$9:$E$1048576,'Mobile-Detail Calcs'!E$167,'Mobile-Data'!$G$9:$G$1048576,'Mobile-Detail Calcs'!E$168,'Mobile-Data'!$C$9:$C$1048576,'Mobile-Detail Calcs'!$C$162) -> 0 | F178: =SUMIFS('Mobile-Data'!$I$9:$I$1048576,'Mobile-Data'!$D$9:$D$1048576,$B178,'Mobile-Data'!$E$9:$E$1048576,'Mobile-Detail Calcs'!F$167,'Mobile-Data'!$G$9:$G$1048576,'Mobile-Detail Calcs'!F$168,'Mobile-Data'!$C$9:$C$1048576,'Mobile-Detail Calcs'!$C$162) -> 0 | G178: =SUMIFS('Mobile-Data'!$I$9:$I$1048576,'Mobile-Data'!$D$9:$D$1048576,$B178,'Mobile-Data'!$E$9:$E$1048576,'Mobile-Detail Calcs'!G$167,'Mobile-Data'!$G$9:$G$1048576,'Mobile-Detail Calcs'!G$168,'Mobile-Data'!$C$9:$C$1048576,'Mobile-Detail Calcs'!$C$162) -> 0 | H178: =SUMIFS('Mobile-Data'!$I$9:$I$1048576,'Mobile-Data'!$D$9:$D$1048576,$B178,'Mobile-Data'!$E$9:$E$1048576,'Mobile-Detail Calcs'!H$167,'Mobile-Data'!$G$9:$G$1048576,'Mobile-Detail Calcs'!H$168,'Mobile-Data'!$C$9:$C$1048576,'Mobile-Detail Calcs'!$C$162) -> 0 | I178: 0 | K178: 1989 | L178: =C178*Factors!C218*g_kg*kg_mt*GWP_CH4 -> 0 | M178: =D178*Factors!D218*g_kg*kg_mt*GWP_CH4 -> 0 | N178: =E178*Factors!E218*g_kg*kg_mt*GWP_CH4 -> 0 | O178: =F178*Factors!F218*g_kg*kg_mt*GWP_CH4 -> 0 | P178: =G178*Factors!G218*g_kg*kg_mt*GWP_CH4 -> 0 | Q178: =H178*Factors!H218*g_kg*kg_mt*GWP_CH4 -> 0 | R178: 0 | T178: 1989 | U178: =C178*Factors!K218*g_kg*kg_mt*GWP_N2O -> 0 | V178: =D178*Factors!L218*g_kg*kg_mt*GWP_N2O -> 0 | W178: =E178*Factors!M218*g_kg*kg_mt*GWP_N2O -> 0 | X178: =F178*Factors!N218*g_kg*kg_mt*GWP_N2O -> 0 | Y178: =G178*Factors!O218*g_kg*kg_mt*GWP_N2O -> 0 | Z178: =H178*Factors!P218*g_kg*kg_mt*GWP_N2O -> 0 | AA178: 0
B179: 1990 | C179: =SUMIFS('Mobile-Data'!$I$9:$I$1048576,'Mobile-Data'!$D$9:$D$1048576,$B179,'Mobile-Data'!$E$9:$E$1048576,'Mobile-Detail Calcs'!C$167,'Mobile-Data'!$G$9:$G$1048576,'Mobile-Detail Calcs'!C$168,'Mobile-Data'!$C$9:$C$1048576,'Mobile-Detail Calcs'!$C$162) -> 0 | D179: =SUMIFS('Mobile-Data'!$I$9:$I$1048576,'Mobile-Data'!$D$9:$D$1048576,$B179,'Mobile-Data'!$E$9:$E$1048576,'Mobile-Detail Calcs'!D$167,'Mobile-Data'!$G$9:$G$1048576,'Mobile-Detail Calcs'!D$168,'Mobile-Data'!$C$9:$C$1048576,'Mobile-Detail Calcs'!$C$162) -> 0 | E179: =SUMIFS('Mobile-Data'!$I$9:$I$1048576,'Mobile-Data'!$D$9:$D$1048576,$B179,'Mobile-Data'!$E$9:$E$1048576,'Mobile-Detail Calcs'!E$167,'Mobile-Data'!$G$9:$G$1048576,'Mobile-Detail Calcs'!E$168,'Mobile-Data'!$C$9:$C$1048576,'Mobile-Detail Calcs'!$C$162) -> 0 | F179: =SUMIFS('Mobile-Data'!$I$9:$I$1048576,'Mobile-Data'!$D$9:$D$1048576,$B179,'Mobile-Data'!$E$9:$E$1048576,'Mobile-Detail Calcs'!F$167,'Mobile-Data'!$G$9:$G$1048576,'Mobile-Detail Calcs'!F$168,'Mobile-Data'!$C$9:$C$1048576,'Mobile-Detail Calcs'!$C$162) -> 0 | G179: =SUMIFS('Mobile-Data'!$I$9:$I$1048576,'Mobile-Data'!$D$9:$D$1048576,$B179,'Mobile-Data'!$E$9:$E$1048576,'Mobile-Detail Calcs'!G$167,'Mobile-Data'!$G$9:$G$1048576,'Mobile-Detail Calcs'!G$168,'Mobile-Data'!$C$9:$C$1048576,'Mobile-Detail Calcs'!$C$162) -> 0 | H179: =SUMIFS('Mobile-Data'!$I$9:$I$1048576,'Mobile-Data'!$D$9:$D$1048576,$B179,'Mobile-Data'!$E$9:$E$1048576,'Mobile-Detail Calcs'!H$167,'Mobile-Data'!$G$9:$G$1048576,'Mobile-Detail Calcs'!H$168,'Mobile-Data'!$C$9:$C$1048576,'Mobile-Detail Calcs'!$C$162) -> 0 | I179: 0 | K179: 1990 | L179: =C179*Factors!C219*g_kg*kg_mt*GWP_CH4 -> 0 | M179: =D179*Factors!D219*g_kg*kg_mt*GWP_CH4 -> 0 | N179: =E179*Factors!E219*g_kg*kg_mt*GWP_CH4 -> 0 | O179: =F179*Factors!F219*g_kg*kg_mt*GWP_CH4 -> 0 | P179: =G179*Factors!G219*g_kg*kg_mt*GWP_CH4 -> 0 | Q179: =H179*Factors!H219*g_kg*kg_mt*GWP_CH4 -> 0 | R179: 0 | T179: 1990 | U179: =C179*Factors!K219*g_kg*kg_mt*GWP_N2O -> 0 | V179: =D179*Factors!L219*g_kg*kg_mt*GWP_N2O -> 0 | W179: =E179*Factors!M219*g_kg*kg_mt*GWP_N2O -> 0 | X179: =F179*Factors!N219*g_kg*kg_mt*GWP_N2O -> 0 | Y179: =G179*Factors!O219*g_kg*kg_mt*GWP_N2O -> 0 | Z179: =H179*Factors!P219*g_kg*kg_mt*GWP_N2O -> 0 | AA179: 0
B180: 1991 | C180: =SUMIFS('Mobile-Data'!$I$9:$I$1048576,'Mobile-Data'!$D$9:$D$1048576,$B180,'Mobile-Data'!$E$9:$E$1048576,'Mobile-Detail Calcs'!C$167,'Mobile-Data'!$G$9:$G$1048576,'Mobile-Detail Calcs'!C$168,'Mobile-Data'!$C$9:$C$1048576,'Mobile-Detail Calcs'!$C$162) -> 0 | D180: =SUMIFS('Mobile-Data'!$I$9:$I$1048576,'Mobile-Data'!$D$9:$D$1048576,$B180,'Mobile-Data'!$E$9:$E$1048576,'Mobile-Detail Calcs'!D$167,'Mobile-Data'!$G$9:$G$1048576,'Mobile-Detail Calcs'!D$168,'Mobile-Data'!$C$9:$C$1048576,'Mobile-Detail Calcs'!$C$162) -> 0 | E180: =SUMIFS('Mobile-Data'!$I$9:$I$1048576,'Mobile-Data'!$D$9:$D$1048576,$B180,'Mobile-Data'!$E$9:$E$1048576,'Mobile-Detail Calcs'!E$167,'Mobile-Data'!$G$9:$G$1048576,'Mobile-Detail Calcs'!E$168,'Mobile-Data'!$C$9:$C$1048576,'Mobile-Detail Calcs'!$C$162) -> 0 | F180: =SUMIFS('Mobile-Data'!$I$9:$I$1048576,'Mobile-Data'!$D$9:$D$1048576,$B180,'Mobile-Data'!$E$9:$E$1048576,'Mobile-Detail Calcs'!F$167,'Mobile-Data'!$G$9:$G$1048576,'Mobile-Detail Calcs'!F$168,'Mobile-Data'!$C$9:$C$1048576,'Mobile-Detail Calcs'!$C$162) -> 0 | G180: =SUMIFS('Mobile-Data'!$I$9:$I$1048576,'Mobile-Data'!$D$9:$D$1048576,$B180,'Mobile-Data'!$E$9:$E$1048576,'Mobile-Detail Calcs'!G$167,'Mobile-Data'!$G$9:$G$1048576,'Mobile-Detail Calcs'!G$168,'Mobile-Data'!$C$9:$C$1048576,'Mobile-Detail Calcs'!$C$162) -> 0 | H180: =SUMIFS('Mobile-Data'!$I$9:$I$1048576,'Mobile-Data'!$D$9:$D$1048576,$B180,'Mobile-Data'!$E$9:$E$1048576,'Mobile-Detail Calcs'!H$167,'Mobile-Data'!$G$9:$G$1048576,'Mobile-Detail Calcs'!H$168,'Mobile-Data'!$C$9:$C$1048576,'Mobile-Detail Calcs'!$C$162) -> 0 | I180: 0 | K180: 1991 | L180: =C180*Factors!C220*g_kg*kg_mt*GWP_CH4 -> 0 | M180: =D180*Factors!D220*g_kg*kg_mt*GWP_CH4 -> 0 | N180: =E180*Factors!E220*g_kg*kg_mt*GWP_CH4 -> 0 | O180: =F180*Factors!F220*g_kg*kg_mt*GWP_CH4 -> 0 | P180: =G180*Factors!G220*g_kg*kg_mt*GWP_CH4 -> 0 | Q180: =H180*Factors!H220*g_kg*kg_mt*GWP_CH4 -> 0 | R180: 0 | T180: 1991 | U180: =C180*Factors!K220*g_kg*kg_mt*GWP_N2O -> 0 | V180: =D180*Factors!L220*g_kg*kg_mt*GWP_N2O -> 0 | W180: =E180*Factors!M220*g_kg*kg_mt*GWP_N2O -> 0 | X180: =F180*Factors!N220*g_kg*kg_mt*GWP_N2O -> 0 | Y180: =G180*Factors!O220*g_kg*kg_mt*GWP_N2O -> 0 | Z180: =H180*Factors!P220*g_kg*kg_mt*GWP_N2O -> 0 | AA180: 0
B181: 1992 | C181: =SUMIFS('Mobile-Data'!$I$9:$I$1048576,'Mobile-Data'!$D$9:$D$1048576,$B181,'Mobile-Data'!$E$9:$E$1048576,'Mobile-Detail Calcs'!C$167,'Mobile-Data'!$G$9:$G$1048576,'Mobile-Detail Calcs'!C$168,'Mobile-Data'!$C$9:$C$1048576,'Mobile-Detail Calcs'!$C$162) -> 0 | D181: =SUMIFS('Mobile-Data'!$I$9:$I$1048576,'Mobile-Data'!$D$9:$D$1048576,$B181,'Mobile-Data'!$E$9:$E$1048576,'Mobile-Detail Calcs'!D$167,'Mobile-Data'!$G$9:$G$1048576,'Mobile-Detail Calcs'!D$168,'Mobile-Data'!$C$9:$C$1048576,'Mobile-Detail Calcs'!$C$162) -> 0 | E181: =SUMIFS('Mobile-Data'!$I$9:$I$1048576,'Mobile-Data'!$D$9:$D$1048576,$B181,'Mobile-Data'!$E$9:$E$1048576,'Mobile-Detail Calcs'!E$167,'Mobile-Data'!$G$9:$G$1048576,'Mobile-Detail Calcs'!E$168,'Mobile-Data'!$C$9:$C$1048576,'Mobile-Detail Calcs'!$C$162) -> 0 | F181: =SUMIFS('Mobile-Data'!$I$9:$I$1048576,'Mobile-Data'!$D$9:$D$1048576,$B181,'Mobile-Data'!$E$9:$E$1048576,'Mobile-Detail Calcs'!F$167,'Mobile-Data'!$G$9:$G$1048576,'Mobile-Detail Calcs'!F$168,'Mobile-Data'!$C$9:$C$1048576,'Mobile-Detail Calcs'!$C$162) -> 0 | G181: =SUMIFS('Mobile-Data'!$I$9:$I$1048576,'Mobile-Data'!$D$9:$D$1048576,$B181,'Mobile-Data'!$E$9:$E$1048576,'Mobile-Detail Calcs'!G$167,'Mobile-Data'!$G$9:$G$1048576,'Mobile-Detail Calcs'!G$168,'Mobile-Data'!$C$9:$C$1048576,'Mobile-Detail Calcs'!$C$162) -> 0 | H181: =SUMIFS('Mobile-Data'!$I$9:$I$1048576,'Mobile-Data'!$D$9:$D$1048576,$B181,'Mobile-Data'!$E$9:$E$1048576,'Mobile-Detail Calcs'!H$167,'Mobile-Data'!$G$9:$G$1048576,'Mobile-Detail Calcs'!H$168,'Mobile-Data'!$C$9:$C$1048576,'Mobile-Detail Calcs'!$C$162) -> 0 | I181: 0 | K181: 1992 | L181: =C181*Factors!C221*g_kg*kg_mt*GWP_CH4 -> 0 | M181: =D181*Factors!D221*g_kg*kg_mt*GWP_CH4 -> 0 | N181: =E181*Factors!E221*g_kg*kg_mt*GWP_CH4 -> 0 | O181: =F181*Factors!F221*g_kg*kg_mt*GWP_CH4 -> 0 | P181: =G181*Factors!G221*g_kg*kg_mt*GWP_CH4 -> 0 | Q181: =H181*Factors!H221*g_kg*kg_mt*GWP_CH4 -> 0 | R181: 0 | T181: 1992 | U181: =C181*Factors!K221*g_kg*kg_mt*GWP_N2O -> 0 | V181: =D181*Factors!L221*g_kg*kg_mt*GWP_N2O -> 0 | W181: =E181*Factors!M221*g_kg*kg_mt*GWP_N2O -> 0 | X181: =F181*Factors!N221*g_kg*kg_mt*GWP_N2O -> 0 | Y181: =G181*Factors!O221*g_kg*kg_mt*GWP_N2O -> 0 | Z181: =H181*Factors!P221*g_kg*kg_mt*GWP_N2O -> 0 | AA181: 0
B182: 1993 | C182: =SUMIFS('Mobile-Data'!$I$9:$I$1048576,'Mobile-Data'!$D$9:$D$1048576,$B182,'Mobile-Data'!$E$9:$E$1048576,'Mobile-Detail Calcs'!C$167,'Mobile-Data'!$G$9:$G$1048576,'Mobile-Detail Calcs'!C$168,'Mobile-Data'!$C$9:$C$1048576,'Mobile-Detail Calcs'!$C$162) -> 0 | D182: =SUMIFS('Mobile-Data'!$I$9:$I$1048576,'Mobile-Data'!$D$9:$D$1048576,$B182,'Mobile-Data'!$E$9:$E$1048576,'Mobile-Detail Calcs'!D$167,'Mobile-Data'!$G$9:$G$1048576,'Mobile-Detail Calcs'!D$168,'Mobile-Data'!$C$9:$C$1048576,'Mobile-Detail Calcs'!$C$162) -> 0 | E182: =SUMIFS('Mobile-Data'!$I$9:$I$1048576,'Mobile-Data'!$D$9:$D$1048576,$B182,'Mobile-Data'!$E$9:$E$1048576,'Mobile-Detail Calcs'!E$167,'Mobile-Data'!$G$9:$G$1048576,'Mobile-Detail Calcs'!E$168,'Mobile-Data'!$C$9:$C$1048576,'Mobile-Detail Calcs'!$C$162) -> 0 | F182: =SUMIFS('Mobile-Data'!$I$9:$I$1048576,'Mobile-Data'!$D$9:$D$1048576,$B182,'Mobile-Data'!$E$9:$E$1048576,'Mobile-Detail Calcs'!F$167,'Mobile-Data'!$G$9:$G$1048576,'Mobile-Detail Calcs'!F$168,'Mobile-Data'!$C$9:$C$1048576,'Mobile-Detail Calcs'!$C$162) -> 0 | G182: =SUMIFS('Mobile-Data'!$I$9:$I$1048576,'Mobile-Data'!$D$9:$D$1048576,$B182,'Mobile-Data'!$E$9:$E$1048576,'Mobile-Detail Calcs'!G$167,'Mobile-Data'!$G$9:$G$1048576,'Mobile-Detail Calcs'!G$168,'Mobile-Data'!$C$9:$C$1048576,'Mobile-Detail Calcs'!$C$162) -> 0 | H182: =SUMIFS('Mobile-Data'!$I$9:$I$1048576,'Mobile-Data'!$D$9:$D$1048576,$B182,'Mobile-Data'!$E$9:$E$1048576,'Mobile-Detail Calcs'!H$167,'Mobile-Data'!$G$9:$G$1048576,'Mobile-Detail Calcs'!H$168,'Mobile-Data'!$C$9:$C$1048576,'Mobile-Detail Calcs'!$C$162) -> 0 | I182: 0 | K182: 1993 | L182: =C182*Factors!C222*g_kg*kg_mt*GWP_CH4 -> 0 | M182: =D182*Factors!D222*g_kg*kg_mt*GWP_CH4 -> 0 | N182: =E182*Factors!E222*g_kg*kg_mt*GWP_CH4 -> 0 | O182: =F182*Factors!F222*g_kg*kg_mt*GWP_CH4 -> 0 | P182: =G182*Factors!G222*g_kg*kg_mt*GWP_CH4 -> 0 | Q182: =H182*Factors!H222*g_kg*kg_mt*GWP_CH4 -> 0 | R182: 0 | T182: 1993 | U182: =C182*Factors!K222*g_kg*kg_mt*GWP_N2O -> 0 | V182: =D182*Factors!L222*g_kg*kg_mt*GWP_N2O -> 0 | W182: =E182*Factors!M222*g_kg*kg_mt*GWP_N2O -> 0 | X182: =F182*Factors!N222*g_kg*kg_mt*GWP_N2O -> 0 | Y182: =G182*Factors!O222*g_kg*kg_mt*GWP_N2O -> 0 | Z182: =H182*Factors!P222*g_kg*kg_mt*GWP_N2O -> 0 | AA182: 0
B183: 1994 | C183: =SUMIFS('Mobile-Data'!$I$9:$I$1048576,'Mobile-Data'!$D$9:$D$1048576,$B183,'Mobile-Data'!$E$9:$E$1048576,'Mobile-Detail Calcs'!C$167,'Mobile-Data'!$G$9:$G$1048576,'Mobile-Detail Calcs'!C$168,'Mobile-Data'!$C$9:$C$1048576,'Mobile-Detail Calcs'!$C$162) -> 0 | D183: =SUMIFS('Mobile-Data'!$I$9:$I$1048576,'Mobile-Data'!$D$9:$D$1048576,$B183,'Mobile-Data'!$E$9:$E$1048576,'Mobile-Detail Calcs'!D$167,'Mobile-Data'!$G$9:$G$1048576,'Mobile-Detail Calcs'!D$168,'Mobile-Data'!$C$9:$C$1048576,'Mobile-Detail Calcs'!$C$162) -> 0 | E183: =SUMIFS('Mobile-Data'!$I$9:$I$1048576,'Mobile-Data'!$D$9:$D$1048576,$B183,'Mobile-Data'!$E$9:$E$1048576,'Mobile-Detail Calcs'!E$167,'Mobile-Data'!$G$9:$G$1048576,'Mobile-Detail Calcs'!E$168,'Mobile-Data'!$C$9:$C$1048576,'Mobile-Detail Calcs'!$C$162) -> 0 | F183: =SUMIFS('Mobile-Data'!$I$9:$I$1048576,'Mobile-Data'!$D$9:$D$1048576,$B183,'Mobile-Data'!$E$9:$E$1048576,'Mobile-Detail Calcs'!F$167,'Mobile-Data'!$G$9:$G$1048576,'Mobile-Detail Calcs'!F$168,'Mobile-Data'!$C$9:$C$1048576,'Mobile-Detail Calcs'!$C$162) -> 0 | G183: =SUMIFS('Mobile-Data'!$I$9:$I$1048576,'Mobile-Data'!$D$9:$D$1048576,$B183,'Mobile-Data'!$E$9:$E$1048576,'Mobile-Detail Calcs'!G$167,'Mobile-Data'!$G$9:$G$1048576,'Mobile-Detail Calcs'!G$168,'Mobile-Data'!$C$9:$C$1048576,'Mobile-Detail Calcs'!$C$162) -> 0 | H183: =SUMIFS('Mobile-Data'!$I$9:$I$1048576,'Mobile-Data'!$D$9:$D$1048576,$B183,'Mobile-Data'!$E$9:$E$1048576,'Mobile-Detail Calcs'!H$167,'Mobile-Data'!$G$9:$G$1048576,'Mobile-Detail Calcs'!H$168,'Mobile-Data'!$C$9:$C$1048576,'Mobile-Detail Calcs'!$C$162) -> 0 | I183: 0 | K183: 1994 | L183: =C183*Factors!C223*g_kg*kg_mt*GWP_CH4 -> 0 | M183: =D183*Factors!D223*g_kg*kg_mt*GWP_CH4 -> 0 | N183: =E183*Factors!E223*g_kg*kg_mt*GWP_CH4 -> 0 | O183: =F183*Factors!F223*g_kg*kg_mt*GWP_CH4 -> 0 | P183: =G183*Factors!G223*g_kg*kg_mt*GWP_CH4 -> 0 | Q183: =H183*Factors!H223*g_kg*kg_mt*GWP_CH4 -> 0 | R183: 0 | T183: 1994 | U183: =C183*Factors!K223*g_kg*kg_mt*GWP_N2O -> 0 | V183: =D183*Factors!L223*g_kg*kg_mt*GWP_N2O -> 0 | W183: =E183*Factors!M223*g_kg*kg_mt*GWP_N2O -> 0 | X183: =F183*Factors!N223*g_kg*kg_mt*GWP_N2O -> 0 | Y183: =G183*Factors!O223*g_kg*kg_mt*GWP_N2O -> 0 | Z183: =H183*Factors!P223*g_kg*kg_mt*GWP_N2O -> 0 | AA183: 0
B184: 1995 | C184: =SUMIFS('Mobile-Data'!$I$9:$I$1048576,'Mobile-Data'!$D$9:$D$1048576,$B184,'Mobile-Data'!$E$9:$E$1048576,'Mobile-Detail Calcs'!C$167,'Mobile-Data'!$G$9:$G$1048576,'Mobile-Detail Calcs'!C$168,'Mobile-Data'!$C$9:$C$1048576,'Mobile-Detail Calcs'!$C$162) -> 0 | D184: =SUMIFS('Mobile-Data'!$I$9:$I$1048576,'Mobile-Data'!$D$9:$D$1048576,$B184,'Mobile-Data'!$E$9:$E$1048576,'Mobile-Detail Calcs'!D$167,'Mobile-Data'!$G$9:$G$1048576,'Mobile-Detail Calcs'!D$168,'Mobile-Data'!$C$9:$C$1048576,'Mobile-Detail Calcs'!$C$162) -> 0 | E184: =SUMIFS('Mobile-Data'!$I$9:$I$1048576,'Mobile-Data'!$D$9:$D$1048576,$B184,'Mobile-Data'!$E$9:$E$1048576,'Mobile-Detail Calcs'!E$167,'Mobile-Data'!$G$9:$G$1048576,'Mobile-Detail Calcs'!E$168,'Mobile-Data'!$C$9:$C$1048576,'Mobile-Detail Calcs'!$C$162) -> 0 | F184: =SUMIFS('Mobile-Data'!$I$9:$I$1048576,'Mobile-Data'!$D$9:$D$1048576,$B184,'Mobile-Data'!$E$9:$E$1048576,'Mobile-Detail Calcs'!F$167,'Mobile-Data'!$G$9:$G$1048576,'Mobile-Detail Calcs'!F$168,'Mobile-Data'!$C$9:$C$1048576,'Mobile-Detail Calcs'!$C$162) -> 0 | G184: =SUMIFS('Mobile-Data'!$I$9:$I$1048576,'Mobile-Data'!$D$9:$D$1048576,$B184,'Mobile-Data'!$E$9:$E$1048576,'Mobile-Detail Calcs'!G$167,'Mobile-Data'!$G$9:$G$1048576,'Mobile-Detail Calcs'!G$168,'Mobile-Data'!$C$9:$C$1048576,'Mobile-Detail Calcs'!$C$162) -> 0 | H184: =SUMIFS('Mobile-Data'!$I$9:$I$1048576,'Mobile-Data'!$D$9:$D$1048576,$B184,'Mobile-Data'!$E$9:$E$1048576,'Mobile-Detail Calcs'!H$167,'Mobile-Data'!$G$9:$G$1048576,'Mobile-Detail Calcs'!H$168,'Mobile-Data'!$C$9:$C$1048576,'Mobile-Detail Calcs'!$C$162) -> 0 | I184: 0 | K184: 1995 | L184: =C184*Factors!C224*g_kg*kg_mt*GWP_CH4 -> 0 | M184: =D184*Factors!D224*g_kg*kg_mt*GWP_CH4 -> 0 | N184: =E184*Factors!E224*g_kg*kg_mt*GWP_CH4 -> 0 | O184: =F184*Factors!F224*g_kg*kg_mt*GWP_CH4 -> 0 | P184: =G184*Factors!G224*g_kg*kg_mt*GWP_CH4 -> 0 | Q184: =H184*Factors!H224*g_kg*kg_mt*GWP_CH4 -> 0 | R184: 0 | T184: 1995 | U184: =C184*Factors!K224*g_kg*kg_mt*GWP_N2O -> 0 | V184: =D184*Factors!L224*g_kg*kg_mt*GWP_N2O -> 0 | W184: =E184*Factors!M224*g_kg*kg_mt*GWP_N2O -> 0 | X184: =F184*Factors!N224*g_kg*kg_mt*GWP_N2O -> 0 | Y184: =G184*Factors!O224*g_kg*kg_mt*GWP_N2O -> 0 | Z184: =H184*Factors!P224*g_kg*kg_mt*GWP_N2O -> 0 | AA184: 0
B185: 1996 | C185: =SUMIFS('Mobile-Data'!$I$9:$I$1048576,'Mobile-Data'!$D$9:$D$1048576,$B185,'Mobile-Data'!$E$9:$E$1048576,'Mobile-Detail Calcs'!C$167,'Mobile-Data'!$G$9:$G$1048576,'Mobile-Detail Calcs'!C$168,'Mobile-Data'!$C$9:$C$1048576,'Mobile-Detail Calcs'!$C$162) -> 0 | D185: =SUMIFS('Mobile-Data'!$I$9:$I$1048576,'Mobile-Data'!$D$9:$D$1048576,$B185,'Mobile-Data'!$E$9:$E$1048576,'Mobile-Detail Calcs'!D$167,'Mobile-Data'!$G$9:$G$1048576,'Mobile-Detail Calcs'!D$168,'Mobile-Data'!$C$9:$C$1048576,'Mobile-Detail Calcs'!$C$162) -> 0 | E185: =SUMIFS('Mobile-Data'!$I$9:$I$1048576,'Mobile-Data'!$D$9:$D$1048576,$B185,'Mobile-Data'!$E$9:$E$1048576,'Mobile-Detail Calcs'!E$167,'Mobile-Data'!$G$9:$G$1048576,'Mobile-Detail Calcs'!E$168,'Mobile-Data'!$C$9:$C$1048576,'Mobile-Detail Calcs'!$C$162) -> 0 | F185: =SUMIFS('Mobile-Data'!$I$9:$I$1048576,'Mobile-Data'!$D$9:$D$1048576,$B185,'Mobile-Data'!$E$9:$E$1048576,'Mobile-Detail Calcs'!F$167,'Mobile-Data'!$G$9:$G$1048576,'Mobile-Detail Calcs'!F$168,'Mobile-Data'!$C$9:$C$1048576,'Mobile-Detail Calcs'!$C$162) -> 0 | G185: =SUMIFS('Mobile-Data'!$I$9:$I$1048576,'Mobile-Data'!$D$9:$D$1048576,$B185,'Mobile-Data'!$E$9:$E$1048576,'Mobile-Detail Calcs'!G$167,'Mobile-Data'!$G$9:$G$1048576,'Mobile-Detail Calcs'!G$168,'Mobile-Data'!$C$9:$C$1048576,'Mobile-Detail Calcs'!$C$162) -> 0 | H185: =SUMIFS('Mobile-Data'!$I$9:$I$1048576,'Mobile-Data'!$D$9:$D$1048576,$B185,'Mobile-Data'!$E$9:$E$1048576,'Mobile-Detail Calcs'!H$167,'Mobile-Data'!$G$9:$G$1048576,'Mobile-Detail Calcs'!H$168,'Mobile-Data'!$C$9:$C$1048576,'Mobile-Detail Calcs'!$C$162) -> 0 | I185: 0 | K185: 1996 | L185: =C185*Factors!C225*g_kg*kg_mt*GWP_CH4 -> 0 | M185: =D185*Factors!D225*g_kg*kg_mt*GWP_CH4 -> 0 | N185: =E185*Factors!E225*g_kg*kg_mt*GWP_CH4 -> 0 | O185: =F185*Factors!F225*g_kg*kg_mt*GWP_CH4 -> 0 | P185: =G185*Factors!G225*g_kg*kg_mt*GWP_CH4 -> 0 | Q185: =H185*Factors!H225*g_kg*kg_mt*GWP_CH4 -> 0 | R185: 0 | T185: 1996 | U185: =C185*Factors!K225*g_kg*kg_mt*GWP_N2O -> 0 | V185: =D185*Factors!L225*g_kg*kg_mt*GWP_N2O -> 0 | W185: =E185*Factors!M225*g_kg*kg_mt*GWP_N2O -> 0 | X185: =F185*Factors!N225*g_kg*kg_mt*GWP_N2O -> 0 | Y185: =G185*Factors!O225*g_kg*kg_mt*GWP_N2O -> 0 | Z185: =H185*Factors!P225*g_kg*kg_mt*GWP_N2O -> 0 | AA185: 0
B186: 1997 | C186: =SUMIFS('Mobile-Data'!$I$9:$I$1048576,'Mobile-Data'!$D$9:$D$1048576,$B186,'Mobile-Data'!$E$9:$E$1048576,'Mobile-Detail Calcs'!C$167,'Mobile-Data'!$G$9:$G$1048576,'Mobile-Detail Calcs'!C$168,'Mobile-Data'!$C$9:$C$1048576,'Mobile-Detail Calcs'!$C$162) -> 0 | D186: =SUMIFS('Mobile-Data'!$I$9:$I$1048576,'Mobile-Data'!$D$9:$D$1048576,$B186,'Mobile-Data'!$E$9:$E$1048576,'Mobile-Detail Calcs'!D$167,'Mobile-Data'!$G$9:$G$1048576,'Mobile-Detail Calcs'!D$168,'Mobile-Data'!$C$9:$C$1048576,'Mobile-Detail Calcs'!$C$162) -> 0 | E186: =SUMIFS('Mobile-Data'!$I$9:$I$1048576,'Mobile-Data'!$D$9:$D$1048576,$B186,'Mobile-Data'!$E$9:$E$1048576,'Mobile-Detail Calcs'!E$167,'Mobile-Data'!$G$9:$G$1048576,'Mobile-Detail Calcs'!E$168,'Mobile-Data'!$C$9:$C$1048576,'Mobile-Detail Calcs'!$C$162) -> 0 | F186: =SUMIFS('Mobile-Data'!$I$9:$I$1048576,'Mobile-Data'!$D$9:$D$1048576,$B186,'Mobile-Data'!$E$9:$E$1048576,'Mobile-Detail Calcs'!F$167,'Mobile-Data'!$G$9:$G$1048576,'Mobile-Detail Calcs'!F$168,'Mobile-Data'!$C$9:$C$1048576,'Mobile-Detail Calcs'!$C$162) -> 0 | G186: =SUMIFS('Mobile-Data'!$I$9:$I$1048576,'Mobile-Data'!$D$9:$D$1048576,$B186,'Mobile-Data'!$E$9:$E$1048576,'Mobile-Detail Calcs'!G$167,'Mobile-Data'!$G$9:$G$1048576,'Mobile-Detail Calcs'!G$168,'Mobile-Data'!$C$9:$C$1048576,'Mobile-Detail Calcs'!$C$162) -> 0 | H186: =SUMIFS('Mobile-Data'!$I$9:$I$1048576,'Mobile-Data'!$D$9:$D$1048576,$B186,'Mobile-Data'!$E$9:$E$1048576,'Mobile-Detail Calcs'!H$167,'Mobile-Data'!$G$9:$G$1048576,'Mobile-Detail Calcs'!H$168,'Mobile-Data'!$C$9:$C$1048576,'Mobile-Detail Calcs'!$C$162) -> 0 | I186: 0 | K186: 1997 | L186: =C186*Factors!C226*g_kg*kg_mt*GWP_CH4 -> 0 | M186: =D186*Factors!D226*g_kg*kg_mt*GWP_CH4 -> 0 | N186: =E186*Factors!E226*g_kg*kg_mt*GWP_CH4 -> 0 | O186: =F186*Factors!F226*g_kg*kg_mt*GWP_CH4 -> 0 | P186: =G186*Factors!G226*g_kg*kg_mt*GWP_CH4 -> 0 | Q186: =H186*Factors!H226*g_kg*kg_mt*GWP_CH4 -> 0 | R186: 0 | T186: 1997 | U186: =C186*Factors!K226*g_kg*kg_mt*GWP_N2O -> 0 | V186: =D186*Factors!L226*g_kg*kg_mt*GWP_N2O -> 0 | W186: =E186*Factors!M226*g_kg*kg_mt*GWP_N2O -> 0 | X186: =F186*Factors!N226*g_kg*kg_mt*GWP_N2O -> 0 | Y186: =G186*Factors!O226*g_kg*kg_mt*GWP_N2O -> 0 | Z186: =H186*Factors!P226*g_kg*kg_mt*GWP_N2O -> 0 | AA186: 0
B187: 1998 | C187: =SUMIFS('Mobile-Data'!$I$9:$I$1048576,'Mobile-Data'!$D$9:$D$1048576,$B187,'Mobile-Data'!$E$9:$E$1048576,'Mobile-Detail Calcs'!C$167,'Mobile-Data'!$G$9:$G$1048576,'Mobile-Detail Calcs'!C$168,'Mobile-Data'!$C$9:$C$1048576,'Mobile-Detail Calcs'!$C$162) -> 0 | D187: =SUMIFS('Mobile-Data'!$I$9:$I$1048576,'Mobile-Data'!$D$9:$D$1048576,$B187,'Mobile-Data'!$E$9:$E$1048576,'Mobile-Detail Calcs'!D$167,'Mobile-Data'!$G$9:$G$1048576,'Mobile-Detail Calcs'!D$168,'Mobile-Data'!$C$9:$C$1048576,'Mobile-Detail Calcs'!$C$162) -> 0 | E187: =SUMIFS('Mobile-Data'!$I$9:$I$1048576,'Mobile-Data'!$D$9:$D$1048576,$B187,'Mobile-Data'!$E$9:$E$1048576,'Mobile-Detail Calcs'!E$167,'Mobile-Data'!$G$9:$G$1048576,'Mobile-Detail Calcs'!E$168,'Mobile-Data'!$C$9:$C$1048576,'Mobile-Detail Calcs'!$C$162) -> 0 | F187: =SUMIFS('Mobile-Data'!$I$9:$I$1048576,'Mobile-Data'!$D$9:$D$1048576,$B187,'Mobile-Data'!$E$9:$E$1048576,'Mobile-Detail Calcs'!F$167,'Mobile-Data'!$G$9:$G$1048576,'Mobile-Detail Calcs'!F$168,'Mobile-Data'!$C$9:$C$1048576,'Mobile-Detail Calcs'!$C$162) -> 0 | G187: =SUMIFS('Mobile-Data'!$I$9:$I$1048576,'Mobile-Data'!$D$9:$D$1048576,$B187,'Mobile-Data'!$E$9:$E$1048576,'Mobile-Detail Calcs'!G$167,'Mobile-Data'!$G$9:$G$1048576,'Mobile-Detail Calcs'!G$168,'Mobile-Data'!$C$9:$C$1048576,'Mobile-Detail Calcs'!$C$162) -> 0 | H187: =SUMIFS('Mobile-Data'!$I$9:$I$1048576,'Mobile-Data'!$D$9:$D$1048576,$B187,'Mobile-Data'!$E$9:$E$1048576,'Mobile-Detail Calcs'!H$167,'Mobile-Data'!$G$9:$G$1048576,'Mobile-Detail Calcs'!H$168,'Mobile-Data'!$C$9:$C$1048576,'Mobile-Detail Calcs'!$C$162) -> 0 | I187: 0 | K187: 1998 | L187: =C187*Factors!C227*g_kg*kg_mt*GWP_CH4 -> 0 | M187: =D187*Factors!D227*g_kg*kg_mt*GWP_CH4 -> 0 | N187: =E187*Factors!E227*g_kg*kg_mt*GWP_CH4 -> 0 | O187: =F187*Factors!F227*g_kg*kg_mt*GWP_CH4 -> 0 | P187: =G187*Factors!G227*g_kg*kg_mt*GWP_CH4 -> 0 | Q187: =H187*Factors!H227*g_kg*kg_mt*GWP_CH4 -> 0 | R187: 0 | T187: 1998 | U187: =C187*Factors!K227*g_kg*kg_mt*GWP_N2O -> 0 | V187: =D187*Factors!L227*g_kg*kg_mt*GWP_N2O -> 0 | W187: =E187*Factors!M227*g_kg*kg_mt*GWP_N2O -> 0 | X187: =F187*Factors!N227*g_kg*kg_mt*GWP_N2O -> 0 | Y187: =G187*Factors!O227*g_kg*kg_mt*GWP_N2O -> 0 | Z187: =H187*Factors!P227*g_kg*kg_mt*GWP_N2O -> 0 | AA187: 0
B188: 1999 | C188: =SUMIFS('Mobile-Data'!$I$9:$I$1048576,'Mobile-Data'!$D$9:$D$1048576,$B188,'Mobile-Data'!$E$9:$E$1048576,'Mobile-Detail Calcs'!C$167,'Mobile-Data'!$G$9:$G$1048576,'Mobile-Detail Calcs'!C$168,'Mobile-Data'!$C$9:$C$1048576,'Mobile-Detail Calcs'!$C$162) -> 0 | D188: =SUMIFS('Mobile-Data'!$I$9:$I$1048576,'Mobile-Data'!$D$9:$D$1048576,$B188,'Mobile-Data'!$E$9:$E$1048576,'Mobile-Detail Calcs'!D$167,'Mobile-Data'!$G$9:$G$1048576,'Mobile-Detail Calcs'!D$168,'Mobile-Data'!$C$9:$C$1048576,'Mobile-Detail Calcs'!$C$162) -> 0 | E188: =SUMIFS('Mobile-Data'!$I$9:$I$1048576,'Mobile-Data'!$D$9:$D$1048576,$B188,'Mobile-Data'!$E$9:$E$1048576,'Mobile-Detail Calcs'!E$167,'Mobile-Data'!$G$9:$G$1048576,'Mobile-Detail Calcs'!E$168,'Mobile-Data'!$C$9:$C$1048576,'Mobile-Detail Calcs'!$C$162) -> 0 | F188: =SUMIFS('Mobile-Data'!$I$9:$I$1048576,'Mobile-Data'!$D$9:$D$1048576,$B188,'Mobile-Data'!$E$9:$E$1048576,'Mobile-Detail Calcs'!F$167,'Mobile-Data'!$G$9:$G$1048576,'Mobile-Detail Calcs'!F$168,'Mobile-Data'!$C$9:$C$1048576,'Mobile-Detail Calcs'!$C$162) -> 0 | G188: =SUMIFS('Mobile-Data'!$I$9:$I$1048576,'Mobile-Data'!$D$9:$D$1048576,$B188,'Mobile-Data'!$E$9:$E$1048576,'Mobile-Detail Calcs'!G$167,'Mobile-Data'!$G$9:$G$1048576,'Mobile-Detail Calcs'!G$168,'Mobile-Data'!$C$9:$C$1048576,'Mobile-Detail Calcs'!$C$162) -> 0 | H188: =SUMIFS('Mobile-Data'!$I$9:$I$1048576,'Mobile-Data'!$D$9:$D$1048576,$B188,'Mobile-Data'!$E$9:$E$1048576,'Mobile-Detail Calcs'!H$167,'Mobile-Data'!$G$9:$G$1048576,'Mobile-Detail Calcs'!H$168,'Mobile-Data'!$C$9:$C$1048576,'Mobile-Detail Calcs'!$C$162) -> 0 | I188: 0 | K188: 1999 | L188: =C188*Factors!C228*g_kg*kg_mt*GWP_CH4 -> 0 | M188: =D188*Factors!D228*g_kg*kg_mt*GWP_CH4 -> 0 | N188: =E188*Factors!E228*g_kg*kg_mt*GWP_CH4 -> 0 | O188: =F188*Factors!F228*g_kg*kg_mt*GWP_CH4 -> 0 | P188: =G188*Factors!G228*g_kg*kg_mt*GWP_CH4 -> 0 | Q188: =H188*Factors!H228*g_kg*kg_mt*GWP_CH4 -> 0 | R188: 0 | T188: 1999 | U188: =C188*Factors!K228*g_kg*kg_mt*GWP_N2O -> 0 | V188: =D188*Factors!L228*g_kg*kg_mt*GWP_N2O -> 0 | W188: =E188*Factors!M228*g_kg*kg_mt*GWP_N2O -> 0 | X188: =F188*Factors!N228*g_kg*kg_mt*GWP_N2O -> 0 | Y188: =G188*Factors!O228*g_kg*kg_mt*GWP_N2O -> 0 | Z188: =H188*Factors!P228*g_kg*kg_mt*GWP_N2O -> 0 | AA188: 0
B189: 2000 | C189: =SUMIFS('Mobile-Data'!$I$9:$I$1048576,'Mobile-Data'!$D$9:$D$1048576,$B189,'Mobile-Data'!$E$9:$E$1048576,'Mobile-Detail Calcs'!C$167,'Mobile-Data'!$G$9:$G$1048576,'Mobile-Detail Calcs'!C$168,'Mobile-Data'!$C$9:$C$1048576,'Mobile-Detail Calcs'!$C$162) -> 0 | D189: =SUMIFS('Mobile-Data'!$I$9:$I$1048576,'Mobile-Data'!$D$9:$D$1048576,$B189,'Mobile-Data'!$E$9:$E$1048576,'Mobile-Detail Calcs'!D$167,'Mobile-Data'!$G$9:$G$1048576,'Mobile-Detail Calcs'!D$168,'Mobile-Data'!$C$9:$C$1048576,'Mobile-Detail Calcs'!$C$162) -> 0 | E189: =SUMIFS('Mobile-Data'!$I$9:$I$1048576,'Mobile-Data'!$D$9:$D$1048576,$B189,'Mobile-Data'!$E$9:$E$1048576,'Mobile-Detail Calcs'!E$167,'Mobile-Data'!$G$9:$G$1048576,'Mobile-Detail Calcs'!E$168,'Mobile-Data'!$C$9:$C$1048576,'Mobile-Detail Calcs'!$C$162) -> 0 | F189: =SUMIFS('Mobile-Data'!$I$9:$I$1048576,'Mobile-Data'!$D$9:$D$1048576,$B189,'Mobile-Data'!$E$9:$E$1048576,'Mobile-Detail Calcs'!F$167,'Mobile-Data'!$G$9:$G$1048576,'Mobile-Detail Calcs'!F$168,'Mobile-Data'!$C$9:$C$1048576,'Mobile-Detail Calcs'!$C$162) -> 0 | G189: =SUMIFS('Mobile-Data'!$I$9:$I$1048576,'Mobile-Data'!$D$9:$D$1048576,$B189,'Mobile-Data'!$E$9:$E$1048576,'Mobile-Detail Calcs'!G$167,'Mobile-Data'!$G$9:$G$1048576,'Mobile-Detail Calcs'!G$168,'Mobile-Data'!$C$9:$C$1048576,'Mobile-Detail Calcs'!$C$162) -> 0 | H189: =SUMIFS('Mobile-Data'!$I$9:$I$1048576,'Mobile-Data'!$D$9:$D$1048576,$B189,'Mobile-Data'!$E$9:$E$1048576,'Mobile-Detail Calcs'!H$167,'Mobile-Data'!$G$9:$G$1048576,'Mobile-Detail Calcs'!H$168,'Mobile-Data'!$C$9:$C$1048576,'Mobile-Detail Calcs'!$C$162) -> 0 | I189: 0 | K189: 2000 | L189: =C189*Factors!C229*g_kg*kg_mt*GWP_CH4 -> 0 | M189: =D189*Factors!D229*g_kg*kg_mt*GWP_CH4 -> 0 | N189: =E189*Factors!E229*g_kg*kg_mt*GWP_CH4 -> 0 | O189: =F189*Factors!F229*g_kg*kg_mt*GWP_CH4 -> 0 | P189: =G189*Factors!G229*g_kg*kg_mt*GWP_CH4 -> 0 | Q189: =H189*Factors!H229*g_kg*kg_mt*GWP_CH4 -> 0 | R189: 0 | T189: 2000 | U189: =C189*Factors!K229*g_kg*kg_mt*GWP_N2O -> 0 | V189: =D189*Factors!L229*g_kg*kg_mt*GWP_N2O -> 0 | W189: =E189*Factors!M229*g_kg*kg_mt*GWP_N2O -> 0 | X189: =F189*Factors!N229*g_kg*kg_mt*GWP_N2O -> 0 | Y189: =G189*Factors!O229*g_kg*kg_mt*GWP_N2O -> 0 | Z189: =H189*Factors!P229*g_kg*kg_mt*GWP_N2O -> 0 | AA189: 0
B190: 2001 | C190: =SUMIFS('Mobile-Data'!$I$9:$I$1048576,'Mobile-Data'!$D$9:$D$1048576,$B190,'Mobile-Data'!$E$9:$E$1048576,'Mobile-Detail Calcs'!C$167,'Mobile-Data'!$G$9:$G$1048576,'Mobile-Detail Calcs'!C$168,'Mobile-Data'!$C$9:$C$1048576,'Mobile-Detail Calcs'!$C$162) -> 0 | D190: =SUMIFS('Mobile-Data'!$I$9:$I$1048576,'Mobile-Data'!$D$9:$D$1048576,$B190,'Mobile-Data'!$E$9:$E$1048576,'Mobile-Detail Calcs'!D$167,'Mobile-Data'!$G$9:$G$1048576,'Mobile-Detail Calcs'!D$168,'Mobile-Data'!$C$9:$C$1048576,'Mobile-Detail Calcs'!$C$162) -> 0 | E190: =SUMIFS('Mobile-Data'!$I$9:$I$1048576,'Mobile-Data'!$D$9:$D$1048576,$B190,'Mobile-Data'!$E$9:$E$1048576,'Mobile-Detail Calcs'!E$167,'Mobile-Data'!$G$9:$G$1048576,'Mobile-Detail Calcs'!E$168,'Mobile-Data'!$C$9:$C$1048576,'Mobile-Detail Calcs'!$C$162) -> 0 | F190: =SUMIFS('Mobile-Data'!$I$9:$I$1048576,'Mobile-Data'!$D$9:$D$1048576,$B190,'Mobile-Data'!$E$9:$E$1048576,'Mobile-Detail Calcs'!F$167,'Mobile-Data'!$G$9:$G$1048576,'Mobile-Detail Calcs'!F$168,'Mobile-Data'!$C$9:$C$1048576,'Mobile-Detail Calcs'!$C$162) -> 0 | G190: =SUMIFS('Mobile-Data'!$I$9:$I$1048576,'Mobile-Data'!$D$9:$D$1048576,$B190,'Mobile-Data'!$E$9:$E$1048576,'Mobile-Detail Calcs'!G$167,'Mobile-Data'!$G$9:$G$1048576,'Mobile-Detail Calcs'!G$168,'Mobile-Data'!$C$9:$C$1048576,'Mobile-Detail Calcs'!$C$162) -> 0 | H190: =SUMIFS('Mobile-Data'!$I$9:$I$1048576,'Mobile-Data'!$D$9:$D$1048576,$B190,'Mobile-Data'!$E$9:$E$1048576,'Mobile-Detail Calcs'!H$167,'Mobile-Data'!$G$9:$G$1048576,'Mobile-Detail Calcs'!H$168,'Mobile-Data'!$C$9:$C$1048576,'Mobile-Detail Calcs'!$C$162) -> 0 | I190: 0 | K190: 2001 | L190: =C190*Factors!C230*g_kg*kg_mt*GWP_CH4 -> 0 | M190: =D190*Factors!D230*g_kg*kg_mt*GWP_CH4 -> 0 | N190: =E190*Factors!E230*g_kg*kg_mt*GWP_CH4 -> 0 | O190: =F190*Factors!F230*g_kg*kg_mt*GWP_CH4 -> 0 | P190: =G190*Factors!G230*g_kg*kg_mt*GWP_CH4 -> 0 | Q190: =H190*Factors!H230*g_kg*kg_mt*GWP_CH4 -> 0 | R190: 0 | T190: 2001 | U190: =C190*Factors!K230*g_kg*kg_mt*GWP_N2O -> 0 | V190: =D190*Factors!L230*g_kg*kg_mt*GWP_N2O -> 0 | W190: =E190*Factors!M230*g_kg*kg_mt*GWP_N2O -> 0 | X190: =F190*Factors!N230*g_kg*kg_mt*GWP_N2O -> 0 | Y190: =G190*Factors!O230*g_kg*kg_mt*GWP_N2O -> 0 | Z190: =H190*Factors!P230*g_kg*kg_mt*GWP_N2O -> 0 | AA190: 0
B191: 2002 | C191: =SUMIFS('Mobile-Data'!$I$9:$I$1048576,'Mobile-Data'!$D$9:$D$1048576,$B191,'Mobile-Data'!$E$9:$E$1048576,'Mobile-Detail Calcs'!C$167,'Mobile-Data'!$G$9:$G$1048576,'Mobile-Detail Calcs'!C$168,'Mobile-Data'!$C$9:$C$1048576,'Mobile-Detail Calcs'!$C$162) -> 0 | D191: =SUMIFS('Mobile-Data'!$I$9:$I$1048576,'Mobile-Data'!$D$9:$D$1048576,$B191,'Mobile-Data'!$E$9:$E$1048576,'Mobile-Detail Calcs'!D$167,'Mobile-Data'!$G$9:$G$1048576,'Mobile-Detail Calcs'!D$168,'Mobile-Data'!$C$9:$C$1048576,'Mobile-Detail Calcs'!$C$162) -> 0 | E191: =SUMIFS('Mobile-Data'!$I$9:$I$1048576,'Mobile-Data'!$D$9:$D$1048576,$B191,'Mobile-Data'!$E$9:$E$1048576,'Mobile-Detail Calcs'!E$167,'Mobile-Data'!$G$9:$G$1048576,'Mobile-Detail Calcs'!E$168,'Mobile-Data'!$C$9:$C$1048576,'Mobile-Detail Calcs'!$C$162) -> 0 | F191: =SUMIFS('Mobile-Data'!$I$9:$I$1048576,'Mobile-Data'!$D$9:$D$1048576,$B191,'Mobile-Data'!$E$9:$E$1048576,'Mobile-Detail Calcs'!F$167,'Mobile-Data'!$G$9:$G$1048576,'Mobile-Detail Calcs'!F$168,'Mobile-Data'!$C$9:$C$1048576,'Mobile-Detail Calcs'!$C$162) -> 0 | G191: =SUMIFS('Mobile-Data'!$I$9:$I$1048576,'Mobile-Data'!$D$9:$D$1048576,$B191,'Mobile-Data'!$E$9:$E$1048576,'Mobile-Detail Calcs'!G$167,'Mobile-Data'!$G$9:$G$1048576,'Mobile-Detail Calcs'!G$168,'Mobile-Data'!$C$9:$C$1048576,'Mobile-Detail Calcs'!$C$162) -> 0 | H191: =SUMIFS('Mobile-Data'!$I$9:$I$1048576,'Mobile-Data'!$D$9:$D$1048576,$B191,'Mobile-Data'!$E$9:$E$1048576,'Mobile-Detail Calcs'!H$167,'Mobile-Data'!$G$9:$G$1048576,'Mobile-Detail Calcs'!H$168,'Mobile-Data'!$C$9:$C$1048576,'Mobile-Detail Calcs'!$C$162) -> 0 | I191: 0 | K191: 2002 | L191: =C191*Factors!C231*g_kg*kg_mt*GWP_CH4 -> 0 | M191: =D191*Factors!D231*g_kg*kg_mt*GWP_CH4 -> 0 | N191: =E191*Factors!E231*g_kg*kg_mt*GWP_CH4 -> 0 | O191: =F191*Factors!F231*g_kg*kg_mt*GWP_CH4 -> 0 | P191: =G191*Factors!G231*g_kg*kg_mt*GWP_CH4 -> 0 | Q191: =H191*Factors!H231*g_kg*kg_mt*GWP_CH4 -> 0 | R191: 0 | T191: 2002 | U191: =C191*Factors!K231*g_kg*kg_mt*GWP_N2O -> 0 | V191: =D191*Factors!L231*g_kg*kg_mt*GWP_N2O -> 0 | W191: =E191*Factors!M231*g_kg*kg_mt*GWP_N2O -> 0 | X191: =F191*Factors!N231*g_kg*kg_mt*GWP_N2O -> 0 | Y191: =G191*Factors!O231*g_kg*kg_mt*GWP_N2O -> 0 | Z191: =H191*Factors!P231*g_kg*kg_mt*GWP_N2O -> 0 | AA191: 0
B192: 2003 | C192: =SUMIFS('Mobile-Data'!$I$9:$I$1048576,'Mobile-Data'!$D$9:$D$1048576,$B192,'Mobile-Data'!$E$9:$E$1048576,'Mobile-Detail Calcs'!C$167,'Mobile-Data'!$G$9:$G$1048576,'Mobile-Detail Calcs'!C$168,'Mobile-Data'!$C$9:$C$1048576,'Mobile-Detail Calcs'!$C$162) -> 0 | D192: =SUMIFS('Mobile-Data'!$I$9:$I$1048576,'Mobile-Data'!$D$9:$D$1048576,$B192,'Mobile-Data'!$E$9:$E$1048576,'Mobile-Detail Calcs'!D$167,'Mobile-Data'!$G$9:$G$1048576,'Mobile-Detail Calcs'!D$168,'Mobile-Data'!$C$9:$C$1048576,'Mobile-Detail Calcs'!$C$162) -> 0 | E192: =SUMIFS('Mobile-Data'!$I$9:$I$1048576,'Mobile-Data'!$D$9:$D$1048576,$B192,'Mobile-Data'!$E$9:$E$1048576,'Mobile-Detail Calcs'!E$167,'Mobile-Data'!$G$9:$G$1048576,'Mobile-Detail Calcs'!E$168,'Mobile-Data'!$C$9:$C$1048576,'Mobile-Detail Calcs'!$C$162) -> 0 | F192: =SUMIFS('Mobile-Data'!$I$9:$I$1048576,'Mobile-Data'!$D$9:$D$1048576,$B192,'Mobile-Data'!$E$9:$E$1048576,'Mobile-Detail Calcs'!F$167,'Mobile-Data'!$G$9:$G$1048576,'Mobile-Detail Calcs'!F$168,'Mobile-Data'!$C$9:$C$1048576,'Mobile-Detail Calcs'!$C$162) -> 0 | G192: =SUMIFS('Mobile-Data'!$I$9:$I$1048576,'Mobile-Data'!$D$9:$D$1048576,$B192,'Mobile-Data'!$E$9:$E$1048576,'Mobile-Detail Calcs'!G$167,'Mobile-Data'!$G$9:$G$1048576,'Mobile-Detail Calcs'!G$168,'Mobile-Data'!$C$9:$C$1048576,'Mobile-Detail Calcs'!$C$162) -> 0 | H192: =SUMIFS('Mobile-Data'!$I$9:$I$1048576,'Mobile-Data'!$D$9:$D$1048576,$B192,'Mobile-Data'!$E$9:$E$1048576,'Mobile-Detail Calcs'!H$167,'Mobile-Data'!$G$9:$G$1048576,'Mobile-Detail Calcs'!H$168,'Mobile-Data'!$C$9:$C$1048576,'Mobile-Detail Calcs'!$C$162) -> 0 | I192: 0 | K192: 2003 | L192: =C192*Factors!C232*g_kg*kg_mt*GWP_CH4 -> 0 | M192: =D192*Factors!D232*g_kg*kg_mt*GWP_CH4 -> 0 | N192: =E192*Factors!E232*g_kg*kg_mt*GWP_CH4 -> 0 | O192: =F192*Factors!F232*g_kg*kg_mt*GWP_CH4 -> 0 | P192: =G192*Factors!G232*g_kg*kg_mt*GWP_CH4 -> 0 | Q192: =H192*Factors!H232*g_kg*kg_mt*GWP_CH4 -> 0 | R192: 0 | T192: 2003 | U192: =C192*Factors!K232*g_kg*kg_mt*GWP_N2O -> 0 | V192: =D192*Factors!L232*g_kg*kg_mt*GWP_N2O -> 0 | W192: =E192*Factors!M232*g_kg*kg_mt*GWP_N2O -> 0 | X192: =F192*Factors!N232*g_kg*kg_mt*GWP_N2O -> 0 | Y192: =G192*Factors!O232*g_kg*kg_mt*GWP_N2O -> 0 | Z192: =H192*Factors!P232*g_kg*kg_mt*GWP_N2O -> 0 | AA192: 0
B193: 2004 | C193: =SUMIFS('Mobile-Data'!$I$9:$I$1048576,'Mobile-Data'!$D$9:$D$1048576,$B193,'Mobile-Data'!$E$9:$E$1048576,'Mobile-Detail Calcs'!C$167,'Mobile-Data'!$G$9:$G$1048576,'Mobile-Detail Calcs'!C$168,'Mobile-Data'!$C$9:$C$1048576,'Mobile-Detail Calcs'!$C$162) -> 0 | D193: =SUMIFS('Mobile-Data'!$I$9:$I$1048576,'Mobile-Data'!$D$9:$D$1048576,$B193,'Mobile-Data'!$E$9:$E$1048576,'Mobile-Detail Calcs'!D$167,'Mobile-Data'!$G$9:$G$1048576,'Mobile-Detail Calcs'!D$168,'Mobile-Data'!$C$9:$C$1048576,'Mobile-Detail Calcs'!$C$162) -> 0 | E193: =SUMIFS('Mobile-Data'!$I$9:$I$1048576,'Mobile-Data'!$D$9:$D$1048576,$B193,'Mobile-Data'!$E$9:$E$1048576,'Mobile-Detail Calcs'!E$167,'Mobile-Data'!$G$9:$G$1048576,'Mobile-Detail Calcs'!E$168,'Mobile-Data'!$C$9:$C$1048576,'Mobile-Detail Calcs'!$C$162) -> 0 | F193: =SUMIFS('Mobile-Data'!$I$9:$I$1048576,'Mobile-Data'!$D$9:$D$1048576,$B193,'Mobile-Data'!$E$9:$E$1048576,'Mobile-Detail Calcs'!F$167,'Mobile-Data'!$G$9:$G$1048576,'Mobile-Detail Calcs'!F$168,'Mobile-Data'!$C$9:$C$1048576,'Mobile-Detail Calcs'!$C$162) -> 0 | G193: =SUMIFS('Mobile-Data'!$I$9:$I$1048576,'Mobile-Data'!$D$9:$D$1048576,$B193,'Mobile-Data'!$E$9:$E$1048576,'Mobile-Detail Calcs'!G$167,'Mobile-Data'!$G$9:$G$1048576,'Mobile-Detail Calcs'!G$168,'Mobile-Data'!$C$9:$C$1048576,'Mobile-Detail Calcs'!$C$162) -> 0 | H193: =SUMIFS('Mobile-Data'!$I$9:$I$1048576,'Mobile-Data'!$D$9:$D$1048576,$B193,'Mobile-Data'!$E$9:$E$1048576,'Mobile-Detail Calcs'!H$167,'Mobile-Data'!$G$9:$G$1048576,'Mobile-Detail Calcs'!H$168,'Mobile-Data'!$C$9:$C$1048576,'Mobile-Detail Calcs'!$C$162) -> 0 | I193: 0 | K193: 2004 | L193: =C193*Factors!C233*g_kg*kg_mt*GWP_CH4 -> 0 | M193: =D193*Factors!D233*g_kg*kg_mt*GWP_CH4 -> 0 | N193: =E193*Factors!E233*g_kg*kg_mt*GWP_CH4 -> 0 | O193: =F193*Factors!F233*g_kg*kg_mt*GWP_CH4 -> 0 | P193: =G193*Factors!G233*g_kg*kg_mt*GWP_CH4 -> 0 | Q193: =H193*Factors!H233*g_kg*kg_mt*GWP_CH4 -> 0 | R193: 0 | T193: 2004 | U193: =C193*Factors!K233*g_kg*kg_mt*GWP_N2O -> 0 | V193: =D193*Factors!L233*g_kg*kg_mt*GWP_N2O -> 0 | W193: =E193*Factors!M233*g_kg*kg_mt*GWP_N2O -> 0 | X193: =F193*Factors!N233*g_kg*kg_mt*GWP_N2O -> 0 | Y193: =G193*Factors!O233*g_kg*kg_mt*GWP_N2O -> 0 | Z193: =H193*Factors!P233*g_kg*kg_mt*GWP_N2O -> 0 | AA193: 0
B194: 2005 | C194: =SUMIFS('Mobile-Data'!$I$9:$I$1048576,'Mobile-Data'!$D$9:$D$1048576,$B194,'Mobile-Data'!$E$9:$E$1048576,'Mobile-Detail Calcs'!C$167,'Mobile-Data'!$G$9:$G$1048576,'Mobile-Detail Calcs'!C$168,'Mobile-Data'!$C$9:$C$1048576,'Mobile-Detail Calcs'!$C$162) -> 0 | D194: =SUMIFS('Mobile-Data'!$I$9:$I$1048576,'Mobile-Data'!$D$9:$D$1048576,$B194,'Mobile-Data'!$E$9:$E$1048576,'Mobile-Detail Calcs'!D$167,'Mobile-Data'!$G$9:$G$1048576,'Mobile-Detail Calcs'!D$168,'Mobile-Data'!$C$9:$C$1048576,'Mobile-Detail Calcs'!$C$162) -> 0 | E194: =SUMIFS('Mobile-Data'!$I$9:$I$1048576,'Mobile-Data'!$D$9:$D$1048576,$B194,'Mobile-Data'!$E$9:$E$1048576,'Mobile-Detail Calcs'!E$167,'Mobile-Data'!$G$9:$G$1048576,'Mobile-Detail Calcs'!E$168,'Mobile-Data'!$C$9:$C$1048576,'Mobile-Detail Calcs'!$C$162) -> 0 | F194: =SUMIFS('Mobile-Data'!$I$9:$I$1048576,'Mobile-Data'!$D$9:$D$1048576,$B194,'Mobile-Data'!$E$9:$E$1048576,'Mobile-Detail Calcs'!F$167,'Mobile-Data'!$G$9:$G$1048576,'Mobile-Detail Calcs'!F$168,'Mobile-Data'!$C$9:$C$1048576,'Mobile-Detail Calcs'!$C$162) -> 0 | G194: =SUMIFS('Mobile-Data'!$I$9:$I$1048576,'Mobile-Data'!$D$9:$D$1048576,$B194,'Mobile-Data'!$E$9:$E$1048576,'Mobile-Detail Calcs'!G$167,'Mobile-Data'!$G$9:$G$1048576,'Mobile-Detail Calcs'!G$168,'Mobile-Data'!$C$9:$C$1048576,'Mobile-Detail Calcs'!$C$162) -> 0 | H194: =SUMIFS('Mobile-Data'!$I$9:$I$1048576,'Mobile-Data'!$D$9:$D$1048576,$B194,'Mobile-Data'!$E$9:$E$1048576,'Mobile-Detail Calcs'!H$167,'Mobile-Data'!$G$9:$G$1048576,'Mobile-Detail Calcs'!H$168,'Mobile-Data'!$C$9:$C$1048576,'Mobile-Detail Calcs'!$C$162) -> 0 | I194: 0 | K194: 2005 | L194: =C194*Factors!C234*g_kg*kg_mt*GWP_CH4 -> 0 | M194: =D194*Factors!D234*g_kg*kg_mt*GWP_CH4 -> 0 | N194: =E194*Factors!E234*g_kg*kg_mt*GWP_CH4 -> 0 | O194: =F194*Factors!F234*g_kg*kg_mt*GWP_CH4 -> 0 | P194: =G194*Factors!G234*g_kg*kg_mt*GWP_CH4 -> 0 | Q194: =H194*Factors!H234*g_kg*kg_mt*GWP_CH4 -> 0 | R194: 0 | T194: 2005 | U194: =C194*Factors!K234*g_kg*kg_mt*GWP_N2O -> 0 | V194: =D194*Factors!L234*g_kg*kg_mt*GWP_N2O -> 0 | W194: =E194*Factors!M234*g_kg*kg_mt*GWP_N2O -> 0 | X194: =F194*Factors!N234*g_kg*kg_mt*GWP_N2O -> 0 | Y194: =G194*Factors!O234*g_kg*kg_mt*GWP_N2O -> 0 | Z194: =H194*Factors!P234*g_kg*kg_mt*GWP_N2O -> 0 | AA194: 0
B195: 2006 | C195: =SUMIFS('Mobile-Data'!$I$9:$I$1048576,'Mobile-Data'!$D$9:$D$1048576,$B195,'Mobile-Data'!$E$9:$E$1048576,'Mobile-Detail Calcs'!C$167,'Mobile-Data'!$G$9:$G$1048576,'Mobile-Detail Calcs'!C$168,'Mobile-Data'!$C$9:$C$1048576,'Mobile-Detail Calcs'!$C$162) -> 0 | D195: =SUMIFS('Mobile-Data'!$I$9:$I$1048576,'Mobile-Data'!$D$9:$D$1048576,$B195,'Mobile-Data'!$E$9:$E$1048576,'Mobile-Detail Calcs'!D$167,'Mobile-Data'!$G$9:$G$1048576,'Mobile-Detail Calcs'!D$168,'Mobile-Data'!$C$9:$C$1048576,'Mobile-Detail Calcs'!$C$162) -> 0 | E195: =SUMIFS('Mobile-Data'!$I$9:$I$1048576,'Mobile-Data'!$D$9:$D$1048576,$B195,'Mobile-Data'!$E$9:$E$1048576,'Mobile-Detail Calcs'!E$167,'Mobile-Data'!$G$9:$G$1048576,'Mobile-Detail Calcs'!E$168,'Mobile-Data'!$C$9:$C$1048576,'Mobile-Detail Calcs'!$C$162) -> 0 | F195: =SUMIFS('Mobile-Data'!$I$9:$I$1048576,'Mobile-Data'!$D$9:$D$1048576,$B195,'Mobile-Data'!$E$9:$E$1048576,'Mobile-Detail Calcs'!F$167,'Mobile-Data'!$G$9:$G$1048576,'Mobile-Detail Calcs'!F$168,'Mobile-Data'!$C$9:$C$1048576,'Mobile-Detail Calcs'!$C$162) -> 0 | G195: =SUMIFS('Mobile-Data'!$I$9:$I$1048576,'Mobile-Data'!$D$9:$D$1048576,$B195,'Mobile-Data'!$E$9:$E$1048576,'Mobile-Detail Calcs'!G$167,'Mobile-Data'!$G$9:$G$1048576,'Mobile-Detail Calcs'!G$168,'Mobile-Data'!$C$9:$C$1048576,'Mobile-Detail Calcs'!$C$162) -> 0 | H195: =SUMIFS('Mobile-Data'!$I$9:$I$1048576,'Mobile-Data'!$D$9:$D$1048576,$B195,'Mobile-Data'!$E$9:$E$1048576,'Mobile-Detail Calcs'!H$167,'Mobile-Data'!$G$9:$G$1048576,'Mobile-Detail Calcs'!H$168,'Mobile-Data'!$C$9:$C$1048576,'Mobile-Detail Calcs'!$C$162) -> 0 | I195: 0 | K195: 2006 | L195: =C195*Factors!C235*g_kg*kg_mt*GWP_CH4 -> 0 | M195: =D195*Factors!D235*g_kg*kg_mt*GWP_CH4 -> 0 | N195: =E195*Factors!E235*g_kg*kg_mt*GWP_CH4 -> 0 | O195: =F195*Factors!F235*g_kg*kg_mt*GWP_CH4 -> 0 | P195: =G195*Factors!G235*g_kg*kg_mt*GWP_CH4 -> 0 | Q195: =H195*Factors!H235*g_kg*kg_mt*GWP_CH4 -> 0 | R195: 0 | T195: 2006 | U195: =C195*Factors!K235*g_kg*kg_mt*GWP_N2O -> 0 | V195: =D195*Factors!L235*g_kg*kg_mt*GWP_N2O -> 0 | W195: =E195*Factors!M235*g_kg*kg_mt*GWP_N2O -> 0 | X195: =F195*Factors!N235*g_kg*kg_mt*GWP_N2O -> 0 | Y195: =G195*Factors!O235*g_kg*kg_mt*GWP_N2O -> 0 | Z195: =H195*Factors!P235*g_kg*kg_mt*GWP_N2O -> 0 | AA195: 0
B196: 2007 | C196: =SUMIFS('Mobile-Data'!$I$9:$I$1048576,'Mobile-Data'!$D$9:$D$1048576,$B196,'Mobile-Data'!$E$9:$E$1048576,'Mobile-Detail Calcs'!C$167,'Mobile-Data'!$G$9:$G$1048576,'Mobile-Detail Calcs'!C$168,'Mobile-Data'!$C$9:$C$1048576,'Mobile-Detail Calcs'!$C$162) -> 0 | D196: =SUMIFS('Mobile-Data'!$I$9:$I$1048576,'Mobile-Data'!$D$9:$D$1048576,$B196,'Mobile-Data'!$E$9:$E$1048576,'Mobile-Detail Calcs'!D$167,'Mobile-Data'!$G$9:$G$1048576,'Mobile-Detail Calcs'!D$168,'Mobile-Data'!$C$9:$C$1048576,'Mobile-Detail Calcs'!$C$162) -> 0 | E196: =SUMIFS('Mobile-Data'!$I$9:$I$1048576,'Mobile-Data'!$D$9:$D$1048576,$B196,'Mobile-Data'!$E$9:$E$1048576,'Mobile-Detail Calcs'!E$167,'Mobile-Data'!$G$9:$G$1048576,'Mobile-Detail Calcs'!E$168,'Mobile-Data'!$C$9:$C$1048576,'Mobile-Detail Calcs'!$C$162) -> 0 | F196: =SUMIFS('Mobile-Data'!$I$9:$I$1048576,'Mobile-Data'!$D$9:$D$1048576,$B196,'Mobile-Data'!$E$9:$E$1048576,'Mobile-Detail Calcs'!F$167,'Mobile-Data'!$G$9:$G$1048576,'Mobile-Detail Calcs'!F$168,'Mobile-Data'!$C$9:$C$1048576,'Mobile-Detail Calcs'!$C$162) -> 0 | G196: =SUMIFS('Mobile-Data'!$I$9:$I$1048576,'Mobile-Data'!$D$9:$D$1048576,$B196,'Mobile-Data'!$E$9:$E$1048576,'Mobile-Detail Calcs'!G$167,'Mobile-Data'!$G$9:$G$1048576,'Mobile-Detail Calcs'!G$168,'Mobile-Data'!$C$9:$C$1048576,'Mobile-Detail Calcs'!$C$162) -> 0 | H196: =SUMIFS('Mobile-Data'!$I$9:$I$1048576,'Mobile-Data'!$D$9:$D$1048576,$B196,'Mobile-Data'!$E$9:$E$1048576,'Mobile-Detail Calcs'!H$167,'Mobile-Data'!$G$9:$G$1048576,'Mobile-Detail Calcs'!H$168,'Mobile-Data'!$C$9:$C$1048576,'Mobile-Detail Calcs'!$C$162) -> 0 | I196: 0 | K196: 2007 | L196: =C196*Factors!C236*g_kg*kg_mt*GWP_CH4 -> 0 | M196: =D196*Factors!D236*g_kg*kg_mt*GWP_CH4 -> 0 | N196: =E196*Factors!E236*g_kg*kg_mt*GWP_CH4 -> 0 | O196: =F196*Factors!F236*g_kg*kg_mt*GWP_CH4 -> 0 | P196: =G196*Factors!G236*g_kg*kg_mt*GWP_CH4 -> 0 | Q196: =H196*Factors!H236*g_kg*kg_mt*GWP_CH4 -> 0 | R196: 0 | T196: 2007 | U196: =C196*Factors!K236*g_kg*kg_mt*GWP_N2O -> 0 | V196: =D196*Factors!L236*g_kg*kg_mt*GWP_N2O -> 0 | W196: =E196*Factors!M236*g_kg*kg_mt*GWP_N2O -> 0 | X196: =F196*Factors!N236*g_kg*kg_mt*GWP_N2O -> 0 | Y196: =G196*Factors!O236*g_kg*kg_mt*GWP_N2O -> 0 | Z196: =H196*Factors!P236*g_kg*kg_mt*GWP_N2O -> 0 | AA196: 0
B197: 2008 | C197: =SUMIFS('Mobile-Data'!$I$9:$I$1048576,'Mobile-Data'!$D$9:$D$1048576,$B197,'Mobile-Data'!$E$9:$E$1048576,'Mobile-Detail Calcs'!C$167,'Mobile-Data'!$G$9:$G$1048576,'Mobile-Detail Calcs'!C$168,'Mobile-Data'!$C$9:$C$1048576,'Mobile-Detail Calcs'!$C$162) -> 0 | D197: =SUMIFS('Mobile-Data'!$I$9:$I$1048576,'Mobile-Data'!$D$9:$D$1048576,$B197,'Mobile-Data'!$E$9:$E$1048576,'Mobile-Detail Calcs'!D$167,'Mobile-Data'!$G$9:$G$1048576,'Mobile-Detail Calcs'!D$168,'Mobile-Data'!$C$9:$C$1048576,'Mobile-Detail Calcs'!$C$162) -> 0 | E197: =SUMIFS('Mobile-Data'!$I$9:$I$1048576,'Mobile-Data'!$D$9:$D$1048576,$B197,'Mobile-Data'!$E$9:$E$1048576,'Mobile-Detail Calcs'!E$167,'Mobile-Data'!$G$9:$G$1048576,'Mobile-Detail Calcs'!E$168,'Mobile-Data'!$C$9:$C$1048576,'Mobile-Detail Calcs'!$C$162) -> 0 | F197: =SUMIFS('Mobile-Data'!$I$9:$I$1048576,'Mobile-Data'!$D$9:$D$1048576,$B197,'Mobile-Data'!$E$9:$E$1048576,'Mobile-Detail Calcs'!F$167,'Mobile-Data'!$G$9:$G$1048576,'Mobile-Detail Calcs'!F$168,'Mobile-Data'!$C$9:$C$1048576,'Mobile-Detail Calcs'!$C$162) -> 0 | G197: =SUMIFS('Mobile-Data'!$I$9:$I$1048576,'Mobile-Data'!$D$9:$D$1048576,$B197,'Mobile-Data'!$E$9:$E$1048576,'Mobile-Detail Calcs'!G$167,'Mobile-Data'!$G$9:$G$1048576,'Mobile-Detail Calcs'!G$168,'Mobile-Data'!$C$9:$C$1048576,'Mobile-Detail Calcs'!$C$162) -> 0 | H197: =SUMIFS('Mobile-Data'!$I$9:$I$1048576,'Mobile-Data'!$D$9:$D$1048576,$B197,'Mobile-Data'!$E$9:$E$1048576,'Mobile-Detail Calcs'!H$167,'Mobile-Data'!$G$9:$G$1048576,'Mobile-Detail Calcs'!H$168,'Mobile-Data'!$C$9:$C$1048576,'Mobile-Detail Calcs'!$C$162) -> 0 | I197: 0 | K197: 2008 | L197: =C197*Factors!C237*g_kg*kg_mt*GWP_CH4 -> 0 | M197: =D197*Factors!D237*g_kg*kg_mt*GWP_CH4 -> 0 | N197: =E197*Factors!E237*g_kg*kg_mt*GWP_CH4 -> 0 | O197: =F197*Factors!F237*g_kg*kg_mt*GWP_CH4 -> 0 | P197: =G197*Factors!G237*g_kg*kg_mt*GWP_CH4 -> 0 | Q197: =H197*Factors!H237*g_kg*kg_mt*GWP_CH4 -> 0 | R197: 0 | T197: 2008 | U197: =C197*Factors!K237*g_kg*kg_mt*GWP_N2O -> 0 | V197: =D197*Factors!L237*g_kg*kg_mt*GWP_N2O -> 0 | W197: =E197*Factors!M237*g_kg*kg_mt*GWP_N2O -> 0 | X197: =F197*Factors!N237*g_kg*kg_mt*GWP_N2O -> 0 | Y197: =G197*Factors!O237*g_kg*kg_mt*GWP_N2O -> 0 | Z197: =H197*Factors!P237*g_kg*kg_mt*GWP_N2O -> 0 | AA197: 0
B198: 2009 | C198: =SUMIFS('Mobile-Data'!$I$9:$I$1048576,'Mobile-Data'!$D$9:$D$1048576,$B198,'Mobile-Data'!$E$9:$E$1048576,'Mobile-Detail Calcs'!C$167,'Mobile-Data'!$G$9:$G$1048576,'Mobile-Detail Calcs'!C$168,'Mobile-Data'!$C$9:$C$1048576,'Mobile-Detail Calcs'!$C$162) -> 0 | D198: =SUMIFS('Mobile-Data'!$I$9:$I$1048576,'Mobile-Data'!$D$9:$D$1048576,$B198,'Mobile-Data'!$E$9:$E$1048576,'Mobile-Detail Calcs'!D$167,'Mobile-Data'!$G$9:$G$1048576,'Mobile-Detail Calcs'!D$168,'Mobile-Data'!$C$9:$C$1048576,'Mobile-Detail Calcs'!$C$162) -> 0 | E198: =SUMIFS('Mobile-Data'!$I$9:$I$1048576,'Mobile-Data'!$D$9:$D$1048576,$B198,'Mobile-Data'!$E$9:$E$1048576,'Mobile-Detail Calcs'!E$167,'Mobile-Data'!$G$9:$G$1048576,'Mobile-Detail Calcs'!E$168,'Mobile-Data'!$C$9:$C$1048576,'Mobile-Detail Calcs'!$C$162) -> 0 | F198: =SUMIFS('Mobile-Data'!$I$9:$I$1048576,'Mobile-Data'!$D$9:$D$1048576,$B198,'Mobile-Data'!$E$9:$E$1048576,'Mobile-Detail Calcs'!F$167,'Mobile-Data'!$G$9:$G$1048576,'Mobile-Detail Calcs'!F$168,'Mobile-Data'!$C$9:$C$1048576,'Mobile-Detail Calcs'!$C$162) -> 0 | G198: =SUMIFS('Mobile-Data'!$I$9:$I$1048576,'Mobile-Data'!$D$9:$D$1048576,$B198,'Mobile-Data'!$E$9:$E$1048576,'Mobile-Detail Calcs'!G$167,'Mobile-Data'!$G$9:$G$1048576,'Mobile-Detail Calcs'!G$168,'Mobile-Data'!$C$9:$C$1048576,'Mobile-Detail Calcs'!$C$162) -> 0 | H198: =SUMIFS('Mobile-Data'!$I$9:$I$1048576,'Mobile-Data'!$D$9:$D$1048576,$B198,'Mobile-Data'!$E$9:$E$1048576,'Mobile-Detail Calcs'!H$167,'Mobile-Data'!$G$9:$G$1048576,'Mobile-Detail Calcs'!H$168,'Mobile-Data'!$C$9:$C$1048576,'Mobile-Detail Calcs'!$C$162) -> 0 | I198: 0 | K198: 2009 | L198: =C198*Factors!C238*g_kg*kg_mt*GWP_CH4 -> 0 | M198: =D198*Factors!D238*g_kg*kg_mt*GWP_CH4 -> 0 | N198: =E198*Factors!E238*g_kg*kg_mt*GWP_CH4 -> 0 | O198: =F198*Factors!F238*g_kg*kg_mt*GWP_CH4 -> 0 | P198: =G198*Factors!G238*g_kg*kg_mt*GWP_CH4 -> 0 | Q198: =H198*Factors!H238*g_kg*kg_mt*GWP_CH4 -> 0 | R198: 0 | T198: 2009 | U198: =C198*Factors!K238*g_kg*kg_mt*GWP_N2O -> 0 | V198: =D198*Factors!L238*g_kg*kg_mt*GWP_N2O -> 0 | W198: =E198*Factors!M238*g_kg*kg_mt*GWP_N2O -> 0 | X198: =F198*Factors!N238*g_kg*kg_mt*GWP_N2O -> 0 | Y198: =G198*Factors!O238*g_kg*kg_mt*GWP_N2O -> 0 | Z198: =H198*Factors!P238*g_kg*kg_mt*GWP_N2O -> 0 | AA198: 0
B199: 2010 | C199: =SUMIFS('Mobile-Data'!$I$9:$I$1048576,'Mobile-Data'!$D$9:$D$1048576,$B199,'Mobile-Data'!$E$9:$E$1048576,'Mobile-Detail Calcs'!C$167,'Mobile-Data'!$G$9:$G$1048576,'Mobile-Detail Calcs'!C$168,'Mobile-Data'!$C$9:$C$1048576,'Mobile-Detail Calcs'!$C$162) -> 0 | D199: =SUMIFS('Mobile-Data'!$I$9:$I$1048576,'Mobile-Data'!$D$9:$D$1048576,$B199,'Mobile-Data'!$E$9:$E$1048576,'Mobile-Detail Calcs'!D$167,'Mobile-Data'!$G$9:$G$1048576,'Mobile-Detail Calcs'!D$168,'Mobile-Data'!$C$9:$C$1048576,'Mobile-Detail Calcs'!$C$162) -> 0 | E199: =SUMIFS('Mobile-Data'!$I$9:$I$1048576,'Mobile-Data'!$D$9:$D$1048576,$B199,'Mobile-Data'!$E$9:$E$1048576,'Mobile-Detail Calcs'!E$167,'Mobile-Data'!$G$9:$G$1048576,'Mobile-Detail Calcs'!E$168,'Mobile-Data'!$C$9:$C$1048576,'Mobile-Detail Calcs'!$C$162) -> 0 | F199: =SUMIFS('Mobile-Data'!$I$9:$I$1048576,'Mobile-Data'!$D$9:$D$1048576,$B199,'Mobile-Data'!$E$9:$E$1048576,'Mobile-Detail Calcs'!F$167,'Mobile-Data'!$G$9:$G$1048576,'Mobile-Detail Calcs'!F$168,'Mobile-Data'!$C$9:$C$1048576,'Mobile-Detail Calcs'!$C$162) -> 0 | G199: =SUMIFS('Mobile-Data'!$I$9:$I$1048576,'Mobile-Data'!$D$9:$D$1048576,$B199,'Mobile-Data'!$E$9:$E$1048576,'Mobile-Detail Calcs'!G$167,'Mobile-Data'!$G$9:$G$1048576,'Mobile-Detail Calcs'!G$168,'Mobile-Data'!$C$9:$C$1048576,'Mobile-Detail Calcs'!$C$162) -> 0 | H199: =SUMIFS('Mobile-Data'!$I$9:$I$1048576,'Mobile-Data'!$D$9:$D$1048576,$B199,'Mobile-Data'!$E$9:$E$1048576,'Mobile-Detail Calcs'!H$167,'Mobile-Data'!$G$9:$G$1048576,'Mobile-Detail Calcs'!H$168,'Mobile-Data'!$C$9:$C$1048576,'Mobile-Detail Calcs'!$C$162) -> 0 | I199: 0 | K199: 2010 | L199: =C199*Factors!C239*g_kg*kg_mt*GWP_CH4 -> 0 | M199: =D199*Factors!D239*g_kg*kg_mt*GWP_CH4 -> 0 | N199: =E199*Factors!E239*g_kg*kg_mt*GWP_CH4 -> 0 | O199: =F199*Factors!F239*g_kg*kg_mt*GWP_CH4 -> 0 | P199: =G199*Factors!G239*g_kg*kg_mt*GWP_CH4 -> 0 | Q199: =H199*Factors!H239*g_kg*kg_mt*GWP_CH4 -> 0 | R199: 0 | T199: 2010 | U199: =C199*Factors!K239*g_kg*kg_mt*GWP_N2O -> 0 | V199: =D199*Factors!L239*g_kg*kg_mt*GWP_N2O -> 0 | W199: =E199*Factors!M239*g_kg*kg_mt*GWP_N2O -> 0 | X199: =F199*Factors!N239*g_kg*kg_mt*GWP_N2O -> 0 | Y199: =G199*Factors!O239*g_kg*kg_mt*GWP_N2O -> 0 | Z199: =H199*Factors!P239*g_kg*kg_mt*GWP_N2O -> 0 | AA199: 0
B200: 2011 | C200: =SUMIFS('Mobile-Data'!$I$9:$I$1048576,'Mobile-Data'!$D$9:$D$1048576,$B200,'Mobile-Data'!$E$9:$E$1048576,'Mobile-Detail Calcs'!C$167,'Mobile-Data'!$G$9:$G$1048576,'Mobile-Detail Calcs'!C$168,'Mobile-Data'!$C$9:$C$1048576,'Mobile-Detail Calcs'!$C$162) -> 0 | D200: =SUMIFS('Mobile-Data'!$I$9:$I$1048576,'Mobile-Data'!$D$9:$D$1048576,$B200,'Mobile-Data'!$E$9:$E$1048576,'Mobile-Detail Calcs'!D$167,'Mobile-Data'!$G$9:$G$1048576,'Mobile-Detail Calcs'!D$168,'Mobile-Data'!$C$9:$C$1048576,'Mobile-Detail Calcs'!$C$162) -> 0 | E200: =SUMIFS('Mobile-Data'!$I$9:$I$1048576,'Mobile-Data'!$D$9:$D$1048576,$B200,'Mobile-Data'!$E$9:$E$1048576,'Mobile-Detail Calcs'!E$167,'Mobile-Data'!$G$9:$G$1048576,'Mobile-Detail Calcs'!E$168,'Mobile-Data'!$C$9:$C$1048576,'Mobile-Detail Calcs'!$C$162) -> 0 | F200: =SUMIFS('Mobile-Data'!$I$9:$I$1048576,'Mobile-Data'!$D$9:$D$1048576,$B200,'Mobile-Data'!$E$9:$E$1048576,'Mobile-Detail Calcs'!F$167,'Mobile-Data'!$G$9:$G$1048576,'Mobile-Detail Calcs'!F$168,'Mobile-Data'!$C$9:$C$1048576,'Mobile-Detail Calcs'!$C$162) -> 0 | G200: =SUMIFS('Mobile-Data'!$I$9:$I$1048576,'Mobile-Data'!$D$9:$D$1048576,$B200,'Mobile-Data'!$E$9:$E$1048576,'Mobile-Detail Calcs'!G$167,'Mobile-Data'!$G$9:$G$1048576,'Mobile-Detail Calcs'!G$168,'Mobile-Data'!$C$9:$C$1048576,'Mobile-Detail Calcs'!$C$162) -> 0 | H200: =SUMIFS('Mobile-Data'!$I$9:$I$1048576,'Mobile-Data'!$D$9:$D$1048576,$B200,'Mobile-Data'!$E$9:$E$1048576,'Mobile-Detail Calcs'!H$167,'Mobile-Data'!$G$9:$G$1048576,'Mobile-Detail Calcs'!H$168,'Mobile-Data'!$C$9:$C$1048576,'Mobile-Detail Calcs'!$C$162) -> 0 | I200: 0 | K200: 2011 | L200: =C200*Factors!C240*g_kg*kg_mt*GWP_CH4 -> 0 | M200: =D200*Factors!D240*g_kg*kg_mt*GWP_CH4 -> 0 | N200: =E200*Factors!E240*g_kg*kg_mt*GWP_CH4 -> 0 | O200: =F200*Factors!F240*g_kg*kg_mt*GWP_CH4 -> 0 | P200: =G200*Factors!G240*g_kg*kg_mt*GWP_CH4 -> 0 | Q200: =H200*Factors!H240*g_kg*kg_mt*GWP_CH4 -> 0 | R200: 0 | T200: 2011 | U200: =C200*Factors!K240*g_kg*kg_mt*GWP_N2O -> 0 | V200: =D200*Factors!L240*g_kg*kg_mt*GWP_N2O -> 0 | W200: =E200*Factors!M240*g_kg*kg_mt*GWP_N2O -> 0 | X200: =F200*Factors!N240*g_kg*kg_mt*GWP_N2O -> 0 | Y200: =G200*Factors!O240*g_kg*kg_mt*GWP_N2O -> 0 | Z200: =H200*Factors!P240*g_kg*kg_mt*GWP_N2O -> 0 | AA200: 0
B201: 2012 | C201: =SUMIFS('Mobile-Data'!$I$9:$I$1048576,'Mobile-Data'!$D$9:$D$1048576,$B201,'Mobile-Data'!$E$9:$E$1048576,'Mobile-Detail Calcs'!C$167,'Mobile-Data'!$G$9:$G$1048576,'Mobile-Detail Calcs'!C$168,'Mobile-Data'!$C$9:$C$1048576,'Mobile-Detail Calcs'!$C$162) -> 0 | D201: =SUMIFS('Mobile-Data'!$I$9:$I$1048576,'Mobile-Data'!$D$9:$D$1048576,$B201,'Mobile-Data'!$E$9:$E$1048576,'Mobile-Detail Calcs'!D$167,'Mobile-Data'!$G$9:$G$1048576,'Mobile-Detail Calcs'!D$168,'Mobile-Data'!$C$9:$C$1048576,'Mobile-Detail Calcs'!$C$162) -> 0 | E201: =SUMIFS('Mobile-Data'!$I$9:$I$1048576,'Mobile-Data'!$D$9:$D$1048576,$B201,'Mobile-Data'!$E$9:$E$1048576,'Mobile-Detail Calcs'!E$167,'Mobile-Data'!$G$9:$G$1048576,'Mobile-Detail Calcs'!E$168,'Mobile-Data'!$C$9:$C$1048576,'Mobile-Detail Calcs'!$C$162) -> 0 | F201: =SUMIFS('Mobile-Data'!$I$9:$I$1048576,'Mobile-Data'!$D$9:$D$1048576,$B201,'Mobile-Data'!$E$9:$E$1048576,'Mobile-Detail Calcs'!F$167,'Mobile-Data'!$G$9:$G$1048576,'Mobile-Detail Calcs'!F$168,'Mobile-Data'!$C$9:$C$1048576,'Mobile-Detail Calcs'!$C$162) -> 0 | G201: =SUMIFS('Mobile-Data'!$I$9:$I$1048576,'Mobile-Data'!$D$9:$D$1048576,$B201,'Mobile-Data'!$E$9:$E$1048576,'Mobile-Detail Calcs'!G$167,'Mobile-Data'!$G$9:$G$1048576,'Mobile-Detail Calcs'!G$168,'Mobile-Data'!$C$9:$C$1048576,'Mobile-Detail Calcs'!$C$162) -> 0 | H201: =SUMIFS('Mobile-Data'!$I$9:$I$1048576,'Mobile-Data'!$D$9:$D$1048576,$B201,'Mobile-Data'!$E$9:$E$1048576,'Mobile-Detail Calcs'!H$167,'Mobile-Data'!$G$9:$G$1048576,'Mobile-Detail Calcs'!H$168,'Mobile-Data'!$C$9:$C$1048576,'Mobile-Detail Calcs'!$C$162) -> 0 | I201: 0 | K201: 2012 | L201: =C201*Factors!C241*g_kg*kg_mt*GWP_CH4 -> 0 | M201: =D201*Factors!D241*g_kg*kg_mt*GWP_CH4 -> 0 | N201: =E201*Factors!E241*g_kg*kg_mt*GWP_CH4 -> 0 | O201: =F201*Factors!F241*g_kg*kg_mt*GWP_CH4 -> 0 | P201: =G201*Factors!G241*g_kg*kg_mt*GWP_CH4 -> 0 | Q201: =H201*Factors!H241*g_kg*kg_mt*GWP_CH4 -> 0 | R201: 0 | T201: 2012 | U201: =C201*Factors!K241*g_kg*kg_mt*GWP_N2O -> 0 | V201: =D201*Factors!L241*g_kg*kg_mt*GWP_N2O -> 0 | W201: =E201*Factors!M241*g_kg*kg_mt*GWP_N2O -> 0 | X201: =F201*Factors!N241*g_kg*kg_mt*GWP_N2O -> 0 | Y201: =G201*Factors!O241*g_kg*kg_mt*GWP_N2O -> 0 | Z201: =H201*Factors!P241*g_kg*kg_mt*GWP_N2O -> 0 | AA201: 0
B202: 2013 | C202: =SUMIFS('Mobile-Data'!$I$9:$I$1048576,'Mobile-Data'!$D$9:$D$1048576,$B202,'Mobile-Data'!$E$9:$E$1048576,'Mobile-Detail Calcs'!C$167,'Mobile-Data'!$G$9:$G$1048576,'Mobile-Detail Calcs'!C$168,'Mobile-Data'!$C$9:$C$1048576,'Mobile-Detail Calcs'!$C$162) -> 0 | D202: =SUMIFS('Mobile-Data'!$I$9:$I$1048576,'Mobile-Data'!$D$9:$D$1048576,$B202,'Mobile-Data'!$E$9:$E$1048576,'Mobile-Detail Calcs'!D$167,'Mobile-Data'!$G$9:$G$1048576,'Mobile-Detail Calcs'!D$168,'Mobile-Data'!$C$9:$C$1048576,'Mobile-Detail Calcs'!$C$162) -> 0 | E202: =SUMIFS('Mobile-Data'!$I$9:$I$1048576,'Mobile-Data'!$D$9:$D$1048576,$B202,'Mobile-Data'!$E$9:$E$1048576,'Mobile-Detail Calcs'!E$167,'Mobile-Data'!$G$9:$G$1048576,'Mobile-Detail Calcs'!E$168,'Mobile-Data'!$C$9:$C$1048576,'Mobile-Detail Calcs'!$C$162) -> 0 | F202: =SUMIFS('Mobile-Data'!$I$9:$I$1048576,'Mobile-Data'!$D$9:$D$1048576,$B202,'Mobile-Data'!$E$9:$E$1048576,'Mobile-Detail Calcs'!F$167,'Mobile-Data'!$G$9:$G$1048576,'Mobile-Detail Calcs'!F$168,'Mobile-Data'!$C$9:$C$1048576,'Mobile-Detail Calcs'!$C$162) -> 0 | G202: =SUMIFS('Mobile-Data'!$I$9:$I$1048576,'Mobile-Data'!$D$9:$D$1048576,$B202,'Mobile-Data'!$E$9:$E$1048576,'Mobile-Detail Calcs'!G$167,'Mobile-Data'!$G$9:$G$1048576,'Mobile-Detail Calcs'!G$168,'Mobile-Data'!$C$9:$C$1048576,'Mobile-Detail Calcs'!$C$162) -> 0 | H202: =SUMIFS('Mobile-Data'!$I$9:$I$1048576,'Mobile-Data'!$D$9:$D$1048576,$B202,'Mobile-Data'!$E$9:$E$1048576,'Mobile-Detail Calcs'!H$167,'Mobile-Data'!$G$9:$G$1048576,'Mobile-Detail Calcs'!H$168,'Mobile-Data'!$C$9:$C$1048576,'Mobile-Detail Calcs'!$C$162) -> 0 | I202: =SUM(C202:H202) -> 0 | K202: 2013 | L202: =C202*Factors!C242*g_kg*kg_mt*GWP_CH4 -> 0 | M202: =D202*Factors!D242*g_kg*kg_mt*GWP_CH4 -> 0 | N202: =E202*Factors!E242*g_kg*kg_mt*GWP_CH4 -> 0 | O202: =F202*Factors!F242*g_kg*kg_mt*GWP_CH4 -> 0 | P202: =G202*Factors!G242*g_kg*kg_mt*GWP_CH4 -> 0 | Q202: =H202*Factors!H242*g_kg*kg_mt*GWP_CH4 -> 0 | R202: =SUM(L202:Q202) -> 0 | T202: 2013 | U202: =C202*Factors!K242*g_kg*kg_mt*GWP_N2O -> 0 | V202: =D202*Factors!L242*g_kg*kg_mt*GWP_N2O -> 0 | W202: =E202*Factors!M242*g_kg*kg_mt*GWP_N2O -> 0 | X202: =F202*Factors!N242*g_kg*kg_mt*GWP_N2O -> 0 | Y202: =G202*Factors!O242*g_kg*kg_mt*GWP_N2O -> 0 | Z202: =H202*Factors!P242*g_kg*kg_mt*GWP_N2O -> 0 | AA202: =SUM(U202:Z202) -> 0
B203: 2014 | C203: =SUMIFS('Mobile-Data'!$I$9:$I$1048576,'Mobile-Data'!$D$9:$D$1048576,$B203,'Mobile-Data'!$E$9:$E$1048576,'Mobile-Detail Calcs'!C$167,'Mobile-Data'!$G$9:$G$1048576,'Mobile-Detail Calcs'!C$168,'Mobile-Data'!$C$9:$C$1048576,'Mobile-Detail Calcs'!$C$162) -> 0 | D203: =SUMIFS('Mobile-Data'!$I$9:$I$1048576,'Mobile-Data'!$D$9:$D$1048576,$B203,'Mobile-Data'!$E$9:$E$1048576,'Mobile-Detail Calcs'!D$167,'Mobile-Data'!$G$9:$G$1048576,'Mobile-Detail Calcs'!D$168,'Mobile-Data'!$C$9:$C$1048576,'Mobile-Detail Calcs'!$C$162) -> 0 | E203: =SUMIFS('Mobile-Data'!$I$9:$I$1048576,'Mobile-Data'!$D$9:$D$1048576,$B203,'Mobile-Data'!$E$9:$E$1048576,'Mobile-Detail Calcs'!E$167,'Mobile-Data'!$G$9:$G$1048576,'Mobile-Detail Calcs'!E$168,'Mobile-Data'!$C$9:$C$1048576,'Mobile-Detail Calcs'!$C$162) -> 0 | F203: =SUMIFS('Mobile-Data'!$I$9:$I$1048576,'Mobile-Data'!$D$9:$D$1048576,$B203,'Mobile-Data'!$E$9:$E$1048576,'Mobile-Detail Calcs'!F$167,'Mobile-Data'!$G$9:$G$1048576,'Mobile-Detail Calcs'!F$168,'Mobile-Data'!$C$9:$C$1048576,'Mobile-Detail Calcs'!$C$162) -> 0 | G203: =SUMIFS('Mobile-Data'!$I$9:$I$1048576,'Mobile-Data'!$D$9:$D$1048576,$B203,'Mobile-Data'!$E$9:$E$1048576,'Mobile-Detail Calcs'!G$167,'Mobile-Data'!$G$9:$G$1048576,'Mobile-Detail Calcs'!G$168,'Mobile-Data'!$C$9:$C$1048576,'Mobile-Detail Calcs'!$C$162) -> 0 | H203: =SUMIFS('Mobile-Data'!$I$9:$I$1048576,'Mobile-Data'!$D$9:$D$1048576,$B203,'Mobile-Data'!$E$9:$E$1048576,'Mobile-Detail Calcs'!H$167,'Mobile-Data'!$G$9:$G$1048576,'Mobile-Detail Calcs'!H$168,'Mobile-Data'!$C$9:$C$1048576,'Mobile-Detail Calcs'!$C$162) -> 0 | I203: 0 | K203: 2014 | L203: =C203*Factors!C243*g_kg*kg_mt*GWP_CH4 -> 0 | M203: =D203*Factors!D243*g_kg*kg_mt*GWP_CH4 -> 0 | N203: =E203*Factors!E243*g_kg*kg_mt*GWP_CH4 -> 0 | O203: =F203*Factors!F243*g_kg*kg_mt*GWP_CH4 -> 0 | P203: =G203*Factors!G243*g_kg*kg_mt*GWP_CH4 -> 0 | Q203: =H203*Factors!H243*g_kg*kg_mt*GWP_CH4 -> 0 | R203: 0 | T203: 2014 | U203: =C203*Factors!K243*g_kg*kg_mt*GWP_N2O -> 0 | V203: =D203*Factors!L243*g_kg*kg_mt*GWP_N2O -> 0 | W203: =E203*Factors!M243*g_kg*kg_mt*GWP_N2O -> 0 | X203: =F203*Factors!N243*g_kg*kg_mt*GWP_N2O -> 0 | Y203: =G203*Factors!O243*g_kg*kg_mt*GWP_N2O -> 0 | Z203: =H203*Factors!P243*g_kg*kg_mt*GWP_N2O -> 0 | AA203: 0
B204: 2015 | C204: =SUMIFS('Mobile-Data'!$I$9:$I$1048576,'Mobile-Data'!$D$9:$D$1048576,$B204,'Mobile-Data'!$E$9:$E$1048576,'Mobile-Detail Calcs'!C$167,'Mobile-Data'!$G$9:$G$1048576,'Mobile-Detail Calcs'!C$168,'Mobile-Data'!$C$9:$C$1048576,'Mobile-Detail Calcs'!$C$162) -> 0 | D204: =SUMIFS('Mobile-Data'!$I$9:$I$1048576,'Mobile-Data'!$D$9:$D$1048576,$B204,'Mobile-Data'!$E$9:$E$1048576,'Mobile-Detail Calcs'!D$167,'Mobile-Data'!$G$9:$G$1048576,'Mobile-Detail Calcs'!D$168,'Mobile-Data'!$C$9:$C$1048576,'Mobile-Detail Calcs'!$C$162) -> 0 | E204: =SUMIFS('Mobile-Data'!$I$9:$I$1048576,'Mobile-Data'!$D$9:$D$1048576,$B204,'Mobile-Data'!$E$9:$E$1048576,'Mobile-Detail Calcs'!E$167,'Mobile-Data'!$G$9:$G$1048576,'Mobile-Detail Calcs'!E$168,'Mobile-Data'!$C$9:$C$1048576,'Mobile-Detail Calcs'!$C$162) -> 0 | F204: =SUMIFS('Mobile-Data'!$I$9:$I$1048576,'Mobile-Data'!$D$9:$D$1048576,$B204,'Mobile-Data'!$E$9:$E$1048576,'Mobile-Detail Calcs'!F$167,'Mobile-Data'!$G$9:$G$1048576,'Mobile-Detail Calcs'!F$168,'Mobile-Data'!$C$9:$C$1048576,'Mobile-Detail Calcs'!$C$162) -> 0 | G204: =SUMIFS('Mobile-Data'!$I$9:$I$1048576,'Mobile-Data'!$D$9:$D$1048576,$B204,'Mobile-Data'!$E$9:$E$1048576,'Mobile-Detail Calcs'!G$167,'Mobile-Data'!$G$9:$G$1048576,'Mobile-Detail Calcs'!G$168,'Mobile-Data'!$C$9:$C$1048576,'Mobile-Detail Calcs'!$C$162) -> 0 | H204: =SUMIFS('Mobile-Data'!$I$9:$I$1048576,'Mobile-Data'!$D$9:$D$1048576,$B204,'Mobile-Data'!$E$9:$E$1048576,'Mobile-Detail Calcs'!H$167,'Mobile-Data'!$G$9:$G$1048576,'Mobile-Detail Calcs'!H$168,'Mobile-Data'!$C$9:$C$1048576,'Mobile-Detail Calcs'!$C$162) -> 0 | I204: 0 | K204: 2015 | L204: =C204*Factors!C244*g_kg*kg_mt*GWP_CH4 -> 0 | M204: =D204*Factors!D244*g_kg*kg_mt*GWP_CH4 -> 0 | N204: =E204*Factors!E244*g_kg*kg_mt*GWP_CH4 -> 0 | O204: =F204*Factors!F244*g_kg*kg_mt*GWP_CH4 -> 0 | P204: =G204*Factors!G244*g_kg*kg_mt*GWP_CH4 -> 0 | Q204: =H204*Factors!H244*g_kg*kg_mt*GWP_CH4 -> 0 | R204: 0 | T204: 2015 | U204: =C204*Factors!K244*g_kg*kg_mt*GWP_N2O -> 0 | V204: =D204*Factors!L244*g_kg*kg_mt*GWP_N2O -> 0 | W204: =E204*Factors!M244*g_kg*kg_mt*GWP_N2O -> 0 | X204: =F204*Factors!N244*g_kg*kg_mt*GWP_N2O -> 0 | Y204: =G204*Factors!O244*g_kg*kg_mt*GWP_N2O -> 0 | Z204: =H204*Factors!P244*g_kg*kg_mt*GWP_N2O -> 0 | AA204: 0
B205: 2016 | C205: =SUMIFS('Mobile-Data'!$I$9:$I$1048576,'Mobile-Data'!$D$9:$D$1048576,$B205,'Mobile-Data'!$E$9:$E$1048576,'Mobile-Detail Calcs'!C$167,'Mobile-Data'!$G$9:$G$1048576,'Mobile-Detail Calcs'!C$168,'Mobile-Data'!$C$9:$C$1048576,'Mobile-Detail Calcs'!$C$162) -> 0 | D205: =SUMIFS('Mobile-Data'!$I$9:$I$1048576,'Mobile-Data'!$D$9:$D$1048576,$B205,'Mobile-Data'!$E$9:$E$1048576,'Mobile-Detail Calcs'!D$167,'Mobile-Data'!$G$9:$G$1048576,'Mobile-Detail Calcs'!D$168,'Mobile-Data'!$C$9:$C$1048576,'Mobile-Detail Calcs'!$C$162) -> 0 | E205: =SUMIFS('Mobile-Data'!$I$9:$I$1048576,'Mobile-Data'!$D$9:$D$1048576,$B205,'Mobile-Data'!$E$9:$E$1048576,'Mobile-Detail Calcs'!E$167,'Mobile-Data'!$G$9:$G$1048576,'Mobile-Detail Calcs'!E$168,'Mobile-Data'!$C$9:$C$1048576,'Mobile-Detail Calcs'!$C$162) -> 0 | F205: =SUMIFS('Mobile-Data'!$I$9:$I$1048576,'Mobile-Data'!$D$9:$D$1048576,$B205,'Mobile-Data'!$E$9:$E$1048576,'Mobile-Detail Calcs'!F$167,'Mobile-Data'!$G$9:$G$1048576,'Mobile-Detail Calcs'!F$168,'Mobile-Data'!$C$9:$C$1048576,'Mobile-Detail Calcs'!$C$162) -> 0 | G205: =SUMIFS('Mobile-Data'!$I$9:$I$1048576,'Mobile-Data'!$D$9:$D$1048576,$B205,'Mobile-Data'!$E$9:$E$1048576,'Mobile-Detail Calcs'!G$167,'Mobile-Data'!$G$9:$G$1048576,'Mobile-Detail Calcs'!G$168,'Mobile-Data'!$C$9:$C$1048576,'Mobile-Detail Calcs'!$C$162) -> 0 | H205: =SUMIFS('Mobile-Data'!$I$9:$I$1048576,'Mobile-Data'!$D$9:$D$1048576,$B205,'Mobile-Data'!$E$9:$E$1048576,'Mobile-Detail Calcs'!H$167,'Mobile-Data'!$G$9:$G$1048576,'Mobile-Detail Calcs'!H$168,'Mobile-Data'!$C$9:$C$1048576,'Mobile-Detail Calcs'!$C$162) -> 0 | I205: 0 | K205: 2016 | L205: =C205*Factors!C245*g_kg*kg_mt*GWP_CH4 -> 0 | M205: =D205*Factors!D245*g_kg*kg_mt*GWP_CH4 -> 0 | N205: =E205*Factors!E245*g_kg*kg_mt*GWP_CH4 -> 0 | O205: =F205*Factors!F245*g_kg*kg_mt*GWP_CH4 -> 0 | P205: =G205*Factors!G245*g_kg*kg_mt*GWP_CH4 -> 0 | Q205: =H205*Factors!H245*g_kg*kg_mt*GWP_CH4 -> 0 | R205: 0 | T205: 2016 | U205: =C205*Factors!K245*g_kg*kg_mt*GWP_N2O -> 0 | V205: =D205*Factors!L245*g_kg*kg_mt*GWP_N2O -> 0 | W205: =E205*Factors!M245*g_kg*kg_mt*GWP_N2O -> 0 | X205: =F205*Factors!N245*g_kg*kg_mt*GWP_N2O -> 0 | Y205: =G205*Factors!O245*g_kg*kg_mt*GWP_N2O -> 0 | Z205: =H205*Factors!P245*g_kg*kg_mt*GWP_N2O -> 0 | AA205: 0
B206: 2017 | C206: =SUMIFS('Mobile-Data'!$I$9:$I$1048576,'Mobile-Data'!$D$9:$D$1048576,$B206,'Mobile-Data'!$E$9:$E$1048576,'Mobile-Detail Calcs'!C$167,'Mobile-Data'!$G$9:$G$1048576,'Mobile-Detail Calcs'!C$168,'Mobile-Data'!$C$9:$C$1048576,'Mobile-Detail Calcs'!$C$162) -> 0 | D206: =SUMIFS('Mobile-Data'!$I$9:$I$1048576,'Mobile-Data'!$D$9:$D$1048576,$B206,'Mobile-Data'!$E$9:$E$1048576,'Mobile-Detail Calcs'!D$167,'Mobile-Data'!$G$9:$G$1048576,'Mobile-Detail Calcs'!D$168,'Mobile-Data'!$C$9:$C$1048576,'Mobile-Detail Calcs'!$C$162) -> 0 | E206: =SUMIFS('Mobile-Data'!$I$9:$I$1048576,'Mobile-Data'!$D$9:$D$1048576,$B206,'Mobile-Data'!$E$9:$E$1048576,'Mobile-Detail Calcs'!E$167,'Mobile-Data'!$G$9:$G$1048576,'Mobile-Detail Calcs'!E$168,'Mobile-Data'!$C$9:$C$1048576,'Mobile-Detail Calcs'!$C$162) -> 0 | F206: =SUMIFS('Mobile-Data'!$I$9:$I$1048576,'Mobile-Data'!$D$9:$D$1048576,$B206,'Mobile-Data'!$E$9:$E$1048576,'Mobile-Detail Calcs'!F$167,'Mobile-Data'!$G$9:$G$1048576,'Mobile-Detail Calcs'!F$168,'Mobile-Data'!$C$9:$C$1048576,'Mobile-Detail Calcs'!$C$162) -> 0 | G206: =SUMIFS('Mobile-Data'!$I$9:$I$1048576,'Mobile-Data'!$D$9:$D$1048576,$B206,'Mobile-Data'!$E$9:$E$1048576,'Mobile-Detail Calcs'!G$167,'Mobile-Data'!$G$9:$G$1048576,'Mobile-Detail Calcs'!G$168,'Mobile-Data'!$C$9:$C$1048576,'Mobile-Detail Calcs'!$C$162) -> 0 | H206: =SUMIFS('Mobile-Data'!$I$9:$I$1048576,'Mobile-Data'!$D$9:$D$1048576,$B206,'Mobile-Data'!$E$9:$E$1048576,'Mobile-Detail Calcs'!H$167,'Mobile-Data'!$G$9:$G$1048576,'Mobile-Detail Calcs'!H$168,'Mobile-Data'!$C$9:$C$1048576,'Mobile-Detail Calcs'!$C$162) -> 0 | I206: 0 | K206: 2017 | L206: =C206*Factors!C246*g_kg*kg_mt*GWP_CH4 -> 0 | M206: =D206*Factors!D246*g_kg*kg_mt*GWP_CH4 -> 0 | N206: =E206*Factors!E246*g_kg*kg_mt*GWP_CH4 -> 0 | O206: =F206*Factors!F246*g_kg*kg_mt*GWP_CH4 -> 0 | P206: =G206*Factors!G246*g_kg*kg_mt*GWP_CH4 -> 0 | Q206: =H206*Factors!H246*g_kg*kg_mt*GWP_CH4 -> 0 | R206: 0 | T206: 2017 | U206: =C206*Factors!K246*g_kg*kg_mt*GWP_N2O -> 0 | V206: =D206*Factors!L246*g_kg*kg_mt*GWP_N2O -> 0 | W206: =E206*Factors!M246*g_kg*kg_mt*GWP_N2O -> 0 | X206: =F206*Factors!N246*g_kg*kg_mt*GWP_N2O -> 0 | Y206: =G206*Factors!O246*g_kg*kg_mt*GWP_N2O -> 0 | Z206: =H206*Factors!P246*g_kg*kg_mt*GWP_N2O -> 0 | AA206: 0
B207: 2018 | C207: =SUMIFS('Mobile-Data'!$I$9:$I$1048576,'Mobile-Data'!$D$9:$D$1048576,$B207,'Mobile-Data'!$E$9:$E$1048576,'Mobile-Detail Calcs'!C$167,'Mobile-Data'!$G$9:$G$1048576,'Mobile-Detail Calcs'!C$168,'Mobile-Data'!$C$9:$C$1048576,'Mobile-Detail Calcs'!$C$162) -> 0 | D207: =SUMIFS('Mobile-Data'!$I$9:$I$1048576,'Mobile-Data'!$D$9:$D$1048576,$B207,'Mobile-Data'!$E$9:$E$1048576,'Mobile-Detail Calcs'!D$167,'Mobile-Data'!$G$9:$G$1048576,'Mobile-Detail Calcs'!D$168,'Mobile-Data'!$C$9:$C$1048576,'Mobile-Detail Calcs'!$C$162) -> 0 | E207: =SUMIFS('Mobile-Data'!$I$9:$I$1048576,'Mobile-Data'!$D$9:$D$1048576,$B207,'Mobile-Data'!$E$9:$E$1048576,'Mobile-Detail Calcs'!E$167,'Mobile-Data'!$G$9:$G$1048576,'Mobile-Detail Calcs'!E$168,'Mobile-Data'!$C$9:$C$1048576,'Mobile-Detail Calcs'!$C$162) -> 0 | F207: =SUMIFS('Mobile-Data'!$I$9:$I$1048576,'Mobile-Data'!$D$9:$D$1048576,$B207,'Mobile-Data'!$E$9:$E$1048576,'Mobile-Detail Calcs'!F$167,'Mobile-Data'!$G$9:$G$1048576,'Mobile-Detail Calcs'!F$168,'Mobile-Data'!$C$9:$C$1048576,'Mobile-Detail Calcs'!$C$162) -> 0 | G207: =SUMIFS('Mobile-Data'!$I$9:$I$1048576,'Mobile-Data'!$D$9:$D$1048576,$B207,'Mobile-Data'!$E$9:$E$1048576,'Mobile-Detail Calcs'!G$167,'Mobile-Data'!$G$9:$G$1048576,'Mobile-Detail Calcs'!G$168,'Mobile-Data'!$C$9:$C$1048576,'Mobile-Detail Calcs'!$C$162) -> 0 | H207: =SUMIFS('Mobile-Data'!$I$9:$I$1048576,'Mobile-Data'!$D$9:$D$1048576,$B207,'Mobile-Data'!$E$9:$E$1048576,'Mobile-Detail Calcs'!H$167,'Mobile-Data'!$G$9:$G$1048576,'Mobile-Detail Calcs'!H$168,'Mobile-Data'!$C$9:$C$1048576,'Mobile-Detail Calcs'!$C$162) -> 0 | I207: 0 | K207: 2018 | L207: =C207*Factors!C247*g_kg*kg_mt*GWP_CH4 -> 0 | M207: =D207*Factors!D247*g_kg*kg_mt*GWP_CH4 -> 0 | N207: =E207*Factors!E247*g_kg*kg_mt*GWP_CH4 -> 0 | O207: =F207*Factors!F247*g_kg*kg_mt*GWP_CH4 -> 0 | P207: =G207*Factors!G247*g_kg*kg_mt*GWP_CH4 -> 0 | Q207: =H207*Factors!H247*g_kg*kg_mt*GWP_CH4 -> 0 | R207: 0 | T207: 2018 | U207: =C207*Factors!K247*g_kg*kg_mt*GWP_N2O -> 0 | V207: =D207*Factors!L247*g_kg*kg_mt*GWP_N2O -> 0 | W207: =E207*Factors!M247*g_kg*kg_mt*GWP_N2O -> 0 | X207: =F207*Factors!N247*g_kg*kg_mt*GWP_N2O -> 0 | Y207: =G207*Factors!O247*g_kg*kg_mt*GWP_N2O -> 0 | Z207: =H207*Factors!P247*g_kg*kg_mt*GWP_N2O -> 0 | AA207: 0
B208: 2019 | C208: =SUMIFS('Mobile-Data'!$I$9:$I$1048576,'Mobile-Data'!$D$9:$D$1048576,$B208,'Mobile-Data'!$E$9:$E$1048576,'Mobile-Detail Calcs'!C$167,'Mobile-Data'!$G$9:$G$1048576,'Mobile-Detail Calcs'!C$168,'Mobile-Data'!$C$9:$C$1048576,'Mobile-Detail Calcs'!$C$162) -> 0 | D208: =SUMIFS('Mobile-Data'!$I$9:$I$1048576,'Mobile-Data'!$D$9:$D$1048576,$B208,'Mobile-Data'!$E$9:$E$1048576,'Mobile-Detail Calcs'!D$167,'Mobile-Data'!$G$9:$G$1048576,'Mobile-Detail Calcs'!D$168,'Mobile-Data'!$C$9:$C$1048576,'Mobile-Detail Calcs'!$C$162) -> 0 | E208: =SUMIFS('Mobile-Data'!$I$9:$I$1048576,'Mobile-Data'!$D$9:$D$1048576,$B208,'Mobile-Data'!$E$9:$E$1048576,'Mobile-Detail Calcs'!E$167,'Mobile-Data'!$G$9:$G$1048576,'Mobile-Detail Calcs'!E$168,'Mobile-Data'!$C$9:$C$1048576,'Mobile-Detail Calcs'!$C$162) -> 0 | F208: =SUMIFS('Mobile-Data'!$I$9:$I$1048576,'Mobile-Data'!$D$9:$D$1048576,$B208,'Mobile-Data'!$E$9:$E$1048576,'Mobile-Detail Calcs'!F$167,'Mobile-Data'!$G$9:$G$1048576,'Mobile-Detail Calcs'!F$168,'Mobile-Data'!$C$9:$C$1048576,'Mobile-Detail Calcs'!$C$162) -> 0 | G208: =SUMIFS('Mobile-Data'!$I$9:$I$1048576,'Mobile-Data'!$D$9:$D$1048576,$B208,'Mobile-Data'!$E$9:$E$1048576,'Mobile-Detail Calcs'!G$167,'Mobile-Data'!$G$9:$G$1048576,'Mobile-Detail Calcs'!G$168,'Mobile-Data'!$C$9:$C$1048576,'Mobile-Detail Calcs'!$C$162) -> 0 | H208: =SUMIFS('Mobile-Data'!$I$9:$I$1048576,'Mobile-Data'!$D$9:$D$1048576,$B208,'Mobile-Data'!$E$9:$E$1048576,'Mobile-Detail Calcs'!H$167,'Mobile-Data'!$G$9:$G$1048576,'Mobile-Detail Calcs'!H$168,'Mobile-Data'!$C$9:$C$1048576,'Mobile-Detail Calcs'!$C$162) -> 0 | I208: 0 | K208: 2019 | L208: =C208*Factors!C248*g_kg*kg_mt*GWP_CH4 -> 0 | M208: =D208*Factors!D248*g_kg*kg_mt*GWP_CH4 -> 0 | N208: =E208*Factors!E248*g_kg*kg_mt*GWP_CH4 -> 0 | O208: =F208*Factors!F248*g_kg*kg_mt*GWP_CH4 -> 0 | P208: =G208*Factors!G248*g_kg*kg_mt*GWP_CH4 -> 0 | Q208: =H208*Factors!H248*g_kg*kg_mt*GWP_CH4 -> 0 | R208: 0 | T208: 2019 | U208: =C208*Factors!K248*g_kg*kg_mt*GWP_N2O -> 0 | V208: =D208*Factors!L248*g_kg*kg_mt*GWP_N2O -> 0 | W208: =E208*Factors!M248*g_kg*kg_mt*GWP_N2O -> 0 | X208: =F208*Factors!N248*g_kg*kg_mt*GWP_N2O -> 0 | Y208: =G208*Factors!O248*g_kg*kg_mt*GWP_N2O -> 0 | Z208: =H208*Factors!P248*g_kg*kg_mt*GWP_N2O -> 0 | AA208: 0
B209: 2020 & later | C209: =SUMIFS('Mobile-Data'!$I$9:$I$1048576,'Mobile-Data'!$D$9:$D$1048576,">=2020",'Mobile-Data'!$E$9:$E$1048576,'Mobile-Detail Calcs'!C$167,'Mobile-Data'!$G$9:$G$1048576,'Mobile-Detail Calcs'!C$168,'Mobile-Data'!$C$9:$C$1048576,'Mobile-Detail Calcs'!$C$162) -> 0 | D209: =SUMIFS('Mobile-Data'!$I$9:$I$1048576,'Mobile-Data'!$D$9:$D$1048576,">=2020",'Mobile-Data'!$E$9:$E$1048576,'Mobile-Detail Calcs'!D$167,'Mobile-Data'!$G$9:$G$1048576,'Mobile-Detail Calcs'!D$168,'Mobile-Data'!$C$9:$C$1048576,'Mobile-Detail Calcs'!$C$162) -> 0 | E209: =SUMIFS('Mobile-Data'!$I$9:$I$1048576,'Mobile-Data'!$D$9:$D$1048576,">=2020",'Mobile-Data'!$E$9:$E$1048576,'Mobile-Detail Calcs'!E$167,'Mobile-Data'!$G$9:$G$1048576,'Mobile-Detail Calcs'!E$168,'Mobile-Data'!$C$9:$C$1048576,'Mobile-Detail Calcs'!$C$162) -> 0 | F209: =SUMIFS('Mobile-Data'!$I$9:$I$1048576,'Mobile-Data'!$D$9:$D$1048576,">=2020",'Mobile-Data'!$E$9:$E$1048576,'Mobile-Detail Calcs'!F$167,'Mobile-Data'!$G$9:$G$1048576,'Mobile-Detail Calcs'!F$168,'Mobile-Data'!$C$9:$C$1048576,'Mobile-Detail Calcs'!$C$162) -> 0 | G209: =SUMIFS('Mobile-Data'!$I$9:$I$1048576,'Mobile-Data'!$D$9:$D$1048576,">=2020",'Mobile-Data'!$E$9:$E$1048576,'Mobile-Detail Calcs'!G$167,'Mobile-Data'!$G$9:$G$1048576,'Mobile-Detail Calcs'!G$168,'Mobile-Data'!$C$9:$C$1048576,'Mobile-Detail Calcs'!$C$162) -> 0 | H209: =SUMIFS('Mobile-Data'!$I$9:$I$1048576,'Mobile-Data'!$D$9:$D$1048576,">=2020",'Mobile-Data'!$E$9:$E$1048576,'Mobile-Detail Calcs'!H$167,'Mobile-Data'!$G$9:$G$1048576,'Mobile-Detail Calcs'!H$168,'Mobile-Data'!$C$9:$C$1048576,'Mobile-Detail Calcs'!$C$162) -> 0 | I209: 0 | K209: 2020 | L209: =C209*Factors!C249*g_kg*kg_mt*GWP_CH4 -> 0 | M209: =D209*Factors!D249*g_kg*kg_mt*GWP_CH4 -> 0 | N209: =E209*Factors!E249*g_kg*kg_mt*GWP_CH4 -> 0 | O209: =F209*Factors!F249*g_kg*kg_mt*GWP_CH4 -> 0 | P209: =G209*Factors!G249*g_kg*kg_mt*GWP_CH4 -> 0 | Q209: =H209*Factors!H249*g_kg*kg_mt*GWP_CH4 -> 0 | R209: 0 | T209: 2020 | U209: =C209*Factors!K249*g_kg*kg_mt*GWP_N2O -> 0 | V209: =D209*Factors!L249*g_kg*kg_mt*GWP_N2O -> 0 | W209: =E209*Factors!M249*g_kg*kg_mt*GWP_N2O -> 0 | X209: =F209*Factors!N249*g_kg*kg_mt*GWP_N2O -> 0 | Y209: =G209*Factors!O249*g_kg*kg_mt*GWP_N2O -> 0 | Z209: =H209*Factors!P249*g_kg*kg_mt*GWP_N2O -> 0 | AA209: 0
B210: Total | C210: =SUM(C169:C209) -> 0 | D210: 0 | E210: 0 | F210: 0 | G210: 0 | H210: 0 | I210: 0 | K210: Total | L210: =SUM(L169:L209) -> 0 | M210: 0 | N210: 0 | O210: 0 | P210: 0 | Q210: 0 | R210: 0 | T210: Total | U210: =SUM(U169:U209) -> 0 | V210: 0 | W210: 0 | X210: 0 | Y210: 0 | Z210: 0 | AA210: 0
A212: 2) AFVs, Highway
B213: VMT by Fuel and Vehicle type | K213: CH4 Emissions by Fuel and Vehicle Type | T213: N2O Emissions by Fuel and Vehicle Type
B214: Vehicle activity data by fuel type and vehicle type for selected sector (miles) | K214: CH4 Emissions = VMT × AFV EF (g/mi) × MT/g × GWP CH4 | T214: N2O Emissions = VMT × AFV EF (g/mi) × MT/g × GWP N2O
C215: Passenger Car | D215: Light Truck (Vans, Pickup Trucks, SUVs) | E215: Heavy-Duty Vehicle | F215: TOTAL | L215: Passenger Car | M215: Light Truck (Vans, Pickup Trucks, SUVs) | N215: Heavy-Duty Vehicle | O215: TOTAL | U215: Passenger Car | V215: Light Truck (Vans, Pickup Trucks, SUVs) | W215: Heavy-Duty Vehicle | X215: TOTAL
B216: CNG | C216: =SUMIFS('Mobile-Data'!$I$9:$I$1048576,'Mobile-Data'!$C$9:$C$1048576,$C$162,'Mobile-Data'!$E$9:$E$1048576,C$215,'Mobile-Data'!$G$9:$G$1048576,$B216) -> 0 | D216: =SUMIFS('Mobile-Data'!$I$9:$I$1048576,'Mobile-Data'!$C$9:$C$1048576,$C$162,'Mobile-Data'!$E$9:$E$1048576,D$215,'Mobile-Data'!$G$9:$G$1048576,$B216) -> 0 | E216: =SUMIFS('Mobile-Data'!$I$9:$I$1048576,'Mobile-Data'!$C$9:$C$1048576,$C$162,'Mobile-Data'!$E$9:$E$1048576,E$215,'Mobile-Data'!$G$9:$G$1048576,$B216) -> 0 | F216: =SUM(C216:E216) -> 0 | K216: CNG | L216: =C216*Factors!C257*g_kg*kg_mt*GWP_CH4 -> 0 | M216: =D216*Factors!D257*g_kg*kg_mt*GWP_CH4 -> 0 | N216: =E216*Factors!E257*g_kg*kg_mt*GWP_CH4 -> 0 | O216: =SUM(L216:N216) -> 0 | T216: CNG | U216: =C216*Factors!H257*g_kg*kg_mt*GWP_N2O -> 0 | V216: =D216*Factors!I257*g_kg*kg_mt*GWP_N2O -> 0 | W216: =E216*Factors!J257*g_kg*kg_mt*GWP_N2O -> 0 | X216: =SUM(U216:W216) -> 0
B217: LNG | C217: NA | D217: NA | E217: =SUMIFS('Mobile-Data'!$I$9:$I$1048576,'Mobile-Data'!$C$9:$C$1048576,$C$162,'Mobile-Data'!$E$9:$E$1048576,E$215,'Mobile-Data'!$G$9:$G$1048576,$B217) -> 0 | F217: =SUM(C217:E217) -> 0 | K217: LNG | L217: NA | M217: NA | N217: =E217*Factors!E258*g_kg*kg_mt*GWP_CH4 -> 0 | O217: =SUM(L217:N217) -> 0 | T217: LNG | U217: NA | V217: NA | W217: =E217*Factors!J258*g_kg*kg_mt*GWP_N2O -> 0 | X217: =SUM(U217:W217) -> 0
B218: LPG | C218: =SUMIFS('Mobile-Data'!$I$9:$I$1048576,'Mobile-Data'!$C$9:$C$1048576,$C$162,'Mobile-Data'!$E$9:$E$1048576,C$215,'Mobile-Data'!$G$9:$G$1048576,$B218) -> 0 | D218: =SUMIFS('Mobile-Data'!$I$9:$I$1048576,'Mobile-Data'!$C$9:$C$1048576,$C$162,'Mobile-Data'!$E$9:$E$1048576,D$215,'Mobile-Data'!$G$9:$G$1048576,$B218) -> 0 | E218: =SUMIFS('Mobile-Data'!$I$9:$I$1048576,'Mobile-Data'!$C$9:$C$1048576,$C$162,'Mobile-Data'!$E$9:$E$1048576,E$215,'Mobile-Data'!$G$9:$G$1048576,$B218) -> 0 | F218: 0 | K218: LPG | L218: =C218*Factors!C259*g_kg*kg_mt*GWP_CH4 -> 0 | M218: =D218*Factors!D259*g_kg*kg_mt*GWP_CH4 -> 0 | N218: =E218*Factors!E259*g_kg*kg_mt*GWP_CH4 -> 0 | O218: 0 | T218: LPG | U218: =C218*Factors!H259*g_kg*kg_mt*GWP_N2O -> 0 | V218: =D218*Factors!I259*g_kg*kg_mt*GWP_N2O -> 0 | W218: =E218*Factors!J259*g_kg*kg_mt*GWP_N2O -> 0 | X218: 0
B219: Ethanol (E85) | C219: =SUMIFS('Mobile-Data'!$I$9:$I$1048576,'Mobile-Data'!$C$9:$C$1048576,$C$162,'Mobile-Data'!$E$9:$E$1048576,C$215,'Mobile-Data'!$G$9:$G$1048576,$B219) -> 0 | D219: =SUMIFS('Mobile-Data'!$I$9:$I$1048576,'Mobile-Data'!$C$9:$C$1048576,$C$162,'Mobile-Data'!$E$9:$E$1048576,D$215,'Mobile-Data'!$G$9:$G$1048576,$B219) -> 0 | E219: =SUMIFS('Mobile-Data'!$I$9:$I$1048576,'Mobile-Data'!$C$9:$C$1048576,$C$162,'Mobile-Data'!$E$9:$E$1048576,E$215,'Mobile-Data'!$G$9:$G$1048576,$B219) -> 0 | F219: 0 | K219: Ethanol (E85) | L219: =C219*Factors!C260*g_kg*kg_mt*GWP_CH4 -> 0 | M219: =D219*Factors!D260*g_kg*kg_mt*GWP_CH4 -> 0 | N219: =E219*Factors!E260*g_kg*kg_mt*GWP_CH4 -> 0 | O219: 0 | T219: Ethanol (E85) | U219: =C219*Factors!H260*g_kg*kg_mt*GWP_N2O -> 0 | V219: =D219*Factors!I260*g_kg*kg_mt*GWP_N2O -> 0 | W219: =E219*Factors!J260*g_kg*kg_mt*GWP_N2O -> 0 | X219: 0
B220: Biodiesel (B5) | C220: =SUMIFS('Mobile-Data'!$I$9:$I$1048576,'Mobile-Data'!$C$9:$C$1048576,$C$162,'Mobile-Data'!$E$9:$E$1048576,C$215,'Mobile-Data'!$G$9:$G$1048576,$B220) -> 0 | D220: =SUMIFS('Mobile-Data'!$I$9:$I$1048576,'Mobile-Data'!$C$9:$C$1048576,$C$162,'Mobile-Data'!$E$9:$E$1048576,D$215,'Mobile-Data'!$G$9:$G$1048576,$B220) -> 0 | E220: =SUMIFS('Mobile-Data'!$I$9:$I$1048576,'Mobile-Data'!$C$9:$C$1048576,$C$162,'Mobile-Data'!$E$9:$E$1048576,E$215,'Mobile-Data'!$G$9:$G$1048576,$B220) -> 0 | F220: 0 | K220: Biodiesel (B5) | L220: =C220*Factors!C261*g_kg*kg_mt*GWP_CH4 -> 0 | M220: =D220*Factors!D261*g_kg*kg_mt*GWP_CH4 -> 0 | N220: =E220*Factors!E261*g_kg*kg_mt*GWP_CH4 -> 0 | O220: 0 | T220: Biodiesel (B5) | U220: =C220*Factors!H261*g_kg*kg_mt*GWP_N2O -> 0 | V220: =D220*Factors!I261*g_kg*kg_mt*GWP_N2O -> 0 | W220: =E220*Factors!J261*g_kg*kg_mt*GWP_N2O -> 0 | X220: 0
B221: Biodiesel (B20) | C221: =SUMIFS('Mobile-Data'!$I$9:$I$1048576,'Mobile-Data'!$C$9:$C$1048576,$C$162,'Mobile-Data'!$E$9:$E$1048576,C$215,'Mobile-Data'!$G$9:$G$1048576,$B221) -> 0 | D221: =SUMIFS('Mobile-Data'!$I$9:$I$1048576,'Mobile-Data'!$C$9:$C$1048576,$C$162,'Mobile-Data'!$E$9:$E$1048576,D$215,'Mobile-Data'!$G$9:$G$1048576,$B221) -> 0 | E221: =SUMIFS('Mobile-Data'!$I$9:$I$1048576,'Mobile-Data'!$C$9:$C$1048576,$C$162,'Mobile-Data'!$E$9:$E$1048576,E$215,'Mobile-Data'!$G$9:$G$1048576,$B221) -> 0 | F221: 0 | K221: Biodiesel (B20) | L221: =C221*Factors!C262*g_kg*kg_mt*GWP_CH4 -> 0 | M221: =D221*Factors!D262*g_kg*kg_mt*GWP_CH4 -> 0 | N221: =E221*Factors!E262*g_kg*kg_mt*GWP_CH4 -> 0 | O221: 0 | T221: Biodiesel (B20) | U221: =C221*Factors!H262*g_kg*kg_mt*GWP_N2O -> 0 | V221: =D221*Factors!I262*g_kg*kg_mt*GWP_N2O -> 0 | W221: =E221*Factors!J262*g_kg*kg_mt*GWP_N2O -> 0 | X221: 0
... 46 more rows

Sheet Mobile-Summary
A1: Mobile Combustion - Summary
A3: GHG Summary
B5: Net Emissions by Sector (CO2e) | I5: CO2 Detail Emissions
C6: CO2 | D6: CH4 | E6: N2O | F6: TOTAL | I6: Gross CO2 | J6: - Biogenic = | K6: Net CO2
A7: Dstart | B7: =B34 -> Residential | C7: ='Mobile-Detail Calcs'!N129 -> 0 | D7: ='Mobile-Detail Calcs'!C251 -> 0 | E7: ='Mobile-Detail Calcs'!D251 -> 0 | F7: =SUM(C7:E7) -> 0 | I7: ='Mobile-Detail Calcs'!N77 -> 0 | J7: ='Mobile-Detail Calcs'!N103 -> 0 | K7: ='Mobile-Detail Calcs'!N129 -> 0
B8: Commercial/Institutional | C8: ='Mobile-Detail Calcs'!N130 -> 173433.0504 | D8: ='Mobile-Detail Calcs'!C252 -> 1154.563627 | E8: ='Mobile-Detail Calcs'!D252 -> 3323.243569 | F8: =SUM(C8:E8) -> 177910.8576 | I8: ='Mobile-Detail Calcs'!N78 -> 173433.0504 | J8: ='Mobile-Detail Calcs'!N104 -> 0 | K8: ='Mobile-Detail Calcs'!N130 -> 173433.0504
B9: Industrial | C9: ='Mobile-Detail Calcs'!N131 -> 0 | D9: ='Mobile-Detail Calcs'!C253 -> 0 | E9: ='Mobile-Detail Calcs'!D253 -> 0 | F9: 0 | I9: ='Mobile-Detail Calcs'!N79 -> 0 | J9: ='Mobile-Detail Calcs'!N105 -> 0 | K9: ='Mobile-Detail Calcs'!N131 -> 0
B10: Energy Generation | C10: ='Mobile-Detail Calcs'!N132 -> 0 | D10: ='Mobile-Detail Calcs'!C254 -> 0 | E10: ='Mobile-Detail Calcs'!D254 -> 0 | F10: 0 | I10: ='Mobile-Detail Calcs'!N80 -> 0 | J10: ='Mobile-Detail Calcs'!N106 -> 0 | K10: ='Mobile-Detail Calcs'!N132 -> 0
B11: 0 | C11: ='Mobile-Detail Calcs'!N133 -> 0 | D11: ='Mobile-Detail Calcs'!C255 -> 0 | E11: ='Mobile-Detail Calcs'!D255 -> 0 | F11: 0 | I11: ='Mobile-Detail Calcs'!N81 -> 0 | J11: ='Mobile-Detail Calcs'!N107 -> 0 | K11: ='Mobile-Detail Calcs'!N133 -> 0
B12: 0 | C12: ='Mobile-Detail Calcs'!N134 -> 0 | D12: ='Mobile-Detail Calcs'!C256 -> 0 | E12: ='Mobile-Detail Calcs'!D256 -> 0 | F12: 0 | I12: ='Mobile-Detail Calcs'!N82 -> 0 | J12: ='Mobile-Detail Calcs'!N108 -> 0 | K12: ='Mobile-Detail Calcs'!N134 -> 0
B13: 0 | C13: ='Mobile-Detail Calcs'!N135 -> 0 | D13: ='Mobile-Detail Calcs'!C257 -> 0 | E13: ='Mobile-Detail Calcs'!D257 -> 0 | F13: 0 | I13: ='Mobile-Detail Calcs'!N83 -> 0 | J13: ='Mobile-Detail Calcs'!N109 -> 0 | K13: ='Mobile-Detail Calcs'!N135 -> 0
B14: 0 | C14: ='Mobile-Detail Calcs'!N136 -> 0 | D14: ='Mobile-Detail Calcs'!C258 -> 0 | E14: ='Mobile-Detail Calcs'!D258 -> 0 | F14: 0 | I14: ='Mobile-Detail Calcs'!N84 -> 0 | J14: ='Mobile-Detail Calcs'!N110 -> 0 | K14: ='Mobile-Detail Calcs'!N136 -> 0
B15: 0 | C15: ='Mobile-Detail Calcs'!N137 -> 0 | D15: ='Mobile-Detail Calcs'!C259 -> 0 | E15: ='Mobile-Detail Calcs'!D259 -> 0 | F15: 0 | I15: ='Mobile-Detail Calcs'!N85 -> 0 | J15: ='Mobile-Detail Calcs'!N111 -> 0 | K15: ='Mobile-Detail Calcs'!N137 -> 0
B16: 0 | C16: ='Mobile-Detail Calcs'!N138 -> 0 | D16: ='Mobile-Detail Calcs'!C260 -> 0 | E16: ='Mobile-Detail Calcs'!D260 -> 0 | F16: 0 | I16: ='Mobile-Detail Calcs'!N86 -> 0 | J16: ='Mobile-Detail Calcs'!N112 -> 0 | K16: ='Mobile-Detail Calcs'!N138 -> 0
B17: 0 | C17: ='Mobile-Detail Calcs'!N139 -> 0 | D17: ='Mobile-Detail Calcs'!C261 -> 0 | E17: ='Mobile-Detail Calcs'!D261 -> 0 | F17: 0 | I17: ='Mobile-Detail Calcs'!N87 -> 0 | J17: ='Mobile-Detail Calcs'!N113 -> 0 | K17: ='Mobile-Detail Calcs'!N139 -> 0
B18: 0 | C18: ='Mobile-Detail Calcs'!N140 -> 0 | D18: ='Mobile-Detail Calcs'!C262 -> 0 | E18: ='Mobile-Detail Calcs'!D262 -> 0 | F18: 0 | I18: ='Mobile-Detail Calcs'!N88 -> 0 | J18: ='Mobile-Detail Calcs'!N114 -> 0 | K18: ='Mobile-Detail Calcs'!N140 -> 0
B19: 0 | C19: ='Mobile-Detail Calcs'!N141 -> 0 | D19: ='Mobile-Detail Calcs'!C263 -> 0 | E19: ='Mobile-Detail Calcs'!D263 -> 0 | F19: 0 | I19: ='Mobile-Detail Calcs'!N89 -> 0 | J19: ='Mobile-Detail Calcs'!N115 -> 0 | K19: ='Mobile-Detail Calcs'!N141 -> 0
B20: 0 | C20: ='Mobile-Detail Calcs'!N142 -> 0 | D20: ='Mobile-Detail Calcs'!C264 -> 0 | E20: ='Mobile-Detail Calcs'!D264 -> 0 | F20: 0 | I20: ='Mobile-Detail Calcs'!N90 -> 0 | J20: ='Mobile-Detail Calcs'!N116 -> 0 | K20: ='Mobile-Detail Calcs'!N142 -> 0
B21: 0 | C21: ='Mobile-Detail Calcs'!N143 -> 0 | D21: ='Mobile-Detail Calcs'!C265 -> 0 | E21: ='Mobile-Detail Calcs'!D265 -> 0 | F21: 0 | I21: ='Mobile-Detail Calcs'!N91 -> 0 | J21: ='Mobile-Detail Calcs'!N117 -> 0 | K21: ='Mobile-Detail Calcs'!N143 -> 0
B22: 0 | C22: ='Mobile-Detail Calcs'!N144 -> 0 | D22: ='Mobile-Detail Calcs'!C266 -> 0 | E22: ='Mobile-Detail Calcs'!D266 -> 0 | F22: 0 | I22: ='Mobile-Detail Calcs'!N92 -> 0 | J22: ='Mobile-Detail Calcs'!N118 -> 0 | K22: ='Mobile-Detail Calcs'!N144 -> 0
B23: 0 | C23: ='Mobile-Detail Calcs'!N145 -> 0 | D23: ='Mobile-Detail Calcs'!C267 -> 0 | E23: ='Mobile-Detail Calcs'!D267 -> 0 | F23: 0 | I23: ='Mobile-Detail Calcs'!N93 -> 0 | J23: ='Mobile-Detail Calcs'!N119 -> 0 | K23: ='Mobile-Detail Calcs'!N145 -> 0
B24: 0 | C24: ='Mobile-Detail Calcs'!N146 -> 0 | D24: ='Mobile-Detail Calcs'!C268 -> 0 | E24: ='Mobile-Detail Calcs'!D268 -> 0 | F24: 0 | I24: ='Mobile-Detail Calcs'!N94 -> 0 | J24: ='Mobile-Detail Calcs'!N120 -> 0 | K24: ='Mobile-Detail Calcs'!N146 -> 0
B25: 0 | C25: ='Mobile-Detail Calcs'!N147 -> 0 | D25: ='Mobile-Detail Calcs'!C269 -> 0 | E25: ='Mobile-Detail Calcs'!D269 -> 0 | F25: 0 | I25: ='Mobile-Detail Calcs'!N95 -> 0 | J25: ='Mobile-Detail Calcs'!N121 -> 0 | K25: ='Mobile-Detail Calcs'!N147 -> 0
B26: 0 | C26: ='Mobile-Detail Calcs'!N148 -> 0 | D26: ='Mobile-Detail Calcs'!C270 -> 0 | E26: ='Mobile-Detail Calcs'!D270 -> 0 | F26: 0 | I26: ='Mobile-Detail Calcs'!N96 -> 0 | J26: ='Mobile-Detail Calcs'!N122 -> 0 | K26: ='Mobile-Detail Calcs'!N148 -> 0
B27: Total Mobile Emissions | C27: =SUM(C7:C26) -> 173433.0504 | D27: =SUM(D7:D26) -> 1154.563627 | E27: =SUM(E7:E26) -> 3323.243569 | F27: =SUM(C27:E27) -> 177910.8576 | I27: =SUM(I7:I26) -> 173433.0504 | J27: =SUM(J7:J26) -> 0 | K27: =SUM(K7:K26) -> 173433.0504
A30: Energy Use Summary
B32: Energy Use by Sector and Fuel Type (MMBtu)
C33: Gasoline | D33: Diesel | E33: Biodiesel (B5) | F33: Biodiesel (B20) | G33: Ethanol (E85) | H33: CNG | I33: LNG | J33: LPG | K33: Residual Fuel | L33: Jet Fuel | M33: Aviation Gasoline | N33: TOTAL
A34: Dstart | B34: ='Background Controls'!I5 -> Residential | C34: ='Mobile-Detail Calcs'!C48 -> 0 | D34: ='Mobile-Detail Calcs'!D48 -> 0 | E34: ='Mobile-Detail Calcs'!E48 -> 0 | F34: ='Mobile-Detail Calcs'!F48 -> 0 | G34: ='Mobile-Detail Calcs'!G48 -> 0 | H34: ='Mobile-Detail Calcs'!H48 -> 0 | I34: ='Mobile-Detail Calcs'!I48 -> 0 | J34: ='Mobile-Detail Calcs'!J48 -> 0 | K34: ='Mobile-Detail Calcs'!K48 -> 0 | L34: ='Mobile-Detail Calcs'!L48 -> 0 | M34: ='Mobile-Detail Calcs'!M48 -> 0 | N34: =SUM(C34:M34) -> 0
B35: ='Background Controls'!I6 -> Commercial/Institutional | C35: ='Mobile-Detail Calcs'!C49 -> 1447739.875 | D35: ='Mobile-Detail Calcs'!D49 -> 970369.9667 | E35: ='Mobile-Detail Calcs'!E49 -> 0 | F35: ='Mobile-Detail Calcs'!F49 -> 0 | G35: ='Mobile-Detail Calcs'!G49 -> 0 | H35: ='Mobile-Detail Calcs'!H49 -> 0 | I35: ='Mobile-Detail Calcs'!I49 -> 0 | J35: ='Mobile-Detail Calcs'!J49 -> 0 | K35: ='Mobile-Detail Calcs'!K49 -> 0 | L35: ='Mobile-Detail Calcs'!L49 -> 0 | M35: ='Mobile-Detail Calcs'!M49 -> 0 | N35: =SUM(C35:M35) -> 2418109.842
B36: ='Background Controls'!I7 -> Industrial | C36: ='Mobile-Detail Calcs'!C50 -> 0 | D36: ='Mobile-Detail Calcs'!D50 -> 0 | E36: ='Mobile-Detail Calcs'!E50 -> 0 | F36: ='Mobile-Detail Calcs'!F50 -> 0 | G36: ='Mobile-Detail Calcs'!G50 -> 0 | H36: ='Mobile-Detail Calcs'!H50 -> 0 | I36: ='Mobile-Detail Calcs'!I50 -> 0 | J36: ='Mobile-Detail Calcs'!J50 -> 0 | K36: ='Mobile-Detail Calcs'!K50 -> 0 | L36: ='Mobile-Detail Calcs'!L50 -> 0 | M36: ='Mobile-Detail Calcs'!M50 -> 0 | N36: 0
B37: ='Background Controls'!I8 -> Energy Generation | C37: ='Mobile-Detail Calcs'!C51 -> 0 | D37: ='Mobile-Detail Calcs'!D51 -> 0 | E37: ='Mobile-Detail Calcs'!E51 -> 0 | F37: ='Mobile-Detail Calcs'!F51 -> 0 | G37: ='Mobile-Detail Calcs'!G51 -> 0 | H37: ='Mobile-Detail Calcs'!H51 -> 0 | I37: ='Mobile-Detail Calcs'!I51 -> 0 | J37: ='Mobile-Detail Calcs'!J51 -> 0 | K37: ='Mobile-Detail Calcs'!K51 -> 0 | L37: ='Mobile-Detail Calcs'!L51 -> 0 | M37: ='Mobile-Detail Calcs'!M51 -> 0 | N37: 0
B38: ='Background Controls'!I9 -> 0 | C38: ='Mobile-Detail Calcs'!C52 -> 0 | D38: ='Mobile-Detail Calcs'!D52 -> 0 | E38: ='Mobile-Detail Calcs'!E52 -> 0 | F38: ='Mobile-Detail Calcs'!F52 -> 0 | G38: ='Mobile-Detail Calcs'!G52 -> 0 | H38: ='Mobile-Detail Calcs'!H52 -> 0 | I38: ='Mobile-Detail Calcs'!I52 -> 0 | J38: ='Mobile-Detail Calcs'!J52 -> 0 | K38: ='Mobile-Detail Calcs'!K52 -> 0 | L38: ='Mobile-Detail Calcs'!L52 -> 0 | M38: ='Mobile-Detail Calcs'!M52 -> 0 | N38: 0
B39: ='Background Controls'!I10 -> 0 | C39: ='Mobile-Detail Calcs'!C53 -> 0 | D39: ='Mobile-Detail Calcs'!D53 -> 0 | E39: ='Mobile-Detail Calcs'!E53 -> 0 | F39: ='Mobile-Detail Calcs'!F53 -> 0 | G39: ='Mobile-Detail Calcs'!G53 -> 0 | H39: ='Mobile-Detail Calcs'!H53 -> 0 | I39: ='Mobile-Detail Calcs'!I53 -> 0 | J39: ='Mobile-Detail Calcs'!J53 -> 0 | K39: ='Mobile-Detail Calcs'!K53 -> 0 | L39: ='Mobile-Detail Calcs'!L53 -> 0 | M39: ='Mobile-Detail Calcs'!M53 -> 0 | N39: 0
B40: ='Background Controls'!I11 -> 0 | C40: ='Mobile-Detail Calcs'!C54 -> 0 | D40: ='Mobile-Detail Calcs'!D54 -> 0 | E40: ='Mobile-Detail Calcs'!E54 -> 0 | F40: ='Mobile-Detail Calcs'!F54 -> 0 | G40: ='Mobile-Detail Calcs'!G54 -> 0 | H40: ='Mobile-Detail Calcs'!H54 -> 0 | I40: ='Mobile-Detail Calcs'!I54 -> 0 | J40: ='Mobile-Detail Calcs'!J54 -> 0 | K40: ='Mobile-Detail Calcs'!K54 -> 0 | L40: ='Mobile-Detail Calcs'!L54 -> 0 | M40: ='Mobile-Detail Calcs'!M54 -> 0 | N40: 0
B41: ='Background Controls'!I12 -> 0 | C41: ='Mobile-Detail Calcs'!C55 -> 0 | D41: ='Mobile-Detail Calcs'!D55 -> 0 | E41: ='Mobile-Detail Calcs'!E55 -> 0 | F41: ='Mobile-Detail Calcs'!F55 -> 0 | G41: ='Mobile-Detail Calcs'!G55 -> 0 | H41: ='Mobile-Detail Calcs'!H55 -> 0 | I41: ='Mobile-Detail Calcs'!I55 -> 0 | J41: ='Mobile-Detail Calcs'!J55 -> 0 | K41: ='Mobile-Detail Calcs'!K55 -> 0 | L41: ='Mobile-Detail Calcs'!L55 -> 0 | M41: ='Mobile-Detail Calcs'!M55 -> 0 | N41: 0
B42: ='Background Controls'!I13 -> 0 | C42: ='Mobile-Detail Calcs'!C56 -> 0 | D42: ='Mobile-Detail Calcs'!D56 -> 0 | E42: ='Mobile-Detail Calcs'!E56 -> 0 | F42: ='Mobile-Detail Calcs'!F56 -> 0 | G42: ='Mobile-Detail Calcs'!G56 -> 0 | H42: ='Mobile-Detail Calcs'!H56 -> 0 | I42: ='Mobile-Detail Calcs'!I56 -> 0 | J42: ='Mobile-Detail Calcs'!J56 -> 0 | K42: ='Mobile-Detail Calcs'!K56 -> 0 | L42: ='Mobile-Detail Calcs'!L56 -> 0 | M42: ='Mobile-Detail Calcs'!M56 -> 0 | N42: 0
B43: ='Background Controls'!I14 -> 0 | C43: ='Mobile-Detail Calcs'!C57 -> 0 | D43: ='Mobile-Detail Calcs'!D57 -> 0 | E43: ='Mobile-Detail Calcs'!E57 -> 0 | F43: ='Mobile-Detail Calcs'!F57 -> 0 | G43: ='Mobile-Detail Calcs'!G57 -> 0 | H43: ='Mobile-Detail Calcs'!H57 -> 0 | I43: ='Mobile-Detail Calcs'!I57 -> 0 | J43: ='Mobile-Detail Calcs'!J57 -> 0 | K43: ='Mobile-Detail Calcs'!K57 -> 0 | L43: ='Mobile-Detail Calcs'!L57 -> 0 | M43: ='Mobile-Detail Calcs'!M57 -> 0 | N43: 0
B44: ='Background Controls'!I15 -> 0 | C44: ='Mobile-Detail Calcs'!C58 -> 0 | D44: ='Mobile-Detail Calcs'!D58 -> 0 | E44: ='Mobile-Detail Calcs'!E58 -> 0 | F44: ='Mobile-Detail Calcs'!F58 -> 0 | G44: ='Mobile-Detail Calcs'!G58 -> 0 | H44: ='Mobile-Detail Calcs'!H58 -> 0 | I44: ='Mobile-Detail Calcs'!I58 -> 0 | J44: ='Mobile-Detail Calcs'!J58 -> 0 | K44: ='Mobile-Detail Calcs'!K58 -> 0 | L44: ='Mobile-Detail Calcs'!L58 -> 0 | M44: ='Mobile-Detail Calcs'!M58 -> 0 | N44: 0
B45: ='Background Controls'!I16 -> 0 | C45: ='Mobile-Detail Calcs'!C59 -> 0 | D45: ='Mobile-Detail Calcs'!D59 -> 0 | E45: ='Mobile-Detail Calcs'!E59 -> 0 | F45: ='Mobile-Detail Calcs'!F59 -> 0 | G45: ='Mobile-Detail Calcs'!G59 -> 0 | H45: ='Mobile-Detail Calcs'!H59 -> 0 | I45: ='Mobile-Detail Calcs'!I59 -> 0 | J45: ='Mobile-Detail Calcs'!J59 -> 0 | K45: ='Mobile-Detail Calcs'!K59 -> 0 | L45: ='Mobile-Detail Calcs'!L59 -> 0 | M45: ='Mobile-Detail Calcs'!M59 -> 0 | N45: 0
B46: ='Background Controls'!I17 -> 0 | C46: ='Mobile-Detail Calcs'!C60 -> 0 | D46: ='Mobile-Detail Calcs'!D60 -> 0 | E46: ='Mobile-Detail Calcs'!E60 -> 0 | F46: ='Mobile-Detail Calcs'!F60 -> 0 | G46: ='Mobile-Detail Calcs'!G60 -> 0 | H46: ='Mobile-Detail Calcs'!H60 -> 0 | I46: ='Mobile-Detail Calcs'!I60 -> 0 | J46: ='Mobile-Detail Calcs'!J60 -> 0 | K46: ='Mobile-Detail Calcs'!K60 -> 0 | L46: ='Mobile-Detail Calcs'!L60 -> 0 | M46: ='Mobile-Detail Calcs'!M60 -> 0 | N46: 0
B47: ='Background Controls'!I18 -> 0 | C47: ='Mobile-Detail Calcs'!C61 -> 0 | D47: ='Mobile-Detail Calcs'!D61 -> 0 | E47: ='Mobile-Detail Calcs'!E61 -> 0 | F47: ='Mobile-Detail Calcs'!F61 -> 0 | G47: ='Mobile-Detail Calcs'!G61 -> 0 | H47: ='Mobile-Detail Calcs'!H61 -> 0 | I47: ='Mobile-Detail Calcs'!I61 -> 0 | J47: ='Mobile-Detail Calcs'!J61 -> 0 | K47: ='Mobile-Detail Calcs'!K61 -> 0 | L47: ='Mobile-Detail Calcs'!L61 -> 0 | M47: ='Mobile-Detail Calcs'!M61 -> 0 | N47: 0
B48: ='Background Controls'!I19 -> 0 | C48: ='Mobile-Detail Calcs'!C62 -> 0 | D48: ='Mobile-Detail Calcs'!D62 -> 0 | E48: ='Mobile-Detail Calcs'!E62 -> 0 | F48: ='Mobile-Detail Calcs'!F62 -> 0 | G48: ='Mobile-Detail Calcs'!G62 -> 0 | H48: ='Mobile-Detail Calcs'!H62 -> 0 | I48: ='Mobile-Detail Calcs'!I62 -> 0 | J48: ='Mobile-Detail Calcs'!J62 -> 0 | K48: ='Mobile-Detail Calcs'!K62 -> 0 | L48: ='Mobile-Detail Calcs'!L62 -> 0 | M48: ='Mobile-Detail Calcs'!M62 -> 0 | N48: 0
B49: ='Background Controls'!I20 -> 0 | C49: ='Mobile-Detail Calcs'!C63 -> 0 | D49: ='Mobile-Detail Calcs'!D63 -> 0 | E49: ='Mobile-Detail Calcs'!E63 -> 0 | F49: ='Mobile-Detail Calcs'!F63 -> 0 | G49: ='Mobile-Detail Calcs'!G63 -> 0 | H49: ='Mobile-Detail Calcs'!H63 -> 0 | I49: ='Mobile-Detail Calcs'!I63 -> 0 | J49: ='Mobile-Detail Calcs'!J63 -> 0 | K49: ='Mobile-Detail Calcs'!K63 -> 0 | L49: ='Mobile-Detail Calcs'!L63 -> 0 | M49: ='Mobile-Detail Calcs'!M63 -> 0 | N49: 0
B50: ='Background Controls'!I21 -> 0 | C50: ='Mobile-Detail Calcs'!C64 -> 0 | D50: ='Mobile-Detail Calcs'!D64 -> 0 | E50: ='Mobile-Detail Calcs'!E64 -> 0 | F50: ='Mobile-Detail Calcs'!F64 -> 0 | G50: ='Mobile-Detail Calcs'!G64 -> 0 | H50: ='Mobile-Detail Calcs'!H64 -> 0 | I50: ='Mobile-Detail Calcs'!I64 -> 0 | J50: ='Mobile-Detail Calcs'!J64 -> 0 | K50: ='Mobile-Detail Calcs'!K64 -> 0 | L50: ='Mobile-Detail Calcs'!L64 -> 0 | M50: ='Mobile-Detail Calcs'!M64 -> 0 | N50: 0
B51: ='Background Controls'!I22 -> 0 | C51: ='Mobile-Detail Calcs'!C65 -> 0 | D51: ='Mobile-Detail Calcs'!D65 -> 0 | E51: ='Mobile-Detail Calcs'!E65 -> 0 | F51: ='Mobile-Detail Calcs'!F65 -> 0 | G51: ='Mobile-Detail Calcs'!G65 -> 0 | H51: ='Mobile-Detail Calcs'!H65 -> 0 | I51: ='Mobile-Detail Calcs'!I65 -> 0 | J51: ='Mobile-Detail Calcs'!J65 -> 0 | K51: ='Mobile-Detail Calcs'!K65 -> 0 | L51: ='Mobile-Detail Calcs'!L65 -> 0 | M51: ='Mobile-Detail Calcs'!M65 -> 0 | N51: 0
B52: ='Background Controls'!I23 -> 0 | C52: ='Mobile-Detail Calcs'!C66 -> 0 | D52: ='Mobile-Detail Calcs'!D66 -> 0 | E52: ='Mobile-Detail Calcs'!E66 -> 0 | F52: ='Mobile-Detail Calcs'!F66 -> 0 | G52: ='Mobile-Detail Calcs'!G66 -> 0 | H52: ='Mobile-Detail Calcs'!H66 -> 0 | I52: ='Mobile-Detail Calcs'!I66 -> 0 | J52: ='Mobile-Detail Calcs'!J66 -> 0 | K52: ='Mobile-Detail Calcs'!K66 -> 0 | L52: ='Mobile-Detail Calcs'!L66 -> 0 | M52: ='Mobile-Detail Calcs'!M66 -> 0 | N52: 0
B53: ='Background Controls'!I24 -> 0 | C53: ='Mobile-Detail Calcs'!C67 -> 0 | D53: ='Mobile-Detail Calcs'!D67 -> 0 | E53: ='Mobile-Detail Calcs'!E67 -> 0 | F53: ='Mobile-Detail Calcs'!F67 -> 0 | G53: ='Mobile-Detail Calcs'!G67 -> 0 | H53: ='Mobile-Detail Calcs'!H67 -> 0 | I53: ='Mobile-Detail Calcs'!I67 -> 0 | J53: ='Mobile-Detail Calcs'!J67 -> 0 | K53: ='Mobile-Detail Calcs'!K67 -> 0 | L53: ='Mobile-Detail Calcs'!L67 -> 0 | M53: ='Mobile-Detail Calcs'!M67 -> 0 | N53: 0
B54: Total | C54: =SUM(C34:C53) -> 1447739.875 | D54: =SUM(D34:D53) -> 970369.9667 | E54: 0 | F54: 0 | G54: 0 | H54: 0 | I54: 0 | J54: 0 | K54: 0 | L54: 0 | M54: 0 | N54: =SUM(N34:N53) -> 2418109.842
B57: Check to display:
R58: emissions | S58: TRUE
R59: energy | S59: TRUE
R60: both | S60: =AND(S58:S59) -> TRUE
S61: =IF(S60=TRUE, R60, IF(S58=TRUE, R58, IF(S59=TRUE, R59,"both"))) -> both
A81: Local GHG Inventory Tool: Community Module

Sheet Solid Waste-Control
A1: Solid Waste - Control
A7: 1 | B7: Please answer the following questions about your community's solid waste services.
B9: 1) Is there a landfill treatment facility located within the geopolitical boundary of your community?
A10: 1
A12: =IF($A$10=2, "Show", "Hide") -> Hide | C12: If no, then it is optional to report emissions for waste generated within your borders, but landfilled elsewhere, as Scope 3 emissions.
A13: =IF($A$10=2, "Show", "Hide") -> Hide | C13: If you would like to do so, please enter results on the Waste Production sheet.
A14: Hide
A15: Hide
A16: Hide
A17: Hide
A18: Hide
A19: Hide
A20: =IF($A$10=1, "Show", "Hide") -> Show | B20: 2) It is assumed that solid waste services belong to the commercial/institutional sector as they are either municipally or privately owned.
A21: =IF($A$10=1, "Show", "Hide") -> Show | C21: no
A22: Show
A23: Show | B23: 3) How many landfills are in your community? You may enter up to 10.
A24: Show
A25: Show | C25: 3
A26: Show
A27: Show | C27: Landfill Name | E27: Does the landfill have a LFG collection system? | G27: If yes, is the LFG collection system comprehensive or partial?
A28: Show | B28: 1 | C28: Saipan | E28: No | G28: N/A | M28: To hide
A29: =IF(MyLFCount>=B29, "Show", "Hide") -> Show | B29: 2 | C29: Tinian | E29: No | G29: N/A | M29: Any yes? | N29: =IF(OR(SW_LF1q1="yes", SW_LF2q1="yes", SW_LF3q1="yes", SW_LF4q1="yes", SW_LF5q1="yes", SW_LF6q1="yes", SW_LF7q1="yes", SW_LF8q1="yes", SW_LF9q1="yes", SW_LF10q1="yes"), TRUE, FALSE) -> FALSE
A30: Show | B30: 3 | C30: Rota | E30: No | G30: N/A | M30: Any no? | N30: =IF(OR(SW_LF1q1="no", SW_LF2q1="no", SW_LF3q1="no", SW_LF4q1="no", SW_LF5q1="no", SW_LF6q1="no", SW_LF7q1="no", SW_LF8q1="no", SW_LF9q1="no", SW_LF10q1="no"), TRUE, FALSE) -> TRUE
A31: Hide | B31: 4 | M31: Any comp? | N31: =IF(OR(SW_LF1q2="comprehensive", SW_LF2q2="comprehensive", SW_LF3q2="comprehensive", SW_LF4q2="comprehensive", SW_LF5q2="comprehensive", SW_LF6q2="comprehensive", SW_LF7q2="comprehensive", SW_LF8q2="comprehensive", SW_LF9q2="comprehensive", SW_LF10q2="comprehensive"), TRUE, FALSE) -> FALSE
A32: Hide | B32: 5 | M32: Any part? | N32: =IF(OR(SW_LF1q2="partial", SW_LF2q2="partial", SW_LF3q2="partial", SW_LF4q2="partial", SW_LF5q2="partial", SW_LF6q2="partial", SW_LF7q2="partial", SW_LF8q2="partial", SW_LF9q2="partial", SW_LF10q2="partial"), TRUE, FALSE) -> FALSE
A33: Hide | B33: 6
A34: Hide | B34: 7
A35: Hide | B35: 8
A36: Hide | B36: 9
A37: Hide | B37: 10
A38: Show
A39: =IF($A$10=1, "Show", "Hide") -> Show | E39: Please enter your landfill data on the next page (Solid Waste-Entry).
A42: Local GHG Inventory Tool: Community Module

Sheet Solid Waste-Entry
A1: Solid Waste - Entry, Calculation & Summary
A9: =IF('Solid Waste-Control'!$A$10=2, "Show", "Hide") -> Hide | B9: Scope 3 Waste Emissions
A10: =IF('Solid Waste-Control'!$A$10=2, "Show", "Hide") -> Hide
A11: =IF(SW_anyNo=TRUE, "Show", "Hide") -> Show | B11: Landfills with No LFG Collection System
A12: =IF(SW_anyNo=TRUE, "Show", "Hide") -> Show
A13: Show | B13: For these landfills that do not have LFG collection systems, you need to use the California Air Resources Board's Landfill Emissions Tool, which is based on the IPCC First Order Decay (FOD) model.
A14: Show
A15: Show | B15: To use the model, you will need the following information for each landfill:
A16: Show | B16: - Annual waste deposited in landfill (can be derived from population and waste deposition data)
A17: Show | B17: - Opening and closing year of landfill
A18: Show
A19: Show | B19: ="Once you have run the model, please paste the final " & MyYear &" methane (CH4) emissions output for each landfill in the yellow cells below:" -> Once you have run the model, please paste the final 2022 methane (CH4) emissions output for each landfill in the yellow cells below:
A20: Show | B20: Note: Be sure to paste Values only. To do this, once you have copied the emissions output cell, right click on the appropriate cell below, select "Paste Special" then select "Values."
A21: Show
A22: =IF(SW_anyNo=TRUE, "Show", "Hide") -> Show | B22: Landfill Name | C22: CH4 Emissions (MT CO2e)
A23: =IF(SW_LF1q1="No", "Show", "Hide") -> Show | B23: =SW_LF1name -> Saipan | C23: 344.8207186
A24: =IF(SW_LF2q1="No", "Show", "Hide") -> Show | B24: =SW_LF2name -> Tinian | C24: 16.57184699
A25: =IF(SW_LF3q1="No", "Show", "Hide") -> Show | B25: =SW_LF3name -> Rota | C25: 15.38814364
A26: =IF(SW_LF4q1="No", "Show", "Hide") -> Hide | B26: =SW_LF4name -> 0
A27: =IF(SW_LF5q1="No", "Show", "Hide") -> Hide | B27: =SW_LF5name -> 0
A28: =IF(SW_LF6q1="No", "Show", "Hide") -> Hide | B28: =SW_LF6name -> 0
A29: =IF(SW_LF7q1="No", "Show", "Hide") -> Hide | B29: =SW_LF7name -> 0
A30: =IF(SW_LF8q1="No", "Show", "Hide") -> Hide | B30: =SW_LF8name -> 0
A31: =IF(SW_LF9q1="No", "Show", "Hide") -> Hide | B31: =SW_LF9name -> 0
A32: =IF(SW_LF10q1="No", "Show", "Hide") -> Hide | B32: =SW_LF10name -> 0
A33: =IF(SW_anyNo=TRUE, "Show", "Hide") -> Show
A34: =IF(AND(SW_anyYes=TRUE, SW_anyComp=TRUE), "Show", "Hide") -> Hide | B34: Landfills with Comprehensive LFG Collection Systems
A35: Hide
A36: Hide | B36: Note: If you would like to use the CARB Landfill Emissions Tool to calculate the emissions for any landfills, please select 'No' when asked if the landfill has an LFG collection system.
A37: Hide
A38: Hide | B38: CH4 emitted = LFG Collected × Fraction CH4 in LFG × {(1-Destruction Efficiency) + [((1-Collection Efficiency)/Collection Efficiency) × (1-Oxidation Efficiency)]} × MT/MMSCF × GWP
A39: Hide
A40: Hide | B40: Landfill Name | C40: LFG Collected (MMSCF/yr) | D40: Fraction of CH4 in LFG | E40: CH4 Destruction Efficiency | F40: CH4 Collection Efficiency | G40: Oxidation Factor | H40: MT CH4 / MMSCF | I40: MT CH4 | J40: × GWP = | K40: MT CO2e
A41: Hide | Q41: TRUE
A42: =IF(AND(SW_LF1q1="yes", SW_LF1q2="comprehensive"), "Show", "Hide") -> Hide | B42: =SW_LF1name -> Saipan | D42: 0.5 | E42: 0.99 | F42: 0.75 | G42: 0.1 | H42: 19.125 | I42: =IFERROR(C42*D42*((1-E42) + (((1-F42)/F42)*(1-G42)))*H42,"0") -> 0 | J42: =CH4_CO2e -> 28 | K42: =I42*J42 -> 0 | Q42: TRUE
A43: =IF(AND(SW_LF2q1="yes", SW_LF2q2="comprehensive"), "Show", "Hide") -> Hide | B43: =SW_LF2name -> Tinian | D43: 0.5 | E43: 0.99 | F43: 0.75 | G43: =0.1*0.1 -> 0.01 | H43: 19.125 | I43: =IFERROR(C43*D43*((1-E43) + (((1-F43)/F43)*(1-G43)))*H43,"0") -> 0 | J43: 28 | K43: =I43*J43 -> 0
A44: =IF(AND(SW_LF3q1="yes", SW_LF3q2="comprehensive"), "Show", "Hide") -> Hide | B44: =SW_LF3name -> Rota | D44: 0.5 | E44: 0.99 | F44: 0.75 | G44: 0.01 | H44: 19.125 | I44: 0 | J44: 28 | K44: 0
A45: =IF(AND(SW_LF4q1="yes", SW_LF4q2="comprehensive"), "Show", "Hide") -> Hide | B45: =SW_LF4name -> 0 | D45: 0.5 | E45: 0.99 | F45: 0.75 | G45: 0.01 | H45: 19.125 | I45: 0 | J45: 28 | K45: 0
A46: =IF(AND(SW_LF5q1="yes", SW_LF5q2="comprehensive"), "Show", "Hide") -> Hide | B46: =SW_LF5name -> 0 | D46: 0.5 | E46: 0.99 | F46: 0.75 | G46: 0.01 | H46: 19.125 | I46: 0 | J46: 28 | K46: 0
A47: =IF(AND(SW_LF6q1="yes", SW_LF6q2="comprehensive"), "Show", "Hide") -> Hide | B47: =SW_LF6name -> 0 | D47: 0.5 | E47: 0.99 | F47: 0.75 | G47: 0.01 | H47: 19.125 | I47: 0 | J47: 28 | K47: 0
A48: =IF(AND(SW_LF7q1="yes", SW_LF7q2="comprehensive"), "Show", "Hide") -> Hide | B48: =SW_LF7name -> 0 | D48: 0.5 | E48: 0.99 | F48: 0.75 | G48: 0.01 | H48: 19.125 | I48: 0 | J48: 28 | K48: 0
A49: =IF(AND(SW_LF8q1="yes", SW_LF8q2="comprehensive"), "Show", "Hide") -> Hide | B49: =SW_LF8name -> 0 | D49: 0.5 | E49: 0.99 | F49: 0.75 | G49: 0.01 | H49: 19.125 | I49: 0 | J49: 28 | K49: 0
A50: =IF(AND(SW_LF9q1="yes", SW_LF9q2="comprehensive"), "Show", "Hide") -> Hide | B50: =SW_LF9name -> 0 | D50: 0.5 | E50: 0.99 | F50: 0.75 | G50: 0.01 | H50: 19.125 | I50: 0 | J50: 28 | K50: 0
A51: =IF(AND(SW_LF10q1="yes", SW_LF10q2="comprehensive"), "Show", "Hide") -> Hide | B51: =SW_LF10name -> 0 | D51: 0.5 | E51: 0.99 | F51: 0.75 | G51: 0.01 | H51: 19.125 | I51: 0 | J51: 28 | K51: 0
A52: =IF(AND(SW_anyYes=TRUE, SW_anyComp=TRUE), "Show", "Hide") -> Hide
A53: =IF(AND(SW_anyYes=TRUE, SW_anyPart=TRUE), "Show", "Hide") -> Hide | B53: Landfills with Partial LFG Collection Systems
A54: Hide
A55: Hide | B55: Note: If you would like to use the CARB Landfill Emissions Tool to calculate the emissions for any landfills, please select 'No' when asked if the landfill has an LFG collection system.
A56: Hide
A57: Hide | B57: CH4 emitted = LFG Collected × Fraction CH4 in LFG × {(1-Destruction Efficiency) + [(1/Collection Efficiency) × (1-Oxidation Efficiency)] × [Uncollected Area Factor + (1-Collection Efficiency)]} × MT/MMSCF × GWP
A58: Hide
A59: Hide | B59: Landfill Name | C59: LFG Collected (MMSCF/yr) | D59: Fraction of CH4 in LFG | E59: CH4 Destruction Efficiency | F59: CH4 Collection Efficiency | G59: Oxidation Factor | H59: Uncollected Area Factor | I59: MT CH4 / MMSCF | J59: MT CH4 | K59: × GWP = | L59: MT CO2e
A60: Hide | Q60: TRUE
A61: =IF(AND(SW_LF1q1="yes", SW_LF1q2="partial"), "Show", "Hide") -> Hide | B61: =SW_LF1name -> Saipan | D61: 0.5 | E61: 0.99 | F61: 0.75 | G61: =0.1*0.1 -> 0.01 | I61: 19.125 | J61: =IFERROR(C61*D61*((1-E61)+((1/F61)*(1-G61))*(H61+(1-F61)))*I61,"0") -> 0 | K61: =CH4_CO2e -> 28 | L61: =J61*K61 -> 0 | Q61: TRUE
A62: =IF(AND(SW_LF2q1="yes", SW_LF2q2="partial"), "Show", "Hide") -> Hide | B62: =SW_LF2name -> Tinian | D62: 0.5 | E62: 0.99 | F62: 0.75 | G62: 0.01 | I62: 19.125 | J62: =IFERROR(C62*D62*((1-E62)+((1/F62)*(1-G62))*(H62+(1-F62)))*I62,"0") -> 0 | K62: 28 | L62: 0
A63: =IF(AND(SW_LF3q1="yes", SW_LF3q2="partial"), "Show", "Hide") -> Hide | B63: =SW_LF3name -> Rota | D63: 0.5 | E63: 0.99 | F63: 0.75 | G63: 0.01 | I63: 19.125 | J63: 0 | K63: 28 | L63: 0
A64: =IF(AND(SW_LF4q1="yes", SW_LF4q2="partial"), "Show", "Hide") -> Hide | B64: =SW_LF4name -> 0 | D64: 0.5 | E64: 0.99 | F64: 0.75 | G64: 0.01 | I64: 19.125 | J64: 0 | K64: 28 | L64: 0
A65: =IF(AND(SW_LF5q1="yes", SW_LF5q2="partial"), "Show", "Hide") -> Hide | B65: =SW_LF5name -> 0 | D65: 0.5 | E65: 0.99 | F65: 0.75 | G65: 0.01 | I65: 19.125 | J65: 0 | K65: 28 | L65: 0
A66: =IF(AND(SW_LF6q1="yes", SW_LF6q2="partial"), "Show", "Hide") -> Hide | B66: =SW_LF6name -> 0 | D66: 0.5 | E66: 0.99 | F66: 0.75 | G66: 0.01 | I66: 19.125 | J66: 0 | K66: 28 | L66: 0
A67: =IF(AND(SW_LF7q1="yes", SW_LF7q2="partial"), "Show", "Hide") -> Hide | B67: =SW_LF7name -> 0 | D67: 0.5 | E67: 0.99 | F67: 0.75 | G67: 0.01 | I67: 19.125 | J67: 0 | K67: 28 | L67: 0
A68: =IF(AND(SW_LF8q1="yes", SW_LF8q2="partial"), "Show", "Hide") -> Hide | B68: =SW_LF8name -> 0 | D68: 0.5 | E68: 0.99 | F68: 0.75 | G68: 0.01 | I68: 19.125 | J68: 0 | K68: 28 | L68: 0
A69: =IF(AND(SW_LF9q1="yes", SW_LF9q2="partial"), "Show", "Hide") -> Hide | B69: =SW_LF9name -> 0 | D69: 0.5 | E69: 0.99 | F69: 0.75 | G69: 0.01 | I69: 19.125 | J69: 0 | K69: 28 | L69: 0
A70: =IF(AND(SW_LF10q1="yes", SW_LF10q2="partial"), "Show", "Hide") -> Hide | B70: =SW_LF10name -> 0 | D70: 0.5 | E70: 0.99 | F70: 0.75 | G70: 0.01 | I70: 19.125 | J70: 0 | K70: 28 | L70: 0
A72: =IF('Solid Waste-Control'!$A$10=1, "Show", "Hide") -> Show | B72: Solid Waste Emissions Summary
A73: =IF('Solid Waste-Control'!$A$10=1, "Show", "Hide") -> Show
A74: =IF('Solid Waste-Control'!$A$10=1, "Show", "Hide") -> Show
A75: =IF('Solid Waste-Control'!$A$10=1, "Show", "Hide") -> Show | B75: Total Landfill Emissions (MT CO2e)
A76: =IF('Solid Waste-Control'!$A$10=1, "Show", "Hide") -> Show | B76: Landfill System | C76: CH4
A77: =IF('Solid Waste-Control'!$A$10=1, "Show", "Hide") -> Show | B77: No LFG collection | C77: =SUM('Solid Waste-Entry'!$C$23:$C$32) -> 376.7807092
A78: =IF('Solid Waste-Control'!$A$10=1, "Show", "Hide") -> Show | B78: Comprehensive LFG Collection | C78: =SUM('Solid Waste-Entry'!$K$42:$K$51) -> 0
A79: =IF('Solid Waste-Control'!$A$10=1, "Show", "Hide") -> Show | B79: Partial LFG Collection | C79: =SUM('Solid Waste-Entry'!$L$61:$L$70) -> 0
A80: =IF('Solid Waste-Control'!$A$10=1, "Show", "Hide") -> Show | B80: ="Total Emissions from Landfills in "&MyCity -> Total Emissions from Landfills in Commonwealth of the Northern Mariana Islands | C80: =SUM(C77:C79) -> 376.7807092
A81: =IF('Solid Waste-Control'!$A$10=1, "Show", "Hide") -> Show
A82: =IF('Solid Waste-Control'!$A$10=1, "Show", "Hide") -> Show
A83: =IF('Solid Waste-Control'!$A$10=1, "Show", "Hide") -> Show
A84: =IF('Solid Waste-Control'!$A$10=1, "Show", "Hide") -> Show
A85: =IF('Solid Waste-Control'!$A$10=1, "Show", "Hide") -> Show
A86: =IF('Solid Waste-Control'!$A$10=1, "Show", "Hide") -> Show
A87: =IF('Solid Waste-Control'!$A$10=1, "Show", "Hide") -> Show
A88: =IF('Solid Waste-Control'!$A$10=1, "Show", "Hide") -> Show
A89: =IF('Solid Waste-Control'!$A$10=1, "Show", "Hide") -> Show
A90: =IF('Solid Waste-Control'!$A$10=1, "Show", "Hide") -> Show
A91: =IF('Solid Waste-Control'!$A$10=1, "Show", "Hide") -> Show
A92: =IF('Solid Waste-Control'!$A$10=1, "Show", "Hide") -> Show
A93: =IF('Solid Waste-Control'!$A$10=1, "Show", "Hide") -> Show
A94: =IF('Solid Waste-Control'!$A$10=1, "Show", "Hide") -> Show
A95: =IF('Solid Waste-Control'!$A$10=1, "Show", "Hide") -> Show
A96: =IF('Solid Waste-Control'!$A$10=1, "Show", "Hide") -> Show
A97: =IF('Solid Waste-Control'!$A$10=1, "Show", "Hide") -> Show
A98: =IF('Solid Waste-Control'!$A$10=1, "Show", "Hide") -> Show
A99: =IF('Solid Waste-Control'!$A$10=1, "Show", "Hide") -> Show
A100: =IF('Solid Waste-Control'!$A$10=1, "Show", "Hide") -> Show
A101: =IF('Solid Waste-Control'!$A$10=1, "Show", "Hide") -> Show
A102: =IF('Solid Waste-Control'!$A$10=1, "Show", "Hide") -> Show
A103: =IF('Solid Waste-Control'!$A$10=1, "Show", "Hide") -> Show
A104: =IF('Solid Waste-Control'!$A$10=1, "Show", "Hide") -> Show
A107: Local GHG Inventory Tool: Community Module

Sheet Wastewater-Control
A1: Wastewater - Control
B4: Please answer the following questions about your community's wastewater treatment system.
B5: Emissions resulting from wastewater treated within the community's boundaries are Scope 1.
B6: 1) It is assumed that wastewater services belong to the commercial/institutional sector as they are either municipally or privately owned.
C7: Commercial/Institutional
B9: 2) Do you have one or more facilities where wastewater is treated in anaerobic conditions? | Q9: To be hidden
Q10: Control
Q11: 2 | R11: 2 | S11: =IF(R11=1, TRUE, FALSE) -> FALSE
Q12: 3 | R12: 1 | S12: =IF(R12=1, TRUE, FALSE) -> TRUE
Q13: 4 | R13: 2 | S13: =IF(R13=1, TRUE, FALSE) -> FALSE
Q14: 5 | R14: 1 | S14: TRUE
B15: 3) Do you have one or more facilities where wastewater is treated in aerobic conditions? | Q15: 6 | R15: 1 | S15: TRUE
Q16: 7 | R16: 2 | S16: FALSE
Q17: 8 | R17: 2 | S17: FALSE
Q18: 9 | R18: 1 | S18: TRUE
Q19: 10 | R19: 2 | S19: FALSE
B21: 4) Is data available for your treatment system on both the amount of digester gas produced per day and the fraction of CH4 in the biogas?
B27: 5) Is data available for the treatment system on both the BOD5 influent to your WWT process and the amount of BOD5 removed during primary treatment?
B33: 6) Is any portion of your population served by septic systems?
B39: 7) Is there any industrial nitrogen load into your wastewater treatment system?
B45: 8) Do one or more centralized wastewater treatment plants in your community conduct nitrification/denitrification?
B51: 9) Do one or more centralized wastewater treatment plants in your community not conduct nitrification/denitrification?
B57: 10) Do you collect measurements of Nitrogen load in your system's effluent discharged to water bodies?
A64: Local GHG Inventory Tool: Community Module

Sheet Wastewater-Entry
A1: Wastewater - Entry
A9: Information on population served by various systems.
A11: =IF(wwt_control_q8=TRUE, "Show", "Hide") -> Hide | B11: Population Served by Facilities with Nitrification/Denitrification
A12: =IF(wwt_control_q8=TRUE, "Show", "Hide") -> Hide | C12: people
A13: =IF(wwt_control_q8=TRUE, "Show", "Hide") -> Hide
A14: =IF(wwt_control_q9=TRUE, "Show", "Hide") -> Show | B14: Population Served by Facilities without Nitrification/Denitrification
A15: =IF(wwt_control_q9=TRUE, "Show", "Hide") -> Show | B15: 30000 | C15: people
A16: =IF(wwt_control_q9=TRUE, "Show", "Hide") -> Show
A17: =IF(wwt_control_q2=TRUE, "Show", "Hide") -> Hide | B17: Population Served by Anaerobic Treatment Facilities
A18: =IF(wwt_control_q2=TRUE, "Show", "Hide") -> Hide | C18: people
A19: =IF(wwt_control_q2=TRUE, "Show", "Hide") -> Hide
A20: =IF(wwt_control_q3=TRUE, "Show", "Hide") -> Show | B20: Population Served by Aerobic Treatment Facilities
A21: =IF(wwt_control_q3=TRUE, "Show", "Hide") -> Show | B21: 30000 | C21: people
A22: =IF(wwt_control_q3=TRUE, "Show", "Hide") -> Show
A23: =IF(wwt_control_q6=TRUE,"Show","Hide") -> Show | B23: Population Served by Septic Systems
A24: =IF(wwt_control_q6=TRUE,"Show","Hide") -> Show | B24: =13385+2044+1893 -> 17322 | C24: people
A25: =IF(wwt_control_q6=TRUE,"Show","Hide") -> Show
A26: Site-Specific Data Collected
A28: =IF(AND(wwt_control_q2=TRUE, wwt_control_q4=TRUE),"Show","Hide") -> Hide | B28: Digester Biogas Produced Daily
A29: Hide | C29: ft3/day
A30: Hide
A31: Hide | B31: Percentage of CH4 in Biogas (measured)
A32: Hide
A33: Hide
A34: =IF(AND(wwt_control_q2=TRUE, wwt_control_q5=TRUE),"Show","Hide") -> Hide | B34: System BOD5 Input
A35: Hide | C35: kg BOD5 / day
A36: Hide
A37: Hide | B37: Percentage of BOD5 Removed in Primary Treatment
A38: Hide
A39: Hide
A40: =IF(wwt_control_q7=TRUE,"Show","Hide") -> Hide | B40: Industrial N Load
A41: =IF(wwt_control_q7=TRUE,"Show","Hide") -> Hide | C41: kg N/day
A42: =IF(wwt_control_q7=TRUE,"Show","Hide") -> Hide
A43: =IF(wwt_control_q8=TRUE,"Show","Hide") -> Hide | B43: Average Total Nitrogen Discharged (measured)
A44: =IF(wwt_control_q8=TRUE,"Show","Hide") -> Hide | C44: kg N/day
A45: =IF(wwt_control_q8=TRUE,"Show","Hide") -> Hide
A48: Local GHG Inventory Tool: Community Module

Sheet Wastewater- Calcs
A1: Wastewater - Calculation & Sumary
B12: GHG Emissions Summary
D13: MT CO2e
B14: CO2 | D14: 0
B15: CH4 | D15: =K23+L28+J33+L38+J43 -> 4783.106538
B16: N2O | D16: =H48+H53+I58+N64+N66+N68+N70 -> 644.9552846
B17: Total Emissions from Wastewater Treatment | D17: =SUM(D14:D16) -> 5428.061823
B19: Background Calculations
A21: =IF(AND(wwt_control_q2=TRUE, wwt_control_q4=TRUE), "Show", "Hide") -> Hide | B21: LGOP Equation 10.1 - Stationary CH4 from Incomplete Combustion of Digester Gas (anaerobic facilities only, site-specific data)
A22: =IF(AND(wwt_control_q2=TRUE, wwt_control_q4=TRUE), "Show", "Hide") -> Hide | B22: Measured Digester Gas Production (ft3/day) | C22: × Measured % CH4 in Digester Gas | D22: × Methane Density (g/m3) | E22: × 1 - CH4 Destruction Efficiency | F22: × m3/ft3 | G22: × day/yr | H22: × MT/g = | I22: MT CH4 | J22: × GWP = | K22: MT CO2e
A23: =IF(AND(wwt_control_q2=TRUE, wwt_control_q4=TRUE), "Show", "Hide") -> Hide | B23: =wwt_entry_biogas -> 0 | C23: =wwt_entry_biogasCH4 -> 0 | D23: =wwt_factor_CH4density -> 662 | E23: =1-wwt_factors_DE -> 0.01 | F23: =ft3_m3 -> 0.0283168466 | G23: =perday_peryr -> 365.25 | H23: =g_MT -> 1e-06 | I23: =B23*C23*D23*E23*F23*G23*H23 -> 0 | J23: =CH4_CO2e -> 28 | K23: =IF(AND(wwt_control_q2=TRUE, wwt_control_q4=TRUE), I23*J23, 0) -> 0
A24: =IF(AND(wwt_control_q2=TRUE, wwt_control_q4=TRUE), "Show", "Hide") -> Hide
A25: =IF(AND(wwt_control_q2=TRUE, wwt_control_q4=TRUE), "Show", "Hide") -> Hide
A26: =IF(AND(wwt_control_q2=TRUE, wwt_control_q4=FALSE), "Show", "Hide") -> Hide | B26: LGOP Equation 10.2 - Stationary CH4 from Incomplete Combustion of Digester Gas (anaerobic facilities only, default data)
A27: =IF(AND(wwt_control_q2=TRUE, wwt_control_q4=FALSE), "Show", "Hide") -> Hide | B27: Population Served by Anaerobic Digesters | C27: × Default Digester Gas Production (ft3/person/day) | D27: × Default % CH4 in Digester Gas | E27: × Methane Density (g/m3) | F27: × 1- CH4 Destruction Efficiency | G27: × m3/ft3 | H27: × day/yr | I27: × MT/g = | J27: MT CH4 | K27: × GWP = | L27: MT CO2e
A28: =IF(AND(wwt_control_q2=TRUE, wwt_control_q4=FALSE), "Show", "Hide") -> Hide | B28: =wwt_entry_popAnaerobic -> 0 | C28: =wwt_factors_biogas_def -> 1 | D28: =1-wwt_factors_FCH4_def -> 0.35 | E28: =wwt_factor_CH4density -> 662 | F28: =1-wwt_factors_DE -> 0.01 | G28: =ft3_m3 -> 0.0283168466 | H28: =perday_peryr -> 365.25 | I28: =g_MT -> 1e-06 | J28: =B28*C28*D28*E28*F28*G28*H28*I28 -> 0 | K28: =CH4_CO2e -> 28 | L28: =IF(AND(wwt_control_q2=TRUE, wwt_control_q4=FALSE), J28*K28, 0) -> 0
A29: =IF(AND(wwt_control_q2=TRUE, wwt_control_q4=FALSE), "Show", "Hide") -> Hide
A30: =IF(AND(wwt_control_q2=TRUE, wwt_control_q4=FALSE), "Show", "Hide") -> Hide
A31: =IF(AND(wwt_control_q2=TRUE, wwt_control_q5=TRUE), "Show", "Hide") -> Hide | B31: LGOP Equation 10.3 - Process CH4 from Anaerobic and Facultative Wastewater Treatment Lagoons (site-specific data)
A32: =IF(AND(wwt_control_q2=TRUE, wwt_control_q5=TRUE), "Show", "Hide") -> Hide | B32: Measured BOD5 Load (kg BOD5/day) | C32: × 1 - Measured BOD5 Percentage Removed | D32: × Maximum CH4 Production Capacity (kg CH4/kg BOD5) | E32: × Anaerobic CH4 Correction Factor | F32: × day/yr | G32: × MT/kg = | H32: MT CH4 | I32: × GWP = | J32: MT CO2e
A33: =IF(AND(wwt_control_q2=TRUE, wwt_control_q5=TRUE), "Show", "Hide") -> Hide | B33: =wwt_entry_BODinput -> 0 | C33: =1-wwt_entry_BODremoved -> 1 | D33: =wwt_factors_MaxCapacity -> 0.6 | E33: =wwt_factors_anaerobicCF -> 0.8 | F33: =perday_peryr -> 365.25 | G33: =kg_mt -> 0.001 | H33: =B33*C33*D33*E33*F33*G33 -> 0 | I33: =CH4_CO2e -> 28 | J33: =IF(AND(wwt_control_q2=TRUE, wwt_control_q5=TRUE), H33*I33, 0) -> 0
A34: =IF(AND(wwt_control_q2=TRUE, wwt_control_q5=TRUE), "Show", "Hide") -> Hide
A35: =IF(AND(wwt_control_q2=TRUE, wwt_control_q5=TRUE), "Show", "Hide") -> Hide
A36: =IF(AND(wwt_control_q2=TRUE, wwt_control_q5=FALSE), "Show", "Hide") -> Hide | B36: LGOP Equation 10.4 - Process CH4 from Wastewater Treatment Lagoons (default data)
A37: =IF(AND(wwt_control_q2=TRUE, wwt_control_q5=FALSE), "Show", "Hide") -> Hide | B37: Effective Population Served by Lagoons | C37: × Factor for Industrial Discharge into System | D37: × Default BOD5 Load (kg BOD5/day) | E37: × 1 - Default BOD5 Percentage Removed | F37: × Maximum CH4 Production Capacity (kg CH4/kg BOD5) | G37: × Anaerobic CH4 Correction Factor | H37: × day/yr | I37: × MT/kg = | J37: MT CH4 | K37: × GWP = | L37: MT CO2e
A38: =IF(AND(wwt_control_q2=TRUE, wwt_control_q5=FALSE), "Show", "Hide") -> Hide | B38: =IF(wwt_control_q7=TRUE, wwt_calcs_Peff_anaerobic, wwt_entry_popAnaerobic) -> 0 | C38: =wwt_factors_FInd -> 1.25 | D38: =wwt_factors_BOD5load_def -> 0.09 | E38: =1-wwt_factors_Fp_def -> 0.675 | F38: =wwt_factors_MaxCapacity -> 0.6 | G38: =wwt_factors_anaerobicCF -> 0.8 | H38: =perday_peryr -> 365.25 | I38: =kg_mt -> 0.001 | J38: =B38*C38*D38*E38*F38*G38*H38*I38 -> 0 | K38: =CH4_CO2e -> 28 | L38: =IF(AND(wwt_control_q2=TRUE, wwt_control_q5=FALSE), J38*K38, 0) -> 0
A39: =IF(AND(wwt_control_q2=TRUE, wwt_control_q5=FALSE), "Show", "Hide") -> Hide
A40: =IF(AND(wwt_control_q2=TRUE, wwt_control_q5=FALSE), "Show", "Hide") -> Hide
A41: =IF(wwt_control_q6=TRUE, "Show", "Hide") -> Show | B41: LGOP Equation 10.6 - Fugitive CH4 Emissions from Septic Systems (default BOD5 load)
A42: =IF(wwt_control_q6=TRUE, "Show", "Hide") -> Show | B42: Population Served by Septic Systems | C42: × Default BOD5 Load (kg BOD5/day) | D42: × Maximum CH4 Production Capacity (kg CH4/kg BOD5) | E42: × Septic CH4 Correction Factor | F42: × day/yr | G42: × MT/kg = | H42: MT CH4 | I42: × GWP = | J42: MT CO2e
A43: =IF(wwt_control_q6=TRUE, "Show", "Hide") -> Show | B43: =wwt_entry_popSeptic -> 17322 | C43: =wwt_factors_BOD5load_def -> 0.09 | D43: =wwt_factors_MaxCapacity -> 0.6 | E43: =wwt_factors_septicCF -> 0.5 | F43: =perday_peryr -> 365.25 | G43: =kg_mt -> 0.001 | H43: =B43*C43*D43*E43*F43*G43 -> 170.8252335 | I43: =CH4_CO2e -> 28 | J43: =IF(wwt_control_q6=TRUE, H43*I43, 0) -> 4783.106538
A44: =IF(wwt_control_q6=TRUE, "Show", "Hide") -> Show
A45: =IF(wwt_control_q6=TRUE, "Show", "Hide") -> Show
A46: =IF(wwt_control_q8=TRUE, "Show", "Hide") -> Hide | B46: LGOP Equation 10.7 - Process N2O Emissions from WWTP with Nitrification/Denitrification
A47: =IF(wwt_control_q8=TRUE, "Show", "Hide") -> Hide | B47: Effective Population Served by Nit/Denit | C47: × Factor for Industrial Discharge into System | D47: × Nit/Denit Emissions Factor (g N2O/person/yr) | E47: × MT/g = | F47: MT N2O | G47: × GWP = | H47: MT CO2e
A48: =IF(wwt_control_q8=TRUE, "Show", "Hide") -> Hide | B48: =IF(wwt_control_q7=TRUE, wwt_calcs_Peff_nit, wwt_entry_popNit) -> 0 | C48: =wwt_factors_FInd -> 1.25 | D48: =wwt_factors_EFnitdenit -> 7 | E48: =g_MT -> 1e-06 | F48: =B48*C48*D48*E48 -> 0 | G48: =N2O_CO2e -> 265 | H48: =IF(wwt_control_q8=TRUE, F48*G48, 0) -> 0
A49: =IF(wwt_control_q8=TRUE, "Show", "Hide") -> Hide
A50: =IF(wwt_control_q8=TRUE, "Show", "Hide") -> Hide
A51: =IF(wwt_control_q9=TRUE, "Show", "Hide") -> Show | B51: LGOP Equation 10.8 - Process N2O Emissions from WWTP without Nitrification/Denitrification
A52: =IF(wwt_control_q9=TRUE, "Show", "Hide") -> Show | B52: Effective Population Served without Nit/Denit | C52: × Factor for Industrial Discharge into System | D52: × No Nit/Denit Emissions Factor (g N2O/person/yr) | E52: × MT/g = | F52: MT N2O | G52: × GWP = | H52: MT CO2e
A53: Show | B53: =IF(wwt_control_q7=TRUE, wwt_calcs_Peff_noNit, wwt_entry_popNoNit) -> 30000 | C53: =wwt_factors_FInd -> 1.25 | D53: =wwt_factors_EFnoNit -> 3.2 | E53: =g_MT -> 1e-06 | F53: =B53*C53*D53*E53 -> 0.12 | G53: =N2O_CO2e -> 265 | H53: =IF(wwt_control_q9=TRUE,F53*G53,0) -> 31.8
A54: Show
A55: Show
A56: =IF(wwt_control_q9=TRUE, "Show", "Hide") -> Show | B56: LGOP Equation 10.9 - Process N2O Emissions from Effluent Discharge (site-specific N load data)
A57: Show | B57: Measured Average Total N Discharged (kg N/day) | C57: × Effluent Emission Factor (kg N2O-N/kg sewage) | D57: × day/yr | E57: × MT/kg | F57: × N2O/N2 Molecular Weight Ratio = | G57: MT N2O | H57: × GWP = | I57: MT CO2e
A58: Show | B58: =wwt_entry_Neffluent -> 0 | C58: =wwt_factors_EFeff -> 0.005 | D58: =perday_peryr -> 365.25 | E58: =kg_mt -> 0.001 | F58: =wwt_factors_N2O_N2 -> 1.571428571 | G58: =B58*C58*D58*E58*F58 -> 0 | H58: =N2O_CO2e -> 265 | I58: =IF(wwt_control_q9=TRUE, G58*H58, 0) -> 0
A59: Show
A60: Show
A61: =IF(wwt_control_q10=FALSE, "Show", "Hide") -> Show | B61: LGOP Equation 10.10 - Process N2O Emissions from Effluent Discharge (default N load data)
A62: =IF(wwt_control_q10=FALSE, "Show", "Hide") -> Show | B62: Population Served | C62: Factor for Industrial Discharge into System | D62: × [Total N Load (kg N/person/day) | E62: - N uptake* (kg N/kg BOD5) | F62: × BOD5 Load ] | G62: × Effluent Emissions Factor (kg N2O-N/kg sewage) | H62: × N2O/N2 Molecular Weight Ratio | I62: × 1 - Fraction of Nitrogen Removed** | J62: × day/yr | K62: × MT/kg = | L62: MT N2O | M62: × GWP = | N62: MT CO2e
A63: =IF(AND(wwt_control_q10=FALSE, wwt_control_q2=TRUE, wwt_control_q8=TRUE), "Show", "Hide") -> Hide | B63: Anaerobic Treatment with Nitrification/Denitrification
A64: =IF(AND(wwt_control_q10=FALSE, wwt_control_q2=TRUE, wwt_control_q8=TRUE), "Show", "Hide") -> Hide | B64: =wwt_entry_popNit -> 0 | C64: =wwt_factors_FInd -> 1.25 | D64: =wwt_factors_NloadTot -> 0.026 | E64: =wwt_factors_NupAnaerobic -> 0.005 | F64: =wwt_factors_BOD5load_def -> 0.09 | G64: =wwt_factors_EFeff -> 0.005 | H64: =wwt_factors_N2O_N2 -> 1.571428571 | I64: =1-wwt_factors_nitdenit_def -> 0.3 | J64: =perday_peryr -> 365.25 | K64: =kg_mt -> 0.001 | L64: =B64*C64*(D64-E64*F64)*G64*H64*I64*J64*K64 -> 0 | M64: =N2O_CO2e -> 265 | N64: =IF(AND(wwt_control_q10=FALSE, wwt_control_q2=TRUE, wwt_control_q8=TRUE), L64*M64, 0) -> 0
A65: =IF(AND(wwt_control_q10=FALSE, wwt_control_q2=TRUE, wwt_control_q9=TRUE), "Show", "Hide") -> Hide | B65: Anaerobic Treatment without Nitrification/Denitrification
A66: =IF(AND(wwt_control_q10=FALSE, wwt_control_q2=TRUE, wwt_control_q9=TRUE), "Show", "Hide") -> Hide | B66: =wwt_entry_popNoNit -> 30000 | C66: =wwt_factors_FInd -> 1.25 | D66: =wwt_factors_NloadTot -> 0.026 | E66: =wwt_factors_NupAnaerobic -> 0.005 | F66: =wwt_factors_BOD5load_def -> 0.09 | G66: =wwt_factors_EFeff -> 0.005 | H66: =wwt_factors_N2O_N2 -> 1.571428571 | I66: =1-wwt_factors_nonitdenit_def -> 1 | J66: =perday_peryr -> 365.25 | K66: =kg_mt -> 0.001 | L66: =B66*C66*(D66-E66*F66)*G66*H66*I66*J66*K66 -> 2.749647656 | M66: =N2O_CO2e -> 265 | N66: =IF(AND(wwt_control_q10=FALSE, wwt_control_q2=TRUE, wwt_control_q9=TRUE), L66*M66, 0) -> 0
A67: =IF(AND(wwt_control_q10=FALSE, wwt_control_q3=TRUE, wwt_control_q8=TRUE), "Show", "Hide") -> Hide | B67: Aerobic Treatment with Nitrification/Denitrification
A68: =IF(AND(wwt_control_q10=FALSE, wwt_control_q3=TRUE, wwt_control_q8=TRUE), "Show", "Hide") -> Hide | B68: =wwt_entry_popNit -> 0 | C68: =wwt_factors_FInd -> 1.25 | D68: =wwt_factors_NloadTot -> 0.026 | E68: =wwt_factors_NupAerobic -> 0.05 | F68: =wwt_factors_BOD5load_def -> 0.09 | G68: =wwt_factors_EFeff -> 0.005 | H68: =wwt_factors_N2O_N2 -> 1.571428571 | I68: =1-wwt_factors_nitdenit_def -> 0.3 | J68: =perday_peryr -> 365.25 | K68: =kg_mt -> 0.001 | L68: =B68*C68*(D68-E68*F68)*G68*H68*I68*J68*K68 -> 0 | M68: =N2O_CO2e -> 265 | N68: =IF(AND(wwt_control_q10=FALSE, wwt_control_q3=TRUE, wwt_control_q8=TRUE), L68*M68, 0) -> 0
A69: =IF(AND(wwt_control_q10=FALSE, wwt_control_q3=TRUE, wwt_control_q9=TRUE), "Show", "Hide") -> Show | B69: Aerobic Treatment without Nitrification/Denitrification
A70: =IF(AND(wwt_control_q10=FALSE, wwt_control_q3=TRUE, wwt_control_q9=TRUE), "Show", "Hide") -> Show | B70: =wwt_entry_popNoNit -> 30000 | C70: =wwt_factors_FInd -> 1.25 | D70: =wwt_factors_NloadTot -> 0.026 | E70: =wwt_factors_NupAerobic -> 0.05 | F70: =wwt_factors_BOD5load_def -> 0.09 | G70: =wwt_factors_EFeff -> 0.005 | H70: =wwt_factors_N2O_N2 -> 1.571428571 | I70: =1-wwt_factors_nonitdenit_def -> 1 | J70: =perday_peryr -> 365.25 | K70: =kg_mt -> 0.001 | L70: =B70*C70*(D70-E70*F70)*G70*H70*I70*J70*K70 -> 2.313793527 | M70: =N2O_CO2e -> 265 | N70: =IF(AND(wwt_control_q10=FALSE, wwt_control_q3=TRUE, wwt_control_q9=TRUE), L70*M70, 0) -> 613.1552846
A71: =IF(wwt_control_q10=FALSE, "Show", "Hide") -> Show | B71: *Depends if anaerobic/aerobic; **Depends if with/without Nitrification/Denitrification
A72: =IF(wwt_control_q9=FALSE, "Show", "Hide") -> Hide
A73: =IF(wwt_control_q9=FALSE, "Show", "Hide") -> Hide
A74: =IF(wwt_control_q7=TRUE, "Show", "Hide") -> Hide | B74: Effective Population Calculations
A75: =IF(wwt_control_q7=TRUE, "Show", "Hide") -> Hide | B75: System | C75: Industrial Load (lbs N/day) | D75: × kg/lb | E75: ÷ Population Equivalency Factor (kg N/person/day) | F75: = Population Equivalent of Industrial Loading | G75: + Population Served | H75: = Effective Population
A76: =IF(AND(wwt_control_q7=TRUE, wwt_control_q2=TRUE), "Show", "Hide") -> Hide | B76: Anaerobic | C76: =wwt_entry_indusNload -> 0 | D76: =lb_kg -> 0.45359237 | E76: 0.026 | F76: =C76*D76/E76 -> 0 | G76: =wwt_entry_popAnaerobic -> 0 | H76: =F76+G76 -> 0
A77: =IF(AND(wwt_control_q7=TRUE, wwt_control_q3=TRUE), "Show", "Hide") -> Hide | B77: Aerobic | C77: =wwt_entry_indusNload -> 0 | D77: =lb_kg -> 0.45359237 | E77: 0.026 | F77: =C77*D77/E77 -> 0 | G77: =wwt_entry_popAerobic -> 30000 | H77: =F77+G77 -> 30000
A78: =IF(AND(wwt_control_q7=TRUE, wwt_control_q8=TRUE), "Show", "Hide") -> Hide | B78: Nit/Denit | C78: =wwt_entry_indusNload -> 0 | D78: =lb_kg -> 0.45359237 | E78: 0.026 | F78: =C78*D78/E78 -> 0 | G78: =wwt_entry_popNit -> 0 | H78: =F78+G78 -> 0
A79: =IF(wwt_control_q7=TRUE, "Show", "Hide") -> Hide | B79: No Nit/Denit | C79: =wwt_entry_indusNload -> 0 | D79: =lb_kg -> 0.45359237 | E79: 0.026 | F79: =C79*D79/E79 -> 0 | G79: =wwt_entry_popNoNit -> 30000 | H79: =F79+G79 -> 30000
B82: Cell Color Codes
B83: Data entered on previous sheet
B84: Calculated or Entered Data
B85: CH4 Emissions
B86: N2O Emissions
B87: Value depends on system type
A90: Local GHG Inventory Tool: Community Module

Sheet Electricity-Entry
A1: Electricity Use - Entry
A2: Data Entry & Calculations
A8: 1) | B8: Describe the electricity consuming unit you are entering
B9: ID# | C9: Unit Description (e.g., facility name) | D9: Facility Type (if applicable) | E9: Sector | F9: Is this a Contractual Instrument? (e.g., REC)
A10: 0 | B10: =elec_CurrentID -> 1 | C10: sample 1 | D10: Energy Generation: Electricity Generators | E10: Energy Generation | F10: No
A13: 2) | B13: ="Enter the activity data for the year "&MyYear -> Enter the activity data for the year 2022
B15: =IF(elec_entry_contract<>"No","Contractual Instrument Description (Unique ID)","") ->  | C15: Electricity Purchased (kWh) | D15: =IF(elec_entry_contract="No","Electric Utility","") -> Electric Utility | E15: =IF(elec_entry_contract<>"No","Supplier-Specific CO2 Emissions Rate (lb/MWh)","") ->  | F15: =IF(elec_entry_contract<>"No","Supplier-Specific CH4 Emissions Rate (lb/MWh)","") ->  | G15: =IF(elec_entry_contract<>"No","Supplier-Specific N2O Emissions Rate (lb/MWh)","") -> 
D16: Select Electric Utility...
B17: =IF(AND(IFERROR(VLOOKUP(elec_entry_ID,elec_data,7,FALSE)<>elec_entry_contract_descript,TRUE),elec_entry_contract_descript<>"",ISNUMBER(MATCH(elec_entry_contract_descript,contractual_instrument_entries,0))),"WARNING: This description has already been used for another contractual instrument. Please provide a unique description.","") -> 
A24: Local GHG Inventory Tool: Community Module

Sheet Electricity-Data
A1: Electricity Use - Data
A5: Linker Row
A6: ID# | B6: Unit Description | C6: Sector | D6: Utility | E6: Electricity Consumed (kWh) | F6: Facility Type | G6: Contractual Instrument Description | H6: Supplier-Specific CO2 Emissions Rate | I6: Supplier-Specific CH4 Emissions Rate | J6: Supplier-Specific N2O Emissions Rate | K6: contract?
A7: =MAX(A9:A65514)+1 -> 1 | B7: =elec_entry_description -> sample 1 | C7: =elec_entry_dept -> Energy Generation | D7: =IF(elec_entry_contract="Yes","N/A",elec_entry_utility) -> Select Electric Utility... | E7: =elec_entry_consumption -> 0 | F7: =elec_entry_bldgtype -> Energy Generation: Electricity Generators | G7: =elec_entry_contract_descript -> 0 | H7: =elec_entry_CO2_ER -> 0 | I7: =elec_entry_CH4_ER -> 0 | J7: =elec_entry_N2O_ER -> 0 | K7: =elec_entry_contract -> No
A8: Saved Data

Sheet Electricity LocationBased-Calcs
A1: Electricity Use - Calculation & Summary
A2: Jump to…
A3: GHG Summary
A4: Emissions by Sector
A5: Electricity Summary
A6: Electricity Use by Sector
A7: Background Calculations
A8: CO2 emissions by utility
A9: CH4 emissions by utility
A10: N2O emissions by utility
A11: Activity data by sector and utility
A12: CO2 emissions by sector and utility
A13: CH4 emissions by sector and utility
A14: N2O emissions by sector and utility
A16: GHG Summary
B18: Emissions by Sector (in CO2e)
C19: CO2 | D19: CH4 | E19: N2O | F19: Total
A20: Dstart | B20: ='Background Controls'!I5 -> Residential | C20: =IF(ISNA(VLOOKUP($B20, elec_calcs_deptCO2, 8, FALSE)),0, VLOOKUP($B20, elec_calcs_deptCO2, 8, FALSE)) -> 0 | D20: =IF(ISNA(VLOOKUP($B20, elec_calcs_deptCH4, 8, FALSE)),0, VLOOKUP($B20, elec_calcs_deptCH4, 8, FALSE)) -> 0 | E20: =IF(ISNA(VLOOKUP($B20, elec_calcs_deptN2O, 8, FALSE)),0, VLOOKUP($B20, elec_calcs_deptN2O, 8, FALSE)) -> 0 | F20: =SUM(C20:E20) -> 0
B21: ='Background Controls'!I6 -> Commercial/Institutional | C21: 0 | D21: =IF(ISNA(VLOOKUP($B21, elec_calcs_deptCH4, 8, FALSE)),0, VLOOKUP($B21, elec_calcs_deptCH4, 8, FALSE)) -> 0 | E21: 0 | F21: =SUM(C21:E21) -> 0
B22: ='Background Controls'!I7 -> Industrial | C22: 0 | D22: 0 | E22: 0 | F22: 0
B23: ='Background Controls'!I8 -> Energy Generation | C23: 0 | D23: 0 | E23: 0 | F23: 0
B24: ='Background Controls'!I9 -> 0 | C24: 0 | D24: 0 | E24: 0 | F24: 0
B25: ='Background Controls'!I10 -> 0 | C25: 0 | D25: 0 | E25: 0 | F25: 0
B26: ='Background Controls'!I11 -> 0 | C26: 0 | D26: 0 | E26: 0 | F26: 0
B27: ='Background Controls'!I12 -> 0 | C27: 0 | D27: 0 | E27: 0 | F27: 0
B28: ='Background Controls'!I13 -> 0 | C28: 0 | D28: 0 | E28: 0 | F28: 0
B29: ='Background Controls'!I14 -> 0 | C29: 0 | D29: 0 | E29: 0 | F29: 0
B30: ='Background Controls'!I15 -> 0 | C30: 0 | D30: 0 | E30: 0 | F30: 0
B31: ='Background Controls'!I16 -> 0 | C31: 0 | D31: 0 | E31: 0 | F31: 0
B32: ='Background Controls'!I17 -> 0 | C32: 0 | D32: 0 | E32: 0 | F32: 0
B33: ='Background Controls'!I18 -> 0 | C33: 0 | D33: 0 | E33: 0 | F33: 0
B34: ='Background Controls'!I19 -> 0 | C34: 0 | D34: 0 | E34: 0 | F34: 0
B35: ='Background Controls'!I20 -> 0 | C35: 0 | D35: 0 | E35: 0 | F35: 0
B36: ='Background Controls'!I21 -> 0 | C36: 0 | D36: 0 | E36: 0 | F36: 0
B37: ='Background Controls'!I22 -> 0 | C37: 0 | D37: 0 | E37: 0 | F37: 0
B38: ='Background Controls'!I23 -> 0 | C38: 0 | D38: 0 | E38: 0 | F38: 0
B39: ='Background Controls'!I24 -> 0 | C39: 0 | D39: 0 | E39: 0 | F39: 0
B40: Total Emissions from Electricity Use | C40: =SUM(C20:C29) -> 0 | D40: =SUM(D20:D29) -> 0 | E40: =SUM(E20:E29) -> 0 | F40: =SUM(F20:F29) -> 0
A60: Electricity Summary
B62: Electricity Use by Sector (in kWh)
B63: Sector | C63: kWh
A64: Dstart | B64: ='Background Controls'!I5 -> Residential | C64: =SUMIFS(elec_data_consump,elec_data_dept,B64,elec_data_contract_binary,"No") -> 0
B65: ='Background Controls'!I6 -> Commercial/Institutional | C65: 0
B66: ='Background Controls'!I7 -> Industrial | C66: 0
B67: ='Background Controls'!I8 -> Energy Generation | C67: 0
B68: ='Background Controls'!I9 -> 0 | C68: 0
B69: ='Background Controls'!I10 -> 0 | C69: 0
B70: ='Background Controls'!I11 -> 0 | C70: 0
B71: ='Background Controls'!I12 -> 0 | C71: 0
B72: ='Background Controls'!I13 -> 0 | C72: 0
B73: ='Background Controls'!I14 -> 0 | C73: 0
B74: ='Background Controls'!I15 -> 0 | C74: 0
B75: ='Background Controls'!I16 -> 0 | C75: 0
B76: ='Background Controls'!I17 -> 0 | C76: 0
B77: ='Background Controls'!I18 -> 0 | C77: 0
B78: ='Background Controls'!I19 -> 0 | C78: 0
B79: ='Background Controls'!I20 -> 0 | C79: 0
B80: ='Background Controls'!I21 -> 0 | C80: 0
B81: ='Background Controls'!I22 -> 0 | C81: 0
B82: ='Background Controls'!I23 -> 0 | C82: 0
B83: ='Background Controls'!I24 -> 0 | C83: 0
B84: Total Electricity Use | C84: =SUM(C64:C83) -> 0
A106: Background Calculations
A108: CO2 Emissions by Utility
A109: Emissions = Electricity Consumed (kWh) × eGRID Regional Emissions Factor (lb CO2/MWh) × MWh/kWh × MT/lb × CO2 GWP
B110: Utility | C110: kWh | D110: eGRID Regional EF (lb CO2/MWh) | E110: MWh/kWh | F110: MT/lb | G110: MT CO2 | H110: × GWP = | I110: MT CO2e
B111: =IF('Background Controls'!$B$62=0,"-",'Background Controls'!$B$62) -> AKGD eGRID subregion | C111: =SUMIF(elec_data_utility, B111, elec_data_consump) -> 0 | D111: =IFERROR(VLOOKUP(B$111, elec_control_factors, 2, FALSE),"-") -> 1067.68 | E111: =kWh_MWh -> 0.001 | F111: =lb_mt -> 0.00045359237 | G111: =IFERROR(C111*D111*E111*F111,"-") -> 0 | H111: =CO2_CO2e -> 1 | I111: =IFERROR(G111*H111,"-") -> 0
B112: =IF('Background Controls'!$B$63=0,"-",'Background Controls'!$B$63) -> - | C112: 0 | D112: =IF(B112="-","-",VLOOKUP(B$111, elec_control_factors, 2, FALSE)) -> - | E112: 0.001 | F112: 0.00045359237 | G112: - | H112: 1 | I112: -
B113: =IF('Background Controls'!$B$64=0,"-",'Background Controls'!$B$64) -> - | C113: 0 | D113: =IF(B113="-","-",VLOOKUP(B$111, elec_control_factors, 2, FALSE)) -> - | E113: 0.001 | F113: 0.00045359237 | G113: - | H113: 1 | I113: -
B114: =IF('Background Controls'!$B$65=0,"-",'Background Controls'!$B$65) -> - | C114: 0 | D114: =IF(B114="-","-",VLOOKUP(B$111, elec_control_factors, 2, FALSE)) -> - | E114: 0.001 | F114: 0.00045359237 | G114: - | H114: 1 | I114: -
B115: =IF('Background Controls'!$B$66=0,"-",'Background Controls'!$B$66) -> - | C115: 0 | D115: =IF(B115="-","-",VLOOKUP(B$111, elec_control_factors, 2, FALSE)) -> - | E115: 0.001 | F115: 0.00045359237 | G115: - | H115: 1 | I115: -
B116: =IF('Background Controls'!$B$67=0,"-",'Background Controls'!$B$67) -> - | C116: 0 | D116: =IF(B116="-","-",VLOOKUP(B$111, elec_control_factors, 2, FALSE)) -> - | E116: 0.001 | F116: 0.00045359237 | G116: - | H116: 1 | I116: -
A118: CH4 Emissions by Utility
A119: Emissions = Electricity Consumed (kWh) × eGRID Regional Emissions Factor (lb CH4/MWh) × MWh/kWh × MT/lb × CH4 GWP
B120: Utility | C120: kWh | D120: eGRID Regional EF (lb CH4/MWh) | E120: MWh/kWh | F120: MT/lb | G120: MT CH4 | H120: × GWP = | I120: MT CO2e
B121: =IF('Background Controls'!$B$62=0,"-",'Background Controls'!$B$62) -> AKGD eGRID subregion | C121: =SUMIF(elec_data_utility, B121, elec_data_consump) -> 0 | D121: =IFERROR(VLOOKUP(B$121, elec_control_factors, 3, FALSE),"-") -> 0.091 | E121: =kWh_MWh -> 0.001 | F121: =lb_mt -> 0.00045359237 | G121: =IFERROR(C121*D121*E121*F121,"-") -> 0 | H121: =CH4_CO2e -> 28 | I121: =IFERROR(G121*H121,"-") -> 0
B122: =IF('Background Controls'!$B$63=0,"-",'Background Controls'!$B$63) -> - | C122: 0 | D122: =IF(B122="-","-",VLOOKUP(B$121, elec_control_factors, 3, FALSE)) -> - | E122: 0.001 | F122: 0.00045359237 | G122: - | H122: 28 | I122: -
B123: =IF('Background Controls'!$B$64=0,"-",'Background Controls'!$B$64) -> - | C123: 0 | D123: =IF(B123="-","-",VLOOKUP(B$121, elec_control_factors, 3, FALSE)) -> - | E123: 0.001 | F123: 0.00045359237 | G123: - | H123: 28 | I123: -
B124: =IF('Background Controls'!$B$65=0,"-",'Background Controls'!$B$65) -> - | C124: 0 | D124: =IF(B124="-","-",VLOOKUP(B$121, elec_control_factors, 3, FALSE)) -> - | E124: 0.001 | F124: 0.00045359237 | G124: - | H124: 28 | I124: -
B125: =IF('Background Controls'!$B$66=0,"-",'Background Controls'!$B$66) -> - | C125: 0 | D125: =IF(B125="-","-",VLOOKUP(B$121, elec_control_factors, 3, FALSE)) -> - | E125: 0.001 | F125: 0.00045359237 | G125: - | H125: 28 | I125: -
B126: =IF('Background Controls'!$B$67=0,"-",'Background Controls'!$B$67) -> - | C126: 0 | D126: =IF(B126="-","-",VLOOKUP(B$121, elec_control_factors, 3, FALSE)) -> - | E126: 0.001 | F126: 0.00045359237 | G126: - | H126: 28 | I126: -
A128: N2O Emissions by Utility
A129: Emissions = Electricity Consumed (kWh) × eGRID Regional Emissions Factor (lb N2O/MWh) × MWh/kWh × MT/lb × N2O GWP
B130: Utility | C130: kWh | D130: eGRID Regional EF (lb N2O/MWh) | E130: MWh/kWh | F130: MT/lb | G130: MT N2O | H130: × GWP = | I130: MT CO2e
B131: =IF('Background Controls'!$B$62=0,"-",'Background Controls'!$B$62) -> AKGD eGRID subregion | C131: =SUMIF(elec_data_utility, B131, elec_data_consump) -> 0 | D131: =IFERROR(VLOOKUP(B$131, elec_control_factors, 4, FALSE),"-") -> 0.012 | E131: =kWh_MWh -> 0.001 | F131: =lb_mt -> 0.00045359237 | G131: =IFERROR(C131*D131*E131*F131,"-") -> 0 | H131: =N2O_CO2e -> 265 | I131: =IFERROR(G131*H131,"-") -> 0
B132: =IF('Background Controls'!$B$63=0,"-",'Background Controls'!$B$63) -> - | C132: 0 | D132: =IF(B132="-","-",VLOOKUP(B$131, elec_control_factors, 4, FALSE)) -> - | E132: 0.001 | F132: 0.00045359237 | G132: - | H132: 265 | I132: -
B133: =IF('Background Controls'!$B$64=0,"-",'Background Controls'!$B$64) -> - | C133: 0 | D133: =IF(B133="-","-",VLOOKUP(B$131, elec_control_factors, 4, FALSE)) -> - | E133: 0.001 | F133: 0.00045359237 | G133: - | H133: 265 | I133: -
B134: =IF('Background Controls'!$B$65=0,"-",'Background Controls'!$B$65) -> - | C134: 0 | D134: =IF(B134="-","-",VLOOKUP(B$131, elec_control_factors, 4, FALSE)) -> - | E134: 0.001 | F134: 0.00045359237 | G134: - | H134: 265 | I134: -
B135: =IF('Background Controls'!$B$66=0,"-",'Background Controls'!$B$66) -> - | C135: 0 | D135: =IF(B135="-","-",VLOOKUP(B$131, elec_control_factors, 4, FALSE)) -> - | E135: 0.001 | F135: 0.00045359237 | G135: - | H135: 265 | I135: -
B136: =IF('Background Controls'!$B$67=0,"-",'Background Controls'!$B$67) -> - | C136: 0 | D136: =IF(B136="-","-",VLOOKUP(B$131, elec_control_factors, 4, FALSE)) -> - | E136: 0.001 | F136: 0.00045359237 | G136: - | H136: 265 | I136: -
A138: Activity Data by Sector and Utility
A139: Electricity use data by sector and fuel type (kWh)
B140: Sector | C140: =IF('Background Controls'!$B$62=0,"-",'Background Controls'!$B$62) -> AKGD eGRID subregion | D140: =IF('Background Controls'!$B$63=0,"-",'Background Controls'!$B$63) -> - | E140: =IF('Background Controls'!$B$64=0,"-",'Background Controls'!$B$64) -> - | F140: =IF('Background Controls'!$B$65=0,"-",'Background Controls'!$B$65) -> - | G140: =IF('Background Controls'!$B$66=0,"-",'Background Controls'!$B$66) -> - | H140: =IF('Background Controls'!$B$67=0,"-",'Background Controls'!$B$67) -> - | I140: TOTAL
A141: Dstart | B141: ='Background Controls'!I5 -> Residential | C141: =SUMIFS(elec_data_consump, elec_data_dept, $B141, elec_data_utility, C$140) -> 0 | D141: =SUMIFS(elec_data_consump, elec_data_dept, $B141, elec_data_utility, D$140) -> 0 | E141: 0 | F141: 0 | G141: 0 | H141: 0 | I141: =SUM(C141:H141) -> 0
B142: ='Background Controls'!I6 -> Commercial/Institutional | C142: =SUMIFS(elec_data_consump, elec_data_dept, $B142, elec_data_utility, C$140) -> 0 | D142: 0 | E142: 0 | F142: 0 | G142: 0 | H142: 0 | I142: 0
B143: ='Background Controls'!I7 -> Industrial | C143: 0 | D143: =SUMIFS(elec_data_consump, elec_data_dept, $B143, elec_data_utility, D$140) -> 0 | E143: 0 | F143: 0 | G143: 0 | H143: 0 | I143: 0
B144: ='Background Controls'!I8 -> Energy Generation | C144: 0 | D144: 0 | E144: 0 | F144: 0 | G144: 0 | H144: 0 | I144: 0
B145: ='Background Controls'!I9 -> 0 | C145: 0 | D145: 0 | E145: 0 | F145: 0 | G145: 0 | H145: 0 | I145: 0
B146: ='Background Controls'!I10 -> 0 | C146: 0 | D146: 0 | E146: 0 | F146: 0 | G146: 0 | H146: 0 | I146: 0
B147: ='Background Controls'!I11 -> 0 | C147: 0 | D147: 0 | E147: 0 | F147: 0 | G147: 0 | H147: 0 | I147: 0
B148: ='Background Controls'!I12 -> 0 | C148: 0 | D148: 0 | E148: 0 | F148: 0 | G148: 0 | H148: 0 | I148: 0
B149: ='Background Controls'!I13 -> 0 | C149: 0 | D149: 0 | E149: 0 | F149: 0 | G149: 0 | H149: 0 | I149: 0
B150: ='Background Controls'!I14 -> 0 | C150: 0 | D150: 0 | E150: 0 | F150: 0 | G150: 0 | H150: 0 | I150: 0
B151: ='Background Controls'!I15 -> 0 | C151: =SUMIFS(elec_data_consump, elec_data_dept, $B151, elec_data_utility, C$140) -> 0 | D151: 0 | E151: 0 | F151: 0 | G151: 0 | H151: 0 | I151: 0
B152: ='Background Controls'!I16 -> 0 | C152: 0 | D152: 0 | E152: 0 | F152: 0 | G152: 0 | H152: 0 | I152: 0
B153: ='Background Controls'!I17 -> 0 | C153: 0 | D153: 0 | E153: 0 | F153: 0 | G153: 0 | H153: 0 | I153: 0
B154: ='Background Controls'!I18 -> 0 | C154: 0 | D154: 0 | E154: 0 | F154: 0 | G154: 0 | H154: 0 | I154: 0
B155: ='Background Controls'!I19 -> 0 | C155: 0 | D155: 0 | E155: 0 | F155: 0 | G155: 0 | H155: 0 | I155: 0
B156: ='Background Controls'!I20 -> 0 | C156: 0 | D156: 0 | E156: 0 | F156: 0 | G156: 0 | H156: 0 | I156: 0
B157: ='Background Controls'!I21 -> 0 | C157: =SUMIFS(elec_data_consump, elec_data_dept, $B157, elec_data_utility, C$140) -> 0 | D157: 0 | E157: 0 | F157: 0 | G157: 0 | H157: 0 | I157: 0
B158: ='Background Controls'!I22 -> 0 | C158: 0 | D158: 0 | E158: 0 | F158: 0 | G158: 0 | H158: 0 | I158: 0
B159: ='Background Controls'!I23 -> 0 | C159: 0 | D159: 0 | E159: 0 | F159: 0 | G159: 0 | H159: 0 | I159: 0
B160: ='Background Controls'!I24 -> 0 | C160: 0 | D160: 0 | E160: 0 | F160: 0 | G160: 0 | H160: 0 | I160: 0
B161: Total | C161: =SUM(C141:C160) -> 0 | D161: 0 | E161: 0 | F161: 0 | G161: 0 | H161: 0 | I161: =SUM(I141:I160) -> 0
A163: CO2 Emissions by Sector and Utility
A164: Emissions = Electricity Consumed (kWh) × eGRID Regional Emissions Factor (lb CO2/MWh) × MWh/kWh × MT/lb × CO2 GWP
B165: Sector | C165: =IF('Background Controls'!$B$62=0,"-",'Background Controls'!$B$62) -> AKGD eGRID subregion | D165: =IF('Background Controls'!$B$63=0,"-",'Background Controls'!$B$63) -> - | E165: =IF('Background Controls'!$B$64=0,"-",'Background Controls'!$B$64) -> - | F165: =IF('Background Controls'!$B$65=0,"-",'Background Controls'!$B$65) -> - | G165: =IF('Background Controls'!$B$66=0,"-",'Background Controls'!$B$66) -> - | H165: =IF('Background Controls'!$B$67=0,"-",'Background Controls'!$B$67) -> - | I165: TOTAL
A166: Dstart | B166: ='Background Controls'!I5 -> Residential | C166: =IFERROR(C141*VLOOKUP($C$165, elec_control_factors, 2, FALSE)*kWh_MWh*lb_mt*CO2_CO2e,"-") -> 0 | D166: =IFERROR(D141*VLOOKUP($C$165, elec_control_factors, 2, FALSE)*kWh_MWh*lb_mt*CO2_CO2e,"-") -> 0 | E166: =IFERROR(E141*VLOOKUP($C$165, elec_control_factors, 2, FALSE)*kWh_MWh*lb_mt*CO2_CO2e,"-") -> 0 | F166: 0 | G166: 0 | H166: 0 | I166: =SUM(C166:H166) -> 0
B167: ='Background Controls'!I6 -> Commercial/Institutional | C167: 0 | D167: =IFERROR(D142*VLOOKUP($C$165, elec_control_factors, 2, FALSE)*kWh_MWh*lb_mt*CO2_CO2e,"-") -> 0 | E167: 0 | F167: 0 | G167: 0 | H167: 0 | I167: 0
B168: ='Background Controls'!I7 -> Industrial | C168: 0 | D168: =IFERROR(D143*VLOOKUP($C$165, elec_control_factors, 2, FALSE)*kWh_MWh*lb_mt*CO2_CO2e,"-") -> 0 | E168: 0 | F168: 0 | G168: 0 | H168: 0 | I168: 0
B169: ='Background Controls'!I8 -> Energy Generation | C169: 0 | D169: =IFERROR(D144*VLOOKUP($C$165, elec_control_factors, 2, FALSE)*kWh_MWh*lb_mt*CO2_CO2e,"-") -> 0 | E169: 0 | F169: 0 | G169: 0 | H169: 0 | I169: 0
B170: ='Background Controls'!I9 -> 0 | C170: 0 | D170: 0 | E170: 0 | F170: 0 | G170: 0 | H170: 0 | I170: 0
B171: ='Background Controls'!I10 -> 0 | C171: 0 | D171: 0 | E171: 0 | F171: 0 | G171: 0 | H171: 0 | I171: 0
B172: ='Background Controls'!I11 -> 0 | C172: 0 | D172: 0 | E172: 0 | F172: 0 | G172: 0 | H172: 0 | I172: 0
B173: ='Background Controls'!I12 -> 0 | C173: 0 | D173: 0 | E173: 0 | F173: 0 | G173: 0 | H173: 0 | I173: 0
B174: ='Background Controls'!I13 -> 0 | C174: 0 | D174: 0 | E174: 0 | F174: 0 | G174: 0 | H174: 0 | I174: 0
B175: ='Background Controls'!I14 -> 0 | C175: 0 | D175: 0 | E175: 0 | F175: 0 | G175: 0 | H175: 0 | I175: 0
B176: ='Background Controls'!I15 -> 0 | C176: 0 | D176: 0 | E176: 0 | F176: 0 | G176: 0 | H176: 0 | I176: 0
B177: ='Background Controls'!I16 -> 0 | C177: 0 | D177: 0 | E177: 0 | F177: 0 | G177: 0 | H177: 0 | I177: 0
B178: ='Background Controls'!I17 -> 0 | C178: 0 | D178: 0 | E178: 0 | F178: 0 | G178: 0 | H178: 0 | I178: 0
B179: ='Background Controls'!I18 -> 0 | C179: 0 | D179: 0 | E179: 0 | F179: 0 | G179: 0 | H179: 0 | I179: 0
B180: ='Background Controls'!I19 -> 0 | C180: 0 | D180: 0 | E180: 0 | F180: 0 | G180: 0 | H180: 0 | I180: 0
B181: ='Background Controls'!I20 -> 0 | C181: 0 | D181: 0 | E181: 0 | F181: 0 | G181: 0 | H181: 0 | I181: 0
B182: ='Background Controls'!I21 -> 0 | C182: 0 | D182: 0 | E182: 0 | F182: 0 | G182: 0 | H182: 0 | I182: 0
B183: ='Background Controls'!I22 -> 0 | C183: 0 | D183: 0 | E183: 0 | F183: 0 | G183: 0 | H183: 0 | I183: 0
B184: ='Background Controls'!I23 -> 0 | C184: 0 | D184: 0 | E184: 0 | F184: 0 | G184: 0 | H184: 0 | I184: 0
B185: ='Background Controls'!I24 -> 0 | C185: 0 | D185: 0 | E185: 0 | F185: 0 | G185: 0 | H185: 0 | I185: 0
B186: Total | C186: =SUM(C166:C185) -> 0 | D186: 0 | E186: 0 | F186: 0 | G186: 0 | H186: 0 | I186: =SUM(I166:I185) -> 0
A188: CH4 emissions by sector and utility
A189: Emissions = Electricity Consumed (kWh) × eGRID Regional Emissions Factor (lb CH4/kWh) × MWh/kWh × MT/lb × CH4 GWP
B190: Sector | C190: =IF('Background Controls'!$B$62=0,"-",'Background Controls'!$B$62) -> AKGD eGRID subregion | D190: =IF('Background Controls'!$B$63=0,"-",'Background Controls'!$B$63) -> - | E190: =IF('Background Controls'!$B$64=0,"-",'Background Controls'!$B$64) -> - | F190: =IF('Background Controls'!$B$65=0,"-",'Background Controls'!$B$65) -> - | G190: =IF('Background Controls'!$B$66=0,"-",'Background Controls'!$B$66) -> - | H190: =IF('Background Controls'!$B$67=0,"-",'Background Controls'!$B$67) -> - | I190: TOTAL
A191: Dstart | B191: ='Background Controls'!I5 -> Residential | C191: =IFERROR(C141*VLOOKUP(C$165, elec_control_factors,3, FALSE)*kWh_MWh*lb_mt*CH4_CO2e,"-") -> 0 | D191: =IFERROR(D141*VLOOKUP($C$165, elec_control_factors,3, FALSE)*kWh_MWh*lb_mt*CH4_CO2e,"-") -> 0 | E191: =IFERROR(E141*VLOOKUP($C$165, elec_control_factors,3, FALSE)*kWh_MWh*lb_mt*CH4_CO2e,"-") -> 0 | F191: 0 | G191: 0 | H191: 0 | I191: =SUM(C191:H191) -> 0
B192: ='Background Controls'!I6 -> Commercial/Institutional | C192: =IFERROR(C142*VLOOKUP(C$165, elec_control_factors,3, FALSE)*kWh_MWh*lb_mt*CH4_CO2e,"-") -> 0 | D192: 0 | E192: 0 | F192: 0 | G192: =IFERROR(G142*VLOOKUP($C$165, elec_control_factors,3, FALSE)*kWh_MWh*lb_mt*CH4_CO2e,"-") -> 0 | H192: 0 | I192: 0
B193: ='Background Controls'!I7 -> Industrial | C193: 0 | D193: 0 | E193: =IFERROR(E143*VLOOKUP($C$165, elec_control_factors,3, FALSE)*kWh_MWh*lb_mt*CH4_CO2e,"-") -> 0 | F193: 0 | G193: 0 | H193: =IFERROR(H143*VLOOKUP($C$165, elec_control_factors,3, FALSE)*kWh_MWh*lb_mt*CH4_CO2e,"-") -> 0 | I193: 0
B194: ='Background Controls'!I8 -> Energy Generation | C194: 0 | D194: 0 | E194: 0 | F194: 0 | G194: 0 | H194: 0 | I194: 0
B195: ='Background Controls'!I9 -> 0 | C195: 0 | D195: 0 | E195: 0 | F195: 0 | G195: 0 | H195: 0 | I195: 0
B196: ='Background Controls'!I10 -> 0 | C196: 0 | D196: 0 | E196: 0 | F196: 0 | G196: 0 | H196: 0 | I196: 0
B197: ='Background Controls'!I11 -> 0 | C197: 0 | D197: 0 | E197: 0 | F197: 0 | G197: 0 | H197: 0 | I197: 0
B198: ='Background Controls'!I12 -> 0 | C198: 0 | D198: 0 | E198: 0 | F198: 0 | G198: 0 | H198: 0 | I198: 0
B199: ='Background Controls'!I13 -> 0 | C199: 0 | D199: 0 | E199: 0 | F199: 0 | G199: 0 | H199: 0 | I199: 0
B200: ='Background Controls'!I14 -> 0 | C200: 0 | D200: 0 | E200: 0 | F200: 0 | G200: 0 | H200: 0 | I200: 0
B201: ='Background Controls'!I15 -> 0 | C201: =IFERROR(C151*VLOOKUP(C$165, elec_control_factors,3, FALSE)*kWh_MWh*lb_mt*CH4_CO2e,"-") -> 0 | D201: =IFERROR(D151*VLOOKUP($C$165, elec_control_factors,3, FALSE)*kWh_MWh*lb_mt*CH4_CO2e,"-") -> 0 | E201: 0 | F201: 0 | G201: 0 | H201: 0 | I201: 0
B202: ='Background Controls'!I16 -> 0 | C202: 0 | D202: 0 | E202: 0 | F202: 0 | G202: 0 | H202: 0 | I202: 0
B203: ='Background Controls'!I17 -> 0 | C203: 0 | D203: 0 | E203: 0 | F203: 0 | G203: 0 | H203: 0 | I203: 0
B204: ='Background Controls'!I18 -> 0 | C204: 0 | D204: 0 | E204: 0 | F204: 0 | G204: 0 | H204: 0 | I204: 0
B205: ='Background Controls'!I19 -> 0 | C205: 0 | D205: 0 | E205: 0 | F205: 0 | G205: 0 | H205: 0 | I205: 0
B206: ='Background Controls'!I20 -> 0 | C206: 0 | D206: 0 | E206: 0 | F206: 0 | G206: 0 | H206: 0 | I206: 0
B207: ='Background Controls'!I21 -> 0 | C207: 0 | D207: 0 | E207: 0 | F207: 0 | G207: 0 | H207: 0 | I207: 0
B208: ='Background Controls'!I22 -> 0 | C208: 0 | D208: 0 | E208: 0 | F208: 0 | G208: 0 | H208: 0 | I208: 0
B209: ='Background Controls'!I23 -> 0 | C209: 0 | D209: 0 | E209: 0 | F209: 0 | G209: 0 | H209: 0 | I209: 0
B210: ='Background Controls'!I24 -> 0 | C210: 0 | D210: 0 | E210: 0 | F210: 0 | G210: 0 | H210: 0 | I210: 0
B211: Total | C211: =SUM(C191:C210) -> 0 | D211: 0 | E211: 0 | F211: 0 | G211: 0 | H211: 0 | I211: =SUM(I191:I210) -> 0
A213: N2O emissions by sector and utility
A214: Emissions = Electricity Consumed (kWh) × eGRID Regional Emissions Factor (lb N2O/kWh) × MWh/kWh × MT/lb × N2O GWP
B215: Sector | C215: =IF('Background Controls'!$B$62=0,"-",'Background Controls'!$B$62) -> AKGD eGRID subregion | D215: =IF('Background Controls'!$B$63=0,"-",'Background Controls'!$B$63) -> - | E215: =IF('Background Controls'!$B$64=0,"-",'Background Controls'!$B$64) -> - | F215: =IF('Background Controls'!$B$65=0,"-",'Background Controls'!$B$65) -> - | G215: =IF('Background Controls'!$B$66=0,"-",'Background Controls'!$B$66) -> - | H215: =IF('Background Controls'!$B$67=0,"-",'Background Controls'!$B$67) -> - | I215: TOTAL
A216: Dstart | B216: ='Background Controls'!I5 -> Residential | C216: =IFERROR(C141*VLOOKUP(C$165, elec_control_factors,4, FALSE)*kWh_MWh*lb_mt*N2O_CO2e,"-") -> 0 | D216: =IFERROR(D141*VLOOKUP($C$165, elec_control_factors,4, FALSE)*kWh_MWh*lb_mt*N2O_CO2e,"-") -> 0 | E216: 0 | F216: 0 | G216: =IFERROR(G141*VLOOKUP($C$165, elec_control_factors,4, FALSE)*kWh_MWh*lb_mt*N2O_CO2e,"-") -> 0 | H216: 0 | I216: =SUM(C216:H216) -> 0
B217: ='Background Controls'!I6 -> Commercial/Institutional | C217: 0 | D217: 0 | E217: 0 | F217: 0 | G217: 0 | H217: 0 | I217: 0
B218: ='Background Controls'!I7 -> Industrial | C218: 0 | D218: 0 | E218: 0 | F218: =IFERROR(F143*VLOOKUP($C$165, elec_control_factors,4, FALSE)*kWh_MWh*lb_mt*N2O_CO2e,"-") -> 0 | G218: 0 | H218: =IFERROR(H143*VLOOKUP($C$165, elec_control_factors,4, FALSE)*kWh_MWh*lb_mt*N2O_CO2e,"-") -> 0 | I218: 0
B219: ='Background Controls'!I8 -> Energy Generation | C219: 0 | D219: 0 | E219: 0 | F219: 0 | G219: 0 | H219: 0 | I219: 0
B220: ='Background Controls'!I9 -> 0 | C220: 0 | D220: 0 | E220: 0 | F220: 0 | G220: 0 | H220: 0 | I220: 0
B221: ='Background Controls'!I10 -> 0 | C221: 0 | D221: 0 | E221: 0 | F221: 0 | G221: 0 | H221: 0 | I221: 0
B222: ='Background Controls'!I11 -> 0 | C222: 0 | D222: 0 | E222: 0 | F222: 0 | G222: 0 | H222: 0 | I222: 0
B223: ='Background Controls'!I12 -> 0 | C223: 0 | D223: 0 | E223: 0 | F223: 0 | G223: 0 | H223: 0 | I223: 0
B224: ='Background Controls'!I13 -> 0 | C224: 0 | D224: 0 | E224: 0 | F224: 0 | G224: 0 | H224: 0 | I224: 0
B225: ='Background Controls'!I14 -> 0 | C225: 0 | D225: 0 | E225: 0 | F225: 0 | G225: 0 | H225: 0 | I225: 0
B226: ='Background Controls'!I15 -> 0 | C226: =IFERROR(C151*VLOOKUP(C$165, elec_control_factors,4, FALSE)*kWh_MWh*lb_mt*N2O_CO2e,"-") -> 0 | D226: =IFERROR(D151*VLOOKUP($C$165, elec_control_factors,4, FALSE)*kWh_MWh*lb_mt*N2O_CO2e,"-") -> 0 | E226: 0 | F226: 0 | G226: 0 | H226: 0 | I226: 0
B227: ='Background Controls'!I16 -> 0 | C227: 0 | D227: 0 | E227: 0 | F227: 0 | G227: 0 | H227: 0 | I227: 0
B228: ='Background Controls'!I17 -> 0 | C228: 0 | D228: 0 | E228: 0 | F228: 0 | G228: 0 | H228: 0 | I228: 0
B229: ='Background Controls'!I18 -> 0 | C229: 0 | D229: 0 | E229: 0 | F229: 0 | G229: 0 | H229: 0 | I229: 0
B230: ='Background Controls'!I19 -> 0 | C230: 0 | D230: 0 | E230: 0 | F230: 0 | G230: 0 | H230: 0 | I230: 0
B231: ='Background Controls'!I20 -> 0 | C231: 0 | D231: 0 | E231: 0 | F231: 0 | G231: 0 | H231: 0 | I231: 0
B232: ='Background Controls'!I21 -> 0 | C232: 0 | D232: 0 | E232: 0 | F232: 0 | G232: 0 | H232: 0 | I232: 0
B233: ='Background Controls'!I22 -> 0 | C233: 0 | D233: 0 | E233: 0 | F233: 0 | G233: 0 | H233: 0 | I233: 0
B234: ='Background Controls'!I23 -> 0 | C234: 0 | D234: 0 | E234: 0 | F234: 0 | G234: 0 | H234: 0 | I234: 0
B235: ='Background Controls'!I24 -> 0 | C235: 0 | D235: 0 | E235: 0 | F235: 0 | G235: 0 | H235: 0 | I235: 0
B236: Total | C236: =SUM(C216:C235) -> 0 | D236: 0 | E236: 0 | F236: 0 | G236: 0 | H236: 0 | I236: =SUM(I216:I235) -> 0
A240: Local GHG Inventory Tool: Community Module

Sheet Employee Commute (hidden)
A1: Employee Commute
A2: Jump to…
A3: Step 1. Enter employee data by department
A4: Step 2. Enter mode of transportation proportions
A5: Employee Commute Emissions Summary
A6: Chart: Employee Commute Emissions
A7: Background Calculations
A12: 1. Enter Employee Data
A13: Please enter the number of employees in each department. This will be used to calculate the commute emissions per department.
B14: Department | C14: Number of employees
A15: Dstart | B15: ='Background Controls'!I5 -> Residential
B16: ='Background Controls'!I6 -> Commercial/Institutional
B17: ='Background Controls'!I7 -> Industrial
B18: ='Background Controls'!I8 -> Energy Generation
B19: ='Background Controls'!I9 -> 0
B20: ='Background Controls'!I10 -> 0
B21: ='Background Controls'!I11 -> 0
B22: ='Background Controls'!I12 -> 0
B23: ='Background Controls'!I13 -> 0
B24: ='Background Controls'!I14 -> 0
B25: ='Background Controls'!I15 -> 0
B26: ='Background Controls'!I16 -> 0
B27: ='Background Controls'!I17 -> 0
B28: ='Background Controls'!I18 -> 0
B29: ='Background Controls'!I19 -> 0
B30: ='Background Controls'!I20 -> 0
B31: ='Background Controls'!I21 -> 0
B32: ='Background Controls'!I22 -> 0
B33: ='Background Controls'!I23 -> 0
B34: ='Background Controls'!I24 -> 0
A36: 2. Enter mode of transit proportions, commute length, and work days
A37: Please enter what percentage of employees use each form of transportation to work. These values will be used to determine how many city employees travel by each mode every day.
A38: Default values are from the American Communities Survey, and represent the average distribution of transit modes in the United States. For more accurate emissions estimates, use proportions gathered from a travel survey of city employees.
B40: Mode | C40: Employees who use mode (%) | D40: Default Values
B41: Single Occupancy Vehicle | D41: 0.764
B42: Carpool | D42: 0.097
B43: Motorcycle | D43: 0.002
B44: Transit | D44: 0.05
B45: Bike | D45: 0.006
B46: Walk | D46: 0.028
B47: Work at home | D47: 0.043
B48: Other | D48: =1-SUM(D41:D47) -> 0.01
B49: Total | C49: =SUM(C41:C48) -> 0
A51: Please enter the average one-way commute length for city employees. Default commute distance is 12.6 miles (from FHWA's 2010 Status of the Nation's Highways Bridges and Transit, http://www.fhwa.dot.gov/policy/2010cpr/execsum.htm).
A52: This commute distance may be longer or shorter than the average commute for your city's employees. For the most accurate emissions estimates, use data from a travel survey of city employees.
B53: Average One-Way Commute Length (miles) | D53: 12.6
A55: Please enter the number of days each city employee works per year. This number will be multiplied by the emissions from daily commutes. Default work-year days is provided (240 days), assuming a 5-day work week, two weeks (10 days) of vacation, and 10 federal holidays.
B57: Workdays per year | D57: 240
A59: Employee Commute Emissions Summary
B61: Emissions by Department (MT CO2e)
C62: CO2
A63: Dstart | B63: ='Background Controls'!I5 -> Residential | C63: =K164 -> 
B64: ='Background Controls'!I6 -> Commercial/Institutional | C64: =K165 -> 
B65: ='Background Controls'!I7 -> Industrial
B66: ='Background Controls'!I8 -> Energy Generation
B67: ='Background Controls'!I9 -> 0
B68: ='Background Controls'!I10 -> 0
B69: ='Background Controls'!I11 -> 0
B70: ='Background Controls'!I12 -> 0
B71: ='Background Controls'!I13 -> 0
B72: ='Background Controls'!I14 -> 0
B73: ='Background Controls'!I15 -> 0
B74: ='Background Controls'!I16 -> 0
B75: ='Background Controls'!I17 -> 0
B76: ='Background Controls'!I18 -> 0
B77: ='Background Controls'!I19 -> 0
B78: ='Background Controls'!I20 -> 0
B79: ='Background Controls'!I21 -> 0
B80: ='Background Controls'!I22 -> 0
B81: ='Background Controls'!I23 -> 0
B82: ='Background Controls'!I24 -> 0
B83: Total | C83: =SUM(C63:C82) -> 
A106: Background Calculations
A108: Employees by Department and Mode
A109: Number of Employees who use mode = # of employees × percentage of employees who use each mode
C110: Single Occupancy Vehicle | D110: Carpool | E110: Motorcycle | F110: Transit | G110: Bike | H110: Walk | I110: Work at Home | J110: Other
A111: Dstart | B111: ='Background Controls'!I5 -> Residential | C111: =VLOOKUP(C$110,$B$41:$C$48, 2, FALSE)*VLOOKUP($B111, $B$15:$C$34, 2, FALSE) -> 0 | D111: =VLOOKUP(D$110,$B$41:$C$48, 2, FALSE)*VLOOKUP($B111, $B$15:$C$34, 2, FALSE) -> 0 | E111: 0 | F111: 0 | G111: 0 | H111: 0 | I111: 0 | J111: 0
B112: ='Background Controls'!I6 -> Commercial/Institutional | C112: 0 | D112: 0 | E112: 0 | F112: 0 | G112: 0 | H112: 0 | I112: 0 | J112: 0
B113: ='Background Controls'!I7 -> Industrial | C113: 0 | D113: 0 | E113: 0 | F113: 0 | G113: 0 | H113: 0 | I113: 0 | J113: 0
B114: ='Background Controls'!I8 -> Energy Generation | C114: 0 | D114: 0 | E114: 0 | F114: 0 | G114: 0 | H114: 0 | I114: 0 | J114: 0
B115: ='Background Controls'!I9 -> 0 | C115: 0 | D115: 0 | E115: 0 | F115: 0 | G115: 0 | H115: 0 | I115: 0 | J115: 0
B116: ='Background Controls'!I10 -> 0 | C116: 0 | D116: 0 | E116: 0 | F116: 0 | G116: 0 | H116: 0 | I116: 0 | J116: 0
B117: ='Background Controls'!I11 -> 0 | C117: 0 | D117: 0 | E117: 0 | F117: 0 | G117: 0 | H117: 0 | I117: 0 | J117: 0
B118: ='Background Controls'!I12 -> 0 | C118: 0 | D118: 0 | E118: 0 | F118: 0 | G118: 0 | H118: 0 | I118: 0 | J118: 0
B119: ='Background Controls'!I13 -> 0 | C119: 0 | D119: 0 | E119: 0 | F119: 0 | G119: 0 | H119: 0 | I119: 0 | J119: 0
B120: ='Background Controls'!I14 -> 0 | C120: 0 | D120: 0 | E120: 0 | F120: 0 | G120: 0 | H120: 0 | I120: 0 | J120: 0
B121: ='Background Controls'!I15 -> 0 | C121: =VLOOKUP(C$110,$B$41:$C$48, 2, FALSE)*VLOOKUP($B121, $B$15:$C$34, 2, FALSE) -> 0 | D121: 0 | E121: 0 | F121: 0 | G121: 0 | H121: 0 | I121: 0 | J121: 0
B122: ='Background Controls'!I16 -> 0 | C122: 0 | D122: 0 | E122: 0 | F122: 0 | G122: 0 | H122: 0 | I122: 0 | J122: 0
B123: ='Background Controls'!I17 -> 0 | C123: 0 | D123: 0 | E123: 0 | F123: 0 | G123: 0 | H123: 0 | I123: 0 | J123: 0
B124: ='Background Controls'!I18 -> 0 | C124: 0 | D124: 0 | E124: 0 | F124: 0 | G124: 0 | H124: 0 | I124: 0 | J124: 0
B125: ='Background Controls'!I19 -> 0 | C125: 0 | D125: 0 | E125: 0 | F125: 0 | G125: 0 | H125: 0 | I125: 0 | J125: 0
B126: ='Background Controls'!I20 -> 0 | C126: 0 | D126: 0 | E126: 0 | F126: 0 | G126: 0 | H126: 0 | I126: 0 | J126: 0
B127: ='Background Controls'!I21 -> 0 | C127: 0 | D127: 0 | E127: 0 | F127: 0 | G127: 0 | H127: 0 | I127: 0 | J127: 0
B128: ='Background Controls'!I22 -> 0 | C128: 0 | D128: 0 | E128: 0 | F128: 0 | G128: 0 | H128: 0 | I128: 0 | J128: 0
B129: ='Background Controls'!I23 -> 0 | C129: 0 | D129: 0 | E129: 0 | F129: 0 | G129: 0 | H129: 0 | I129: 0 | J129: 0
B130: ='Background Controls'!I24 -> 0 | C130: 0 | D130: 0 | E130: 0 | F130: 0 | G130: 0 | H130: 0 | I130: 0 | J130: 0
B131: Total | C131: =SUM(C111:C130) -> 0 | D131: =SUM(D111:D130) -> 0 | E131: 0 | F131: 0 | G131: 0 | H131: 0 | I131: 0 | J131: 0
A133: Daily CO2 Emissions by Department and Mode
A134: CO2 Emissions/Day = Employees traveling × Trip Distance/day ÷ People/Mode ÷ miles per gallon × Mode Emissions Factor (kg CO2/gallon) × MT/kg × GWP CO2 [people × (1/people) × miles/day × gal/mile × kg CO2/gal × MT/kg = MT CO2/day]
C135: Single Occupancy Vehicle | D135: Carpool | E135: Motorcycle | F135: Transit | G135: Bike | H135: Walk | I135: Work at Home | J135: Other | K135: TOTAL
B136: CO2 Emission Factor (kg/gal) | C136: =VLOOKUP(C135, commute_factors, 4, FALSE) -> 8.78 | D136: 8.78 | E136: 8.78 | F136: =VLOOKUP(F135, commute_factors, 4, FALSE) -> 0 | G136: 0 | H136: 0 | I136: 0 | J136: 0
B137: mpg | C137: =VLOOKUP(C$135, commute_factors, 2, FALSE) -> 21.6 | D137: =VLOOKUP(D$135, commute_factors, 2, FALSE) -> 21.6 | E137: =VLOOKUP(E$135, commute_factors, 2, FALSE) -> 43.4 | F137: 0 | G137: 0 | H137: 0 | I137: 0 | J137: 0
B138: People/Mode | C138: =VLOOKUP(C135, commute_factors, 3, FALSE) -> 1 | D138: =VLOOKUP(D135, commute_factors, 3, FALSE) -> 2.416031414 | E138: =VLOOKUP(E135, commute_factors, 3, FALSE) -> 1 | F138: 0 | G138: 0 | H138: 0 | I138: 0 | J138: 0
